Workbook

Sheet Hitters
A1: Name | B1: ELG | C1: FPTS | D1: PPPA | E1: PPG | F1: G | G1: PA | H1: AB | I1: H | J1: 1B | K1: 2B | L1: 3B | M1: HR | N1: RBI | O1: R | P1: BB | Q1: SO | R1: SB | S1: CS | T1: SF | U1: HBP | V1: AVG | W1: K/BB | X1: TB | Y1: OBP | Z1: SLG | AA1: OPS | AB1: LG | AC1: PlayerID | AD1: Pos | AE1: Drafted
A2: Mookie Betts | B2: OF | C2: =((G2*'Points System'!$B$16)+(H2*'Points System'!$B$17)+(I2*'Points System'!$B$15)+(J2*'Points System'!$B$2)+(K2*'Points System'!$B$3)+(L2*'Points System'!$B$4)+(M2*'Points System'!$B$5)+(N2*'Points System'!$B$6)+(O2*'Points System'!$B$7)+(P2*'Points System'!$B$8)+(Q2*'Points System'!$B$9)+(R2*'Points System'!$B$10)+(S2*'Points System'!$B$11)+(T2*'Points System'!$B$13)+(U2*'Points System'!$B$12)+(X2*'Points System'!$B$14))*((100-Settings!$B$37)/100) -> 199.74 | D2: =C2/G2 -> 0.7977474239 | E2: =C2/F2 -> 3.61520362 | F2: =VLOOKUP(A2,'Projections - Hitters'!$A$2:$X$199990,2,FALSE) -> 55.25 | G2: =VLOOKUP(A2,'Projections - Hitters'!$A$2:$X$199990,3,FALSE) -> 250.38 | H2: =VLOOKUP(A2,'Projections - Hitters'!$A$2:$X$199990,4,FALSE) -> 213.5 | I2: =VLOOKUP(A2,'Projections - Hitters'!$A$2:$X$199990,5,FALSE) -> 62.33 | J2: =VLOOKUP(A2,'Projections - Hitters'!$A$2:$X$199990,6,FALSE) -> 35.58 | K2: =VLOOKUP(A2,'Projections - Hitters'!$A$2:$X$199990,7,FALSE) -> 14.08 | L2: =VLOOKUP(A2,'Projections - Hitters'!$A$2:$X$199990,8,FALSE) -> 1.25 | M2: =VLOOKUP(A2,'Projections - Hitters'!$A$2:$X$199990,9,FALSE) -> 11.33 | N2: =VLOOKUP(A2,'Projections - Hitters'!$A$2:$X$199990,10,FALSE) -> 31.83 | O2: =VLOOKUP(A2,'Projections - Hitters'!$A$2:$X$199990,11,FALSE) -> 44.17 | P2: =VLOOKUP(A2,'Projections - Hitters'!$A$2:$X$199990,12,FALSE) -> 30.67 | Q2: =VLOOKUP(A2,'Projections - Hitters'!$A$2:$X$199990,13,FALSE) -> 35.73 | R2: =VLOOKUP(A2,'Projections - Hitters'!$A$2:$X$199990,14,FALSE) -> 6.92 | S2: =VLOOKUP(A2,'Projections - Hitters'!$A$2:$X$199990,15,FALSE) -> 1.45 | T2: =VLOOKUP(A2,'Projections - Hitters'!$A$2:$X$199990,16,FALSE) -> 2 | U2: =VLOOKUP(A2,'Projections - Hitters'!$A$2:$X$199990,17,FALSE) -> 1.6 | V2: =VLOOKUP(A2,'Projections - Hitters'!$A$2:$X$199990,18,FALSE) -> 0.292 | W2: =VLOOKUP(A2,'Projections - Hitters'!$A$2:$X$199990,19,FALSE) -> 1.16 | X2: =VLOOKUP(A2,'Projections - Hitters'!$A$2:$X$199990,20,FALSE) -> 112.81 | Y2: =VLOOKUP(A2,'Projections - Hitters'!$A$2:$X$199990,21,FALSE) -> 0.382 | Z2: =VLOOKUP(A2,'Projections - Hitters'!$A$2:$X$199990,22,FALSE) -> 0.528 | AA2: =VLOOKUP(A2,'Projections - Hitters'!$A$2:$X$199990,23,FALSE) -> 0.91 | AB2: NL | AC2: 605141 | AD2: RF | AE2: =IF(ISNA(VLOOKUP(A2,Rankings!$B$2:$H$883,7,FALSE)),"-",VLOOKUP(A2,Rankings!$B$2:$H$883,7,FALSE)) -> 0
A3: Alex Bregman | B3: 3B/SS | C3: =((G3*'Points System'!$B$16)+(H3*'Points System'!$B$17)+(I3*'Points System'!$B$15)+(J3*'Points System'!$B$2)+(K3*'Points System'!$B$3)+(L3*'Points System'!$B$4)+(M3*'Points System'!$B$5)+(N3*'Points System'!$B$6)+(O3*'Points System'!$B$7)+(P3*'Points System'!$B$8)+(Q3*'Points System'!$B$9)+(R3*'Points System'!$B$10)+(S3*'Points System'!$B$11)+(T3*'Points System'!$B$13)+(U3*'Points System'!$B$12)+(X3*'Points System'!$B$14))*((100-Settings!$B$37)/100) -> 198.46 | D3: 0.8133606557 | E3: 3.567499551 | F3: =VLOOKUP(A3,'Projections - Hitters'!$A$2:$X$199990,2,FALSE) -> 55.63 | G3: =VLOOKUP(A3,'Projections - Hitters'!$A$2:$X$199990,3,FALSE) -> 244 | H3: =VLOOKUP(A3,'Projections - Hitters'!$A$2:$X$199990,4,FALSE) -> 201.58 | I3: =VLOOKUP(A3,'Projections - Hitters'!$A$2:$X$199990,5,FALSE) -> 58 | J3: =VLOOKUP(A3,'Projections - Hitters'!$A$2:$X$199990,6,FALSE) -> 31.08 | K3: =VLOOKUP(A3,'Projections - Hitters'!$A$2:$X$199990,7,FALSE) -> 13.58 | L3: =VLOOKUP(A3,'Projections - Hitters'!$A$2:$X$199990,8,FALSE) -> 0.92 | M3: =VLOOKUP(A3,'Projections - Hitters'!$A$2:$X$199990,9,FALSE) -> 12.25 | N3: =VLOOKUP(A3,'Projections - Hitters'!$A$2:$X$199990,10,FALSE) -> 38.33 | O3: =VLOOKUP(A3,'Projections - Hitters'!$A$2:$X$199990,11,FALSE) -> 38.83 | P3: =VLOOKUP(A3,'Projections - Hitters'!$A$2:$X$199990,12,FALSE) -> 34.42 | Q3: =VLOOKUP(A3,'Projections - Hitters'!$A$2:$X$199990,13,FALSE) -> 31.55 | R3: =VLOOKUP(A3,'Projections - Hitters'!$A$2:$X$199990,14,FALSE) -> 2.42 | S3: =VLOOKUP(A3,'Projections - Hitters'!$A$2:$X$199990,15,FALSE) -> 0.91 | T3: =VLOOKUP(A3,'Projections - Hitters'!$A$2:$X$199990,16,FALSE) -> 1.5 | U3: =VLOOKUP(A3,'Projections - Hitters'!$A$2:$X$199990,17,FALSE) -> 3 | V3: =VLOOKUP(A3,'Projections - Hitters'!$A$2:$X$199990,18,FALSE) -> 0.288 | W3: =VLOOKUP(A3,'Projections - Hitters'!$A$2:$X$199990,19,FALSE) -> 0.92 | X3: =VLOOKUP(A3,'Projections - Hitters'!$A$2:$X$199990,20,FALSE) -> 110 | Y3: =VLOOKUP(A3,'Projections - Hitters'!$A$2:$X$199990,21,FALSE) -> 0.397 | Z3: =VLOOKUP(A3,'Projections - Hitters'!$A$2:$X$199990,22,FALSE) -> 0.546 | AA3: =VLOOKUP(A3,'Projections - Hitters'!$A$2:$X$199990,23,FALSE) -> 0.94 | AB3: AL | AC3: 608324 | AD3: 3B | AE3: =IF(ISNA(VLOOKUP(A3,Rankings!$B$2:$H$883,7,FALSE)),"-",VLOOKUP(A3,Rankings!$B$2:$H$883,7,FALSE)) -> 0
A4: Mike Trout | B4: OF | C4: =((G4*'Points System'!$B$16)+(H4*'Points System'!$B$17)+(I4*'Points System'!$B$15)+(J4*'Points System'!$B$2)+(K4*'Points System'!$B$3)+(L4*'Points System'!$B$4)+(M4*'Points System'!$B$5)+(N4*'Points System'!$B$6)+(O4*'Points System'!$B$7)+(P4*'Points System'!$B$8)+(Q4*'Points System'!$B$9)+(R4*'Points System'!$B$10)+(S4*'Points System'!$B$11)+(T4*'Points System'!$B$13)+(U4*'Points System'!$B$12)+(X4*'Points System'!$B$14))*((100-Settings!$B$37)/100) -> 197.52 | D4: 0.8518199068 | E4: 3.770904926 | F4: =VLOOKUP(A4,'Projections - Hitters'!$A$2:$X$199990,2,FALSE) -> 52.38 | G4: =VLOOKUP(A4,'Projections - Hitters'!$A$2:$X$199990,3,FALSE) -> 231.88 | H4: =VLOOKUP(A4,'Projections - Hitters'!$A$2:$X$199990,4,FALSE) -> 177.17 | I4: =VLOOKUP(A4,'Projections - Hitters'!$A$2:$X$199990,5,FALSE) -> 52.83 | J4: =VLOOKUP(A4,'Projections - Hitters'!$A$2:$X$199990,6,FALSE) -> 26.67 | K4: =VLOOKUP(A4,'Projections - Hitters'!$A$2:$X$199990,7,FALSE) -> 10 | L4: =VLOOKUP(A4,'Projections - Hitters'!$A$2:$X$199990,8,FALSE) -> 0.83 | M4: =VLOOKUP(A4,'Projections - Hitters'!$A$2:$X$199990,9,FALSE) -> 15.25 | N4: =VLOOKUP(A4,'Projections - Hitters'!$A$2:$X$199990,10,FALSE) -> 36.5 | O4: =VLOOKUP(A4,'Projections - Hitters'!$A$2:$X$199990,11,FALSE) -> 40.25 | P4: =VLOOKUP(A4,'Projections - Hitters'!$A$2:$X$199990,12,FALSE) -> 40.75 | Q4: =VLOOKUP(A4,'Projections - Hitters'!$A$2:$X$199990,13,FALSE) -> 45.36 | R4: =VLOOKUP(A4,'Projections - Hitters'!$A$2:$X$199990,14,FALSE) -> 5.25 | S4: =VLOOKUP(A4,'Projections - Hitters'!$A$2:$X$199990,15,FALSE) -> 1.18 | T4: =VLOOKUP(A4,'Projections - Hitters'!$A$2:$X$199990,16,FALSE) -> 1.5 | U4: =VLOOKUP(A4,'Projections - Hitters'!$A$2:$X$199990,17,FALSE) -> 4.4 | V4: =VLOOKUP(A4,'Projections - Hitters'!$A$2:$X$199990,18,FALSE) -> 0.298 | W4: =VLOOKUP(A4,'Projections - Hitters'!$A$2:$X$199990,19,FALSE) -> 1.11 | X4: =VLOOKUP(A4,'Projections - Hitters'!$A$2:$X$199990,20,FALSE) -> 110.16 | Y4: =VLOOKUP(A4,'Projections - Hitters'!$A$2:$X$199990,21,FALSE) -> 0.438 | Z4: =VLOOKUP(A4,'Projections - Hitters'!$A$2:$X$199990,22,FALSE) -> 0.622 | AA4: =VLOOKUP(A4,'Projections - Hitters'!$A$2:$X$199990,23,FALSE) -> 1.06 | AB4: AL | AC4: 545361 | AD4: CF | AE4: =IF(ISNA(VLOOKUP(A4,Rankings!$B$2:$H$883,7,FALSE)),"-",VLOOKUP(A4,Rankings!$B$2:$H$883,7,FALSE)) -> 0
A5: Christian Yelich | B5: OF | C5: =((G5*'Points System'!$B$16)+(H5*'Points System'!$B$17)+(I5*'Points System'!$B$15)+(J5*'Points System'!$B$2)+(K5*'Points System'!$B$3)+(L5*'Points System'!$B$4)+(M5*'Points System'!$B$5)+(N5*'Points System'!$B$6)+(O5*'Points System'!$B$7)+(P5*'Points System'!$B$8)+(Q5*'Points System'!$B$9)+(R5*'Points System'!$B$10)+(S5*'Points System'!$B$11)+(T5*'Points System'!$B$13)+(U5*'Points System'!$B$12)+(X5*'Points System'!$B$14))*((100-Settings!$B$37)/100) -> 193.51 | D5: 0.807536619 | E5: 3.583518519 | F5: =VLOOKUP(A5,'Projections - Hitters'!$A$2:$X$199990,2,FALSE) -> 54 | G5: =VLOOKUP(A5,'Projections - Hitters'!$A$2:$X$199990,3,FALSE) -> 239.63 | H5: =VLOOKUP(A5,'Projections - Hitters'!$A$2:$X$199990,4,FALSE) -> 204.58 | I5: =VLOOKUP(A5,'Projections - Hitters'!$A$2:$X$199990,5,FALSE) -> 63.5 | J5: =VLOOKUP(A5,'Projections - Hitters'!$A$2:$X$199990,6,FALSE) -> 36.67 | K5: =VLOOKUP(A5,'Projections - Hitters'!$A$2:$X$199990,7,FALSE) -> 12.5 | L5: =VLOOKUP(A5,'Projections - Hitters'!$A$2:$X$199990,8,FALSE) -> 1.25 | M5: =VLOOKUP(A5,'Projections - Hitters'!$A$2:$X$199990,9,FALSE) -> 13 | N5: =VLOOKUP(A5,'Projections - Hitters'!$A$2:$X$199990,10,FALSE) -> 37.67 | O5: =VLOOKUP(A5,'Projections - Hitters'!$A$2:$X$199990,11,FALSE) -> 38.67 | P5: =VLOOKUP(A5,'Projections - Hitters'!$A$2:$X$199990,12,FALSE) -> 29.75 | Q5: =VLOOKUP(A5,'Projections - Hitters'!$A$2:$X$199990,13,FALSE) -> 49 | R5: =VLOOKUP(A5,'Projections - Hitters'!$A$2:$X$199990,14,FALSE) -> 8.42 | S5: =VLOOKUP(A5,'Projections - Hitters'!$A$2:$X$199990,15,FALSE) -> 1.64 | T5: =VLOOKUP(A5,'Projections - Hitters'!$A$2:$X$199990,16,FALSE) -> 1 | U5: =VLOOKUP(A5,'Projections - Hitters'!$A$2:$X$199990,17,FALSE) -> 2.8 | V5: =VLOOKUP(A5,'Projections - Hitters'!$A$2:$X$199990,18,FALSE) -> 0.31 | W5: =VLOOKUP(A5,'Projections - Hitters'!$A$2:$X$199990,19,FALSE) -> 1.65 | X5: =VLOOKUP(A5,'Projections - Hitters'!$A$2:$X$199990,20,FALSE) -> 117.42 | Y5: =VLOOKUP(A5,'Projections - Hitters'!$A$2:$X$199990,21,FALSE) -> 0.403 | Z5: =VLOOKUP(A5,'Projections - Hitters'!$A$2:$X$199990,22,FALSE) -> 0.574 | AA5: =VLOOKUP(A5,'Projections - Hitters'!$A$2:$X$199990,23,FALSE) -> 0.98 | AB5: NL | AC5: 592885 | AD5: RF | AE5: =IF(ISNA(VLOOKUP(A5,Rankings!$B$2:$H$883,7,FALSE)),"-",VLOOKUP(A5,Rankings!$B$2:$H$883,7,FALSE)) -> 0
A6: Cody Bellinger | B6: OF/1B | C6: =((G6*'Points System'!$B$16)+(H6*'Points System'!$B$17)+(I6*'Points System'!$B$15)+(J6*'Points System'!$B$2)+(K6*'Points System'!$B$3)+(L6*'Points System'!$B$4)+(M6*'Points System'!$B$5)+(N6*'Points System'!$B$6)+(O6*'Points System'!$B$7)+(P6*'Points System'!$B$8)+(Q6*'Points System'!$B$9)+(R6*'Points System'!$B$10)+(S6*'Points System'!$B$11)+(T6*'Points System'!$B$13)+(U6*'Points System'!$B$12)+(X6*'Points System'!$B$14))*((100-Settings!$B$37)/100) -> 191.2 | D6: 0.8033613445 | E6: 3.406378051 | F6: =VLOOKUP(A6,'Projections - Hitters'!$A$2:$X$199990,2,FALSE) -> 56.13 | G6: =VLOOKUP(A6,'Projections - Hitters'!$A$2:$X$199990,3,FALSE) -> 238 | H6: =VLOOKUP(A6,'Projections - Hitters'!$A$2:$X$199990,4,FALSE) -> 201.75 | I6: =VLOOKUP(A6,'Projections - Hitters'!$A$2:$X$199990,5,FALSE) -> 58 | J6: =VLOOKUP(A6,'Projections - Hitters'!$A$2:$X$199990,6,FALSE) -> 30.5 | K6: =VLOOKUP(A6,'Projections - Hitters'!$A$2:$X$199990,7,FALSE) -> 11.5 | L6: =VLOOKUP(A6,'Projections - Hitters'!$A$2:$X$199990,8,FALSE) -> 1.25 | M6: =VLOOKUP(A6,'Projections - Hitters'!$A$2:$X$199990,9,FALSE) -> 14.58 | N6: =VLOOKUP(A6,'Projections - Hitters'!$A$2:$X$199990,10,FALSE) -> 41 | O6: =VLOOKUP(A6,'Projections - Hitters'!$A$2:$X$199990,11,FALSE) -> 39.25 | P6: =VLOOKUP(A6,'Projections - Hitters'!$A$2:$X$199990,12,FALSE) -> 31.08 | Q6: =VLOOKUP(A6,'Projections - Hitters'!$A$2:$X$199990,13,FALSE) -> 46.27 | R6: =VLOOKUP(A6,'Projections - Hitters'!$A$2:$X$199990,14,FALSE) -> 4.92 | S6: =VLOOKUP(A6,'Projections - Hitters'!$A$2:$X$199990,15,FALSE) -> 1.27 | T6: =VLOOKUP(A6,'Projections - Hitters'!$A$2:$X$199990,16,FALSE) -> 1 | U6: =VLOOKUP(A6,'Projections - Hitters'!$A$2:$X$199990,17,FALSE) -> 1 | V6: =VLOOKUP(A6,'Projections - Hitters'!$A$2:$X$199990,18,FALSE) -> 0.287 | W6: =VLOOKUP(A6,'Projections - Hitters'!$A$2:$X$199990,19,FALSE) -> 1.49 | X6: =VLOOKUP(A6,'Projections - Hitters'!$A$2:$X$199990,20,FALSE) -> 115.57 | Y6: =VLOOKUP(A6,'Projections - Hitters'!$A$2:$X$199990,21,FALSE) -> 0.384 | Z6: =VLOOKUP(A6,'Projections - Hitters'!$A$2:$X$199990,22,FALSE) -> 0.573 | AA6: =VLOOKUP(A6,'Projections - Hitters'!$A$2:$X$199990,23,FALSE) -> 0.96 | AB6: NL | AC6: 641355 | AD6: RF | AE6: =IF(ISNA(VLOOKUP(A6,Rankings!$B$2:$H$883,7,FALSE)),"-",VLOOKUP(A6,Rankings!$B$2:$H$883,7,FALSE)) -> 0
A7: Jose Ramirez | B7: 3B | C7: =((G7*'Points System'!$B$16)+(H7*'Points System'!$B$17)+(I7*'Points System'!$B$15)+(J7*'Points System'!$B$2)+(K7*'Points System'!$B$3)+(L7*'Points System'!$B$4)+(M7*'Points System'!$B$5)+(N7*'Points System'!$B$6)+(O7*'Points System'!$B$7)+(P7*'Points System'!$B$8)+(Q7*'Points System'!$B$9)+(R7*'Points System'!$B$10)+(S7*'Points System'!$B$11)+(T7*'Points System'!$B$13)+(U7*'Points System'!$B$12)+(X7*'Points System'!$B$14))*((100-Settings!$B$37)/100) -> 189.74 | D7: 0.8112707371 | E7: 3.489150423 | F7: =VLOOKUP(A7,'Projections - Hitters'!$A$2:$X$199990,2,FALSE) -> 54.38 | G7: =VLOOKUP(A7,'Projections - Hitters'!$A$2:$X$199990,3,FALSE) -> 233.88 | H7: =VLOOKUP(A7,'Projections - Hitters'!$A$2:$X$199990,4,FALSE) -> 203.42 | I7: =VLOOKUP(A7,'Projections - Hitters'!$A$2:$X$199990,5,FALSE) -> 56.17 | J7: =VLOOKUP(A7,'Projections - Hitters'!$A$2:$X$199990,6,FALSE) -> 30 | K7: =VLOOKUP(A7,'Projections - Hitters'!$A$2:$X$199990,7,FALSE) -> 14 | L7: =VLOOKUP(A7,'Projections - Hitters'!$A$2:$X$199990,8,FALSE) -> 1.17 | M7: =VLOOKUP(A7,'Projections - Hitters'!$A$2:$X$199990,9,FALSE) -> 10.83 | N7: =VLOOKUP(A7,'Projections - Hitters'!$A$2:$X$199990,10,FALSE) -> 36.33 | O7: =VLOOKUP(A7,'Projections - Hitters'!$A$2:$X$199990,11,FALSE) -> 33.83 | P7: =VLOOKUP(A7,'Projections - Hitters'!$A$2:$X$199990,12,FALSE) -> 25.67 | Q7: =VLOOKUP(A7,'Projections - Hitters'!$A$2:$X$199990,13,FALSE) -> 30 | R7: =VLOOKUP(A7,'Projections - Hitters'!$A$2:$X$199990,14,FALSE) -> 9.17 | S7: =VLOOKUP(A7,'Projections - Hitters'!$A$2:$X$199990,15,FALSE) -> 2.36 | T7: =VLOOKUP(A7,'Projections - Hitters'!$A$2:$X$199990,16,FALSE) -> 1.5 | U7: =VLOOKUP(A7,'Projections - Hitters'!$A$2:$X$199990,17,FALSE) -> 1.6 | V7: =VLOOKUP(A7,'Projections - Hitters'!$A$2:$X$199990,18,FALSE) -> 0.276 | W7: =VLOOKUP(A7,'Projections - Hitters'!$A$2:$X$199990,19,FALSE) -> 1.17 | X7: =VLOOKUP(A7,'Projections - Hitters'!$A$2:$X$199990,20,FALSE) -> 104.83 | Y7: =VLOOKUP(A7,'Projections - Hitters'!$A$2:$X$199990,21,FALSE) -> 0.359 | Z7: =VLOOKUP(A7,'Projections - Hitters'!$A$2:$X$199990,22,FALSE) -> 0.515 | AA7: =VLOOKUP(A7,'Projections - Hitters'!$A$2:$X$199990,23,FALSE) -> 0.87 | AB7: AL | AC7: 608070 | AD7: 3B | AE7: =IF(ISNA(VLOOKUP(A7,Rankings!$B$2:$H$883,7,FALSE)),"-",VLOOKUP(A7,Rankings!$B$2:$H$883,7,FALSE)) -> 0
A8: Nolan Arenado | B8: 3B | C8: =((G8*'Points System'!$B$16)+(H8*'Points System'!$B$17)+(I8*'Points System'!$B$15)+(J8*'Points System'!$B$2)+(K8*'Points System'!$B$3)+(L8*'Points System'!$B$4)+(M8*'Points System'!$B$5)+(N8*'Points System'!$B$6)+(O8*'Points System'!$B$7)+(P8*'Points System'!$B$8)+(Q8*'Points System'!$B$9)+(R8*'Points System'!$B$10)+(S8*'Points System'!$B$11)+(T8*'Points System'!$B$13)+(U8*'Points System'!$B$12)+(X8*'Points System'!$B$14))*((100-Settings!$B$37)/100) -> 188.67 | D8: 0.7820518135 | E8: 3.354133333 | F8: =VLOOKUP(A8,'Projections - Hitters'!$A$2:$X$199990,2,FALSE) -> 56.25 | G8: =VLOOKUP(A8,'Projections - Hitters'!$A$2:$X$199990,3,FALSE) -> 241.25 | H8: =VLOOKUP(A8,'Projections - Hitters'!$A$2:$X$199990,4,FALSE) -> 213.83 | I8: =VLOOKUP(A8,'Projections - Hitters'!$A$2:$X$199990,5,FALSE) -> 63.92 | J8: =VLOOKUP(A8,'Projections - Hitters'!$A$2:$X$199990,6,FALSE) -> 36.08 | K8: =VLOOKUP(A8,'Projections - Hitters'!$A$2:$X$199990,7,FALSE) -> 12.58 | L8: =VLOOKUP(A8,'Projections - Hitters'!$A$2:$X$199990,8,FALSE) -> 1 | M8: =VLOOKUP(A8,'Projections - Hitters'!$A$2:$X$199990,9,FALSE) -> 14.25 | N8: =VLOOKUP(A8,'Projections - Hitters'!$A$2:$X$199990,10,FALSE) -> 42.67 | O8: =VLOOKUP(A8,'Projections - Hitters'!$A$2:$X$199990,11,FALSE) -> 36.17 | P8: =VLOOKUP(A8,'Projections - Hitters'!$A$2:$X$199990,12,FALSE) -> 23.17 | Q8: =VLOOKUP(A8,'Projections - Hitters'!$A$2:$X$199990,13,FALSE) -> 38.55 | R8: =VLOOKUP(A8,'Projections - Hitters'!$A$2:$X$199990,14,FALSE) -> 1 | S8: =VLOOKUP(A8,'Projections - Hitters'!$A$2:$X$199990,15,FALSE) -> 0.73 | T8: =VLOOKUP(A8,'Projections - Hitters'!$A$2:$X$199990,16,FALSE) -> 1.5 | U8: =VLOOKUP(A8,'Projections - Hitters'!$A$2:$X$199990,17,FALSE) -> 1.2 | V8: =VLOOKUP(A8,'Projections - Hitters'!$A$2:$X$199990,18,FALSE) -> 0.299 | W8: =VLOOKUP(A8,'Projections - Hitters'!$A$2:$X$199990,19,FALSE) -> 1.66 | X8: =VLOOKUP(A8,'Projections - Hitters'!$A$2:$X$199990,20,FALSE) -> 121.24 | Y8: =VLOOKUP(A8,'Projections - Hitters'!$A$2:$X$199990,21,FALSE) -> 0.368 | Z8: =VLOOKUP(A8,'Projections - Hitters'!$A$2:$X$199990,22,FALSE) -> 0.567 | AA8: =VLOOKUP(A8,'Projections - Hitters'!$A$2:$X$199990,23,FALSE) -> 0.94 | AB8: NL | AC8: 571448 | AD8: 3B | AE8: =IF(ISNA(VLOOKUP(A8,Rankings!$B$2:$H$883,7,FALSE)),"-",VLOOKUP(A8,Rankings!$B$2:$H$883,7,FALSE)) -> 0
A9: Francisco Lindor | B9: SS | C9: =((G9*'Points System'!$B$16)+(H9*'Points System'!$B$17)+(I9*'Points System'!$B$15)+(J9*'Points System'!$B$2)+(K9*'Points System'!$B$3)+(L9*'Points System'!$B$4)+(M9*'Points System'!$B$5)+(N9*'Points System'!$B$6)+(O9*'Points System'!$B$7)+(P9*'Points System'!$B$8)+(Q9*'Points System'!$B$9)+(R9*'Points System'!$B$10)+(S9*'Points System'!$B$11)+(T9*'Points System'!$B$13)+(U9*'Points System'!$B$12)+(X9*'Points System'!$B$14))*((100-Settings!$B$37)/100) -> 188.56 | D9: 0.7515943878 | E9: 3.374373658 | F9: =VLOOKUP(A9,'Projections - Hitters'!$A$2:$X$199990,2,FALSE) -> 55.88 | G9: =VLOOKUP(A9,'Projections - Hitters'!$A$2:$X$199990,3,FALSE) -> 250.88 | H9: =VLOOKUP(A9,'Projections - Hitters'!$A$2:$X$199990,4,FALSE) -> 223.83 | I9: =VLOOKUP(A9,'Projections - Hitters'!$A$2:$X$199990,5,FALSE) -> 63.92 | J9: =VLOOKUP(A9,'Projections - Hitters'!$A$2:$X$199990,6,FALSE) -> 36.58 | K9: =VLOOKUP(A9,'Projections - Hitters'!$A$2:$X$199990,7,FALSE) -> 14 | L9: =VLOOKUP(A9,'Projections - Hitters'!$A$2:$X$199990,8,FALSE) -> 0.92 | M9: =VLOOKUP(A9,'Projections - Hitters'!$A$2:$X$199990,9,FALSE) -> 12.25 | N9: =VLOOKUP(A9,'Projections - Hitters'!$A$2:$X$199990,10,FALSE) -> 32 | O9: =VLOOKUP(A9,'Projections - Hitters'!$A$2:$X$199990,11,FALSE) -> 39.5 | P9: =VLOOKUP(A9,'Projections - Hitters'!$A$2:$X$199990,12,FALSE) -> 20.42 | Q9: =VLOOKUP(A9,'Projections - Hitters'!$A$2:$X$199990,13,FALSE) -> 36.36 | R9: =VLOOKUP(A9,'Projections - Hitters'!$A$2:$X$199990,14,FALSE) -> 7.67 | S9: =VLOOKUP(A9,'Projections - Hitters'!$A$2:$X$199990,15,FALSE) -> 2.18 | T9: =VLOOKUP(A9,'Projections - Hitters'!$A$2:$X$199990,16,FALSE) -> 1.5 | U9: =VLOOKUP(A9,'Projections - Hitters'!$A$2:$X$199990,17,FALSE) -> 2 | V9: =VLOOKUP(A9,'Projections - Hitters'!$A$2:$X$199990,18,FALSE) -> 0.286 | W9: =VLOOKUP(A9,'Projections - Hitters'!$A$2:$X$199990,19,FALSE) -> 1.78 | X9: =VLOOKUP(A9,'Projections - Hitters'!$A$2:$X$199990,20,FALSE) -> 116.34 | Y9: =VLOOKUP(A9,'Projections - Hitters'!$A$2:$X$199990,21,FALSE) -> 0.348 | Z9: =VLOOKUP(A9,'Projections - Hitters'!$A$2:$X$199990,22,FALSE) -> 0.52 | AA9: =VLOOKUP(A9,'Projections - Hitters'!$A$2:$X$199990,23,FALSE) -> 0.87 | AB9: AL | AC9: 596019 | AD9: SS | AE9: =IF(ISNA(VLOOKUP(A9,Rankings!$B$2:$H$883,7,FALSE)),"-",VLOOKUP(A9,Rankings!$B$2:$H$883,7,FALSE)) -> 0
A10: Juan Soto | B10: OF | C10: =((G10*'Points System'!$B$16)+(H10*'Points System'!$B$17)+(I10*'Points System'!$B$15)+(J10*'Points System'!$B$2)+(K10*'Points System'!$B$3)+(L10*'Points System'!$B$4)+(M10*'Points System'!$B$5)+(N10*'Points System'!$B$6)+(O10*'Points System'!$B$7)+(P10*'Points System'!$B$8)+(Q10*'Points System'!$B$9)+(R10*'Points System'!$B$10)+(S10*'Points System'!$B$11)+(T10*'Points System'!$B$13)+(U10*'Points System'!$B$12)+(X10*'Points System'!$B$14))*((100-Settings!$B$37)/100) -> 187.88 | D10: 0.7703788749 | E10: 3.377314399 | F10: =VLOOKUP(A10,'Projections - Hitters'!$A$2:$X$199990,2,FALSE) -> 55.63 | G10: =VLOOKUP(A10,'Projections - Hitters'!$A$2:$X$199990,3,FALSE) -> 243.88 | H10: =VLOOKUP(A10,'Projections - Hitters'!$A$2:$X$199990,4,FALSE) -> 201.08 | I10: =VLOOKUP(A10,'Projections - Hitters'!$A$2:$X$199990,5,FALSE) -> 58.67 | J10: =VLOOKUP(A10,'Projections - Hitters'!$A$2:$X$199990,6,FALSE) -> 33.17 | K10: =VLOOKUP(A10,'Projections - Hitters'!$A$2:$X$199990,7,FALSE) -> 11.58 | L10: =VLOOKUP(A10,'Projections - Hitters'!$A$2:$X$199990,8,FALSE) -> 1.25 | M10: =VLOOKUP(A10,'Projections - Hitters'!$A$2:$X$199990,9,FALSE) -> 12.58 | N10: =VLOOKUP(A10,'Projections - Hitters'!$A$2:$X$199990,10,FALSE) -> 40 | O10: =VLOOKUP(A10,'Projections - Hitters'!$A$2:$X$199990,11,FALSE) -> 38.42 | P10: =VLOOKUP(A10,'Projections - Hitters'!$A$2:$X$199990,12,FALSE) -> 38.17 | Q10: =VLOOKUP(A10,'Projections - Hitters'!$A$2:$X$199990,13,FALSE) -> 47.27 | R10: =VLOOKUP(A10,'Projections - Hitters'!$A$2:$X$199990,14,FALSE) -> 3.58 | S10: =VLOOKUP(A10,'Projections - Hitters'!$A$2:$X$199990,15,FALSE) -> 1 | T10: =VLOOKUP(A10,'Projections - Hitters'!$A$2:$X$199990,16,FALSE) -> 1 | U10: =VLOOKUP(A10,'Projections - Hitters'!$A$2:$X$199990,17,FALSE) -> 1 | V10: =VLOOKUP(A10,'Projections - Hitters'!$A$2:$X$199990,18,FALSE) -> 0.292 | W10: =VLOOKUP(A10,'Projections - Hitters'!$A$2:$X$199990,19,FALSE) -> 1.24 | X10: =VLOOKUP(A10,'Projections - Hitters'!$A$2:$X$199990,20,FALSE) -> 110.4 | Y10: =VLOOKUP(A10,'Projections - Hitters'!$A$2:$X$199990,21,FALSE) -> 0.406 | Z10: =VLOOKUP(A10,'Projections - Hitters'!$A$2:$X$199990,22,FALSE) -> 0.549 | AA10: =VLOOKUP(A10,'Projections - Hitters'!$A$2:$X$199990,23,FALSE) -> 0.96 | AB10: NL | AC10: 665742 | AD10: LF | AE10: =IF(ISNA(VLOOKUP(A10,Rankings!$B$2:$H$883,7,FALSE)),"-",VLOOKUP(A10,Rankings!$B$2:$H$883,7,FALSE)) -> 0
A11: Anthony Rendon | B11: 3B | C11: =((G11*'Points System'!$B$16)+(H11*'Points System'!$B$17)+(I11*'Points System'!$B$15)+(J11*'Points System'!$B$2)+(K11*'Points System'!$B$3)+(L11*'Points System'!$B$4)+(M11*'Points System'!$B$5)+(N11*'Points System'!$B$6)+(O11*'Points System'!$B$7)+(P11*'Points System'!$B$8)+(Q11*'Points System'!$B$9)+(R11*'Points System'!$B$10)+(S11*'Points System'!$B$11)+(T11*'Points System'!$B$13)+(U11*'Points System'!$B$12)+(X11*'Points System'!$B$14))*((100-Settings!$B$37)/100) -> 178.43 | D11: 0.7625213675 | E11: 3.350798122 | F11: =VLOOKUP(A11,'Projections - Hitters'!$A$2:$X$199990,2,FALSE) -> 53.25 | G11: =VLOOKUP(A11,'Projections - Hitters'!$A$2:$X$199990,3,FALSE) -> 234 | H11: =VLOOKUP(A11,'Projections - Hitters'!$A$2:$X$199990,4,FALSE) -> 200.42 | I11: =VLOOKUP(A11,'Projections - Hitters'!$A$2:$X$199990,5,FALSE) -> 58.58 | J11: =VLOOKUP(A11,'Projections - Hitters'!$A$2:$X$199990,6,FALSE) -> 33 | K11: =VLOOKUP(A11,'Projections - Hitters'!$A$2:$X$199990,7,FALSE) -> 13.83 | L11: =VLOOKUP(A11,'Projections - Hitters'!$A$2:$X$199990,8,FALSE) -> 0.92 | M11: =VLOOKUP(A11,'Projections - Hitters'!$A$2:$X$199990,9,FALSE) -> 10.75 | N11: =VLOOKUP(A11,'Projections - Hitters'!$A$2:$X$199990,10,FALSE) -> 37.42 | O11: =VLOOKUP(A11,'Projections - Hitters'!$A$2:$X$199990,11,FALSE) -> 34.42 | P11: =VLOOKUP(A11,'Projections - Hitters'!$A$2:$X$199990,12,FALSE) -> 26.17 | Q11: =VLOOKUP(A11,'Projections - Hitters'!$A$2:$X$199990,13,FALSE) -> 33.45 | R11: =VLOOKUP(A11,'Projections - Hitters'!$A$2:$X$199990,14,FALSE) -> 1.5 | S11: =VLOOKUP(A11,'Projections - Hitters'!$A$2:$X$199990,15,FALSE) -> 0.55 | T11: =VLOOKUP(A11,'Projections - Hitters'!$A$2:$X$199990,16,FALSE) -> 2 | U11: =VLOOKUP(A11,'Projections - Hitters'!$A$2:$X$199990,17,FALSE) -> 3 | V11: =VLOOKUP(A11,'Projections - Hitters'!$A$2:$X$199990,18,FALSE) -> 0.292 | W11: =VLOOKUP(A11,'Projections - Hitters'!$A$2:$X$199990,19,FALSE) -> 1.28 | X11: =VLOOKUP(A11,'Projections - Hitters'!$A$2:$X$199990,20,FALSE) -> 106.42 | Y11: =VLOOKUP(A11,'Projections - Hitters'!$A$2:$X$199990,21,FALSE) -> 0.379 | Z11: =VLOOKUP(A11,'Projections - Hitters'!$A$2:$X$199990,22,FALSE) -> 0.531 | AA11: =VLOOKUP(A11,'Projections - Hitters'!$A$2:$X$199990,23,FALSE) -> 0.91 | AB11: AL | AC11: 543685 | AD11: 3B | AE11: =IF(ISNA(VLOOKUP(A11,Rankings!$B$2:$H$883,7,FALSE)),"-",VLOOKUP(A11,Rankings!$B$2:$H$883,7,FALSE)) -> 0
A12: Anthony Rizzo | B12: 1B | C12: =((G12*'Points System'!$B$16)+(H12*'Points System'!$B$17)+(I12*'Points System'!$B$15)+(J12*'Points System'!$B$2)+(K12*'Points System'!$B$3)+(L12*'Points System'!$B$4)+(M12*'Points System'!$B$5)+(N12*'Points System'!$B$6)+(O12*'Points System'!$B$7)+(P12*'Points System'!$B$8)+(Q12*'Points System'!$B$9)+(R12*'Points System'!$B$10)+(S12*'Points System'!$B$11)+(T12*'Points System'!$B$13)+(U12*'Points System'!$B$12)+(X12*'Points System'!$B$14))*((100-Settings!$B$37)/100) -> 177.55 | D12: 0.7397916667 | E12: 3.228181818 | F12: =VLOOKUP(A12,'Projections - Hitters'!$A$2:$X$199990,2,FALSE) -> 55 | G12: =VLOOKUP(A12,'Projections - Hitters'!$A$2:$X$199990,3,FALSE) -> 240 | H12: =VLOOKUP(A12,'Projections - Hitters'!$A$2:$X$199990,4,FALSE) -> 202.25 | I12: =VLOOKUP(A12,'Projections - Hitters'!$A$2:$X$199990,5,FALSE) -> 57.42 | J12: =VLOOKUP(A12,'Projections - Hitters'!$A$2:$X$199990,6,FALSE) -> 34.58 | K12: =VLOOKUP(A12,'Projections - Hitters'!$A$2:$X$199990,7,FALSE) -> 11.33 | L12: =VLOOKUP(A12,'Projections - Hitters'!$A$2:$X$199990,8,FALSE) -> 1 | M12: =VLOOKUP(A12,'Projections - Hitters'!$A$2:$X$199990,9,FALSE) -> 10.33 | N12: =VLOOKUP(A12,'Projections - Hitters'!$A$2:$X$199990,10,FALSE) -> 34.92 | O12: =VLOOKUP(A12,'Projections - Hitters'!$A$2:$X$199990,11,FALSE) -> 34.42 | P12: =VLOOKUP(A12,'Projections - Hitters'!$A$2:$X$199990,12,FALSE) -> 27.33 | Q12: =VLOOKUP(A12,'Projections - Hitters'!$A$2:$X$199990,13,FALSE) -> 33.36 | R12: =VLOOKUP(A12,'Projections - Hitters'!$A$2:$X$199990,14,FALSE) -> 2 | S12: =VLOOKUP(A12,'Projections - Hitters'!$A$2:$X$199990,15,FALSE) -> 0.82 | T12: =VLOOKUP(A12,'Projections - Hitters'!$A$2:$X$199990,16,FALSE) -> 1.5 | U12: =VLOOKUP(A12,'Projections - Hitters'!$A$2:$X$199990,17,FALSE) -> 8 | V12: =VLOOKUP(A12,'Projections - Hitters'!$A$2:$X$199990,18,FALSE) -> 0.284 | W12: =VLOOKUP(A12,'Projections - Hitters'!$A$2:$X$199990,19,FALSE) -> 1.22 | X12: =VLOOKUP(A12,'Projections - Hitters'!$A$2:$X$199990,20,FALSE) -> 101.56 | Y12: =VLOOKUP(A12,'Projections - Hitters'!$A$2:$X$199990,21,FALSE) -> 0.388 | Z12: =VLOOKUP(A12,'Projections - Hitters'!$A$2:$X$199990,22,FALSE) -> 0.502 | AA12: =VLOOKUP(A12,'Projections - Hitters'!$A$2:$X$199990,23,FALSE) -> 0.89 | AB12: NL | AC12: 519203 | AD12: 1B | AE12: =IF(ISNA(VLOOKUP(A12,Rankings!$B$2:$H$883,7,FALSE)),"-",VLOOKUP(A12,Rankings!$B$2:$H$883,7,FALSE)) -> 0
A13: Ronald Acuna | B13: OF | C13: =((G13*'Points System'!$B$16)+(H13*'Points System'!$B$17)+(I13*'Points System'!$B$15)+(J13*'Points System'!$B$2)+(K13*'Points System'!$B$3)+(L13*'Points System'!$B$4)+(M13*'Points System'!$B$5)+(N13*'Points System'!$B$6)+(O13*'Points System'!$B$7)+(P13*'Points System'!$B$8)+(Q13*'Points System'!$B$9)+(R13*'Points System'!$B$10)+(S13*'Points System'!$B$11)+(T13*'Points System'!$B$13)+(U13*'Points System'!$B$12)+(X13*'Points System'!$B$14))*((100-Settings!$B$37)/100) -> 176.84 | D13: 0.7145050505 | E13: 3.17031194 | F13: =VLOOKUP(A13,'Projections - Hitters'!$A$2:$X$199990,2,FALSE) -> 55.78 | G13: =VLOOKUP(A13,'Projections - Hitters'!$A$2:$X$199990,3,FALSE) -> 247.5 | H13: =VLOOKUP(A13,'Projections - Hitters'!$A$2:$X$199990,4,FALSE) -> 217.69 | I13: =VLOOKUP(A13,'Projections - Hitters'!$A$2:$X$199990,5,FALSE) -> 69.08 | J13: =VLOOKUP(A13,'Projections - Hitters'!$A$2:$X$199990,6,FALSE) -> 37.23 | K13: =VLOOKUP(A13,'Projections - Hitters'!$A$2:$X$199990,7,FALSE) -> 10 | L13: =VLOOKUP(A13,'Projections - Hitters'!$A$2:$X$199990,8,FALSE) -> 0.92 | M13: =VLOOKUP(A13,'Projections - Hitters'!$A$2:$X$199990,9,FALSE) -> 13.54 | N13: =VLOOKUP(A13,'Projections - Hitters'!$A$2:$X$199990,10,FALSE) -> 34.85 | O13: =VLOOKUP(A13,'Projections - Hitters'!$A$2:$X$199990,11,FALSE) -> 40.69 | P13: =VLOOKUP(A13,'Projections - Hitters'!$A$2:$X$199990,12,FALSE) -> 25.23 | Q13: =VLOOKUP(A13,'Projections - Hitters'!$A$2:$X$199990,13,FALSE) -> 62.33 | R13: =VLOOKUP(A13,'Projections - Hitters'!$A$2:$X$199990,14,FALSE) -> 11.85 | S13: =VLOOKUP(A13,'Projections - Hitters'!$A$2:$X$199990,15,FALSE) -> 3.25 | T13: =VLOOKUP(A13,'Projections - Hitters'!$A$2:$X$199990,16,FALSE) -> 1 | U13: =VLOOKUP(A13,'Projections - Hitters'!$A$2:$X$199990,17,FALSE) -> 2.8 | V13: =VLOOKUP(A13,'Projections - Hitters'!$A$2:$X$199990,18,FALSE) -> 0.317 | W13: =VLOOKUP(A13,'Projections - Hitters'!$A$2:$X$199990,19,FALSE) -> 2.47 | X13: =VLOOKUP(A13,'Projections - Hitters'!$A$2:$X$199990,20,FALSE) -> 114.15 | Y13: =VLOOKUP(A13,'Projections - Hitters'!$A$2:$X$199990,21,FALSE) -> 0.394 | Z13: =VLOOKUP(A13,'Projections - Hitters'!$A$2:$X$199990,22,FALSE) -> 0.524 | AA13: =VLOOKUP(A13,'Projections - Hitters'!$A$2:$X$199990,23,FALSE) -> 0.92 | AB13: NL | AC13: 660670 | AD13: CF | AE13: =IF(ISNA(VLOOKUP(A13,Rankings!$B$2:$H$883,7,FALSE)),"-",VLOOKUP(A13,Rankings!$B$2:$H$883,7,FALSE)) -> 0
A14: Rafael Devers | B14: 3B | C14: =((G14*'Points System'!$B$16)+(H14*'Points System'!$B$17)+(I14*'Points System'!$B$15)+(J14*'Points System'!$B$2)+(K14*'Points System'!$B$3)+(L14*'Points System'!$B$4)+(M14*'Points System'!$B$5)+(N14*'Points System'!$B$6)+(O14*'Points System'!$B$7)+(P14*'Points System'!$B$8)+(Q14*'Points System'!$B$9)+(R14*'Points System'!$B$10)+(S14*'Points System'!$B$11)+(T14*'Points System'!$B$13)+(U14*'Points System'!$B$12)+(X14*'Points System'!$B$14))*((100-Settings!$B$37)/100) -> 170.94 | D14: 0.7041812564 | E14: 3.059055118 | F14: =VLOOKUP(A14,'Projections - Hitters'!$A$2:$X$199990,2,FALSE) -> 55.88 | G14: =VLOOKUP(A14,'Projections - Hitters'!$A$2:$X$199990,3,FALSE) -> 242.75 | H14: =VLOOKUP(A14,'Projections - Hitters'!$A$2:$X$199990,4,FALSE) -> 221.5 | I14: =VLOOKUP(A14,'Projections - Hitters'!$A$2:$X$199990,5,FALSE) -> 64.67 | J14: =VLOOKUP(A14,'Projections - Hitters'!$A$2:$X$199990,6,FALSE) -> 36.17 | K14: =VLOOKUP(A14,'Projections - Hitters'!$A$2:$X$199990,7,FALSE) -> 15.75 | L14: =VLOOKUP(A14,'Projections - Hitters'!$A$2:$X$199990,8,FALSE) -> 1 | M14: =VLOOKUP(A14,'Projections - Hitters'!$A$2:$X$199990,9,FALSE) -> 11.67 | N14: =VLOOKUP(A14,'Projections - Hitters'!$A$2:$X$199990,10,FALSE) -> 37.25 | O14: =VLOOKUP(A14,'Projections - Hitters'!$A$2:$X$199990,11,FALSE) -> 38.5 | P14: =VLOOKUP(A14,'Projections - Hitters'!$A$2:$X$199990,12,FALSE) -> 17.5 | Q14: =VLOOKUP(A14,'Projections - Hitters'!$A$2:$X$199990,13,FALSE) -> 45.18 | R14: =VLOOKUP(A14,'Projections - Hitters'!$A$2:$X$199990,14,FALSE) -> 2.58 | S14: =VLOOKUP(A14,'Projections - Hitters'!$A$2:$X$199990,15,FALSE) -> 1.64 | T14: =VLOOKUP(A14,'Projections - Hitters'!$A$2:$X$199990,16,FALSE) -> 1 | U14: =VLOOKUP(A14,'Projections - Hitters'!$A$2:$X$199990,17,FALSE) -> 1 | V14: =VLOOKUP(A14,'Projections - Hitters'!$A$2:$X$199990,18,FALSE) -> 0.292 | W14: =VLOOKUP(A14,'Projections - Hitters'!$A$2:$X$199990,19,FALSE) -> 2.58 | X14: =VLOOKUP(A14,'Projections - Hitters'!$A$2:$X$199990,20,FALSE) -> 117.35 | Y14: =VLOOKUP(A14,'Projections - Hitters'!$A$2:$X$199990,21,FALSE) -> 0.345 | Z14: =VLOOKUP(A14,'Projections - Hitters'!$A$2:$X$199990,22,FALSE) -> 0.53 | AA14: =VLOOKUP(A14,'Projections - Hitters'!$A$2:$X$199990,23,FALSE) -> 0.88 | AB14: AL | AC14: 646240 | AD14: 3B | AE14: =IF(ISNA(VLOOKUP(A14,Rankings!$B$2:$H$883,7,FALSE)),"-",VLOOKUP(A14,Rankings!$B$2:$H$883,7,FALSE)) -> 0
A15: J.D. Martinez | B15: OF | C15: =((G15*'Points System'!$B$16)+(H15*'Points System'!$B$17)+(I15*'Points System'!$B$15)+(J15*'Points System'!$B$2)+(K15*'Points System'!$B$3)+(L15*'Points System'!$B$4)+(M15*'Points System'!$B$5)+(N15*'Points System'!$B$6)+(O15*'Points System'!$B$7)+(P15*'Points System'!$B$8)+(Q15*'Points System'!$B$9)+(R15*'Points System'!$B$10)+(S15*'Points System'!$B$11)+(T15*'Points System'!$B$13)+(U15*'Points System'!$B$12)+(X15*'Points System'!$B$14))*((100-Settings!$B$37)/100) -> 167.84 | D15: 0.7218924731 | E15: 3.108148148 | F15: =VLOOKUP(A15,'Projections - Hitters'!$A$2:$X$199990,2,FALSE) -> 54 | G15: =VLOOKUP(A15,'Projections - Hitters'!$A$2:$X$199990,3,FALSE) -> 232.5 | H15: =VLOOKUP(A15,'Projections - Hitters'!$A$2:$X$199990,4,FALSE) -> 205.17 | I15: =VLOOKUP(A15,'Projections - Hitters'!$A$2:$X$199990,5,FALSE) -> 61.58 | J15: =VLOOKUP(A15,'Projections - Hitters'!$A$2:$X$199990,6,FALSE) -> 34.58 | K15: =VLOOKUP(A15,'Projections - Hitters'!$A$2:$X$199990,7,FALSE) -> 12.17 | L15: =VLOOKUP(A15,'Projections - Hitters'!$A$2:$X$199990,8,FALSE) -> 0.92 | M15: =VLOOKUP(A15,'Projections - Hitters'!$A$2:$X$199990,9,FALSE) -> 13.75 | N15: =VLOOKUP(A15,'Projections - Hitters'!$A$2:$X$199990,10,FALSE) -> 40.67 | O15: =VLOOKUP(A15,'Projections - Hitters'!$A$2:$X$199990,11,FALSE) -> 35.08 | P15: =VLOOKUP(A15,'Projections - Hitters'!$A$2:$X$199990,12,FALSE) -> 24.25 | Q15: =VLOOKUP(A15,'Projections - Hitters'!$A$2:$X$199990,13,FALSE) -> 53.18 | R15: =VLOOKUP(A15,'Projections - Hitters'!$A$2:$X$199990,14,FALSE) -> 0.92 | S15: =VLOOKUP(A15,'Projections - Hitters'!$A$2:$X$199990,15,FALSE) -> 0 | T15: =VLOOKUP(A15,'Projections - Hitters'!$A$2:$X$199990,16,FALSE) -> 1.5 | U15: =VLOOKUP(A15,'Projections - Hitters'!$A$2:$X$199990,17,FALSE) -> 1 | V15: =VLOOKUP(A15,'Projections - Hitters'!$A$2:$X$199990,18,FALSE) -> 0.3 | W15: =VLOOKUP(A15,'Projections - Hitters'!$A$2:$X$199990,19,FALSE) -> 2.19 | X15: =VLOOKUP(A15,'Projections - Hitters'!$A$2:$X$199990,20,FALSE) -> 116.68 | Y15: =VLOOKUP(A15,'Projections - Hitters'!$A$2:$X$199990,21,FALSE) -> 0.374 | Z15: =VLOOKUP(A15,'Projections - Hitters'!$A$2:$X$199990,22,FALSE) -> 0.569 | AA15: =VLOOKUP(A15,'Projections - Hitters'!$A$2:$X$199990,23,FALSE) -> 0.94 | AB15: AL | AC15: 502110 | AD15: DH | AE15: =IF(ISNA(VLOOKUP(A15,Rankings!$B$2:$H$883,7,FALSE)),"-",VLOOKUP(A15,Rankings!$B$2:$H$883,7,FALSE)) -> 0
A16: Bryce Harper | B16: OF | C16: =((G16*'Points System'!$B$16)+(H16*'Points System'!$B$17)+(I16*'Points System'!$B$15)+(J16*'Points System'!$B$2)+(K16*'Points System'!$B$3)+(L16*'Points System'!$B$4)+(M16*'Points System'!$B$5)+(N16*'Points System'!$B$6)+(O16*'Points System'!$B$7)+(P16*'Points System'!$B$8)+(Q16*'Points System'!$B$9)+(R16*'Points System'!$B$10)+(S16*'Points System'!$B$11)+(T16*'Points System'!$B$13)+(U16*'Points System'!$B$12)+(X16*'Points System'!$B$14))*((100-Settings!$B$37)/100) -> 166.4 | D16: 0.6947807933 | E16: 3.025454545 | F16: =VLOOKUP(A16,'Projections - Hitters'!$A$2:$X$199990,2,FALSE) -> 55 | G16: =VLOOKUP(A16,'Projections - Hitters'!$A$2:$X$199990,3,FALSE) -> 239.5 | H16: =VLOOKUP(A16,'Projections - Hitters'!$A$2:$X$199990,4,FALSE) -> 196.75 | I16: =VLOOKUP(A16,'Projections - Hitters'!$A$2:$X$199990,5,FALSE) -> 51.5 | J16: =VLOOKUP(A16,'Projections - Hitters'!$A$2:$X$199990,6,FALSE) -> 26.75 | K16: =VLOOKUP(A16,'Projections - Hitters'!$A$2:$X$199990,7,FALSE) -> 11.25 | L16: =VLOOKUP(A16,'Projections - Hitters'!$A$2:$X$199990,8,FALSE) -> 0.17 | M16: =VLOOKUP(A16,'Projections - Hitters'!$A$2:$X$199990,9,FALSE) -> 13.33 | N16: =VLOOKUP(A16,'Projections - Hitters'!$A$2:$X$199990,10,FALSE) -> 38.67 | O16: =VLOOKUP(A16,'Projections - Hitters'!$A$2:$X$199990,11,FALSE) -> 35.92 | P16: =VLOOKUP(A16,'Projections - Hitters'!$A$2:$X$199990,12,FALSE) -> 37.75 | Q16: =VLOOKUP(A16,'Projections - Hitters'!$A$2:$X$199990,13,FALSE) -> 60.18 | R16: =VLOOKUP(A16,'Projections - Hitters'!$A$2:$X$199990,14,FALSE) -> 4.42 | S16: =VLOOKUP(A16,'Projections - Hitters'!$A$2:$X$199990,15,FALSE) -> 1.18 | T16: =VLOOKUP(A16,'Projections - Hitters'!$A$2:$X$199990,16,FALSE) -> 1.5 | U16: =VLOOKUP(A16,'Projections - Hitters'!$A$2:$X$199990,17,FALSE) -> 2 | V16: =VLOOKUP(A16,'Projections - Hitters'!$A$2:$X$199990,18,FALSE) -> 0.262 | W16: =VLOOKUP(A16,'Projections - Hitters'!$A$2:$X$199990,19,FALSE) -> 1.59 | X16: =VLOOKUP(A16,'Projections - Hitters'!$A$2:$X$199990,20,FALSE) -> 103.08 | Y16: =VLOOKUP(A16,'Projections - Hitters'!$A$2:$X$199990,21,FALSE) -> 0.383 | Z16: =VLOOKUP(A16,'Projections - Hitters'!$A$2:$X$199990,22,FALSE) -> 0.524 | AA16: =VLOOKUP(A16,'Projections - Hitters'!$A$2:$X$199990,23,FALSE) -> 0.91 | AB16: NL | AC16: 547180 | AD16: RF | AE16: =IF(ISNA(VLOOKUP(A16,Rankings!$B$2:$H$883,7,FALSE)),"-",VLOOKUP(A16,Rankings!$B$2:$H$883,7,FALSE)) -> 0
A17: Xander Bogaerts | B17: SS | C17: =((G17*'Points System'!$B$16)+(H17*'Points System'!$B$17)+(I17*'Points System'!$B$15)+(J17*'Points System'!$B$2)+(K17*'Points System'!$B$3)+(L17*'Points System'!$B$4)+(M17*'Points System'!$B$5)+(N17*'Points System'!$B$6)+(O17*'Points System'!$B$7)+(P17*'Points System'!$B$8)+(Q17*'Points System'!$B$9)+(R17*'Points System'!$B$10)+(S17*'Points System'!$B$11)+(T17*'Points System'!$B$13)+(U17*'Points System'!$B$12)+(X17*'Points System'!$B$14))*((100-Settings!$B$37)/100) -> 166.19 | D17: 0.6913636742 | E17: 3.021636364 | F17: =VLOOKUP(A17,'Projections - Hitters'!$A$2:$X$199990,2,FALSE) -> 55 | G17: =VLOOKUP(A17,'Projections - Hitters'!$A$2:$X$199990,3,FALSE) -> 240.38 | H17: =VLOOKUP(A17,'Projections - Hitters'!$A$2:$X$199990,4,FALSE) -> 212.83 | I17: =VLOOKUP(A17,'Projections - Hitters'!$A$2:$X$199990,5,FALSE) -> 61.83 | J17: =VLOOKUP(A17,'Projections - Hitters'!$A$2:$X$199990,6,FALSE) -> 36.17 | K17: =VLOOKUP(A17,'Projections - Hitters'!$A$2:$X$199990,7,FALSE) -> 14.92 | L17: =VLOOKUP(A17,'Projections - Hitters'!$A$2:$X$199990,8,FALSE) -> 0.83 | M17: =VLOOKUP(A17,'Projections - Hitters'!$A$2:$X$199990,9,FALSE) -> 9.83 | N17: =VLOOKUP(A17,'Projections - Hitters'!$A$2:$X$199990,10,FALSE) -> 36.58 | O17: =VLOOKUP(A17,'Projections - Hitters'!$A$2:$X$199990,11,FALSE) -> 34.25 | P17: =VLOOKUP(A17,'Projections - Hitters'!$A$2:$X$199990,12,FALSE) -> 23.58 | Q17: =VLOOKUP(A17,'Projections - Hitters'!$A$2:$X$199990,13,FALSE) -> 42.73 | R17: =VLOOKUP(A17,'Projections - Hitters'!$A$2:$X$199990,14,FALSE) -> 2.25 | S17: =VLOOKUP(A17,'Projections - Hitters'!$A$2:$X$199990,15,FALSE) -> 0.91 | T17: =VLOOKUP(A17,'Projections - Hitters'!$A$2:$X$199990,16,FALSE) -> 1.5 | U17: =VLOOKUP(A17,'Projections - Hitters'!$A$2:$X$199990,17,FALSE) -> 1.6 | V17: =VLOOKUP(A17,'Projections - Hitters'!$A$2:$X$199990,18,FALSE) -> 0.291 | W17: =VLOOKUP(A17,'Projections - Hitters'!$A$2:$X$199990,19,FALSE) -> 1.81 | X17: =VLOOKUP(A17,'Projections - Hitters'!$A$2:$X$199990,20,FALSE) -> 107.82 | Y17: =VLOOKUP(A17,'Projections - Hitters'!$A$2:$X$199990,21,FALSE) -> 0.363 | Z17: =VLOOKUP(A17,'Projections - Hitters'!$A$2:$X$199990,22,FALSE) -> 0.507 | AA17: =VLOOKUP(A17,'Projections - Hitters'!$A$2:$X$199990,23,FALSE) -> 0.87 | AB17: AL | AC17: 593428 | AD17: SS | AE17: =IF(ISNA(VLOOKUP(A17,Rankings!$B$2:$H$883,7,FALSE)),"-",VLOOKUP(A17,Rankings!$B$2:$H$883,7,FALSE)) -> 0
A18: Jose Altuve | B18: 2B | C18: =((G18*'Points System'!$B$16)+(H18*'Points System'!$B$17)+(I18*'Points System'!$B$15)+(J18*'Points System'!$B$2)+(K18*'Points System'!$B$3)+(L18*'Points System'!$B$4)+(M18*'Points System'!$B$5)+(N18*'Points System'!$B$6)+(O18*'Points System'!$B$7)+(P18*'Points System'!$B$8)+(Q18*'Points System'!$B$9)+(R18*'Points System'!$B$10)+(S18*'Points System'!$B$11)+(T18*'Points System'!$B$13)+(U18*'Points System'!$B$12)+(X18*'Points System'!$B$14))*((100-Settings!$B$37)/100) -> 165.97 | D18: 0.7100320856 | E18: 3.161333333 | F18: =VLOOKUP(A18,'Projections - Hitters'!$A$2:$X$199990,2,FALSE) -> 52.5 | G18: =VLOOKUP(A18,'Projections - Hitters'!$A$2:$X$199990,3,FALSE) -> 233.75 | H18: =VLOOKUP(A18,'Projections - Hitters'!$A$2:$X$199990,4,FALSE) -> 210.33 | I18: =VLOOKUP(A18,'Projections - Hitters'!$A$2:$X$199990,5,FALSE) -> 63.5 | J18: =VLOOKUP(A18,'Projections - Hitters'!$A$2:$X$199990,6,FALSE) -> 41.25 | K18: =VLOOKUP(A18,'Projections - Hitters'!$A$2:$X$199990,7,FALSE) -> 11.92 | L18: =VLOOKUP(A18,'Projections - Hitters'!$A$2:$X$199990,8,FALSE) -> 1.08 | M18: =VLOOKUP(A18,'Projections - Hitters'!$A$2:$X$199990,9,FALSE) -> 9.17 | N18: =VLOOKUP(A18,'Projections - Hitters'!$A$2:$X$199990,10,FALSE) -> 29.83 | O18: =VLOOKUP(A18,'Projections - Hitters'!$A$2:$X$199990,11,FALSE) -> 35.5 | P18: =VLOOKUP(A18,'Projections - Hitters'!$A$2:$X$199990,12,FALSE) -> 19 | Q18: =VLOOKUP(A18,'Projections - Hitters'!$A$2:$X$199990,13,FALSE) -> 33.64 | R18: =VLOOKUP(A18,'Projections - Hitters'!$A$2:$X$199990,14,FALSE) -> 4.5 | S18: =VLOOKUP(A18,'Projections - Hitters'!$A$2:$X$199990,15,FALSE) -> 1.73 | T18: =VLOOKUP(A18,'Projections - Hitters'!$A$2:$X$199990,16,FALSE) -> 1 | U18: =VLOOKUP(A18,'Projections - Hitters'!$A$2:$X$199990,17,FALSE) -> 2 | V18: =VLOOKUP(A18,'Projections - Hitters'!$A$2:$X$199990,18,FALSE) -> 0.302 | W18: =VLOOKUP(A18,'Projections - Hitters'!$A$2:$X$199990,19,FALSE) -> 1.77 | X18: =VLOOKUP(A18,'Projections - Hitters'!$A$2:$X$199990,20,FALSE) -> 105.01 | Y18: =VLOOKUP(A18,'Projections - Hitters'!$A$2:$X$199990,21,FALSE) -> 0.364 | Z18: =VLOOKUP(A18,'Projections - Hitters'!$A$2:$X$199990,22,FALSE) -> 0.499 | AA18: =VLOOKUP(A18,'Projections - Hitters'!$A$2:$X$199990,23,FALSE) -> 0.86 | AB18: AL | AC18: 514888 | AD18: 2B | AE18: =IF(ISNA(VLOOKUP(A18,Rankings!$B$2:$H$883,7,FALSE)),"-",VLOOKUP(A18,Rankings!$B$2:$H$883,7,FALSE)) -> 0
A19: Ketel Marte | B19: OF/2B | C19: =((G19*'Points System'!$B$16)+(H19*'Points System'!$B$17)+(I19*'Points System'!$B$15)+(J19*'Points System'!$B$2)+(K19*'Points System'!$B$3)+(L19*'Points System'!$B$4)+(M19*'Points System'!$B$5)+(N19*'Points System'!$B$6)+(O19*'Points System'!$B$7)+(P19*'Points System'!$B$8)+(Q19*'Points System'!$B$9)+(R19*'Points System'!$B$10)+(S19*'Points System'!$B$11)+(T19*'Points System'!$B$13)+(U19*'Points System'!$B$12)+(X19*'Points System'!$B$14))*((100-Settings!$B$37)/100) -> 164.77 | D19: 0.6937684211 | E19: 2.955515695 | F19: =VLOOKUP(A19,'Projections - Hitters'!$A$2:$X$199990,2,FALSE) -> 55.75 | G19: =VLOOKUP(A19,'Projections - Hitters'!$A$2:$X$199990,3,FALSE) -> 237.5 | H19: =VLOOKUP(A19,'Projections - Hitters'!$A$2:$X$199990,4,FALSE) -> 212.17 | I19: =VLOOKUP(A19,'Projections - Hitters'!$A$2:$X$199990,5,FALSE) -> 62.5 | J19: =VLOOKUP(A19,'Projections - Hitters'!$A$2:$X$199990,6,FALSE) -> 38.33 | K19: =VLOOKUP(A19,'Projections - Hitters'!$A$2:$X$199990,7,FALSE) -> 12.33 | L19: =VLOOKUP(A19,'Projections - Hitters'!$A$2:$X$199990,8,FALSE) -> 2.83 | M19: =VLOOKUP(A19,'Projections - Hitters'!$A$2:$X$199990,9,FALSE) -> 8.92 | N19: =VLOOKUP(A19,'Projections - Hitters'!$A$2:$X$199990,10,FALSE) -> 29.67 | O19: =VLOOKUP(A19,'Projections - Hitters'!$A$2:$X$199990,11,FALSE) -> 33.25 | P19: =VLOOKUP(A19,'Projections - Hitters'!$A$2:$X$199990,12,FALSE) -> 19.92 | Q19: =VLOOKUP(A19,'Projections - Hitters'!$A$2:$X$199990,13,FALSE) -> 33.18 | R19: =VLOOKUP(A19,'Projections - Hitters'!$A$2:$X$199990,14,FALSE) -> 3.33 | S19: =VLOOKUP(A19,'Projections - Hitters'!$A$2:$X$199990,15,FALSE) -> 0.91 | T19: =VLOOKUP(A19,'Projections - Hitters'!$A$2:$X$199990,16,FALSE) -> 1 | U19: =VLOOKUP(A19,'Projections - Hitters'!$A$2:$X$199990,17,FALSE) -> 1.2 | V19: =VLOOKUP(A19,'Projections - Hitters'!$A$2:$X$199990,18,FALSE) -> 0.295 | W19: =VLOOKUP(A19,'Projections - Hitters'!$A$2:$X$199990,19,FALSE) -> 1.67 | X19: =VLOOKUP(A19,'Projections - Hitters'!$A$2:$X$199990,20,FALSE) -> 107.16 | Y19: =VLOOKUP(A19,'Projections - Hitters'!$A$2:$X$199990,21,FALSE) -> 0.357 | Z19: =VLOOKUP(A19,'Projections - Hitters'!$A$2:$X$199990,22,FALSE) -> 0.505 | AA19: =VLOOKUP(A19,'Projections - Hitters'!$A$2:$X$199990,23,FALSE) -> 0.86 | AB19: NL | AC19: 606466 | AD19: 2B | AE19: =IF(ISNA(VLOOKUP(A19,Rankings!$B$2:$H$883,7,FALSE)),"-",VLOOKUP(A19,Rankings!$B$2:$H$883,7,FALSE)) -> 0
A20: George Springer | B20: OF | C20: =((G20*'Points System'!$B$16)+(H20*'Points System'!$B$17)+(I20*'Points System'!$B$15)+(J20*'Points System'!$B$2)+(K20*'Points System'!$B$3)+(L20*'Points System'!$B$4)+(M20*'Points System'!$B$5)+(N20*'Points System'!$B$6)+(O20*'Points System'!$B$7)+(P20*'Points System'!$B$8)+(Q20*'Points System'!$B$9)+(R20*'Points System'!$B$10)+(S20*'Points System'!$B$11)+(T20*'Points System'!$B$13)+(U20*'Points System'!$B$12)+(X20*'Points System'!$B$14))*((100-Settings!$B$37)/100) -> 163.14 | D20: 0.6986723769 | E20: 3.159790819 | F20: =VLOOKUP(A20,'Projections - Hitters'!$A$2:$X$199990,2,FALSE) -> 51.63 | G20: =VLOOKUP(A20,'Projections - Hitters'!$A$2:$X$199990,3,FALSE) -> 233.5 | H20: =VLOOKUP(A20,'Projections - Hitters'!$A$2:$X$199990,4,FALSE) -> 202.17 | I20: =VLOOKUP(A20,'Projections - Hitters'!$A$2:$X$199990,5,FALSE) -> 55.75 | J20: =VLOOKUP(A20,'Projections - Hitters'!$A$2:$X$199990,6,FALSE) -> 32.75 | K20: =VLOOKUP(A20,'Projections - Hitters'!$A$2:$X$199990,7,FALSE) -> 9.42 | L20: =VLOOKUP(A20,'Projections - Hitters'!$A$2:$X$199990,8,FALSE) -> 0.92 | M20: =VLOOKUP(A20,'Projections - Hitters'!$A$2:$X$199990,9,FALSE) -> 12.5 | N20: =VLOOKUP(A20,'Projections - Hitters'!$A$2:$X$199990,10,FALSE) -> 33 | O20: =VLOOKUP(A20,'Projections - Hitters'!$A$2:$X$199990,11,FALSE) -> 38.83 | P20: =VLOOKUP(A20,'Projections - Hitters'!$A$2:$X$199990,12,FALSE) -> 26.17 | Q20: =VLOOKUP(A20,'Projections - Hitters'!$A$2:$X$199990,13,FALSE) -> 46.55 | R20: =VLOOKUP(A20,'Projections - Hitters'!$A$2:$X$199990,14,FALSE) -> 2.17 | S20: =VLOOKUP(A20,'Projections - Hitters'!$A$2:$X$199990,15,FALSE) -> 1 | T20: =VLOOKUP(A20,'Projections - Hitters'!$A$2:$X$199990,16,FALSE) -> 1 | U20: =VLOOKUP(A20,'Projections - Hitters'!$A$2:$X$199990,17,FALSE) -> 3 | V20: =VLOOKUP(A20,'Projections - Hitters'!$A$2:$X$199990,18,FALSE) -> 0.276 | W20: =VLOOKUP(A20,'Projections - Hitters'!$A$2:$X$199990,19,FALSE) -> 1.78 | X20: =VLOOKUP(A20,'Projections - Hitters'!$A$2:$X$199990,20,FALSE) -> 104.35 | Y20: =VLOOKUP(A20,'Projections - Hitters'!$A$2:$X$199990,21,FALSE) -> 0.365 | Z20: =VLOOKUP(A20,'Projections - Hitters'!$A$2:$X$199990,22,FALSE) -> 0.516 | AA20: =VLOOKUP(A20,'Projections - Hitters'!$A$2:$X$199990,23,FALSE) -> 0.88 | AB20: AL | AC20: 543807 | AD20: CF | AE20: =IF(ISNA(VLOOKUP(A20,Rankings!$B$2:$H$883,7,FALSE)),"-",VLOOKUP(A20,Rankings!$B$2:$H$883,7,FALSE)) -> 0
A21: Carlos Santana | B21: 1B | C21: =((G21*'Points System'!$B$16)+(H21*'Points System'!$B$17)+(I21*'Points System'!$B$15)+(J21*'Points System'!$B$2)+(K21*'Points System'!$B$3)+(L21*'Points System'!$B$4)+(M21*'Points System'!$B$5)+(N21*'Points System'!$B$6)+(O21*'Points System'!$B$7)+(P21*'Points System'!$B$8)+(Q21*'Points System'!$B$9)+(R21*'Points System'!$B$10)+(S21*'Points System'!$B$11)+(T21*'Points System'!$B$13)+(U21*'Points System'!$B$12)+(X21*'Points System'!$B$14))*((100-Settings!$B$37)/100) -> 162.96 | D21: 0.6832704403 | E21: 2.949502262 | F21: =VLOOKUP(A21,'Projections - Hitters'!$A$2:$X$199990,2,FALSE) -> 55.25 | G21: =VLOOKUP(A21,'Projections - Hitters'!$A$2:$X$199990,3,FALSE) -> 238.5 | H21: =VLOOKUP(A21,'Projections - Hitters'!$A$2:$X$199990,4,FALSE) -> 199.08 | I21: =VLOOKUP(A21,'Projections - Hitters'!$A$2:$X$199990,5,FALSE) -> 51.58 | J21: =VLOOKUP(A21,'Projections - Hitters'!$A$2:$X$199990,6,FALSE) -> 30 | K21: =VLOOKUP(A21,'Projections - Hitters'!$A$2:$X$199990,7,FALSE) -> 10.5 | L21: =VLOOKUP(A21,'Projections - Hitters'!$A$2:$X$199990,8,FALSE) -> 0.92 | M21: =VLOOKUP(A21,'Projections - Hitters'!$A$2:$X$199990,9,FALSE) -> 10.08 | N21: =VLOOKUP(A21,'Projections - Hitters'!$A$2:$X$199990,10,FALSE) -> 32.75 | O21: =VLOOKUP(A21,'Projections - Hitters'!$A$2:$X$199990,11,FALSE) -> 33.25 | P21: =VLOOKUP(A21,'Projections - Hitters'!$A$2:$X$199990,12,FALSE) -> 35.5 | Q21: =VLOOKUP(A21,'Projections - Hitters'!$A$2:$X$199990,13,FALSE) -> 36.82 | R21: =VLOOKUP(A21,'Projections - Hitters'!$A$2:$X$199990,14,FALSE) -> 1 | S21: =VLOOKUP(A21,'Projections - Hitters'!$A$2:$X$199990,15,FALSE) -> 0 | T21: =VLOOKUP(A21,'Projections - Hitters'!$A$2:$X$199990,16,FALSE) -> 1 | U21: =VLOOKUP(A21,'Projections - Hitters'!$A$2:$X$199990,17,FALSE) -> 1.2 | V21: =VLOOKUP(A21,'Projections - Hitters'!$A$2:$X$199990,18,FALSE) -> 0.259 | W21: =VLOOKUP(A21,'Projections - Hitters'!$A$2:$X$199990,19,FALSE) -> 1.04 | X21: =VLOOKUP(A21,'Projections - Hitters'!$A$2:$X$199990,20,FALSE) -> 94.08 | Y21: =VLOOKUP(A21,'Projections - Hitters'!$A$2:$X$199990,21,FALSE) -> 0.373 | Z21: =VLOOKUP(A21,'Projections - Hitters'!$A$2:$X$199990,22,FALSE) -> 0.473 | AA21: =VLOOKUP(A21,'Projections - Hitters'!$A$2:$X$199990,23,FALSE) -> 0.85 | AB21: AL | AC21: 467793 | AD21: 1B | AE21: =IF(ISNA(VLOOKUP(A21,Rankings!$B$2:$H$883,7,FALSE)),"-",VLOOKUP(A21,Rankings!$B$2:$H$883,7,FALSE)) -> 0
A22: Trea Turner | B22: SS | C22: =((G22*'Points System'!$B$16)+(H22*'Points System'!$B$17)+(I22*'Points System'!$B$15)+(J22*'Points System'!$B$2)+(K22*'Points System'!$B$3)+(L22*'Points System'!$B$4)+(M22*'Points System'!$B$5)+(N22*'Points System'!$B$6)+(O22*'Points System'!$B$7)+(P22*'Points System'!$B$8)+(Q22*'Points System'!$B$9)+(R22*'Points System'!$B$10)+(S22*'Points System'!$B$11)+(T22*'Points System'!$B$13)+(U22*'Points System'!$B$12)+(X22*'Points System'!$B$14))*((100-Settings!$B$37)/100) -> 162.46 | D22: 0.679748954 | E22: 3.057782797 | F22: =VLOOKUP(A22,'Projections - Hitters'!$A$2:$X$199990,2,FALSE) -> 53.13 | G22: =VLOOKUP(A22,'Projections - Hitters'!$A$2:$X$199990,3,FALSE) -> 239 | H22: =VLOOKUP(A22,'Projections - Hitters'!$A$2:$X$199990,4,FALSE) -> 218.42 | I22: =VLOOKUP(A22,'Projections - Hitters'!$A$2:$X$199990,5,FALSE) -> 62.33 | J22: =VLOOKUP(A22,'Projections - Hitters'!$A$2:$X$199990,6,FALSE) -> 40.42 | K22: =VLOOKUP(A22,'Projections - Hitters'!$A$2:$X$199990,7,FALSE) -> 12.42 | L22: =VLOOKUP(A22,'Projections - Hitters'!$A$2:$X$199990,8,FALSE) -> 2 | M22: =VLOOKUP(A22,'Projections - Hitters'!$A$2:$X$199990,9,FALSE) -> 7.25 | N22: =VLOOKUP(A22,'Projections - Hitters'!$A$2:$X$199990,10,FALSE) -> 26.17 | O22: =VLOOKUP(A22,'Projections - Hitters'!$A$2:$X$199990,11,FALSE) -> 36.17 | P22: =VLOOKUP(A22,'Projections - Hitters'!$A$2:$X$199990,12,FALSE) -> 19 | Q22: =VLOOKUP(A22,'Projections - Hitters'!$A$2:$X$199990,13,FALSE) -> 46.27 | R22: =VLOOKUP(A22,'Projections - Hitters'!$A$2:$X$199990,14,FALSE) -> 14.17 | S22: =VLOOKUP(A22,'Projections - Hitters'!$A$2:$X$199990,15,FALSE) -> 2.91 | T22: =VLOOKUP(A22,'Projections - Hitters'!$A$2:$X$199990,16,FALSE) -> 0.5 | U22: =VLOOKUP(A22,'Projections - Hitters'!$A$2:$X$199990,17,FALSE) -> 1.2 | V22: =VLOOKUP(A22,'Projections - Hitters'!$A$2:$X$199990,18,FALSE) -> 0.285 | W22: =VLOOKUP(A22,'Projections - Hitters'!$A$2:$X$199990,19,FALSE) -> 2.44 | X22: =VLOOKUP(A22,'Projections - Hitters'!$A$2:$X$199990,20,FALSE) -> 100.26 | Y22: =VLOOKUP(A22,'Projections - Hitters'!$A$2:$X$199990,21,FALSE) -> 0.345 | Z22: =VLOOKUP(A22,'Projections - Hitters'!$A$2:$X$199990,22,FALSE) -> 0.459 | AA22: =VLOOKUP(A22,'Projections - Hitters'!$A$2:$X$199990,23,FALSE) -> 0.8 | AB22: NL | AC22: 607208 | AD22: SS | AE22: =IF(ISNA(VLOOKUP(A22,Rankings!$B$2:$H$883,7,FALSE)),"-",VLOOKUP(A22,Rankings!$B$2:$H$883,7,FALSE)) -> 0
A23: Ozzie Albies | B23: 2B | C23: =((G23*'Points System'!$B$16)+(H23*'Points System'!$B$17)+(I23*'Points System'!$B$15)+(J23*'Points System'!$B$2)+(K23*'Points System'!$B$3)+(L23*'Points System'!$B$4)+(M23*'Points System'!$B$5)+(N23*'Points System'!$B$6)+(O23*'Points System'!$B$7)+(P23*'Points System'!$B$8)+(Q23*'Points System'!$B$9)+(R23*'Points System'!$B$10)+(S23*'Points System'!$B$11)+(T23*'Points System'!$B$13)+(U23*'Points System'!$B$12)+(X23*'Points System'!$B$14))*((100-Settings!$B$37)/100) -> 162.26 | D23: 0.6616106014 | E23: 2.903722262 | F23: =VLOOKUP(A23,'Projections - Hitters'!$A$2:$X$199990,2,FALSE) -> 55.88 | G23: =VLOOKUP(A23,'Projections - Hitters'!$A$2:$X$199990,3,FALSE) -> 245.25 | H23: =VLOOKUP(A23,'Projections - Hitters'!$A$2:$X$199990,4,FALSE) -> 222 | I23: =VLOOKUP(A23,'Projections - Hitters'!$A$2:$X$199990,5,FALSE) -> 63.5 | J23: =VLOOKUP(A23,'Projections - Hitters'!$A$2:$X$199990,6,FALSE) -> 38.5 | K23: =VLOOKUP(A23,'Projections - Hitters'!$A$2:$X$199990,7,FALSE) -> 13.92 | L23: =VLOOKUP(A23,'Projections - Hitters'!$A$2:$X$199990,8,FALSE) -> 2.5 | M23: =VLOOKUP(A23,'Projections - Hitters'!$A$2:$X$199990,9,FALSE) -> 8.42 | N23: =VLOOKUP(A23,'Projections - Hitters'!$A$2:$X$199990,10,FALSE) -> 29.42 | O23: =VLOOKUP(A23,'Projections - Hitters'!$A$2:$X$199990,11,FALSE) -> 35.33 | P23: =VLOOKUP(A23,'Projections - Hitters'!$A$2:$X$199990,12,FALSE) -> 17 | Q23: =VLOOKUP(A23,'Projections - Hitters'!$A$2:$X$199990,13,FALSE) -> 39.09 | R23: =VLOOKUP(A23,'Projections - Hitters'!$A$2:$X$199990,14,FALSE) -> 5.42 | S23: =VLOOKUP(A23,'Projections - Hitters'!$A$2:$X$199990,15,FALSE) -> 1.36 | T23: =VLOOKUP(A23,'Projections - Hitters'!$A$2:$X$199990,16,FALSE) -> 1 | U23: =VLOOKUP(A23,'Projections - Hitters'!$A$2:$X$199990,17,FALSE) -> 1.6 | V23: =VLOOKUP(A23,'Projections - Hitters'!$A$2:$X$199990,18,FALSE) -> 0.286 | W23: =VLOOKUP(A23,'Projections - Hitters'!$A$2:$X$199990,19,FALSE) -> 2.3 | X23: =VLOOKUP(A23,'Projections - Hitters'!$A$2:$X$199990,20,FALSE) -> 107.52 | Y23: =VLOOKUP(A23,'Projections - Hitters'!$A$2:$X$199990,21,FALSE) -> 0.34 | Z23: =VLOOKUP(A23,'Projections - Hitters'!$A$2:$X$199990,22,FALSE) -> 0.484 | AA23: =VLOOKUP(A23,'Projections - Hitters'!$A$2:$X$199990,23,FALSE) -> 0.82 | AB23: NL | AC23: 645277 | AD23: 2B | AE23: =IF(ISNA(VLOOKUP(A23,Rankings!$B$2:$H$883,7,FALSE)),"-",VLOOKUP(A23,Rankings!$B$2:$H$883,7,FALSE)) -> 0
A24: Freddie Freeman | B24: 1B | C24: =((G24*'Points System'!$B$16)+(H24*'Points System'!$B$17)+(I24*'Points System'!$B$15)+(J24*'Points System'!$B$2)+(K24*'Points System'!$B$3)+(L24*'Points System'!$B$4)+(M24*'Points System'!$B$5)+(N24*'Points System'!$B$6)+(O24*'Points System'!$B$7)+(P24*'Points System'!$B$8)+(Q24*'Points System'!$B$9)+(R24*'Points System'!$B$10)+(S24*'Points System'!$B$11)+(T24*'Points System'!$B$13)+(U24*'Points System'!$B$12)+(X24*'Points System'!$B$14))*((100-Settings!$B$37)/100) -> 161.33 | D24: 0.7222222222 | E24: 3.178916256 | F24: =VLOOKUP(A24,'Projections - Hitters'!$A$2:$X$199990,2,FALSE) -> 50.75 | G24: =VLOOKUP(A24,'Projections - Hitters'!$A$2:$X$199990,3,FALSE) -> 223.38 | H24: =VLOOKUP(A24,'Projections - Hitters'!$A$2:$X$199990,4,FALSE) -> 190.67 | I24: =VLOOKUP(A24,'Projections - Hitters'!$A$2:$X$199990,5,FALSE) -> 56.67 | J24: =VLOOKUP(A24,'Projections - Hitters'!$A$2:$X$199990,6,FALSE) -> 32.92 | K24: =VLOOKUP(A24,'Projections - Hitters'!$A$2:$X$199990,7,FALSE) -> 12 | L24: =VLOOKUP(A24,'Projections - Hitters'!$A$2:$X$199990,8,FALSE) -> 0.92 | M24: =VLOOKUP(A24,'Projections - Hitters'!$A$2:$X$199990,9,FALSE) -> 10.67 | N24: =VLOOKUP(A24,'Projections - Hitters'!$A$2:$X$199990,10,FALSE) -> 34.92 | O24: =VLOOKUP(A24,'Projections - Hitters'!$A$2:$X$199990,11,FALSE) -> 32.58 | P24: =VLOOKUP(A24,'Projections - Hitters'!$A$2:$X$199990,12,FALSE) -> 26.5 | Q24: =VLOOKUP(A24,'Projections - Hitters'!$A$2:$X$199990,13,FALSE) -> 41.82 | R24: =VLOOKUP(A24,'Projections - Hitters'!$A$2:$X$199990,14,FALSE) -> 2.25 | S24: =VLOOKUP(A24,'Projections - Hitters'!$A$2:$X$199990,15,FALSE) -> 0.91 | T24: =VLOOKUP(A24,'Projections - Hitters'!$A$2:$X$199990,16,FALSE) -> 1 | U24: =VLOOKUP(A24,'Projections - Hitters'!$A$2:$X$199990,17,FALSE) -> 2.2 | V24: =VLOOKUP(A24,'Projections - Hitters'!$A$2:$X$199990,18,FALSE) -> 0.297 | W24: =VLOOKUP(A24,'Projections - Hitters'!$A$2:$X$199990,19,FALSE) -> 1.58 | X24: =VLOOKUP(A24,'Projections - Hitters'!$A$2:$X$199990,20,FALSE) -> 102.36 | Y24: =VLOOKUP(A24,'Projections - Hitters'!$A$2:$X$199990,21,FALSE) -> 0.387 | Z24: =VLOOKUP(A24,'Projections - Hitters'!$A$2:$X$199990,22,FALSE) -> 0.537 | AA24: =VLOOKUP(A24,'Projections - Hitters'!$A$2:$X$199990,23,FALSE) -> 0.92 | AB24: NL | AC24: 518692 | AD24: 1B | AE24: =IF(ISNA(VLOOKUP(A24,Rankings!$B$2:$H$883,7,FALSE)),"-",VLOOKUP(A24,Rankings!$B$2:$H$883,7,FALSE)) -> 0
A25: Manny Machado | B25: 3B/SS | C25: =((G25*'Points System'!$B$16)+(H25*'Points System'!$B$17)+(I25*'Points System'!$B$15)+(J25*'Points System'!$B$2)+(K25*'Points System'!$B$3)+(L25*'Points System'!$B$4)+(M25*'Points System'!$B$5)+(N25*'Points System'!$B$6)+(O25*'Points System'!$B$7)+(P25*'Points System'!$B$8)+(Q25*'Points System'!$B$9)+(R25*'Points System'!$B$10)+(S25*'Points System'!$B$11)+(T25*'Points System'!$B$13)+(U25*'Points System'!$B$12)+(X25*'Points System'!$B$14))*((100-Settings!$B$37)/100) -> 160.85 | D25: 0.6592213115 | E25: 2.852962043 | F25: =VLOOKUP(A25,'Projections - Hitters'!$A$2:$X$199990,2,FALSE) -> 56.38 | G25: =VLOOKUP(A25,'Projections - Hitters'!$A$2:$X$199990,3,FALSE) -> 244 | H25: =VLOOKUP(A25,'Projections - Hitters'!$A$2:$X$199990,4,FALSE) -> 215.67 | I25: =VLOOKUP(A25,'Projections - Hitters'!$A$2:$X$199990,5,FALSE) -> 58.58 | J25: =VLOOKUP(A25,'Projections - Hitters'!$A$2:$X$199990,6,FALSE) -> 35 | K25: =VLOOKUP(A25,'Projections - Hitters'!$A$2:$X$199990,7,FALSE) -> 10.25 | L25: =VLOOKUP(A25,'Projections - Hitters'!$A$2:$X$199990,8,FALSE) -> 1 | M25: =VLOOKUP(A25,'Projections - Hitters'!$A$2:$X$199990,9,FALSE) -> 12.25 | N25: =VLOOKUP(A25,'Projections - Hitters'!$A$2:$X$199990,10,FALSE) -> 35.67 | O25: =VLOOKUP(A25,'Projections - Hitters'!$A$2:$X$199990,11,FALSE) -> 30.92 | P25: =VLOOKUP(A25,'Projections - Hitters'!$A$2:$X$199990,12,FALSE) -> 22.58 | Q25: =VLOOKUP(A25,'Projections - Hitters'!$A$2:$X$199990,13,FALSE) -> 42.82 | R25: =VLOOKUP(A25,'Projections - Hitters'!$A$2:$X$199990,14,FALSE) -> 2.75 | S25: =VLOOKUP(A25,'Projections - Hitters'!$A$2:$X$199990,15,FALSE) -> 1 | T25: =VLOOKUP(A25,'Projections - Hitters'!$A$2:$X$199990,16,FALSE) -> 1.5 | U25: =VLOOKUP(A25,'Projections - Hitters'!$A$2:$X$199990,17,FALSE) -> 1 | V25: =VLOOKUP(A25,'Projections - Hitters'!$A$2:$X$199990,18,FALSE) -> 0.272 | W25: =VLOOKUP(A25,'Projections - Hitters'!$A$2:$X$199990,19,FALSE) -> 1.9 | X25: =VLOOKUP(A25,'Projections - Hitters'!$A$2:$X$199990,20,FALSE) -> 107.5 | Y25: =VLOOKUP(A25,'Projections - Hitters'!$A$2:$X$199990,21,FALSE) -> 0.341 | Z25: =VLOOKUP(A25,'Projections - Hitters'!$A$2:$X$199990,22,FALSE) -> 0.498 | AA25: =VLOOKUP(A25,'Projections - Hitters'!$A$2:$X$199990,23,FALSE) -> 0.84 | AB25: NL | AC25: 592518 | AD25: 3B | AE25: =IF(ISNA(VLOOKUP(A25,Rankings!$B$2:$H$883,7,FALSE)),"-",VLOOKUP(A25,Rankings!$B$2:$H$883,7,FALSE)) -> 0
A26: Marcus Semien | B26: SS | C26: =((G26*'Points System'!$B$16)+(H26*'Points System'!$B$17)+(I26*'Points System'!$B$15)+(J26*'Points System'!$B$2)+(K26*'Points System'!$B$3)+(L26*'Points System'!$B$4)+(M26*'Points System'!$B$5)+(N26*'Points System'!$B$6)+(O26*'Points System'!$B$7)+(P26*'Points System'!$B$8)+(Q26*'Points System'!$B$9)+(R26*'Points System'!$B$10)+(S26*'Points System'!$B$11)+(T26*'Points System'!$B$13)+(U26*'Points System'!$B$12)+(X26*'Points System'!$B$14))*((100-Settings!$B$37)/100) -> 157.1 | D26: 0.6360323887 | E26: 2.805357143 | F26: =VLOOKUP(A26,'Projections - Hitters'!$A$2:$X$199990,2,FALSE) -> 56 | G26: =VLOOKUP(A26,'Projections - Hitters'!$A$2:$X$199990,3,FALSE) -> 247 | H26: =VLOOKUP(A26,'Projections - Hitters'!$A$2:$X$199990,4,FALSE) -> 216.83 | I26: =VLOOKUP(A26,'Projections - Hitters'!$A$2:$X$199990,5,FALSE) -> 58.92 | J26: =VLOOKUP(A26,'Projections - Hitters'!$A$2:$X$199990,6,FALSE) -> 36 | K26: =VLOOKUP(A26,'Projections - Hitters'!$A$2:$X$199990,7,FALSE) -> 12.58 | L26: =VLOOKUP(A26,'Projections - Hitters'!$A$2:$X$199990,8,FALSE) -> 1.33 | M26: =VLOOKUP(A26,'Projections - Hitters'!$A$2:$X$199990,9,FALSE) -> 8.83 | N26: =VLOOKUP(A26,'Projections - Hitters'!$A$2:$X$199990,10,FALSE) -> 28.08 | O26: =VLOOKUP(A26,'Projections - Hitters'!$A$2:$X$199990,11,FALSE) -> 35.92 | P26: =VLOOKUP(A26,'Projections - Hitters'!$A$2:$X$199990,12,FALSE) -> 25.17 | Q26: =VLOOKUP(A26,'Projections - Hitters'!$A$2:$X$199990,13,FALSE) -> 40.36 | R26: =VLOOKUP(A26,'Projections - Hitters'!$A$2:$X$199990,14,FALSE) -> 3.92 | S26: =VLOOKUP(A26,'Projections - Hitters'!$A$2:$X$199990,15,FALSE) -> 1.82 | T26: =VLOOKUP(A26,'Projections - Hitters'!$A$2:$X$199990,16,FALSE) -> 1 | U26: =VLOOKUP(A26,'Projections - Hitters'!$A$2:$X$199990,17,FALSE) -> 0.8 | V26: =VLOOKUP(A26,'Projections - Hitters'!$A$2:$X$199990,18,FALSE) -> 0.272 | W26: =VLOOKUP(A26,'Projections - Hitters'!$A$2:$X$199990,19,FALSE) -> 1.6 | X26: =VLOOKUP(A26,'Projections - Hitters'!$A$2:$X$199990,20,FALSE) -> 100.47 | Y26: =VLOOKUP(A26,'Projections - Hitters'!$A$2:$X$199990,21,FALSE) -> 0.348 | Z26: =VLOOKUP(A26,'Projections - Hitters'!$A$2:$X$199990,22,FALSE) -> 0.463 | AA26: =VLOOKUP(A26,'Projections - Hitters'!$A$2:$X$199990,23,FALSE) -> 0.81 | AB26: AL | AC26: 543760 | AD26: SS | AE26: =IF(ISNA(VLOOKUP(A26,Rankings!$B$2:$H$883,7,FALSE)),"-",VLOOKUP(A26,Rankings!$B$2:$H$883,7,FALSE)) -> 0
A27: Trevor Story | B27: SS | C27: =((G27*'Points System'!$B$16)+(H27*'Points System'!$B$17)+(I27*'Points System'!$B$15)+(J27*'Points System'!$B$2)+(K27*'Points System'!$B$3)+(L27*'Points System'!$B$4)+(M27*'Points System'!$B$5)+(N27*'Points System'!$B$6)+(O27*'Points System'!$B$7)+(P27*'Points System'!$B$8)+(Q27*'Points System'!$B$9)+(R27*'Points System'!$B$10)+(S27*'Points System'!$B$11)+(T27*'Points System'!$B$13)+(U27*'Points System'!$B$12)+(X27*'Points System'!$B$14))*((100-Settings!$B$37)/100) -> 156.65 | D27: 0.6557685867 | E27: 2.848181818 | F27: =VLOOKUP(A27,'Projections - Hitters'!$A$2:$X$199990,2,FALSE) -> 55 | G27: =VLOOKUP(A27,'Projections - Hitters'!$A$2:$X$199990,3,FALSE) -> 238.88 | H27: =VLOOKUP(A27,'Projections - Hitters'!$A$2:$X$199990,4,FALSE) -> 213.83 | I27: =VLOOKUP(A27,'Projections - Hitters'!$A$2:$X$199990,5,FALSE) -> 60.08 | J27: =VLOOKUP(A27,'Projections - Hitters'!$A$2:$X$199990,6,FALSE) -> 32 | K27: =VLOOKUP(A27,'Projections - Hitters'!$A$2:$X$199990,7,FALSE) -> 13.33 | L27: =VLOOKUP(A27,'Projections - Hitters'!$A$2:$X$199990,8,FALSE) -> 1.83 | M27: =VLOOKUP(A27,'Projections - Hitters'!$A$2:$X$199990,9,FALSE) -> 12.75 | N27: =VLOOKUP(A27,'Projections - Hitters'!$A$2:$X$199990,10,FALSE) -> 35 | O27: =VLOOKUP(A27,'Projections - Hitters'!$A$2:$X$199990,11,FALSE) -> 36.58 | P27: =VLOOKUP(A27,'Projections - Hitters'!$A$2:$X$199990,12,FALSE) -> 19.92 | Q27: =VLOOKUP(A27,'Projections - Hitters'!$A$2:$X$199990,13,FALSE) -> 64.73 | R27: =VLOOKUP(A27,'Projections - Hitters'!$A$2:$X$199990,14,FALSE) -> 7 | S27: =VLOOKUP(A27,'Projections - Hitters'!$A$2:$X$199990,15,FALSE) -> 2.27 | T27: =VLOOKUP(A27,'Projections - Hitters'!$A$2:$X$199990,16,FALSE) -> 1 | U27: =VLOOKUP(A27,'Projections - Hitters'!$A$2:$X$199990,17,FALSE) -> 2 | V27: =VLOOKUP(A27,'Projections - Hitters'!$A$2:$X$199990,18,FALSE) -> 0.281 | W27: =VLOOKUP(A27,'Projections - Hitters'!$A$2:$X$199990,19,FALSE) -> 3.25 | X27: =VLOOKUP(A27,'Projections - Hitters'!$A$2:$X$199990,20,FALSE) -> 115.15 | Y27: =VLOOKUP(A27,'Projections - Hitters'!$A$2:$X$199990,21,FALSE) -> 0.346 | Z27: =VLOOKUP(A27,'Projections - Hitters'!$A$2:$X$199990,22,FALSE) -> 0.539 | AA27: =VLOOKUP(A27,'Projections - Hitters'!$A$2:$X$199990,23,FALSE) -> 0.89 | AB27: NL | AC27: 596115 | AD27: SS | AE27: =IF(ISNA(VLOOKUP(A27,Rankings!$B$2:$H$883,7,FALSE)),"-",VLOOKUP(A27,Rankings!$B$2:$H$883,7,FALSE)) -> 0
A28: Kris Bryant | B28: 3B/OF | C28: =((G28*'Points System'!$B$16)+(H28*'Points System'!$B$17)+(I28*'Points System'!$B$15)+(J28*'Points System'!$B$2)+(K28*'Points System'!$B$3)+(L28*'Points System'!$B$4)+(M28*'Points System'!$B$5)+(N28*'Points System'!$B$6)+(O28*'Points System'!$B$7)+(P28*'Points System'!$B$8)+(Q28*'Points System'!$B$9)+(R28*'Points System'!$B$10)+(S28*'Points System'!$B$11)+(T28*'Points System'!$B$13)+(U28*'Points System'!$B$12)+(X28*'Points System'!$B$14))*((100-Settings!$B$37)/100) -> 154.6 | D28: 0.6455114823 | E28: 2.836697248 | F28: =VLOOKUP(A28,'Projections - Hitters'!$A$2:$X$199990,2,FALSE) -> 54.5 | G28: =VLOOKUP(A28,'Projections - Hitters'!$A$2:$X$199990,3,FALSE) -> 239.5 | H28: =VLOOKUP(A28,'Projections - Hitters'!$A$2:$X$199990,4,FALSE) -> 203.92 | I28: =VLOOKUP(A28,'Projections - Hitters'!$A$2:$X$199990,5,FALSE) -> 56.42 | J28: =VLOOKUP(A28,'Projections - Hitters'!$A$2:$X$199990,6,FALSE) -> 32 | K28: =VLOOKUP(A28,'Projections - Hitters'!$A$2:$X$199990,7,FALSE) -> 12.67 | L28: =VLOOKUP(A28,'Projections - Hitters'!$A$2:$X$199990,8,FALSE) -> 0.83 | M28: =VLOOKUP(A28,'Projections - Hitters'!$A$2:$X$199990,9,FALSE) -> 10.83 | N28: =VLOOKUP(A28,'Projections - Hitters'!$A$2:$X$199990,10,FALSE) -> 30.67 | O28: =VLOOKUP(A28,'Projections - Hitters'!$A$2:$X$199990,11,FALSE) -> 37.42 | P28: =VLOOKUP(A28,'Projections - Hitters'!$A$2:$X$199990,12,FALSE) -> 27.92 | Q28: =VLOOKUP(A28,'Projections - Hitters'!$A$2:$X$199990,13,FALSE) -> 54.09 | R28: =VLOOKUP(A28,'Projections - Hitters'!$A$2:$X$199990,14,FALSE) -> 1.92 | S28: =VLOOKUP(A28,'Projections - Hitters'!$A$2:$X$199990,15,FALSE) -> 0.91 | T28: =VLOOKUP(A28,'Projections - Hitters'!$A$2:$X$199990,16,FALSE) -> 1 | U28: =VLOOKUP(A28,'Projections - Hitters'!$A$2:$X$199990,17,FALSE) -> 5.6 | V28: =VLOOKUP(A28,'Projections - Hitters'!$A$2:$X$199990,18,FALSE) -> 0.277 | W28: =VLOOKUP(A28,'Projections - Hitters'!$A$2:$X$199990,19,FALSE) -> 1.94 | X28: =VLOOKUP(A28,'Projections - Hitters'!$A$2:$X$199990,20,FALSE) -> 103.15 | Y28: =VLOOKUP(A28,'Projections - Hitters'!$A$2:$X$199990,21,FALSE) -> 0.377 | Z28: =VLOOKUP(A28,'Projections - Hitters'!$A$2:$X$199990,22,FALSE) -> 0.506 | AA28: =VLOOKUP(A28,'Projections - Hitters'!$A$2:$X$199990,23,FALSE) -> 0.88 | AB28: NL | AC28: 592178 | AD28: 3B | AE28: =IF(ISNA(VLOOKUP(A28,Rankings!$B$2:$H$883,7,FALSE)),"-",VLOOKUP(A28,Rankings!$B$2:$H$883,7,FALSE)) -> 0
A29: Charlie Blackmon | B29: OF | C29: =((G29*'Points System'!$B$16)+(H29*'Points System'!$B$17)+(I29*'Points System'!$B$15)+(J29*'Points System'!$B$2)+(K29*'Points System'!$B$3)+(L29*'Points System'!$B$4)+(M29*'Points System'!$B$5)+(N29*'Points System'!$B$6)+(O29*'Points System'!$B$7)+(P29*'Points System'!$B$8)+(Q29*'Points System'!$B$9)+(R29*'Points System'!$B$10)+(S29*'Points System'!$B$11)+(T29*'Points System'!$B$13)+(U29*'Points System'!$B$12)+(X29*'Points System'!$B$14))*((100-Settings!$B$37)/100) -> 153.89 | D29: 0.7108083141 | E29: 3.093266332 | F29: =VLOOKUP(A29,'Projections - Hitters'!$A$2:$X$199990,2,FALSE) -> 49.75 | G29: =VLOOKUP(A29,'Projections - Hitters'!$A$2:$X$199990,3,FALSE) -> 216.5 | H29: =VLOOKUP(A29,'Projections - Hitters'!$A$2:$X$199990,4,FALSE) -> 200.58 | I29: =VLOOKUP(A29,'Projections - Hitters'!$A$2:$X$199990,5,FALSE) -> 60.25 | J29: =VLOOKUP(A29,'Projections - Hitters'!$A$2:$X$199990,6,FALSE) -> 36 | K29: =VLOOKUP(A29,'Projections - Hitters'!$A$2:$X$199990,7,FALSE) -> 11.75 | L29: =VLOOKUP(A29,'Projections - Hitters'!$A$2:$X$199990,8,FALSE) -> 2.25 | M29: =VLOOKUP(A29,'Projections - Hitters'!$A$2:$X$199990,9,FALSE) -> 10.08 | N29: =VLOOKUP(A29,'Projections - Hitters'!$A$2:$X$199990,10,FALSE) -> 29.25 | O29: =VLOOKUP(A29,'Projections - Hitters'!$A$2:$X$199990,11,FALSE) -> 35.58 | P29: =VLOOKUP(A29,'Projections - Hitters'!$A$2:$X$199990,12,FALSE) -> 16.08 | Q29: =VLOOKUP(A29,'Projections - Hitters'!$A$2:$X$199990,13,FALSE) -> 39.64 | R29: =VLOOKUP(A29,'Projections - Hitters'!$A$2:$X$199990,14,FALSE) -> 1.67 | S29: =VLOOKUP(A29,'Projections - Hitters'!$A$2:$X$199990,15,FALSE) -> 1.09 | T29: =VLOOKUP(A29,'Projections - Hitters'!$A$2:$X$199990,16,FALSE) -> 1 | U29: =VLOOKUP(A29,'Projections - Hitters'!$A$2:$X$199990,17,FALSE) -> 2.8 | V29: =VLOOKUP(A29,'Projections - Hitters'!$A$2:$X$199990,18,FALSE) -> 0.3 | W29: =VLOOKUP(A29,'Projections - Hitters'!$A$2:$X$199990,19,FALSE) -> 2.47 | X29: =VLOOKUP(A29,'Projections - Hitters'!$A$2:$X$199990,20,FALSE) -> 106.57 | Y29: =VLOOKUP(A29,'Projections - Hitters'!$A$2:$X$199990,21,FALSE) -> 0.359 | Z29: =VLOOKUP(A29,'Projections - Hitters'!$A$2:$X$199990,22,FALSE) -> 0.531 | AA29: =VLOOKUP(A29,'Projections - Hitters'!$A$2:$X$199990,23,FALSE) -> 0.89 | AB29: NL | AC29: 453568 | AD29: RF | AE29: =IF(ISNA(VLOOKUP(A29,Rankings!$B$2:$H$883,7,FALSE)),"-",VLOOKUP(A29,Rankings!$B$2:$H$883,7,FALSE)) -> 0
A30: Pete Alonso | B30: 1B | C30: =((G30*'Points System'!$B$16)+(H30*'Points System'!$B$17)+(I30*'Points System'!$B$15)+(J30*'Points System'!$B$2)+(K30*'Points System'!$B$3)+(L30*'Points System'!$B$4)+(M30*'Points System'!$B$5)+(N30*'Points System'!$B$6)+(O30*'Points System'!$B$7)+(P30*'Points System'!$B$8)+(Q30*'Points System'!$B$9)+(R30*'Points System'!$B$10)+(S30*'Points System'!$B$11)+(T30*'Points System'!$B$13)+(U30*'Points System'!$B$12)+(X30*'Points System'!$B$14))*((100-Settings!$B$37)/100) -> 153.83 | D30: 0.6473509237 | E30: 2.796909091 | F30: =VLOOKUP(A30,'Projections - Hitters'!$A$2:$X$199990,2,FALSE) -> 55 | G30: =VLOOKUP(A30,'Projections - Hitters'!$A$2:$X$199990,3,FALSE) -> 237.63 | H30: =VLOOKUP(A30,'Projections - Hitters'!$A$2:$X$199990,4,FALSE) -> 205.17 | I30: =VLOOKUP(A30,'Projections - Hitters'!$A$2:$X$199990,5,FALSE) -> 52.08 | J30: =VLOOKUP(A30,'Projections - Hitters'!$A$2:$X$199990,6,FALSE) -> 25.42 | K30: =VLOOKUP(A30,'Projections - Hitters'!$A$2:$X$199990,7,FALSE) -> 10.08 | L30: =VLOOKUP(A30,'Projections - Hitters'!$A$2:$X$199990,8,FALSE) -> 0.75 | M30: =VLOOKUP(A30,'Projections - Hitters'!$A$2:$X$199990,9,FALSE) -> 15.75 | N30: =VLOOKUP(A30,'Projections - Hitters'!$A$2:$X$199990,10,FALSE) -> 39.67 | O30: =VLOOKUP(A30,'Projections - Hitters'!$A$2:$X$199990,11,FALSE) -> 33.92 | P30: =VLOOKUP(A30,'Projections - Hitters'!$A$2:$X$199990,12,FALSE) -> 24.42 | Q30: =VLOOKUP(A30,'Projections - Hitters'!$A$2:$X$199990,13,FALSE) -> 62.09 | R30: =VLOOKUP(A30,'Projections - Hitters'!$A$2:$X$199990,14,FALSE) -> 0.33 | S30: =VLOOKUP(A30,'Projections - Hitters'!$A$2:$X$199990,15,FALSE) -> 0.18 | T30: =VLOOKUP(A30,'Projections - Hitters'!$A$2:$X$199990,16,FALSE) -> 1 | U30: =VLOOKUP(A30,'Projections - Hitters'!$A$2:$X$199990,17,FALSE) -> 5.6 | V30: =VLOOKUP(A30,'Projections - Hitters'!$A$2:$X$199990,18,FALSE) -> 0.254 | W30: =VLOOKUP(A30,'Projections - Hitters'!$A$2:$X$199990,19,FALSE) -> 2.54 | X30: =VLOOKUP(A30,'Projections - Hitters'!$A$2:$X$199990,20,FALSE) -> 110.83 | Y30: =VLOOKUP(A30,'Projections - Hitters'!$A$2:$X$199990,21,FALSE) -> 0.348 | Z30: =VLOOKUP(A30,'Projections - Hitters'!$A$2:$X$199990,22,FALSE) -> 0.54 | AA30: =VLOOKUP(A30,'Projections - Hitters'!$A$2:$X$199990,23,FALSE) -> 0.89 | AB30: NL | AC30: 624413 | AD30: 1B | AE30: =IF(ISNA(VLOOKUP(A30,Rankings!$B$2:$H$883,7,FALSE)),"-",VLOOKUP(A30,Rankings!$B$2:$H$883,7,FALSE)) -> 0
A31: Starling Marte | B31: OF | C31: =((G31*'Points System'!$B$16)+(H31*'Points System'!$B$17)+(I31*'Points System'!$B$15)+(J31*'Points System'!$B$2)+(K31*'Points System'!$B$3)+(L31*'Points System'!$B$4)+(M31*'Points System'!$B$5)+(N31*'Points System'!$B$6)+(O31*'Points System'!$B$7)+(P31*'Points System'!$B$8)+(Q31*'Points System'!$B$9)+(R31*'Points System'!$B$10)+(S31*'Points System'!$B$11)+(T31*'Points System'!$B$13)+(U31*'Points System'!$B$12)+(X31*'Points System'!$B$14))*((100-Settings!$B$37)/100) -> 152.85 | D31: 0.6908474576 | E31: 3.01896109 | F31: =VLOOKUP(A31,'Projections - Hitters'!$A$2:$X$199990,2,FALSE) -> 50.63 | G31: =VLOOKUP(A31,'Projections - Hitters'!$A$2:$X$199990,3,FALSE) -> 221.25 | H31: =VLOOKUP(A31,'Projections - Hitters'!$A$2:$X$199990,4,FALSE) -> 206.25 | I31: =VLOOKUP(A31,'Projections - Hitters'!$A$2:$X$199990,5,FALSE) -> 58.58 | J31: =VLOOKUP(A31,'Projections - Hitters'!$A$2:$X$199990,6,FALSE) -> 37.08 | K31: =VLOOKUP(A31,'Projections - Hitters'!$A$2:$X$199990,7,FALSE) -> 11 | L31: =VLOOKUP(A31,'Projections - Hitters'!$A$2:$X$199990,8,FALSE) -> 2.17 | M31: =VLOOKUP(A31,'Projections - Hitters'!$A$2:$X$199990,9,FALSE) -> 8.17 | N31: =VLOOKUP(A31,'Projections - Hitters'!$A$2:$X$199990,10,FALSE) -> 28.08 | O31: =VLOOKUP(A31,'Projections - Hitters'!$A$2:$X$199990,11,FALSE) -> 33.17 | P31: =VLOOKUP(A31,'Projections - Hitters'!$A$2:$X$199990,12,FALSE) -> 11.25 | Q31: =VLOOKUP(A31,'Projections - Hitters'!$A$2:$X$199990,13,FALSE) -> 40.27 | R31: =VLOOKUP(A31,'Projections - Hitters'!$A$2:$X$199990,14,FALSE) -> 9.83 | S31: =VLOOKUP(A31,'Projections - Hitters'!$A$2:$X$199990,15,FALSE) -> 2.91 | T31: =VLOOKUP(A31,'Projections - Hitters'!$A$2:$X$199990,16,FALSE) -> 1 | U31: =VLOOKUP(A31,'Projections - Hitters'!$A$2:$X$199990,17,FALSE) -> 4.6 | V31: =VLOOKUP(A31,'Projections - Hitters'!$A$2:$X$199990,18,FALSE) -> 0.284 | W31: =VLOOKUP(A31,'Projections - Hitters'!$A$2:$X$199990,19,FALSE) -> 3.58 | X31: =VLOOKUP(A31,'Projections - Hitters'!$A$2:$X$199990,20,FALSE) -> 98.27 | Y31: =VLOOKUP(A31,'Projections - Hitters'!$A$2:$X$199990,21,FALSE) -> 0.334 | Z31: =VLOOKUP(A31,'Projections - Hitters'!$A$2:$X$199990,22,FALSE) -> 0.476 | AA31: =VLOOKUP(A31,'Projections - Hitters'!$A$2:$X$199990,23,FALSE) -> 0.81 | AB31: NL | AC31: 516782 | AD31: CF | AE31: =IF(ISNA(VLOOKUP(A31,Rankings!$B$2:$H$883,7,FALSE)),"-",VLOOKUP(A31,Rankings!$B$2:$H$883,7,FALSE)) -> 0
A32: Josh Bell | B32: 1B | C32: =((G32*'Points System'!$B$16)+(H32*'Points System'!$B$17)+(I32*'Points System'!$B$15)+(J32*'Points System'!$B$2)+(K32*'Points System'!$B$3)+(L32*'Points System'!$B$4)+(M32*'Points System'!$B$5)+(N32*'Points System'!$B$6)+(O32*'Points System'!$B$7)+(P32*'Points System'!$B$8)+(Q32*'Points System'!$B$9)+(R32*'Points System'!$B$10)+(S32*'Points System'!$B$11)+(T32*'Points System'!$B$13)+(U32*'Points System'!$B$12)+(X32*'Points System'!$B$14))*((100-Settings!$B$37)/100) -> 151.86 | D32: 0.6606055333 | E32: 2.786422018 | F32: =VLOOKUP(A32,'Projections - Hitters'!$A$2:$X$199990,2,FALSE) -> 54.5 | G32: =VLOOKUP(A32,'Projections - Hitters'!$A$2:$X$199990,3,FALSE) -> 229.88 | H32: =VLOOKUP(A32,'Projections - Hitters'!$A$2:$X$199990,4,FALSE) -> 197.42 | I32: =VLOOKUP(A32,'Projections - Hitters'!$A$2:$X$199990,5,FALSE) -> 53.58 | J32: =VLOOKUP(A32,'Projections - Hitters'!$A$2:$X$199990,6,FALSE) -> 30.25 | K32: =VLOOKUP(A32,'Projections - Hitters'!$A$2:$X$199990,7,FALSE) -> 11.92 | L32: =VLOOKUP(A32,'Projections - Hitters'!$A$2:$X$199990,8,FALSE) -> 0.92 | M32: =VLOOKUP(A32,'Projections - Hitters'!$A$2:$X$199990,9,FALSE) -> 10.42 | N32: =VLOOKUP(A32,'Projections - Hitters'!$A$2:$X$199990,10,FALSE) -> 35.33 | O32: =VLOOKUP(A32,'Projections - Hitters'!$A$2:$X$199990,11,FALSE) -> 30.83 | P32: =VLOOKUP(A32,'Projections - Hitters'!$A$2:$X$199990,12,FALSE) -> 28.33 | Q32: =VLOOKUP(A32,'Projections - Hitters'!$A$2:$X$199990,13,FALSE) -> 43.55 | R32: =VLOOKUP(A32,'Projections - Hitters'!$A$2:$X$199990,14,FALSE) -> 0.17 | S32: =VLOOKUP(A32,'Projections - Hitters'!$A$2:$X$199990,15,FALSE) -> 0.45 | T32: =VLOOKUP(A32,'Projections - Hitters'!$A$2:$X$199990,16,FALSE) -> 1.5 | U32: =VLOOKUP(A32,'Projections - Hitters'!$A$2:$X$199990,17,FALSE) -> 1 | V32: =VLOOKUP(A32,'Projections - Hitters'!$A$2:$X$199990,18,FALSE) -> 0.271 | W32: =VLOOKUP(A32,'Projections - Hitters'!$A$2:$X$199990,19,FALSE) -> 1.54 | X32: =VLOOKUP(A32,'Projections - Hitters'!$A$2:$X$199990,20,FALSE) -> 98.53 | Y32: =VLOOKUP(A32,'Projections - Hitters'!$A$2:$X$199990,21,FALSE) -> 0.363 | Z32: =VLOOKUP(A32,'Projections - Hitters'!$A$2:$X$199990,22,FALSE) -> 0.499 | AA32: =VLOOKUP(A32,'Projections - Hitters'!$A$2:$X$199990,23,FALSE) -> 0.86 | AB32: NL | AC32: 605137 | AD32: 1B | AE32: =IF(ISNA(VLOOKUP(A32,Rankings!$B$2:$H$883,7,FALSE)),"-",VLOOKUP(A32,Rankings!$B$2:$H$883,7,FALSE)) -> 0
A33: Mike Moustakas | B33: 3B/2B | C33: =((G33*'Points System'!$B$16)+(H33*'Points System'!$B$17)+(I33*'Points System'!$B$15)+(J33*'Points System'!$B$2)+(K33*'Points System'!$B$3)+(L33*'Points System'!$B$4)+(M33*'Points System'!$B$5)+(N33*'Points System'!$B$6)+(O33*'Points System'!$B$7)+(P33*'Points System'!$B$8)+(Q33*'Points System'!$B$9)+(R33*'Points System'!$B$10)+(S33*'Points System'!$B$11)+(T33*'Points System'!$B$13)+(U33*'Points System'!$B$12)+(X33*'Points System'!$B$14))*((100-Settings!$B$37)/100) -> 150.15 | D33: 0.6662081817 | E33: 2.833018868 | F33: =VLOOKUP(A33,'Projections - Hitters'!$A$2:$X$199990,2,FALSE) -> 53 | G33: =VLOOKUP(A33,'Projections - Hitters'!$A$2:$X$199990,3,FALSE) -> 225.38 | H33: =VLOOKUP(A33,'Projections - Hitters'!$A$2:$X$199990,4,FALSE) -> 202.33 | I33: =VLOOKUP(A33,'Projections - Hitters'!$A$2:$X$199990,5,FALSE) -> 52.67 | J33: =VLOOKUP(A33,'Projections - Hitters'!$A$2:$X$199990,6,FALSE) -> 29.58 | K33: =VLOOKUP(A33,'Projections - Hitters'!$A$2:$X$199990,7,FALSE) -> 10.33 | L33: =VLOOKUP(A33,'Projections - Hitters'!$A$2:$X$199990,8,FALSE) -> 0.08 | M33: =VLOOKUP(A33,'Projections - Hitters'!$A$2:$X$199990,9,FALSE) -> 12.5 | N33: =VLOOKUP(A33,'Projections - Hitters'!$A$2:$X$199990,10,FALSE) -> 35.5 | O33: =VLOOKUP(A33,'Projections - Hitters'!$A$2:$X$199990,11,FALSE) -> 29.75 | P33: =VLOOKUP(A33,'Projections - Hitters'!$A$2:$X$199990,12,FALSE) -> 18.42 | Q33: =VLOOKUP(A33,'Projections - Hitters'!$A$2:$X$199990,13,FALSE) -> 39 | R33: =VLOOKUP(A33,'Projections - Hitters'!$A$2:$X$199990,14,FALSE) -> 1 | S33: =VLOOKUP(A33,'Projections - Hitters'!$A$2:$X$199990,15,FALSE) -> 0 | T33: =VLOOKUP(A33,'Projections - Hitters'!$A$2:$X$199990,16,FALSE) -> 1 | U33: =VLOOKUP(A33,'Projections - Hitters'!$A$2:$X$199990,17,FALSE) -> 2 | V33: =VLOOKUP(A33,'Projections - Hitters'!$A$2:$X$199990,18,FALSE) -> 0.26 | W33: =VLOOKUP(A33,'Projections - Hitters'!$A$2:$X$199990,19,FALSE) -> 2.12 | X33: =VLOOKUP(A33,'Projections - Hitters'!$A$2:$X$199990,20,FALSE) -> 100.48 | Y33: =VLOOKUP(A33,'Projections - Hitters'!$A$2:$X$199990,21,FALSE) -> 0.327 | Z33: =VLOOKUP(A33,'Projections - Hitters'!$A$2:$X$199990,22,FALSE) -> 0.497 | AA33: =VLOOKUP(A33,'Projections - Hitters'!$A$2:$X$199990,23,FALSE) -> 0.82 | AB33: NL | AC33: 519058 | AD33: 2B | AE33: =IF(ISNA(VLOOKUP(A33,Rankings!$B$2:$H$883,7,FALSE)),"-",VLOOKUP(A33,Rankings!$B$2:$H$883,7,FALSE)) -> 0
A34: Gleyber Torres | B34: SS/2B | C34: =((G34*'Points System'!$B$16)+(H34*'Points System'!$B$17)+(I34*'Points System'!$B$15)+(J34*'Points System'!$B$2)+(K34*'Points System'!$B$3)+(L34*'Points System'!$B$4)+(M34*'Points System'!$B$5)+(N34*'Points System'!$B$6)+(O34*'Points System'!$B$7)+(P34*'Points System'!$B$8)+(Q34*'Points System'!$B$9)+(R34*'Points System'!$B$10)+(S34*'Points System'!$B$11)+(T34*'Points System'!$B$13)+(U34*'Points System'!$B$12)+(X34*'Points System'!$B$14))*((100-Settings!$B$37)/100) -> 149.85 | D34: 0.653653217 | E34: 2.787906977 | F34: =VLOOKUP(A34,'Projections - Hitters'!$A$2:$X$199990,2,FALSE) -> 53.75 | G34: =VLOOKUP(A34,'Projections - Hitters'!$A$2:$X$199990,3,FALSE) -> 229.25 | H34: =VLOOKUP(A34,'Projections - Hitters'!$A$2:$X$199990,4,FALSE) -> 205.08 | I34: =VLOOKUP(A34,'Projections - Hitters'!$A$2:$X$199990,5,FALSE) -> 56.83 | J34: =VLOOKUP(A34,'Projections - Hitters'!$A$2:$X$199990,6,FALSE) -> 34 | K34: =VLOOKUP(A34,'Projections - Hitters'!$A$2:$X$199990,7,FALSE) -> 10.08 | L34: =VLOOKUP(A34,'Projections - Hitters'!$A$2:$X$199990,8,FALSE) -> 0.17 | M34: =VLOOKUP(A34,'Projections - Hitters'!$A$2:$X$199990,9,FALSE) -> 12.5 | N34: =VLOOKUP(A34,'Projections - Hitters'!$A$2:$X$199990,10,FALSE) -> 36 | O34: =VLOOKUP(A34,'Projections - Hitters'!$A$2:$X$199990,11,FALSE) -> 32.83 | P34: =VLOOKUP(A34,'Projections - Hitters'!$A$2:$X$199990,12,FALSE) -> 19.08 | Q34: =VLOOKUP(A34,'Projections - Hitters'!$A$2:$X$199990,13,FALSE) -> 49.09 | R34: =VLOOKUP(A34,'Projections - Hitters'!$A$2:$X$199990,14,FALSE) -> 2.33 | S34: =VLOOKUP(A34,'Projections - Hitters'!$A$2:$X$199990,15,FALSE) -> 1 | T34: =VLOOKUP(A34,'Projections - Hitters'!$A$2:$X$199990,16,FALSE) -> 1.5 | U34: =VLOOKUP(A34,'Projections - Hitters'!$A$2:$X$199990,17,FALSE) -> 1.2 | V34: =VLOOKUP(A34,'Projections - Hitters'!$A$2:$X$199990,18,FALSE) -> 0.277 | W34: =VLOOKUP(A34,'Projections - Hitters'!$A$2:$X$199990,19,FALSE) -> 2.57 | X34: =VLOOKUP(A34,'Projections - Hitters'!$A$2:$X$199990,20,FALSE) -> 104.67 | Y34: =VLOOKUP(A34,'Projections - Hitters'!$A$2:$X$199990,21,FALSE) -> 0.34 | Z34: =VLOOKUP(A34,'Projections - Hitters'!$A$2:$X$199990,22,FALSE) -> 0.51 | AA34: =VLOOKUP(A34,'Projections - Hitters'!$A$2:$X$199990,23,FALSE) -> 0.85 | AB34: AL | AC34: 650402 | AD34: SS | AE34: =IF(ISNA(VLOOKUP(A34,Rankings!$B$2:$H$883,7,FALSE)),"-",VLOOKUP(A34,Rankings!$B$2:$H$883,7,FALSE)) -> 0
A35: Michael Brantley | B35: OF | C35: =((G35*'Points System'!$B$16)+(H35*'Points System'!$B$17)+(I35*'Points System'!$B$15)+(J35*'Points System'!$B$2)+(K35*'Points System'!$B$3)+(L35*'Points System'!$B$4)+(M35*'Points System'!$B$5)+(N35*'Points System'!$B$6)+(O35*'Points System'!$B$7)+(P35*'Points System'!$B$8)+(Q35*'Points System'!$B$9)+(R35*'Points System'!$B$10)+(S35*'Points System'!$B$11)+(T35*'Points System'!$B$13)+(U35*'Points System'!$B$12)+(X35*'Points System'!$B$14))*((100-Settings!$B$37)/100) -> 149.56 | D35: 0.6767420814 | E35: 2.953979854 | F35: =VLOOKUP(A35,'Projections - Hitters'!$A$2:$X$199990,2,FALSE) -> 50.63 | G35: =VLOOKUP(A35,'Projections - Hitters'!$A$2:$X$199990,3,FALSE) -> 221 | H35: =VLOOKUP(A35,'Projections - Hitters'!$A$2:$X$199990,4,FALSE) -> 199.17 | I35: =VLOOKUP(A35,'Projections - Hitters'!$A$2:$X$199990,5,FALSE) -> 58.5 | J35: =VLOOKUP(A35,'Projections - Hitters'!$A$2:$X$199990,6,FALSE) -> 38.67 | K35: =VLOOKUP(A35,'Projections - Hitters'!$A$2:$X$199990,7,FALSE) -> 12 | L35: =VLOOKUP(A35,'Projections - Hitters'!$A$2:$X$199990,8,FALSE) -> 0.92 | M35: =VLOOKUP(A35,'Projections - Hitters'!$A$2:$X$199990,9,FALSE) -> 6.75 | N35: =VLOOKUP(A35,'Projections - Hitters'!$A$2:$X$199990,10,FALSE) -> 29.25 | O35: =VLOOKUP(A35,'Projections - Hitters'!$A$2:$X$199990,11,FALSE) -> 28.92 | P35: =VLOOKUP(A35,'Projections - Hitters'!$A$2:$X$199990,12,FALSE) -> 17.08 | Q35: =VLOOKUP(A35,'Projections - Hitters'!$A$2:$X$199990,13,FALSE) -> 24.55 | R35: =VLOOKUP(A35,'Projections - Hitters'!$A$2:$X$199990,14,FALSE) -> 1.92 | S35: =VLOOKUP(A35,'Projections - Hitters'!$A$2:$X$199990,15,FALSE) -> 0.91 | T35: =VLOOKUP(A35,'Projections - Hitters'!$A$2:$X$199990,16,FALSE) -> 1.5 | U35: =VLOOKUP(A35,'Projections - Hitters'!$A$2:$X$199990,17,FALSE) -> 2 | V35: =VLOOKUP(A35,'Projections - Hitters'!$A$2:$X$199990,18,FALSE) -> 0.294 | W35: =VLOOKUP(A35,'Projections - Hitters'!$A$2:$X$199990,19,FALSE) -> 1.44 | X35: =VLOOKUP(A35,'Projections - Hitters'!$A$2:$X$199990,20,FALSE) -> 92.43 | Y35: =VLOOKUP(A35,'Projections - Hitters'!$A$2:$X$199990,21,FALSE) -> 0.353 | Z35: =VLOOKUP(A35,'Projections - Hitters'!$A$2:$X$199990,22,FALSE) -> 0.464 | AA35: =VLOOKUP(A35,'Projections - Hitters'!$A$2:$X$199990,23,FALSE) -> 0.82 | AB35: AL | AC35: 488726 | AD35: LF | AE35: =IF(ISNA(VLOOKUP(A35,Rankings!$B$2:$H$883,7,FALSE)),"-",VLOOKUP(A35,Rankings!$B$2:$H$883,7,FALSE)) -> 0
A36: Nelson Cruz | B36: DH | C36: =((G36*'Points System'!$B$16)+(H36*'Points System'!$B$17)+(I36*'Points System'!$B$15)+(J36*'Points System'!$B$2)+(K36*'Points System'!$B$3)+(L36*'Points System'!$B$4)+(M36*'Points System'!$B$5)+(N36*'Points System'!$B$6)+(O36*'Points System'!$B$7)+(P36*'Points System'!$B$8)+(Q36*'Points System'!$B$9)+(R36*'Points System'!$B$10)+(S36*'Points System'!$B$11)+(T36*'Points System'!$B$13)+(U36*'Points System'!$B$12)+(X36*'Points System'!$B$14))*((100-Settings!$B$37)/100) -> 148.93 | D36: 0.6983821805 | E36: 3.000805964 | F36: =VLOOKUP(A36,'Projections - Hitters'!$A$2:$X$199990,2,FALSE) -> 49.63 | G36: =VLOOKUP(A36,'Projections - Hitters'!$A$2:$X$199990,3,FALSE) -> 213.25 | H36: =VLOOKUP(A36,'Projections - Hitters'!$A$2:$X$199990,4,FALSE) -> 188.33 | I36: =VLOOKUP(A36,'Projections - Hitters'!$A$2:$X$199990,5,FALSE) -> 52.42 | J36: =VLOOKUP(A36,'Projections - Hitters'!$A$2:$X$199990,6,FALSE) -> 29.42 | K36: =VLOOKUP(A36,'Projections - Hitters'!$A$2:$X$199990,7,FALSE) -> 8.83 | L36: =VLOOKUP(A36,'Projections - Hitters'!$A$2:$X$199990,8,FALSE) -> 0.08 | M36: =VLOOKUP(A36,'Projections - Hitters'!$A$2:$X$199990,9,FALSE) -> 14 | N36: =VLOOKUP(A36,'Projections - Hitters'!$A$2:$X$199990,10,FALSE) -> 39.33 | O36: =VLOOKUP(A36,'Projections - Hitters'!$A$2:$X$199990,11,FALSE) -> 30.83 | P36: =VLOOKUP(A36,'Projections - Hitters'!$A$2:$X$199990,12,FALSE) -> 21.42 | Q36: =VLOOKUP(A36,'Projections - Hitters'!$A$2:$X$199990,13,FALSE) -> 50.73 | R36: =VLOOKUP(A36,'Projections - Hitters'!$A$2:$X$199990,14,FALSE) -> 0.08 | S36: =VLOOKUP(A36,'Projections - Hitters'!$A$2:$X$199990,15,FALSE) -> 0 | T36: =VLOOKUP(A36,'Projections - Hitters'!$A$2:$X$199990,16,FALSE) -> 1 | U36: =VLOOKUP(A36,'Projections - Hitters'!$A$2:$X$199990,17,FALSE) -> 3.6 | V36: =VLOOKUP(A36,'Projections - Hitters'!$A$2:$X$199990,18,FALSE) -> 0.278 | W36: =VLOOKUP(A36,'Projections - Hitters'!$A$2:$X$199990,19,FALSE) -> 2.37 | X36: =VLOOKUP(A36,'Projections - Hitters'!$A$2:$X$199990,20,FALSE) -> 103.32 | Y36: =VLOOKUP(A36,'Projections - Hitters'!$A$2:$X$199990,21,FALSE) -> 0.361 | Z36: =VLOOKUP(A36,'Projections - Hitters'!$A$2:$X$199990,22,FALSE) -> 0.549 | AA36: =VLOOKUP(A36,'Projections - Hitters'!$A$2:$X$199990,23,FALSE) -> 0.91 | AB36: AL | AC36: 443558 | AD36: DH | AE36: =IF(ISNA(VLOOKUP(A36,Rankings!$B$2:$H$883,7,FALSE)),"-",VLOOKUP(A36,Rankings!$B$2:$H$883,7,FALSE)) -> 0
A37: Josh Donaldson | B37: 3B | C37: =((G37*'Points System'!$B$16)+(H37*'Points System'!$B$17)+(I37*'Points System'!$B$15)+(J37*'Points System'!$B$2)+(K37*'Points System'!$B$3)+(L37*'Points System'!$B$4)+(M37*'Points System'!$B$5)+(N37*'Points System'!$B$6)+(O37*'Points System'!$B$7)+(P37*'Points System'!$B$8)+(Q37*'Points System'!$B$9)+(R37*'Points System'!$B$10)+(S37*'Points System'!$B$11)+(T37*'Points System'!$B$13)+(U37*'Points System'!$B$12)+(X37*'Points System'!$B$14))*((100-Settings!$B$37)/100) -> 148.76 | D37: 0.6589590255 | E37: 2.860769231 | F37: =VLOOKUP(A37,'Projections - Hitters'!$A$2:$X$199990,2,FALSE) -> 52 | G37: =VLOOKUP(A37,'Projections - Hitters'!$A$2:$X$199990,3,FALSE) -> 225.75 | H37: =VLOOKUP(A37,'Projections - Hitters'!$A$2:$X$199990,4,FALSE) -> 190 | I37: =VLOOKUP(A37,'Projections - Hitters'!$A$2:$X$199990,5,FALSE) -> 49.67 | J37: =VLOOKUP(A37,'Projections - Hitters'!$A$2:$X$199990,6,FALSE) -> 26.58 | K37: =VLOOKUP(A37,'Projections - Hitters'!$A$2:$X$199990,7,FALSE) -> 10.92 | L37: =VLOOKUP(A37,'Projections - Hitters'!$A$2:$X$199990,8,FALSE) -> 0.08 | M37: =VLOOKUP(A37,'Projections - Hitters'!$A$2:$X$199990,9,FALSE) -> 12.08 | N37: =VLOOKUP(A37,'Projections - Hitters'!$A$2:$X$199990,10,FALSE) -> 34.08 | O37: =VLOOKUP(A37,'Projections - Hitters'!$A$2:$X$199990,11,FALSE) -> 32.92 | P37: =VLOOKUP(A37,'Projections - Hitters'!$A$2:$X$199990,12,FALSE) -> 33.17 | Q37: =VLOOKUP(A37,'Projections - Hitters'!$A$2:$X$199990,13,FALSE) -> 52.82 | R37: =VLOOKUP(A37,'Projections - Hitters'!$A$2:$X$199990,14,FALSE) -> 1.08 | S37: =VLOOKUP(A37,'Projections - Hitters'!$A$2:$X$199990,15,FALSE) -> 0.73 | T37: =VLOOKUP(A37,'Projections - Hitters'!$A$2:$X$199990,16,FALSE) -> 1 | U37: =VLOOKUP(A37,'Projections - Hitters'!$A$2:$X$199990,17,FALSE) -> 2 | V37: =VLOOKUP(A37,'Projections - Hitters'!$A$2:$X$199990,18,FALSE) -> 0.261 | W37: =VLOOKUP(A37,'Projections - Hitters'!$A$2:$X$199990,19,FALSE) -> 1.59 | X37: =VLOOKUP(A37,'Projections - Hitters'!$A$2:$X$199990,20,FALSE) -> 96.98 | Y37: =VLOOKUP(A37,'Projections - Hitters'!$A$2:$X$199990,21,FALSE) -> 0.375 | Z37: =VLOOKUP(A37,'Projections - Hitters'!$A$2:$X$199990,22,FALSE) -> 0.51 | AA37: =VLOOKUP(A37,'Projections - Hitters'!$A$2:$X$199990,23,FALSE) -> 0.89 | AB37: AL | AC37: 518626 | AD37: 3B | AE37: =IF(ISNA(VLOOKUP(A37,Rankings!$B$2:$H$883,7,FALSE)),"-",VLOOKUP(A37,Rankings!$B$2:$H$883,7,FALSE)) -> 0
A38: Marcell Ozuna | B38: OF | C38: =((G38*'Points System'!$B$16)+(H38*'Points System'!$B$17)+(I38*'Points System'!$B$15)+(J38*'Points System'!$B$2)+(K38*'Points System'!$B$3)+(L38*'Points System'!$B$4)+(M38*'Points System'!$B$5)+(N38*'Points System'!$B$6)+(O38*'Points System'!$B$7)+(P38*'Points System'!$B$8)+(Q38*'Points System'!$B$9)+(R38*'Points System'!$B$10)+(S38*'Points System'!$B$11)+(T38*'Points System'!$B$13)+(U38*'Points System'!$B$12)+(X38*'Points System'!$B$14))*((100-Settings!$B$37)/100) -> 148.53 | D38: 0.6630803571 | E38: 2.822154665 | F38: =VLOOKUP(A38,'Projections - Hitters'!$A$2:$X$199990,2,FALSE) -> 52.63 | G38: =VLOOKUP(A38,'Projections - Hitters'!$A$2:$X$199990,3,FALSE) -> 224 | H38: =VLOOKUP(A38,'Projections - Hitters'!$A$2:$X$199990,4,FALSE) -> 202.75 | I38: =VLOOKUP(A38,'Projections - Hitters'!$A$2:$X$199990,5,FALSE) -> 55.67 | J38: =VLOOKUP(A38,'Projections - Hitters'!$A$2:$X$199990,6,FALSE) -> 33.83 | K38: =VLOOKUP(A38,'Projections - Hitters'!$A$2:$X$199990,7,FALSE) -> 9.5 | L38: =VLOOKUP(A38,'Projections - Hitters'!$A$2:$X$199990,8,FALSE) -> 0.92 | M38: =VLOOKUP(A38,'Projections - Hitters'!$A$2:$X$199990,9,FALSE) -> 11.25 | N38: =VLOOKUP(A38,'Projections - Hitters'!$A$2:$X$199990,10,FALSE) -> 36.42 | O38: =VLOOKUP(A38,'Projections - Hitters'!$A$2:$X$199990,11,FALSE) -> 30.67 | P38: =VLOOKUP(A38,'Projections - Hitters'!$A$2:$X$199990,12,FALSE) -> 20.17 | Q38: =VLOOKUP(A38,'Projections - Hitters'!$A$2:$X$199990,13,FALSE) -> 45.82 | R38: =VLOOKUP(A38,'Projections - Hitters'!$A$2:$X$199990,14,FALSE) -> 2.75 | S38: =VLOOKUP(A38,'Projections - Hitters'!$A$2:$X$199990,15,FALSE) -> 1 | T38: =VLOOKUP(A38,'Projections - Hitters'!$A$2:$X$199990,16,FALSE) -> 1 | U38: =VLOOKUP(A38,'Projections - Hitters'!$A$2:$X$199990,17,FALSE) -> 1 | V38: =VLOOKUP(A38,'Projections - Hitters'!$A$2:$X$199990,18,FALSE) -> 0.275 | W38: =VLOOKUP(A38,'Projections - Hitters'!$A$2:$X$199990,19,FALSE) -> 2.27 | X38: =VLOOKUP(A38,'Projections - Hitters'!$A$2:$X$199990,20,FALSE) -> 100.59 | Y38: =VLOOKUP(A38,'Projections - Hitters'!$A$2:$X$199990,21,FALSE) -> 0.342 | Z38: =VLOOKUP(A38,'Projections - Hitters'!$A$2:$X$199990,22,FALSE) -> 0.496 | AA38: =VLOOKUP(A38,'Projections - Hitters'!$A$2:$X$199990,23,FALSE) -> 0.84 | AB38: NL | AC38: 542303 | AD38: LF | AE38: =IF(ISNA(VLOOKUP(A38,Rankings!$B$2:$H$883,7,FALSE)),"-",VLOOKUP(A38,Rankings!$B$2:$H$883,7,FALSE)) -> 0
A39: Yuli Gurriel | B39: 1B/3B | C39: =((G39*'Points System'!$B$16)+(H39*'Points System'!$B$17)+(I39*'Points System'!$B$15)+(J39*'Points System'!$B$2)+(K39*'Points System'!$B$3)+(L39*'Points System'!$B$4)+(M39*'Points System'!$B$5)+(N39*'Points System'!$B$6)+(O39*'Points System'!$B$7)+(P39*'Points System'!$B$8)+(Q39*'Points System'!$B$9)+(R39*'Points System'!$B$10)+(S39*'Points System'!$B$11)+(T39*'Points System'!$B$13)+(U39*'Points System'!$B$12)+(X39*'Points System'!$B$14))*((100-Settings!$B$37)/100) -> 148.05 | D39: 0.6763980263 | E39: 2.860869565 | F39: =VLOOKUP(A39,'Projections - Hitters'!$A$2:$X$199990,2,FALSE) -> 51.75 | G39: =VLOOKUP(A39,'Projections - Hitters'!$A$2:$X$199990,3,FALSE) -> 218.88 | H39: =VLOOKUP(A39,'Projections - Hitters'!$A$2:$X$199990,4,FALSE) -> 203.75 | I39: =VLOOKUP(A39,'Projections - Hitters'!$A$2:$X$199990,5,FALSE) -> 57.92 | J39: =VLOOKUP(A39,'Projections - Hitters'!$A$2:$X$199990,6,FALSE) -> 36.08 | K39: =VLOOKUP(A39,'Projections - Hitters'!$A$2:$X$199990,7,FALSE) -> 13 | L39: =VLOOKUP(A39,'Projections - Hitters'!$A$2:$X$199990,8,FALSE) -> 0.75 | M39: =VLOOKUP(A39,'Projections - Hitters'!$A$2:$X$199990,9,FALSE) -> 7.92 | N39: =VLOOKUP(A39,'Projections - Hitters'!$A$2:$X$199990,10,FALSE) -> 32.42 | O39: =VLOOKUP(A39,'Projections - Hitters'!$A$2:$X$199990,11,FALSE) -> 28 | P39: =VLOOKUP(A39,'Projections - Hitters'!$A$2:$X$199990,12,FALSE) -> 11.67 | Q39: =VLOOKUP(A39,'Projections - Hitters'!$A$2:$X$199990,13,FALSE) -> 25.73 | R39: =VLOOKUP(A39,'Projections - Hitters'!$A$2:$X$199990,14,FALSE) -> 1.5 | S39: =VLOOKUP(A39,'Projections - Hitters'!$A$2:$X$199990,15,FALSE) -> 0.82 | T39: =VLOOKUP(A39,'Projections - Hitters'!$A$2:$X$199990,16,FALSE) -> 1.5 | U39: =VLOOKUP(A39,'Projections - Hitters'!$A$2:$X$199990,17,FALSE) -> 2 | V39: =VLOOKUP(A39,'Projections - Hitters'!$A$2:$X$199990,18,FALSE) -> 0.284 | W39: =VLOOKUP(A39,'Projections - Hitters'!$A$2:$X$199990,19,FALSE) -> 2.2 | X39: =VLOOKUP(A39,'Projections - Hitters'!$A$2:$X$199990,20,FALSE) -> 96.01 | Y39: =VLOOKUP(A39,'Projections - Hitters'!$A$2:$X$199990,21,FALSE) -> 0.327 | Z39: =VLOOKUP(A39,'Projections - Hitters'!$A$2:$X$199990,22,FALSE) -> 0.471 | AA39: =VLOOKUP(A39,'Projections - Hitters'!$A$2:$X$199990,23,FALSE) -> 0.8 | AB39: AL | AC39: 493329 | AD39: 1B | AE39: =IF(ISNA(VLOOKUP(A39,Rankings!$B$2:$H$883,7,FALSE)),"-",VLOOKUP(A39,Rankings!$B$2:$H$883,7,FALSE)) -> 0
A40: Max Kepler | B40: OF | C40: =((G40*'Points System'!$B$16)+(H40*'Points System'!$B$17)+(I40*'Points System'!$B$15)+(J40*'Points System'!$B$2)+(K40*'Points System'!$B$3)+(L40*'Points System'!$B$4)+(M40*'Points System'!$B$5)+(N40*'Points System'!$B$6)+(O40*'Points System'!$B$7)+(P40*'Points System'!$B$8)+(Q40*'Points System'!$B$9)+(R40*'Points System'!$B$10)+(S40*'Points System'!$B$11)+(T40*'Points System'!$B$13)+(U40*'Points System'!$B$12)+(X40*'Points System'!$B$14))*((100-Settings!$B$37)/100) -> 148.01 | D40: 0.664825046 | E40: 2.839248034 | F40: =VLOOKUP(A40,'Projections - Hitters'!$A$2:$X$199990,2,FALSE) -> 52.13 | G40: =VLOOKUP(A40,'Projections - Hitters'!$A$2:$X$199990,3,FALSE) -> 222.63 | H40: =VLOOKUP(A40,'Projections - Hitters'!$A$2:$X$199990,4,FALSE) -> 196.67 | I40: =VLOOKUP(A40,'Projections - Hitters'!$A$2:$X$199990,5,FALSE) -> 49.92 | J40: =VLOOKUP(A40,'Projections - Hitters'!$A$2:$X$199990,6,FALSE) -> 27 | K40: =VLOOKUP(A40,'Projections - Hitters'!$A$2:$X$199990,7,FALSE) -> 11.58 | L40: =VLOOKUP(A40,'Projections - Hitters'!$A$2:$X$199990,8,FALSE) -> 0.75 | M40: =VLOOKUP(A40,'Projections - Hitters'!$A$2:$X$199990,9,FALSE) -> 10.5 | N40: =VLOOKUP(A40,'Projections - Hitters'!$A$2:$X$199990,10,FALSE) -> 29.83 | O40: =VLOOKUP(A40,'Projections - Hitters'!$A$2:$X$199990,11,FALSE) -> 33.67 | P40: =VLOOKUP(A40,'Projections - Hitters'!$A$2:$X$199990,12,FALSE) -> 23.42 | Q40: =VLOOKUP(A40,'Projections - Hitters'!$A$2:$X$199990,13,FALSE) -> 38.09 | R40: =VLOOKUP(A40,'Projections - Hitters'!$A$2:$X$199990,14,FALSE) -> 1.33 | S40: =VLOOKUP(A40,'Projections - Hitters'!$A$2:$X$199990,15,FALSE) -> 1.09 | T40: =VLOOKUP(A40,'Projections - Hitters'!$A$2:$X$199990,16,FALSE) -> 1 | U40: =VLOOKUP(A40,'Projections - Hitters'!$A$2:$X$199990,17,FALSE) -> 2.2 | V40: =VLOOKUP(A40,'Projections - Hitters'!$A$2:$X$199990,18,FALSE) -> 0.254 | W40: =VLOOKUP(A40,'Projections - Hitters'!$A$2:$X$199990,19,FALSE) -> 1.63 | X40: =VLOOKUP(A40,'Projections - Hitters'!$A$2:$X$199990,20,FALSE) -> 94.41 | Y40: =VLOOKUP(A40,'Projections - Hitters'!$A$2:$X$199990,21,FALSE) -> 0.338 | Z40: =VLOOKUP(A40,'Projections - Hitters'!$A$2:$X$199990,22,FALSE) -> 0.48 | AA40: =VLOOKUP(A40,'Projections - Hitters'!$A$2:$X$199990,23,FALSE) -> 0.82 | AB40: AL | AC40: 596146 | AD40: RF | AE40: =IF(ISNA(VLOOKUP(A40,Rankings!$B$2:$H$883,7,FALSE)),"-",VLOOKUP(A40,Rankings!$B$2:$H$883,7,FALSE)) -> 0
A41: Rhys Hoskins | B41: 1B | C41: =((G41*'Points System'!$B$16)+(H41*'Points System'!$B$17)+(I41*'Points System'!$B$15)+(J41*'Points System'!$B$2)+(K41*'Points System'!$B$3)+(L41*'Points System'!$B$4)+(M41*'Points System'!$B$5)+(N41*'Points System'!$B$6)+(O41*'Points System'!$B$7)+(P41*'Points System'!$B$8)+(Q41*'Points System'!$B$9)+(R41*'Points System'!$B$10)+(S41*'Points System'!$B$11)+(T41*'Points System'!$B$13)+(U41*'Points System'!$B$12)+(X41*'Points System'!$B$14))*((100-Settings!$B$37)/100) -> 147.51 | D41: 0.6253603527 | E41: 2.687864431 | F41: =VLOOKUP(A41,'Projections - Hitters'!$A$2:$X$199990,2,FALSE) -> 54.88 | G41: =VLOOKUP(A41,'Projections - Hitters'!$A$2:$X$199990,3,FALSE) -> 235.88 | H41: =VLOOKUP(A41,'Projections - Hitters'!$A$2:$X$199990,4,FALSE) -> 195.75 | I41: =VLOOKUP(A41,'Projections - Hitters'!$A$2:$X$199990,5,FALSE) -> 47 | J41: =VLOOKUP(A41,'Projections - Hitters'!$A$2:$X$199990,6,FALSE) -> 23.08 | K41: =VLOOKUP(A41,'Projections - Hitters'!$A$2:$X$199990,7,FALSE) -> 10.67 | L41: =VLOOKUP(A41,'Projections - Hitters'!$A$2:$X$199990,8,FALSE) -> 0.92 | M41: =VLOOKUP(A41,'Projections - Hitters'!$A$2:$X$199990,9,FALSE) -> 12.25 | N41: =VLOOKUP(A41,'Projections - Hitters'!$A$2:$X$199990,10,FALSE) -> 35.17 | O41: =VLOOKUP(A41,'Projections - Hitters'!$A$2:$X$199990,11,FALSE) -> 32.17 | P41: =VLOOKUP(A41,'Projections - Hitters'!$A$2:$X$199990,12,FALSE) -> 34.58 | Q41: =VLOOKUP(A41,'Projections - Hitters'!$A$2:$X$199990,13,FALSE) -> 56.36 | R41: =VLOOKUP(A41,'Projections - Hitters'!$A$2:$X$199990,14,FALSE) -> 1 | S41: =VLOOKUP(A41,'Projections - Hitters'!$A$2:$X$199990,15,FALSE) -> 0.73 | T41: =VLOOKUP(A41,'Projections - Hitters'!$A$2:$X$199990,16,FALSE) -> 1.5 | U41: =VLOOKUP(A41,'Projections - Hitters'!$A$2:$X$199990,17,FALSE) -> 3 | V41: =VLOOKUP(A41,'Projections - Hitters'!$A$2:$X$199990,18,FALSE) -> 0.24 | W41: =VLOOKUP(A41,'Projections - Hitters'!$A$2:$X$199990,19,FALSE) -> 1.63 | X41: =VLOOKUP(A41,'Projections - Hitters'!$A$2:$X$199990,20,FALSE) -> 96.18 | Y41: =VLOOKUP(A41,'Projections - Hitters'!$A$2:$X$199990,21,FALSE) -> 0.36 | Z41: =VLOOKUP(A41,'Projections - Hitters'!$A$2:$X$199990,22,FALSE) -> 0.491 | AA41: =VLOOKUP(A41,'Projections - Hitters'!$A$2:$X$199990,23,FALSE) -> 0.85 | AB41: NL | AC41: 656555 | AD41: 1B | AE41: =IF(ISNA(VLOOKUP(A41,Rankings!$B$2:$H$883,7,FALSE)),"-",VLOOKUP(A41,Rankings!$B$2:$H$883,7,FALSE)) -> 0
A42: Jorge Polanco | B42: SS | C42: =((G42*'Points System'!$B$16)+(H42*'Points System'!$B$17)+(I42*'Points System'!$B$15)+(J42*'Points System'!$B$2)+(K42*'Points System'!$B$3)+(L42*'Points System'!$B$4)+(M42*'Points System'!$B$5)+(N42*'Points System'!$B$6)+(O42*'Points System'!$B$7)+(P42*'Points System'!$B$8)+(Q42*'Points System'!$B$9)+(R42*'Points System'!$B$10)+(S42*'Points System'!$B$11)+(T42*'Points System'!$B$13)+(U42*'Points System'!$B$12)+(X42*'Points System'!$B$14))*((100-Settings!$B$37)/100) -> 147.08 | D42: 0.6109241952 | E42: 2.755339078 | F42: =VLOOKUP(A42,'Projections - Hitters'!$A$2:$X$199990,2,FALSE) -> 53.38 | G42: =VLOOKUP(A42,'Projections - Hitters'!$A$2:$X$199990,3,FALSE) -> 240.75 | H42: =VLOOKUP(A42,'Projections - Hitters'!$A$2:$X$199990,4,FALSE) -> 212.83 | I42: =VLOOKUP(A42,'Projections - Hitters'!$A$2:$X$199990,5,FALSE) -> 60.25 | J42: =VLOOKUP(A42,'Projections - Hitters'!$A$2:$X$199990,6,FALSE) -> 38.08 | K42: =VLOOKUP(A42,'Projections - Hitters'!$A$2:$X$199990,7,FALSE) -> 12.92 | L42: =VLOOKUP(A42,'Projections - Hitters'!$A$2:$X$199990,8,FALSE) -> 2.25 | M42: =VLOOKUP(A42,'Projections - Hitters'!$A$2:$X$199990,9,FALSE) -> 7 | N42: =VLOOKUP(A42,'Projections - Hitters'!$A$2:$X$199990,10,FALSE) -> 28.75 | O42: =VLOOKUP(A42,'Projections - Hitters'!$A$2:$X$199990,11,FALSE) -> 32.75 | P42: =VLOOKUP(A42,'Projections - Hitters'!$A$2:$X$199990,12,FALSE) -> 19.75 | Q42: =VLOOKUP(A42,'Projections - Hitters'!$A$2:$X$199990,13,FALSE) -> 39.18 | R42: =VLOOKUP(A42,'Projections - Hitters'!$A$2:$X$199990,14,FALSE) -> 2.5 | S42: =VLOOKUP(A42,'Projections - Hitters'!$A$2:$X$199990,15,FALSE) -> 1.36 | T42: =VLOOKUP(A42,'Projections - Hitters'!$A$2:$X$199990,16,FALSE) -> 1.5 | U42: =VLOOKUP(A42,'Projections - Hitters'!$A$2:$X$199990,17,FALSE) -> 1.2 | V42: =VLOOKUP(A42,'Projections - Hitters'!$A$2:$X$199990,18,FALSE) -> 0.283 | W42: =VLOOKUP(A42,'Projections - Hitters'!$A$2:$X$199990,19,FALSE) -> 1.98 | X42: =VLOOKUP(A42,'Projections - Hitters'!$A$2:$X$199990,20,FALSE) -> 98.67 | Y42: =VLOOKUP(A42,'Projections - Hitters'!$A$2:$X$199990,21,FALSE) -> 0.345 | Z42: =VLOOKUP(A42,'Projections - Hitters'!$A$2:$X$199990,22,FALSE) -> 0.464 | AA42: =VLOOKUP(A42,'Projections - Hitters'!$A$2:$X$199990,23,FALSE) -> 0.81 | AB42: AL | AC42: 593871 | AD42: SS | AE42: =IF(ISNA(VLOOKUP(A42,Rankings!$B$2:$H$883,7,FALSE)),"-",VLOOKUP(A42,Rankings!$B$2:$H$883,7,FALSE)) -> 0
A43: Jeff McNeil | B43: 3B/2B/OF | C43: =((G43*'Points System'!$B$16)+(H43*'Points System'!$B$17)+(I43*'Points System'!$B$15)+(J43*'Points System'!$B$2)+(K43*'Points System'!$B$3)+(L43*'Points System'!$B$4)+(M43*'Points System'!$B$5)+(N43*'Points System'!$B$6)+(O43*'Points System'!$B$7)+(P43*'Points System'!$B$8)+(Q43*'Points System'!$B$9)+(R43*'Points System'!$B$10)+(S43*'Points System'!$B$11)+(T43*'Points System'!$B$13)+(U43*'Points System'!$B$12)+(X43*'Points System'!$B$14))*((100-Settings!$B$37)/100) -> 146.67 | D43: 0.6555083799 | E43: 2.890049261 | F43: =VLOOKUP(A43,'Projections - Hitters'!$A$2:$X$199990,2,FALSE) -> 50.75 | G43: =VLOOKUP(A43,'Projections - Hitters'!$A$2:$X$199990,3,FALSE) -> 223.75 | H43: =VLOOKUP(A43,'Projections - Hitters'!$A$2:$X$199990,4,FALSE) -> 197.83 | I43: =VLOOKUP(A43,'Projections - Hitters'!$A$2:$X$199990,5,FALSE) -> 57.83 | J43: =VLOOKUP(A43,'Projections - Hitters'!$A$2:$X$199990,6,FALSE) -> 37.08 | K43: =VLOOKUP(A43,'Projections - Hitters'!$A$2:$X$199990,7,FALSE) -> 12.67 | L43: =VLOOKUP(A43,'Projections - Hitters'!$A$2:$X$199990,8,FALSE) -> 1.17 | M43: =VLOOKUP(A43,'Projections - Hitters'!$A$2:$X$199990,9,FALSE) -> 6.92 | N43: =VLOOKUP(A43,'Projections - Hitters'!$A$2:$X$199990,10,FALSE) -> 26.5 | O43: =VLOOKUP(A43,'Projections - Hitters'!$A$2:$X$199990,11,FALSE) -> 30.67 | P43: =VLOOKUP(A43,'Projections - Hitters'!$A$2:$X$199990,12,FALSE) -> 14.17 | Q43: =VLOOKUP(A43,'Projections - Hitters'!$A$2:$X$199990,13,FALSE) -> 29.36 | R43: =VLOOKUP(A43,'Projections - Hitters'!$A$2:$X$199990,14,FALSE) -> 2.83 | S43: =VLOOKUP(A43,'Projections - Hitters'!$A$2:$X$199990,15,FALSE) -> 1.18 | T43: =VLOOKUP(A43,'Projections - Hitters'!$A$2:$X$199990,16,FALSE) -> 1 | U43: =VLOOKUP(A43,'Projections - Hitters'!$A$2:$X$199990,17,FALSE) -> 5.6 | V43: =VLOOKUP(A43,'Projections - Hitters'!$A$2:$X$199990,18,FALSE) -> 0.292 | W43: =VLOOKUP(A43,'Projections - Hitters'!$A$2:$X$199990,19,FALSE) -> 2.07 | X43: =VLOOKUP(A43,'Projections - Hitters'!$A$2:$X$199990,20,FALSE) -> 93.61 | Y43: =VLOOKUP(A43,'Projections - Hitters'!$A$2:$X$199990,21,FALSE) -> 0.355 | Z43: =VLOOKUP(A43,'Projections - Hitters'!$A$2:$X$199990,22,FALSE) -> 0.473 | AA43: =VLOOKUP(A43,'Projections - Hitters'!$A$2:$X$199990,23,FALSE) -> 0.83 | AB43: NL | AC43: 643446 | AD43: 3B | AE43: =IF(ISNA(VLOOKUP(A43,Rankings!$B$2:$H$883,7,FALSE)),"-",VLOOKUP(A43,Rankings!$B$2:$H$883,7,FALSE)) -> 0
A44: Jose Abreu | B44: 1B | C44: =((G44*'Points System'!$B$16)+(H44*'Points System'!$B$17)+(I44*'Points System'!$B$15)+(J44*'Points System'!$B$2)+(K44*'Points System'!$B$3)+(L44*'Points System'!$B$4)+(M44*'Points System'!$B$5)+(N44*'Points System'!$B$6)+(O44*'Points System'!$B$7)+(P44*'Points System'!$B$8)+(Q44*'Points System'!$B$9)+(R44*'Points System'!$B$10)+(S44*'Points System'!$B$11)+(T44*'Points System'!$B$13)+(U44*'Points System'!$B$12)+(X44*'Points System'!$B$14))*((100-Settings!$B$37)/100) -> 146.22 | D44: 0.6228753994 | E44: 2.71330488 | F44: =VLOOKUP(A44,'Projections - Hitters'!$A$2:$X$199990,2,FALSE) -> 53.89 | G44: =VLOOKUP(A44,'Projections - Hitters'!$A$2:$X$199990,3,FALSE) -> 234.75 | H44: =VLOOKUP(A44,'Projections - Hitters'!$A$2:$X$199990,4,FALSE) -> 212.15 | I44: =VLOOKUP(A44,'Projections - Hitters'!$A$2:$X$199990,5,FALSE) -> 63.69 | J44: =VLOOKUP(A44,'Projections - Hitters'!$A$2:$X$199990,6,FALSE) -> 34.54 | K44: =VLOOKUP(A44,'Projections - Hitters'!$A$2:$X$199990,7,FALSE) -> 12.54 | L44: =VLOOKUP(A44,'Projections - Hitters'!$A$2:$X$199990,8,FALSE) -> 0.85 | M44: =VLOOKUP(A44,'Projections - Hitters'!$A$2:$X$199990,9,FALSE) -> 10.85 | N44: =VLOOKUP(A44,'Projections - Hitters'!$A$2:$X$199990,10,FALSE) -> 36.92 | O44: =VLOOKUP(A44,'Projections - Hitters'!$A$2:$X$199990,11,FALSE) -> 29.85 | P44: =VLOOKUP(A44,'Projections - Hitters'!$A$2:$X$199990,12,FALSE) -> 13.85 | Q44: =VLOOKUP(A44,'Projections - Hitters'!$A$2:$X$199990,13,FALSE) -> 48.33 | R44: =VLOOKUP(A44,'Projections - Hitters'!$A$2:$X$199990,14,FALSE) -> 0.92 | S44: =VLOOKUP(A44,'Projections - Hitters'!$A$2:$X$199990,15,FALSE) -> 0.08 | T44: =VLOOKUP(A44,'Projections - Hitters'!$A$2:$X$199990,16,FALSE) -> 2 | U44: =VLOOKUP(A44,'Projections - Hitters'!$A$2:$X$199990,17,FALSE) -> 4.6 | V44: =VLOOKUP(A44,'Projections - Hitters'!$A$2:$X$199990,18,FALSE) -> 0.3 | W44: =VLOOKUP(A44,'Projections - Hitters'!$A$2:$X$199990,19,FALSE) -> 3.49 | X44: =VLOOKUP(A44,'Projections - Hitters'!$A$2:$X$199990,20,FALSE) -> 105.57 | Y44: =VLOOKUP(A44,'Projections - Hitters'!$A$2:$X$199990,21,FALSE) -> 0.353 | Z44: =VLOOKUP(A44,'Projections - Hitters'!$A$2:$X$199990,22,FALSE) -> 0.498 | AA44: =VLOOKUP(A44,'Projections - Hitters'!$A$2:$X$199990,23,FALSE) -> 0.85 | AB44: AL | AC44: 547989 | AD44: 1B | AE44: =IF(ISNA(VLOOKUP(A44,Rankings!$B$2:$H$883,7,FALSE)),"-",VLOOKUP(A44,Rankings!$B$2:$H$883,7,FALSE)) -> 0
A45: Eddie Rosario | B45: OF | C45: =((G45*'Points System'!$B$16)+(H45*'Points System'!$B$17)+(I45*'Points System'!$B$15)+(J45*'Points System'!$B$2)+(K45*'Points System'!$B$3)+(L45*'Points System'!$B$4)+(M45*'Points System'!$B$5)+(N45*'Points System'!$B$6)+(O45*'Points System'!$B$7)+(P45*'Points System'!$B$8)+(Q45*'Points System'!$B$9)+(R45*'Points System'!$B$10)+(S45*'Points System'!$B$11)+(T45*'Points System'!$B$13)+(U45*'Points System'!$B$12)+(X45*'Points System'!$B$14))*((100-Settings!$B$37)/100) -> 146.11 | D45: 0.6815467861 | E45: 2.879014778 | F45: =VLOOKUP(A45,'Projections - Hitters'!$A$2:$X$199990,2,FALSE) -> 50.75 | G45: =VLOOKUP(A45,'Projections - Hitters'!$A$2:$X$199990,3,FALSE) -> 214.38 | H45: =VLOOKUP(A45,'Projections - Hitters'!$A$2:$X$199990,4,FALSE) -> 203.17 | I45: =VLOOKUP(A45,'Projections - Hitters'!$A$2:$X$199990,5,FALSE) -> 57.33 | J45: =VLOOKUP(A45,'Projections - Hitters'!$A$2:$X$199990,6,FALSE) -> 34.83 | K45: =VLOOKUP(A45,'Projections - Hitters'!$A$2:$X$199990,7,FALSE) -> 11.17 | L45: =VLOOKUP(A45,'Projections - Hitters'!$A$2:$X$199990,8,FALSE) -> 0.83 | M45: =VLOOKUP(A45,'Projections - Hitters'!$A$2:$X$199990,9,FALSE) -> 10.42 | N45: =VLOOKUP(A45,'Projections - Hitters'!$A$2:$X$199990,10,FALSE) -> 34.33 | O45: =VLOOKUP(A45,'Projections - Hitters'!$A$2:$X$199990,11,FALSE) -> 31 | P45: =VLOOKUP(A45,'Projections - Hitters'!$A$2:$X$199990,12,FALSE) -> 10.42 | Q45: =VLOOKUP(A45,'Projections - Hitters'!$A$2:$X$199990,13,FALSE) -> 35.27 | R45: =VLOOKUP(A45,'Projections - Hitters'!$A$2:$X$199990,14,FALSE) -> 1.75 | S45: =VLOOKUP(A45,'Projections - Hitters'!$A$2:$X$199990,15,FALSE) -> 0.91 | T45: =VLOOKUP(A45,'Projections - Hitters'!$A$2:$X$199990,16,FALSE) -> 1.5 | U45: =VLOOKUP(A45,'Projections - Hitters'!$A$2:$X$199990,17,FALSE) -> 0.2 | V45: =VLOOKUP(A45,'Projections - Hitters'!$A$2:$X$199990,18,FALSE) -> 0.282 | W45: =VLOOKUP(A45,'Projections - Hitters'!$A$2:$X$199990,19,FALSE) -> 3.38 | X45: =VLOOKUP(A45,'Projections - Hitters'!$A$2:$X$199990,20,FALSE) -> 101.34 | Y45: =VLOOKUP(A45,'Projections - Hitters'!$A$2:$X$199990,21,FALSE) -> 0.316 | Z45: =VLOOKUP(A45,'Projections - Hitters'!$A$2:$X$199990,22,FALSE) -> 0.499 | AA45: =VLOOKUP(A45,'Projections - Hitters'!$A$2:$X$199990,23,FALSE) -> 0.82 | AB45: AL | AC45: 592696 | AD45: LF | AE45: =IF(ISNA(VLOOKUP(A45,Rankings!$B$2:$H$883,7,FALSE)),"-",VLOOKUP(A45,Rankings!$B$2:$H$883,7,FALSE)) -> 0
A46: Yordan Alvarez | B46: DH | C46: =((G46*'Points System'!$B$16)+(H46*'Points System'!$B$17)+(I46*'Points System'!$B$15)+(J46*'Points System'!$B$2)+(K46*'Points System'!$B$3)+(L46*'Points System'!$B$4)+(M46*'Points System'!$B$5)+(N46*'Points System'!$B$6)+(O46*'Points System'!$B$7)+(P46*'Points System'!$B$8)+(Q46*'Points System'!$B$9)+(R46*'Points System'!$B$10)+(S46*'Points System'!$B$11)+(T46*'Points System'!$B$13)+(U46*'Points System'!$B$12)+(X46*'Points System'!$B$14))*((100-Settings!$B$37)/100) -> 146.05 | D46: 0.6793023256 | E46: 2.884653368 | F46: =VLOOKUP(A46,'Projections - Hitters'!$A$2:$X$199990,2,FALSE) -> 50.63 | G46: =VLOOKUP(A46,'Projections - Hitters'!$A$2:$X$199990,3,FALSE) -> 215 | H46: =VLOOKUP(A46,'Projections - Hitters'!$A$2:$X$199990,4,FALSE) -> 182.08 | I46: =VLOOKUP(A46,'Projections - Hitters'!$A$2:$X$199990,5,FALSE) -> 51.5 | J46: =VLOOKUP(A46,'Projections - Hitters'!$A$2:$X$199990,6,FALSE) -> 27.5 | K46: =VLOOKUP(A46,'Projections - Hitters'!$A$2:$X$199990,7,FALSE) -> 10.83 | L46: =VLOOKUP(A46,'Projections - Hitters'!$A$2:$X$199990,8,FALSE) -> 0.08 | M46: =VLOOKUP(A46,'Projections - Hitters'!$A$2:$X$199990,9,FALSE) -> 13 | N46: =VLOOKUP(A46,'Projections - Hitters'!$A$2:$X$199990,10,FALSE) -> 37.25 | O46: =VLOOKUP(A46,'Projections - Hitters'!$A$2:$X$199990,11,FALSE) -> 30.83 | P46: =VLOOKUP(A46,'Projections - Hitters'!$A$2:$X$199990,12,FALSE) -> 25 | Q46: =VLOOKUP(A46,'Projections - Hitters'!$A$2:$X$199990,13,FALSE) -> 52 | R46: =VLOOKUP(A46,'Projections - Hitters'!$A$2:$X$199990,14,FALSE) -> 0.92 | S46: =VLOOKUP(A46,'Projections - Hitters'!$A$2:$X$199990,15,FALSE) -> 0.27 | T46: =VLOOKUP(A46,'Projections - Hitters'!$A$2:$X$199990,16,FALSE) -> 1 | U46: =VLOOKUP(A46,'Projections - Hitters'!$A$2:$X$199990,17,FALSE) -> 1 | V46: =VLOOKUP(A46,'Projections - Hitters'!$A$2:$X$199990,18,FALSE) -> 0.283 | W46: =VLOOKUP(A46,'Projections - Hitters'!$A$2:$X$199990,19,FALSE) -> 2.08 | X46: =VLOOKUP(A46,'Projections - Hitters'!$A$2:$X$199990,20,FALSE) -> 101.4 | Y46: =VLOOKUP(A46,'Projections - Hitters'!$A$2:$X$199990,21,FALSE) -> 0.371 | Z46: =VLOOKUP(A46,'Projections - Hitters'!$A$2:$X$199990,22,FALSE) -> 0.557 | AA46: =VLOOKUP(A46,'Projections - Hitters'!$A$2:$X$199990,23,FALSE) -> 0.93 | AB46: AL | AC46: 670541 | AD46: DH | AE46: =IF(ISNA(VLOOKUP(A46,Rankings!$B$2:$H$883,7,FALSE)),"-",VLOOKUP(A46,Rankings!$B$2:$H$883,7,FALSE)) -> 0
A47: Whit Merrifield | B47: 2B/OF | C47: =((G47*'Points System'!$B$16)+(H47*'Points System'!$B$17)+(I47*'Points System'!$B$15)+(J47*'Points System'!$B$2)+(K47*'Points System'!$B$3)+(L47*'Points System'!$B$4)+(M47*'Points System'!$B$5)+(N47*'Points System'!$B$6)+(O47*'Points System'!$B$7)+(P47*'Points System'!$B$8)+(Q47*'Points System'!$B$9)+(R47*'Points System'!$B$10)+(S47*'Points System'!$B$11)+(T47*'Points System'!$B$13)+(U47*'Points System'!$B$12)+(X47*'Points System'!$B$14))*((100-Settings!$B$37)/100) -> 145.78 | D47: 0.5962372188 | E47: 2.608804581 | F47: =VLOOKUP(A47,'Projections - Hitters'!$A$2:$X$199990,2,FALSE) -> 55.88 | G47: =VLOOKUP(A47,'Projections - Hitters'!$A$2:$X$199990,3,FALSE) -> 244.5 | H47: =VLOOKUP(A47,'Projections - Hitters'!$A$2:$X$199990,4,FALSE) -> 223.25 | I47: =VLOOKUP(A47,'Projections - Hitters'!$A$2:$X$199990,5,FALSE) -> 64.33 | J47: =VLOOKUP(A47,'Projections - Hitters'!$A$2:$X$199990,6,FALSE) -> 43.33 | K47: =VLOOKUP(A47,'Projections - Hitters'!$A$2:$X$199990,7,FALSE) -> 13.67 | L47: =VLOOKUP(A47,'Projections - Hitters'!$A$2:$X$199990,8,FALSE) -> 2.25 | M47: =VLOOKUP(A47,'Projections - Hitters'!$A$2:$X$199990,9,FALSE) -> 5.08 | N47: =VLOOKUP(A47,'Projections - Hitters'!$A$2:$X$199990,10,FALSE) -> 23.42 | O47: =VLOOKUP(A47,'Projections - Hitters'!$A$2:$X$199990,11,FALSE) -> 32.08 | P47: =VLOOKUP(A47,'Projections - Hitters'!$A$2:$X$199990,12,FALSE) -> 16 | Q47: =VLOOKUP(A47,'Projections - Hitters'!$A$2:$X$199990,13,FALSE) -> 40.73 | R47: =VLOOKUP(A47,'Projections - Hitters'!$A$2:$X$199990,14,FALSE) -> 8.25 | S47: =VLOOKUP(A47,'Projections - Hitters'!$A$2:$X$199990,15,FALSE) -> 2.73 | T47: =VLOOKUP(A47,'Projections - Hitters'!$A$2:$X$199990,16,FALSE) -> 1.5 | U47: =VLOOKUP(A47,'Projections - Hitters'!$A$2:$X$199990,17,FALSE) -> 2 | V47: =VLOOKUP(A47,'Projections - Hitters'!$A$2:$X$199990,18,FALSE) -> 0.288 | W47: =VLOOKUP(A47,'Projections - Hitters'!$A$2:$X$199990,19,FALSE) -> 2.55 | X47: =VLOOKUP(A47,'Projections - Hitters'!$A$2:$X$199990,20,FALSE) -> 97.74 | Y47: =VLOOKUP(A47,'Projections - Hitters'!$A$2:$X$199990,21,FALSE) -> 0.339 | Z47: =VLOOKUP(A47,'Projections - Hitters'!$A$2:$X$199990,22,FALSE) -> 0.438 | AA47: =VLOOKUP(A47,'Projections - Hitters'!$A$2:$X$199990,23,FALSE) -> 0.78 | AB47: AL | AC47: 593160 | AD47: CF | AE47: =IF(ISNA(VLOOKUP(A47,Rankings!$B$2:$H$883,7,FALSE)),"-",VLOOKUP(A47,Rankings!$B$2:$H$883,7,FALSE)) -> 0
A48: Paul Goldschmidt | B48: 1B | C48: =((G48*'Points System'!$B$16)+(H48*'Points System'!$B$17)+(I48*'Points System'!$B$15)+(J48*'Points System'!$B$2)+(K48*'Points System'!$B$3)+(L48*'Points System'!$B$4)+(M48*'Points System'!$B$5)+(N48*'Points System'!$B$6)+(O48*'Points System'!$B$7)+(P48*'Points System'!$B$8)+(Q48*'Points System'!$B$9)+(R48*'Points System'!$B$10)+(S48*'Points System'!$B$11)+(T48*'Points System'!$B$13)+(U48*'Points System'!$B$12)+(X48*'Points System'!$B$14))*((100-Settings!$B$37)/100) -> 145.63 | D48: 0.6086938349 | E48: 2.635837104 | F48: =VLOOKUP(A48,'Projections - Hitters'!$A$2:$X$199990,2,FALSE) -> 55.25 | G48: =VLOOKUP(A48,'Projections - Hitters'!$A$2:$X$199990,3,FALSE) -> 239.25 | H48: =VLOOKUP(A48,'Projections - Hitters'!$A$2:$X$199990,4,FALSE) -> 205 | I48: =VLOOKUP(A48,'Projections - Hitters'!$A$2:$X$199990,5,FALSE) -> 55.42 | J48: =VLOOKUP(A48,'Projections - Hitters'!$A$2:$X$199990,6,FALSE) -> 33 | K48: =VLOOKUP(A48,'Projections - Hitters'!$A$2:$X$199990,7,FALSE) -> 10.25 | L48: =VLOOKUP(A48,'Projections - Hitters'!$A$2:$X$199990,8,FALSE) -> 0.92 | M48: =VLOOKUP(A48,'Projections - Hitters'!$A$2:$X$199990,9,FALSE) -> 11.17 | N48: =VLOOKUP(A48,'Projections - Hitters'!$A$2:$X$199990,10,FALSE) -> 33.5 | O48: =VLOOKUP(A48,'Projections - Hitters'!$A$2:$X$199990,11,FALSE) -> 33.17 | P48: =VLOOKUP(A48,'Projections - Hitters'!$A$2:$X$199990,12,FALSE) -> 29.5 | Q48: =VLOOKUP(A48,'Projections - Hitters'!$A$2:$X$199990,13,FALSE) -> 58 | R48: =VLOOKUP(A48,'Projections - Hitters'!$A$2:$X$199990,14,FALSE) -> 2.17 | S48: =VLOOKUP(A48,'Projections - Hitters'!$A$2:$X$199990,15,FALSE) -> 0.82 | T48: =VLOOKUP(A48,'Projections - Hitters'!$A$2:$X$199990,16,FALSE) -> 1 | U48: =VLOOKUP(A48,'Projections - Hitters'!$A$2:$X$199990,17,FALSE) -> 2 | V48: =VLOOKUP(A48,'Projections - Hitters'!$A$2:$X$199990,18,FALSE) -> 0.27 | W48: =VLOOKUP(A48,'Projections - Hitters'!$A$2:$X$199990,19,FALSE) -> 1.97 | X48: =VLOOKUP(A48,'Projections - Hitters'!$A$2:$X$199990,20,FALSE) -> 100.94 | Y48: =VLOOKUP(A48,'Projections - Hitters'!$A$2:$X$199990,21,FALSE) -> 0.366 | Z48: =VLOOKUP(A48,'Projections - Hitters'!$A$2:$X$199990,22,FALSE) -> 0.492 | AA48: =VLOOKUP(A48,'Projections - Hitters'!$A$2:$X$199990,23,FALSE) -> 0.86 | AB48: NL | AC48: 502671 | AD48: 1B | AE48: =IF(ISNA(VLOOKUP(A48,Rankings!$B$2:$H$883,7,FALSE)),"-",VLOOKUP(A48,Rankings!$B$2:$H$883,7,FALSE)) -> 0
A49: Austin Meadows | B49: OF | C49: =((G49*'Points System'!$B$16)+(H49*'Points System'!$B$17)+(I49*'Points System'!$B$15)+(J49*'Points System'!$B$2)+(K49*'Points System'!$B$3)+(L49*'Points System'!$B$4)+(M49*'Points System'!$B$5)+(N49*'Points System'!$B$6)+(O49*'Points System'!$B$7)+(P49*'Points System'!$B$8)+(Q49*'Points System'!$B$9)+(R49*'Points System'!$B$10)+(S49*'Points System'!$B$11)+(T49*'Points System'!$B$13)+(U49*'Points System'!$B$12)+(X49*'Points System'!$B$14))*((100-Settings!$B$37)/100) -> 144.77 | D49: 0.6528523112 | E49: 2.824780488 | F49: =VLOOKUP(A49,'Projections - Hitters'!$A$2:$X$199990,2,FALSE) -> 51.25 | G49: =VLOOKUP(A49,'Projections - Hitters'!$A$2:$X$199990,3,FALSE) -> 221.75 | H49: =VLOOKUP(A49,'Projections - Hitters'!$A$2:$X$199990,4,FALSE) -> 198.92 | I49: =VLOOKUP(A49,'Projections - Hitters'!$A$2:$X$199990,5,FALSE) -> 55.42 | J49: =VLOOKUP(A49,'Projections - Hitters'!$A$2:$X$199990,6,FALSE) -> 31.67 | K49: =VLOOKUP(A49,'Projections - Hitters'!$A$2:$X$199990,7,FALSE) -> 11.33 | L49: =VLOOKUP(A49,'Projections - Hitters'!$A$2:$X$199990,8,FALSE) -> 1.83 | M49: =VLOOKUP(A49,'Projections - Hitters'!$A$2:$X$199990,9,FALSE) -> 10.42 | N49: =VLOOKUP(A49,'Projections - Hitters'!$A$2:$X$199990,10,FALSE) -> 30.25 | O49: =VLOOKUP(A49,'Projections - Hitters'!$A$2:$X$199990,11,FALSE) -> 30.33 | P49: =VLOOKUP(A49,'Projections - Hitters'!$A$2:$X$199990,12,FALSE) -> 18.33 | Q49: =VLOOKUP(A49,'Projections - Hitters'!$A$2:$X$199990,13,FALSE) -> 45.73 | R49: =VLOOKUP(A49,'Projections - Hitters'!$A$2:$X$199990,14,FALSE) -> 4.75 | S49: =VLOOKUP(A49,'Projections - Hitters'!$A$2:$X$199990,15,FALSE) -> 1.91 | T49: =VLOOKUP(A49,'Projections - Hitters'!$A$2:$X$199990,16,FALSE) -> 0.5 | U49: =VLOOKUP(A49,'Projections - Hitters'!$A$2:$X$199990,17,FALSE) -> 2 | V49: =VLOOKUP(A49,'Projections - Hitters'!$A$2:$X$199990,18,FALSE) -> 0.279 | W49: =VLOOKUP(A49,'Projections - Hitters'!$A$2:$X$199990,19,FALSE) -> 2.49 | X49: =VLOOKUP(A49,'Projections - Hitters'!$A$2:$X$199990,20,FALSE) -> 101.5 | Y49: =VLOOKUP(A49,'Projections - Hitters'!$A$2:$X$199990,21,FALSE) -> 0.345 | Z49: =VLOOKUP(A49,'Projections - Hitters'!$A$2:$X$199990,22,FALSE) -> 0.51 | AA49: =VLOOKUP(A49,'Projections - Hitters'!$A$2:$X$199990,23,FALSE) -> 0.86 | AB49: AL | AC49: 640457 | AD49: LF | AE49: =IF(ISNA(VLOOKUP(A49,Rankings!$B$2:$H$883,7,FALSE)),"-",VLOOKUP(A49,Rankings!$B$2:$H$883,7,FALSE)) -> 0
A50: Matt Chapman | B50: 3B | C50: =((G50*'Points System'!$B$16)+(H50*'Points System'!$B$17)+(I50*'Points System'!$B$15)+(J50*'Points System'!$B$2)+(K50*'Points System'!$B$3)+(L50*'Points System'!$B$4)+(M50*'Points System'!$B$5)+(N50*'Points System'!$B$6)+(O50*'Points System'!$B$7)+(P50*'Points System'!$B$8)+(Q50*'Points System'!$B$9)+(R50*'Points System'!$B$10)+(S50*'Points System'!$B$11)+(T50*'Points System'!$B$13)+(U50*'Points System'!$B$12)+(X50*'Points System'!$B$14))*((100-Settings!$B$37)/100) -> 144.45 | D50: 0.6028043233 | E50: 2.614479638 | F50: =VLOOKUP(A50,'Projections - Hitters'!$A$2:$X$199990,2,FALSE) -> 55.25 | G50: =VLOOKUP(A50,'Projections - Hitters'!$A$2:$X$199990,3,FALSE) -> 239.63 | H50: =VLOOKUP(A50,'Projections - Hitters'!$A$2:$X$199990,4,FALSE) -> 209.08 | I50: =VLOOKUP(A50,'Projections - Hitters'!$A$2:$X$199990,5,FALSE) -> 53.17 | J50: =VLOOKUP(A50,'Projections - Hitters'!$A$2:$X$199990,6,FALSE) -> 26.75 | K50: =VLOOKUP(A50,'Projections - Hitters'!$A$2:$X$199990,7,FALSE) -> 13.08 | L50: =VLOOKUP(A50,'Projections - Hitters'!$A$2:$X$199990,8,FALSE) -> 1.17 | M50: =VLOOKUP(A50,'Projections - Hitters'!$A$2:$X$199990,9,FALSE) -> 12.08 | N50: =VLOOKUP(A50,'Projections - Hitters'!$A$2:$X$199990,10,FALSE) -> 33.08 | O50: =VLOOKUP(A50,'Projections - Hitters'!$A$2:$X$199990,11,FALSE) -> 34.83 | P50: =VLOOKUP(A50,'Projections - Hitters'!$A$2:$X$199990,12,FALSE) -> 24.5 | Q50: =VLOOKUP(A50,'Projections - Hitters'!$A$2:$X$199990,13,FALSE) -> 57.09 | R50: =VLOOKUP(A50,'Projections - Hitters'!$A$2:$X$199990,14,FALSE) -> 0.42 | S50: =VLOOKUP(A50,'Projections - Hitters'!$A$2:$X$199990,15,FALSE) -> 0.45 | T50: =VLOOKUP(A50,'Projections - Hitters'!$A$2:$X$199990,16,FALSE) -> 1 | U50: =VLOOKUP(A50,'Projections - Hitters'!$A$2:$X$199990,17,FALSE) -> 3 | V50: =VLOOKUP(A50,'Projections - Hitters'!$A$2:$X$199990,18,FALSE) -> 0.254 | W50: =VLOOKUP(A50,'Projections - Hitters'!$A$2:$X$199990,19,FALSE) -> 2.33 | X50: =VLOOKUP(A50,'Projections - Hitters'!$A$2:$X$199990,20,FALSE) -> 104.74 | Y50: =VLOOKUP(A50,'Projections - Hitters'!$A$2:$X$199990,21,FALSE) -> 0.34 | Z50: =VLOOKUP(A50,'Projections - Hitters'!$A$2:$X$199990,22,FALSE) -> 0.501 | AA50: =VLOOKUP(A50,'Projections - Hitters'!$A$2:$X$199990,23,FALSE) -> 0.84 | AB50: AL | AC50: 656305 | AD50: 3B | AE50: =IF(ISNA(VLOOKUP(A50,Rankings!$B$2:$H$883,7,FALSE)),"-",VLOOKUP(A50,Rankings!$B$2:$H$883,7,FALSE)) -> 0
A51: Eugenio Suarez | B51: 3B | C51: =((G51*'Points System'!$B$16)+(H51*'Points System'!$B$17)+(I51*'Points System'!$B$15)+(J51*'Points System'!$B$2)+(K51*'Points System'!$B$3)+(L51*'Points System'!$B$4)+(M51*'Points System'!$B$5)+(N51*'Points System'!$B$6)+(O51*'Points System'!$B$7)+(P51*'Points System'!$B$8)+(Q51*'Points System'!$B$9)+(R51*'Points System'!$B$10)+(S51*'Points System'!$B$11)+(T51*'Points System'!$B$13)+(U51*'Points System'!$B$12)+(X51*'Points System'!$B$14))*((100-Settings!$B$37)/100) -> 143.06 | D51: 0.6193073593 | E51: 2.630746598 | F51: =VLOOKUP(A51,'Projections - Hitters'!$A$2:$X$199990,2,FALSE) -> 54.38 | G51: =VLOOKUP(A51,'Projections - Hitters'!$A$2:$X$199990,3,FALSE) -> 231 | H51: =VLOOKUP(A51,'Projections - Hitters'!$A$2:$X$199990,4,FALSE) -> 199.58 | I51: =VLOOKUP(A51,'Projections - Hitters'!$A$2:$X$199990,5,FALSE) -> 53 | J51: =VLOOKUP(A51,'Projections - Hitters'!$A$2:$X$199990,6,FALSE) -> 29.58 | K51: =VLOOKUP(A51,'Projections - Hitters'!$A$2:$X$199990,7,FALSE) -> 8.75 | L51: =VLOOKUP(A51,'Projections - Hitters'!$A$2:$X$199990,8,FALSE) -> 0.92 | M51: =VLOOKUP(A51,'Projections - Hitters'!$A$2:$X$199990,9,FALSE) -> 13.67 | N51: =VLOOKUP(A51,'Projections - Hitters'!$A$2:$X$199990,10,FALSE) -> 36.92 | O51: =VLOOKUP(A51,'Projections - Hitters'!$A$2:$X$199990,11,FALSE) -> 31.58 | P51: =VLOOKUP(A51,'Projections - Hitters'!$A$2:$X$199990,12,FALSE) -> 25.25 | Q51: =VLOOKUP(A51,'Projections - Hitters'!$A$2:$X$199990,13,FALSE) -> 60.82 | R51: =VLOOKUP(A51,'Projections - Hitters'!$A$2:$X$199990,14,FALSE) -> 0.92 | S51: =VLOOKUP(A51,'Projections - Hitters'!$A$2:$X$199990,15,FALSE) -> 0.73 | T51: =VLOOKUP(A51,'Projections - Hitters'!$A$2:$X$199990,16,FALSE) -> 1.5 | U51: =VLOOKUP(A51,'Projections - Hitters'!$A$2:$X$199990,17,FALSE) -> 3 | V51: =VLOOKUP(A51,'Projections - Hitters'!$A$2:$X$199990,18,FALSE) -> 0.266 | W51: =VLOOKUP(A51,'Projections - Hitters'!$A$2:$X$199990,19,FALSE) -> 2.41 | X51: =VLOOKUP(A51,'Projections - Hitters'!$A$2:$X$199990,20,FALSE) -> 104.52 | Y51: =VLOOKUP(A51,'Projections - Hitters'!$A$2:$X$199990,21,FALSE) -> 0.354 | Z51: =VLOOKUP(A51,'Projections - Hitters'!$A$2:$X$199990,22,FALSE) -> 0.524 | AA51: =VLOOKUP(A51,'Projections - Hitters'!$A$2:$X$199990,23,FALSE) -> 0.88 | AB51: NL | AC51: 553993 | AD51: 3B | AE51: =IF(ISNA(VLOOKUP(A51,Rankings!$B$2:$H$883,7,FALSE)),"-",VLOOKUP(A51,Rankings!$B$2:$H$883,7,FALSE)) -> 0
A52: Vladimir Guerrero Jr. | B52: 3B | C52: =((G52*'Points System'!$B$16)+(H52*'Points System'!$B$17)+(I52*'Points System'!$B$15)+(J52*'Points System'!$B$2)+(K52*'Points System'!$B$3)+(L52*'Points System'!$B$4)+(M52*'Points System'!$B$5)+(N52*'Points System'!$B$6)+(O52*'Points System'!$B$7)+(P52*'Points System'!$B$8)+(Q52*'Points System'!$B$9)+(R52*'Points System'!$B$10)+(S52*'Points System'!$B$11)+(T52*'Points System'!$B$13)+(U52*'Points System'!$B$12)+(X52*'Points System'!$B$14))*((100-Settings!$B$37)/100) -> 143.06 | D52: 0.6536001462 | E52: 2.744293113 | F52: =VLOOKUP(A52,'Projections - Hitters'!$A$2:$X$199990,2,FALSE) -> 52.13 | G52: =VLOOKUP(A52,'Projections - Hitters'!$A$2:$X$199990,3,FALSE) -> 218.88 | H52: =VLOOKUP(A52,'Projections - Hitters'!$A$2:$X$199990,4,FALSE) -> 196.33 | I52: =VLOOKUP(A52,'Projections - Hitters'!$A$2:$X$199990,5,FALSE) -> 56.75 | J52: =VLOOKUP(A52,'Projections - Hitters'!$A$2:$X$199990,6,FALSE) -> 35.5 | K52: =VLOOKUP(A52,'Projections - Hitters'!$A$2:$X$199990,7,FALSE) -> 11.67 | L52: =VLOOKUP(A52,'Projections - Hitters'!$A$2:$X$199990,8,FALSE) -> 0.92 | M52: =VLOOKUP(A52,'Projections - Hitters'!$A$2:$X$199990,9,FALSE) -> 8.42 | N52: =VLOOKUP(A52,'Projections - Hitters'!$A$2:$X$199990,10,FALSE) -> 32.17 | O52: =VLOOKUP(A52,'Projections - Hitters'!$A$2:$X$199990,11,FALSE) -> 27.25 | P52: =VLOOKUP(A52,'Projections - Hitters'!$A$2:$X$199990,12,FALSE) -> 19.75 | Q52: =VLOOKUP(A52,'Projections - Hitters'!$A$2:$X$199990,13,FALSE) -> 34.73 | R52: =VLOOKUP(A52,'Projections - Hitters'!$A$2:$X$199990,14,FALSE) -> 0.5 | S52: =VLOOKUP(A52,'Projections - Hitters'!$A$2:$X$199990,15,FALSE) -> 0.36 | T52: =VLOOKUP(A52,'Projections - Hitters'!$A$2:$X$199990,16,FALSE) -> 1.5 | U52: =VLOOKUP(A52,'Projections - Hitters'!$A$2:$X$199990,17,FALSE) -> 1.2 | V52: =VLOOKUP(A52,'Projections - Hitters'!$A$2:$X$199990,18,FALSE) -> 0.289 | W52: =VLOOKUP(A52,'Projections - Hitters'!$A$2:$X$199990,19,FALSE) -> 1.76 | X52: =VLOOKUP(A52,'Projections - Hitters'!$A$2:$X$199990,20,FALSE) -> 95.28 | Y52: =VLOOKUP(A52,'Projections - Hitters'!$A$2:$X$199990,21,FALSE) -> 0.355 | Z52: =VLOOKUP(A52,'Projections - Hitters'!$A$2:$X$199990,22,FALSE) -> 0.485 | AA52: =VLOOKUP(A52,'Projections - Hitters'!$A$2:$X$199990,23,FALSE) -> 0.84 | AB52: AL | AC52: 665489 | AD52: 3B | AE52: =IF(ISNA(VLOOKUP(A52,Rankings!$B$2:$H$883,7,FALSE)),"-",VLOOKUP(A52,Rankings!$B$2:$H$883,7,FALSE)) -> 0
A53: Andrew Benintendi | B53: OF | C53: =((G53*'Points System'!$B$16)+(H53*'Points System'!$B$17)+(I53*'Points System'!$B$15)+(J53*'Points System'!$B$2)+(K53*'Points System'!$B$3)+(L53*'Points System'!$B$4)+(M53*'Points System'!$B$5)+(N53*'Points System'!$B$6)+(O53*'Points System'!$B$7)+(P53*'Points System'!$B$8)+(Q53*'Points System'!$B$9)+(R53*'Points System'!$B$10)+(S53*'Points System'!$B$11)+(T53*'Points System'!$B$13)+(U53*'Points System'!$B$12)+(X53*'Points System'!$B$14))*((100-Settings!$B$37)/100) -> 142.28 | D53: 0.5968621529 | E53: 2.640682999 | F53: =VLOOKUP(A53,'Projections - Hitters'!$A$2:$X$199990,2,FALSE) -> 53.88 | G53: =VLOOKUP(A53,'Projections - Hitters'!$A$2:$X$199990,3,FALSE) -> 238.38 | H53: =VLOOKUP(A53,'Projections - Hitters'!$A$2:$X$199990,4,FALSE) -> 209.42 | I53: =VLOOKUP(A53,'Projections - Hitters'!$A$2:$X$199990,5,FALSE) -> 57.08 | J53: =VLOOKUP(A53,'Projections - Hitters'!$A$2:$X$199990,6,FALSE) -> 35.08 | K53: =VLOOKUP(A53,'Projections - Hitters'!$A$2:$X$199990,7,FALSE) -> 13.92 | L53: =VLOOKUP(A53,'Projections - Hitters'!$A$2:$X$199990,8,FALSE) -> 1.75 | M53: =VLOOKUP(A53,'Projections - Hitters'!$A$2:$X$199990,9,FALSE) -> 6.25 | N53: =VLOOKUP(A53,'Projections - Hitters'!$A$2:$X$199990,10,FALSE) -> 28 | O53: =VLOOKUP(A53,'Projections - Hitters'!$A$2:$X$199990,11,FALSE) -> 31.92 | P53: =VLOOKUP(A53,'Projections - Hitters'!$A$2:$X$199990,12,FALSE) -> 23.75 | Q53: =VLOOKUP(A53,'Projections - Hitters'!$A$2:$X$199990,13,FALSE) -> 46.45 | R53: =VLOOKUP(A53,'Projections - Hitters'!$A$2:$X$199990,14,FALSE) -> 4.83 | S53: =VLOOKUP(A53,'Projections - Hitters'!$A$2:$X$199990,15,FALSE) -> 1.27 | T53: =VLOOKUP(A53,'Projections - Hitters'!$A$2:$X$199990,16,FALSE) -> 1.5 | U53: =VLOOKUP(A53,'Projections - Hitters'!$A$2:$X$199990,17,FALSE) -> 2 | V53: =VLOOKUP(A53,'Projections - Hitters'!$A$2:$X$199990,18,FALSE) -> 0.273 | W53: =VLOOKUP(A53,'Projections - Hitters'!$A$2:$X$199990,19,FALSE) -> 1.96 | X53: =VLOOKUP(A53,'Projections - Hitters'!$A$2:$X$199990,20,FALSE) -> 93.17 | Y53: =VLOOKUP(A53,'Projections - Hitters'!$A$2:$X$199990,21,FALSE) -> 0.35 | Z53: =VLOOKUP(A53,'Projections - Hitters'!$A$2:$X$199990,22,FALSE) -> 0.445 | AA53: =VLOOKUP(A53,'Projections - Hitters'!$A$2:$X$199990,23,FALSE) -> 0.8 | AB53: AL | AC53: 643217 | AD53: LF | AE53: =IF(ISNA(VLOOKUP(A53,Rankings!$B$2:$H$883,7,FALSE)),"-",VLOOKUP(A53,Rankings!$B$2:$H$883,7,FALSE)) -> 0
A54: Nick Castellanos | B54: OF | C54: =((G54*'Points System'!$B$16)+(H54*'Points System'!$B$17)+(I54*'Points System'!$B$15)+(J54*'Points System'!$B$2)+(K54*'Points System'!$B$3)+(L54*'Points System'!$B$4)+(M54*'Points System'!$B$5)+(N54*'Points System'!$B$6)+(O54*'Points System'!$B$7)+(P54*'Points System'!$B$8)+(Q54*'Points System'!$B$9)+(R54*'Points System'!$B$10)+(S54*'Points System'!$B$11)+(T54*'Points System'!$B$13)+(U54*'Points System'!$B$12)+(X54*'Points System'!$B$14))*((100-Settings!$B$37)/100) -> 141.82 | D54: 0.5966093139 | E54: 2.578545455 | F54: =VLOOKUP(A54,'Projections - Hitters'!$A$2:$X$199990,2,FALSE) -> 55 | G54: =VLOOKUP(A54,'Projections - Hitters'!$A$2:$X$199990,3,FALSE) -> 237.71 | H54: =VLOOKUP(A54,'Projections - Hitters'!$A$2:$X$199990,4,FALSE) -> 214.45 | I54: =VLOOKUP(A54,'Projections - Hitters'!$A$2:$X$199990,5,FALSE) -> 61.18 | J54: =VLOOKUP(A54,'Projections - Hitters'!$A$2:$X$199990,6,FALSE) -> 33.64 | K54: =VLOOKUP(A54,'Projections - Hitters'!$A$2:$X$199990,7,FALSE) -> 16.27 | L54: =VLOOKUP(A54,'Projections - Hitters'!$A$2:$X$199990,8,FALSE) -> 1.09 | M54: =VLOOKUP(A54,'Projections - Hitters'!$A$2:$X$199990,9,FALSE) -> 10 | N54: =VLOOKUP(A54,'Projections - Hitters'!$A$2:$X$199990,10,FALSE) -> 32.64 | O54: =VLOOKUP(A54,'Projections - Hitters'!$A$2:$X$199990,11,FALSE) -> 32.36 | P54: =VLOOKUP(A54,'Projections - Hitters'!$A$2:$X$199990,12,FALSE) -> 16.45 | Q54: =VLOOKUP(A54,'Projections - Hitters'!$A$2:$X$199990,13,FALSE) -> 53.2 | R54: =VLOOKUP(A54,'Projections - Hitters'!$A$2:$X$199990,14,FALSE) -> 0.91 | S54: =VLOOKUP(A54,'Projections - Hitters'!$A$2:$X$199990,15,FALSE) -> 0.7 | T54: =VLOOKUP(A54,'Projections - Hitters'!$A$2:$X$199990,16,FALSE) -> 1 | U54: =VLOOKUP(A54,'Projections - Hitters'!$A$2:$X$199990,17,FALSE) -> 2 | V54: =VLOOKUP(A54,'Projections - Hitters'!$A$2:$X$199990,18,FALSE) -> 0.285 | W54: =VLOOKUP(A54,'Projections - Hitters'!$A$2:$X$199990,19,FALSE) -> 3.23 | X54: =VLOOKUP(A54,'Projections - Hitters'!$A$2:$X$199990,20,FALSE) -> 109.45 | Y54: =VLOOKUP(A54,'Projections - Hitters'!$A$2:$X$199990,21,FALSE) -> 0.34 | Z54: =VLOOKUP(A54,'Projections - Hitters'!$A$2:$X$199990,22,FALSE) -> 0.51 | AA54: =VLOOKUP(A54,'Projections - Hitters'!$A$2:$X$199990,23,FALSE) -> 0.85 | AB54: NL | AC54: 592206 | AD54: RF | AE54: =IF(ISNA(VLOOKUP(A54,Rankings!$B$2:$H$883,7,FALSE)),"-",VLOOKUP(A54,Rankings!$B$2:$H$883,7,FALSE)) -> 0
A55: Eduardo Escobar | B55: 3B/2B/SS | C55: =((G55*'Points System'!$B$16)+(H55*'Points System'!$B$17)+(I55*'Points System'!$B$15)+(J55*'Points System'!$B$2)+(K55*'Points System'!$B$3)+(L55*'Points System'!$B$4)+(M55*'Points System'!$B$5)+(N55*'Points System'!$B$6)+(O55*'Points System'!$B$7)+(P55*'Points System'!$B$8)+(Q55*'Points System'!$B$9)+(R55*'Points System'!$B$10)+(S55*'Points System'!$B$11)+(T55*'Points System'!$B$13)+(U55*'Points System'!$B$12)+(X55*'Points System'!$B$14))*((100-Settings!$B$37)/100) -> 141.57 | D55: 0.6072577532 | E55: 2.627505568 | F55: =VLOOKUP(A55,'Projections - Hitters'!$A$2:$X$199990,2,FALSE) -> 53.88 | G55: =VLOOKUP(A55,'Projections - Hitters'!$A$2:$X$199990,3,FALSE) -> 233.13 | H55: =VLOOKUP(A55,'Projections - Hitters'!$A$2:$X$199990,4,FALSE) -> 210.5 | I55: =VLOOKUP(A55,'Projections - Hitters'!$A$2:$X$199990,5,FALSE) -> 55.33 | J55: =VLOOKUP(A55,'Projections - Hitters'!$A$2:$X$199990,6,FALSE) -> 31.17 | K55: =VLOOKUP(A55,'Projections - Hitters'!$A$2:$X$199990,7,FALSE) -> 11.83 | L55: =VLOOKUP(A55,'Projections - Hitters'!$A$2:$X$199990,8,FALSE) -> 2.5 | M55: =VLOOKUP(A55,'Projections - Hitters'!$A$2:$X$199990,9,FALSE) -> 9.83 | N55: =VLOOKUP(A55,'Projections - Hitters'!$A$2:$X$199990,10,FALSE) -> 34.17 | O55: =VLOOKUP(A55,'Projections - Hitters'!$A$2:$X$199990,11,FALSE) -> 29.17 | P55: =VLOOKUP(A55,'Projections - Hitters'!$A$2:$X$199990,12,FALSE) -> 16.75 | Q55: =VLOOKUP(A55,'Projections - Hitters'!$A$2:$X$199990,13,FALSE) -> 45.09 | R55: =VLOOKUP(A55,'Projections - Hitters'!$A$2:$X$199990,14,FALSE) -> 1.08 | S55: =VLOOKUP(A55,'Projections - Hitters'!$A$2:$X$199990,15,FALSE) -> 0.64 | T55: =VLOOKUP(A55,'Projections - Hitters'!$A$2:$X$199990,16,FALSE) -> 2 | U55: =VLOOKUP(A55,'Projections - Hitters'!$A$2:$X$199990,17,FALSE) -> 1.4 | V55: =VLOOKUP(A55,'Projections - Hitters'!$A$2:$X$199990,18,FALSE) -> 0.263 | W55: =VLOOKUP(A55,'Projections - Hitters'!$A$2:$X$199990,19,FALSE) -> 2.69 | X55: =VLOOKUP(A55,'Projections - Hitters'!$A$2:$X$199990,20,FALSE) -> 101.65 | Y55: =VLOOKUP(A55,'Projections - Hitters'!$A$2:$X$199990,21,FALSE) -> 0.319 | Z55: =VLOOKUP(A55,'Projections - Hitters'!$A$2:$X$199990,22,FALSE) -> 0.483 | AA55: =VLOOKUP(A55,'Projections - Hitters'!$A$2:$X$199990,23,FALSE) -> 0.8 | AB55: NL | AC55: 500871 | AD55: 3B | AE55: =IF(ISNA(VLOOKUP(A55,Rankings!$B$2:$H$883,7,FALSE)),"-",VLOOKUP(A55,Rankings!$B$2:$H$883,7,FALSE)) -> 0
A56: Javier Baez | B56: SS | C56: =((G56*'Points System'!$B$16)+(H56*'Points System'!$B$17)+(I56*'Points System'!$B$15)+(J56*'Points System'!$B$2)+(K56*'Points System'!$B$3)+(L56*'Points System'!$B$4)+(M56*'Points System'!$B$5)+(N56*'Points System'!$B$6)+(O56*'Points System'!$B$7)+(P56*'Points System'!$B$8)+(Q56*'Points System'!$B$9)+(R56*'Points System'!$B$10)+(S56*'Points System'!$B$11)+(T56*'Points System'!$B$13)+(U56*'Points System'!$B$12)+(X56*'Points System'!$B$14))*((100-Settings!$B$37)/100) -> 141.21 | D56: 0.6057135504 | E56: 2.549837486 | F56: =VLOOKUP(A56,'Projections - Hitters'!$A$2:$X$199990,2,FALSE) -> 55.38 | G56: =VLOOKUP(A56,'Projections - Hitters'!$A$2:$X$199990,3,FALSE) -> 233.13 | H56: =VLOOKUP(A56,'Projections - Hitters'!$A$2:$X$199990,4,FALSE) -> 217.25 | I56: =VLOOKUP(A56,'Projections - Hitters'!$A$2:$X$199990,5,FALSE) -> 59.92 | J56: =VLOOKUP(A56,'Projections - Hitters'!$A$2:$X$199990,6,FALSE) -> 33.08 | K56: =VLOOKUP(A56,'Projections - Hitters'!$A$2:$X$199990,7,FALSE) -> 13.5 | L56: =VLOOKUP(A56,'Projections - Hitters'!$A$2:$X$199990,8,FALSE) -> 1.75 | M56: =VLOOKUP(A56,'Projections - Hitters'!$A$2:$X$199990,9,FALSE) -> 11.5 | N56: =VLOOKUP(A56,'Projections - Hitters'!$A$2:$X$199990,10,FALSE) -> 36.42 | O56: =VLOOKUP(A56,'Projections - Hitters'!$A$2:$X$199990,11,FALSE) -> 34.33 | P56: =VLOOKUP(A56,'Projections - Hitters'!$A$2:$X$199990,12,FALSE) -> 11.92 | Q56: =VLOOKUP(A56,'Projections - Hitters'!$A$2:$X$199990,13,FALSE) -> 62.27 | R56: =VLOOKUP(A56,'Projections - Hitters'!$A$2:$X$199990,14,FALSE) -> 4.92 | S56: =VLOOKUP(A56,'Projections - Hitters'!$A$2:$X$199990,15,FALSE) -> 2.36 | T56: =VLOOKUP(A56,'Projections - Hitters'!$A$2:$X$199990,16,FALSE) -> 1 | U56: =VLOOKUP(A56,'Projections - Hitters'!$A$2:$X$199990,17,FALSE) -> 1 | V56: =VLOOKUP(A56,'Projections - Hitters'!$A$2:$X$199990,18,FALSE) -> 0.276 | W56: =VLOOKUP(A56,'Projections - Hitters'!$A$2:$X$199990,19,FALSE) -> 5.22 | X56: =VLOOKUP(A56,'Projections - Hitters'!$A$2:$X$199990,20,FALSE) -> 111.33 | Y56: =VLOOKUP(A56,'Projections - Hitters'!$A$2:$X$199990,21,FALSE) -> 0.315 | Z56: =VLOOKUP(A56,'Projections - Hitters'!$A$2:$X$199990,22,FALSE) -> 0.512 | AA56: =VLOOKUP(A56,'Projections - Hitters'!$A$2:$X$199990,23,FALSE) -> 0.83 | AB56: NL | AC56: 595879 | AD56: SS | AE56: =IF(ISNA(VLOOKUP(A56,Rankings!$B$2:$H$883,7,FALSE)),"-",VLOOKUP(A56,Rankings!$B$2:$H$883,7,FALSE)) -> 0
A57: Justin Turner | B57: 3B | C57: =((G57*'Points System'!$B$16)+(H57*'Points System'!$B$17)+(I57*'Points System'!$B$15)+(J57*'Points System'!$B$2)+(K57*'Points System'!$B$3)+(L57*'Points System'!$B$4)+(M57*'Points System'!$B$5)+(N57*'Points System'!$B$6)+(O57*'Points System'!$B$7)+(P57*'Points System'!$B$8)+(Q57*'Points System'!$B$9)+(R57*'Points System'!$B$10)+(S57*'Points System'!$B$11)+(T57*'Points System'!$B$13)+(U57*'Points System'!$B$12)+(X57*'Points System'!$B$14))*((100-Settings!$B$37)/100) -> 141.19 | D57: 0.6767483104 | E57: 2.941458333 | F57: =VLOOKUP(A57,'Projections - Hitters'!$A$2:$X$199990,2,FALSE) -> 48 | G57: =VLOOKUP(A57,'Projections - Hitters'!$A$2:$X$199990,3,FALSE) -> 208.63 | H57: =VLOOKUP(A57,'Projections - Hitters'!$A$2:$X$199990,4,FALSE) -> 179.25 | I57: =VLOOKUP(A57,'Projections - Hitters'!$A$2:$X$199990,5,FALSE) -> 51.08 | J57: =VLOOKUP(A57,'Projections - Hitters'!$A$2:$X$199990,6,FALSE) -> 31.92 | K57: =VLOOKUP(A57,'Projections - Hitters'!$A$2:$X$199990,7,FALSE) -> 10.42 | L57: =VLOOKUP(A57,'Projections - Hitters'!$A$2:$X$199990,8,FALSE) -> 0.08 | M57: =VLOOKUP(A57,'Projections - Hitters'!$A$2:$X$199990,9,FALSE) -> 8.58 | N57: =VLOOKUP(A57,'Projections - Hitters'!$A$2:$X$199990,10,FALSE) -> 28.08 | O57: =VLOOKUP(A57,'Projections - Hitters'!$A$2:$X$199990,11,FALSE) -> 28.83 | P57: =VLOOKUP(A57,'Projections - Hitters'!$A$2:$X$199990,12,FALSE) -> 19.33 | Q57: =VLOOKUP(A57,'Projections - Hitters'!$A$2:$X$199990,13,FALSE) -> 30.91 | R57: =VLOOKUP(A57,'Projections - Hitters'!$A$2:$X$199990,14,FALSE) -> 0.92 | S57: =VLOOKUP(A57,'Projections - Hitters'!$A$2:$X$199990,15,FALSE) -> 0 | T57: =VLOOKUP(A57,'Projections - Hitters'!$A$2:$X$199990,16,FALSE) -> 1.5 | U57: =VLOOKUP(A57,'Projections - Hitters'!$A$2:$X$199990,17,FALSE) -> 5.2 | V57: =VLOOKUP(A57,'Projections - Hitters'!$A$2:$X$199990,18,FALSE) -> 0.285 | W57: =VLOOKUP(A57,'Projections - Hitters'!$A$2:$X$199990,19,FALSE) -> 1.6 | X57: =VLOOKUP(A57,'Projections - Hitters'!$A$2:$X$199990,20,FALSE) -> 87.32 | Y57: =VLOOKUP(A57,'Projections - Hitters'!$A$2:$X$199990,21,FALSE) -> 0.368 | Z57: =VLOOKUP(A57,'Projections - Hitters'!$A$2:$X$199990,22,FALSE) -> 0.487 | AA57: =VLOOKUP(A57,'Projections - Hitters'!$A$2:$X$199990,23,FALSE) -> 0.86 | AB57: NL | AC57: 457759 | AD57: 3B | AE57: =IF(ISNA(VLOOKUP(A57,Rankings!$B$2:$H$883,7,FALSE)),"-",VLOOKUP(A57,Rankings!$B$2:$H$883,7,FALSE)) -> 0
A58: DJ LeMahieu | B58: 2B/3B/1B | C58: =((G58*'Points System'!$B$16)+(H58*'Points System'!$B$17)+(I58*'Points System'!$B$15)+(J58*'Points System'!$B$2)+(K58*'Points System'!$B$3)+(L58*'Points System'!$B$4)+(M58*'Points System'!$B$5)+(N58*'Points System'!$B$6)+(O58*'Points System'!$B$7)+(P58*'Points System'!$B$8)+(Q58*'Points System'!$B$9)+(R58*'Points System'!$B$10)+(S58*'Points System'!$B$11)+(T58*'Points System'!$B$13)+(U58*'Points System'!$B$12)+(X58*'Points System'!$B$14))*((100-Settings!$B$37)/100) -> 140.58 | D58: 0.6268896321 | E58: 2.832560951 | F58: =VLOOKUP(A58,'Projections - Hitters'!$A$2:$X$199990,2,FALSE) -> 49.63 | G58: =VLOOKUP(A58,'Projections - Hitters'!$A$2:$X$199990,3,FALSE) -> 224.25 | H58: =VLOOKUP(A58,'Projections - Hitters'!$A$2:$X$199990,4,FALSE) -> 204.75 | I58: =VLOOKUP(A58,'Projections - Hitters'!$A$2:$X$199990,5,FALSE) -> 60.5 | J58: =VLOOKUP(A58,'Projections - Hitters'!$A$2:$X$199990,6,FALSE) -> 42.92 | K58: =VLOOKUP(A58,'Projections - Hitters'!$A$2:$X$199990,7,FALSE) -> 10.25 | L58: =VLOOKUP(A58,'Projections - Hitters'!$A$2:$X$199990,8,FALSE) -> 0.92 | M58: =VLOOKUP(A58,'Projections - Hitters'!$A$2:$X$199990,9,FALSE) -> 6.33 | N58: =VLOOKUP(A58,'Projections - Hitters'!$A$2:$X$199990,10,FALSE) -> 26.33 | O58: =VLOOKUP(A58,'Projections - Hitters'!$A$2:$X$199990,11,FALSE) -> 33.25 | P58: =VLOOKUP(A58,'Projections - Hitters'!$A$2:$X$199990,12,FALSE) -> 16.42 | Q58: =VLOOKUP(A58,'Projections - Hitters'!$A$2:$X$199990,13,FALSE) -> 32.55 | R58: =VLOOKUP(A58,'Projections - Hitters'!$A$2:$X$199990,14,FALSE) -> 1.92 | S58: =VLOOKUP(A58,'Projections - Hitters'!$A$2:$X$199990,15,FALSE) -> 0.91 | T58: =VLOOKUP(A58,'Projections - Hitters'!$A$2:$X$199990,16,FALSE) -> 1.5 | U58: =VLOOKUP(A58,'Projections - Hitters'!$A$2:$X$199990,17,FALSE) -> 1.2 | V58: =VLOOKUP(A58,'Projections - Hitters'!$A$2:$X$199990,18,FALSE) -> 0.295 | W58: =VLOOKUP(A58,'Projections - Hitters'!$A$2:$X$199990,19,FALSE) -> 1.98 | X58: =VLOOKUP(A58,'Projections - Hitters'!$A$2:$X$199990,20,FALSE) -> 91.5 | Y58: =VLOOKUP(A58,'Projections - Hitters'!$A$2:$X$199990,21,FALSE) -> 0.349 | Z58: =VLOOKUP(A58,'Projections - Hitters'!$A$2:$X$199990,22,FALSE) -> 0.447 | AA58: =VLOOKUP(A58,'Projections - Hitters'!$A$2:$X$199990,23,FALSE) -> 0.8 | AB58: AL | AC58: 518934 | AD58: 2B | AE58: =IF(ISNA(VLOOKUP(A58,Rankings!$B$2:$H$883,7,FALSE)),"-",VLOOKUP(A58,Rankings!$B$2:$H$883,7,FALSE)) -> 0
A59: Matt Olson | B59: 1B | C59: =((G59*'Points System'!$B$16)+(H59*'Points System'!$B$17)+(I59*'Points System'!$B$15)+(J59*'Points System'!$B$2)+(K59*'Points System'!$B$3)+(L59*'Points System'!$B$4)+(M59*'Points System'!$B$5)+(N59*'Points System'!$B$6)+(O59*'Points System'!$B$7)+(P59*'Points System'!$B$8)+(Q59*'Points System'!$B$9)+(R59*'Points System'!$B$10)+(S59*'Points System'!$B$11)+(T59*'Points System'!$B$13)+(U59*'Points System'!$B$12)+(X59*'Points System'!$B$14))*((100-Settings!$B$37)/100) -> 136.76 | D59: 0.5991675794 | E59: 2.538233111 | F59: =VLOOKUP(A59,'Projections - Hitters'!$A$2:$X$199990,2,FALSE) -> 53.88 | G59: =VLOOKUP(A59,'Projections - Hitters'!$A$2:$X$199990,3,FALSE) -> 228.25 | H59: =VLOOKUP(A59,'Projections - Hitters'!$A$2:$X$199990,4,FALSE) -> 199.25 | I59: =VLOOKUP(A59,'Projections - Hitters'!$A$2:$X$199990,5,FALSE) -> 51 | J59: =VLOOKUP(A59,'Projections - Hitters'!$A$2:$X$199990,6,FALSE) -> 27.58 | K59: =VLOOKUP(A59,'Projections - Hitters'!$A$2:$X$199990,7,FALSE) -> 10.33 | L59: =VLOOKUP(A59,'Projections - Hitters'!$A$2:$X$199990,8,FALSE) -> 0 | M59: =VLOOKUP(A59,'Projections - Hitters'!$A$2:$X$199990,9,FALSE) -> 13.08 | N59: =VLOOKUP(A59,'Projections - Hitters'!$A$2:$X$199990,10,FALSE) -> 36 | O59: =VLOOKUP(A59,'Projections - Hitters'!$A$2:$X$199990,11,FALSE) -> 30.33 | P59: =VLOOKUP(A59,'Projections - Hitters'!$A$2:$X$199990,12,FALSE) -> 23.42 | Q59: =VLOOKUP(A59,'Projections - Hitters'!$A$2:$X$199990,13,FALSE) -> 57.91 | R59: =VLOOKUP(A59,'Projections - Hitters'!$A$2:$X$199990,14,FALSE) -> 0.08 | S59: =VLOOKUP(A59,'Projections - Hitters'!$A$2:$X$199990,15,FALSE) -> 0 | T59: =VLOOKUP(A59,'Projections - Hitters'!$A$2:$X$199990,16,FALSE) -> 1 | U59: =VLOOKUP(A59,'Projections - Hitters'!$A$2:$X$199990,17,FALSE) -> 3.2 | V59: =VLOOKUP(A59,'Projections - Hitters'!$A$2:$X$199990,18,FALSE) -> 0.256 | W59: =VLOOKUP(A59,'Projections - Hitters'!$A$2:$X$199990,19,FALSE) -> 2.47 | X59: =VLOOKUP(A59,'Projections - Hitters'!$A$2:$X$199990,20,FALSE) -> 100.56 | Y59: =VLOOKUP(A59,'Projections - Hitters'!$A$2:$X$199990,21,FALSE) -> 0.342 | Z59: =VLOOKUP(A59,'Projections - Hitters'!$A$2:$X$199990,22,FALSE) -> 0.505 | AA59: =VLOOKUP(A59,'Projections - Hitters'!$A$2:$X$199990,23,FALSE) -> 0.85 | AB59: AL | AC59: 621566 | AD59: 1B | AE59: =IF(ISNA(VLOOKUP(A59,Rankings!$B$2:$H$883,7,FALSE)),"-",VLOOKUP(A59,Rankings!$B$2:$H$883,7,FALSE)) -> 0
A60: Bo Bichette | B60: SS | C60: =((G60*'Points System'!$B$16)+(H60*'Points System'!$B$17)+(I60*'Points System'!$B$15)+(J60*'Points System'!$B$2)+(K60*'Points System'!$B$3)+(L60*'Points System'!$B$4)+(M60*'Points System'!$B$5)+(N60*'Points System'!$B$6)+(O60*'Points System'!$B$7)+(P60*'Points System'!$B$8)+(Q60*'Points System'!$B$9)+(R60*'Points System'!$B$10)+(S60*'Points System'!$B$11)+(T60*'Points System'!$B$13)+(U60*'Points System'!$B$12)+(X60*'Points System'!$B$14))*((100-Settings!$B$37)/100) -> 135.68 | D60: 0.6030222222 | E60: 2.660392157 | F60: =VLOOKUP(A60,'Projections - Hitters'!$A$2:$X$199990,2,FALSE) -> 51 | G60: =VLOOKUP(A60,'Projections - Hitters'!$A$2:$X$199990,3,FALSE) -> 225 | H60: =VLOOKUP(A60,'Projections - Hitters'!$A$2:$X$199990,4,FALSE) -> 204.33 | I60: =VLOOKUP(A60,'Projections - Hitters'!$A$2:$X$199990,5,FALSE) -> 56.5 | J60: =VLOOKUP(A60,'Projections - Hitters'!$A$2:$X$199990,6,FALSE) -> 33.67 | K60: =VLOOKUP(A60,'Projections - Hitters'!$A$2:$X$199990,7,FALSE) -> 13.75 | L60: =VLOOKUP(A60,'Projections - Hitters'!$A$2:$X$199990,8,FALSE) -> 1.08 | M60: =VLOOKUP(A60,'Projections - Hitters'!$A$2:$X$199990,9,FALSE) -> 7.83 | N60: =VLOOKUP(A60,'Projections - Hitters'!$A$2:$X$199990,10,FALSE) -> 25.5 | O60: =VLOOKUP(A60,'Projections - Hitters'!$A$2:$X$199990,11,FALSE) -> 31.08 | P60: =VLOOKUP(A60,'Projections - Hitters'!$A$2:$X$199990,12,FALSE) -> 15.67 | Q60: =VLOOKUP(A60,'Projections - Hitters'!$A$2:$X$199990,13,FALSE) -> 46.18 | R60: =VLOOKUP(A60,'Projections - Hitters'!$A$2:$X$199990,14,FALSE) -> 7.25 | S60: =VLOOKUP(A60,'Projections - Hitters'!$A$2:$X$199990,15,FALSE) -> 2.82 | T60: =VLOOKUP(A60,'Projections - Hitters'!$A$2:$X$199990,16,FALSE) -> 1 | U60: =VLOOKUP(A60,'Projections - Hitters'!$A$2:$X$199990,17,FALSE) -> 1.2 | V60: =VLOOKUP(A60,'Projections - Hitters'!$A$2:$X$199990,18,FALSE) -> 0.277 | W60: =VLOOKUP(A60,'Projections - Hitters'!$A$2:$X$199990,19,FALSE) -> 2.95 | X60: =VLOOKUP(A60,'Projections - Hitters'!$A$2:$X$199990,20,FALSE) -> 95.73 | Y60: =VLOOKUP(A60,'Projections - Hitters'!$A$2:$X$199990,21,FALSE) -> 0.33 | Z60: =VLOOKUP(A60,'Projections - Hitters'!$A$2:$X$199990,22,FALSE) -> 0.469 | AA60: =VLOOKUP(A60,'Projections - Hitters'!$A$2:$X$199990,23,FALSE) -> 0.8 | AB60: AL | AC60: 666182 | AD60: SS | AE60: =IF(ISNA(VLOOKUP(A60,Rankings!$B$2:$H$883,7,FALSE)),"-",VLOOKUP(A60,Rankings!$B$2:$H$883,7,FALSE)) -> 0
A61: Jorge Soler | B61: OF | C61: =((G61*'Points System'!$B$16)+(H61*'Points System'!$B$17)+(I61*'Points System'!$B$15)+(J61*'Points System'!$B$2)+(K61*'Points System'!$B$3)+(L61*'Points System'!$B$4)+(M61*'Points System'!$B$5)+(N61*'Points System'!$B$6)+(O61*'Points System'!$B$7)+(P61*'Points System'!$B$8)+(Q61*'Points System'!$B$9)+(R61*'Points System'!$B$10)+(S61*'Points System'!$B$11)+(T61*'Points System'!$B$13)+(U61*'Points System'!$B$12)+(X61*'Points System'!$B$14))*((100-Settings!$B$37)/100) -> 135.44 | D61: 0.5992920354 | E61: 2.502124515 | F61: =VLOOKUP(A61,'Projections - Hitters'!$A$2:$X$199990,2,FALSE) -> 54.13 | G61: =VLOOKUP(A61,'Projections - Hitters'!$A$2:$X$199990,3,FALSE) -> 226 | H61: =VLOOKUP(A61,'Projections - Hitters'!$A$2:$X$199990,4,FALSE) -> 197.92 | I61: =VLOOKUP(A61,'Projections - Hitters'!$A$2:$X$199990,5,FALSE) -> 50.92 | J61: =VLOOKUP(A61,'Projections - Hitters'!$A$2:$X$199990,6,FALSE) -> 26.67 | K61: =VLOOKUP(A61,'Projections - Hitters'!$A$2:$X$199990,7,FALSE) -> 10.58 | L61: =VLOOKUP(A61,'Projections - Hitters'!$A$2:$X$199990,8,FALSE) -> 0.08 | M61: =VLOOKUP(A61,'Projections - Hitters'!$A$2:$X$199990,9,FALSE) -> 13.42 | N61: =VLOOKUP(A61,'Projections - Hitters'!$A$2:$X$199990,10,FALSE) -> 34.5 | O61: =VLOOKUP(A61,'Projections - Hitters'!$A$2:$X$199990,11,FALSE) -> 29.83 | P61: =VLOOKUP(A61,'Projections - Hitters'!$A$2:$X$199990,12,FALSE) -> 25.08 | Q61: =VLOOKUP(A61,'Projections - Hitters'!$A$2:$X$199990,13,FALSE) -> 61.45 | R61: =VLOOKUP(A61,'Projections - Hitters'!$A$2:$X$199990,14,FALSE) -> 1 | S61: =VLOOKUP(A61,'Projections - Hitters'!$A$2:$X$199990,15,FALSE) -> 0.27 | T61: =VLOOKUP(A61,'Projections - Hitters'!$A$2:$X$199990,16,FALSE) -> 1 | U61: =VLOOKUP(A61,'Projections - Hitters'!$A$2:$X$199990,17,FALSE) -> 3 | V61: =VLOOKUP(A61,'Projections - Hitters'!$A$2:$X$199990,18,FALSE) -> 0.257 | W61: =VLOOKUP(A61,'Projections - Hitters'!$A$2:$X$199990,19,FALSE) -> 2.45 | X61: =VLOOKUP(A61,'Projections - Hitters'!$A$2:$X$199990,20,FALSE) -> 101.75 | Y61: =VLOOKUP(A61,'Projections - Hitters'!$A$2:$X$199990,21,FALSE) -> 0.348 | Z61: =VLOOKUP(A61,'Projections - Hitters'!$A$2:$X$199990,22,FALSE) -> 0.514 | AA61: =VLOOKUP(A61,'Projections - Hitters'!$A$2:$X$199990,23,FALSE) -> 0.86 | AB61: AL | AC61: 624585 | AD61: DH | AE61: =IF(ISNA(VLOOKUP(A61,Rankings!$B$2:$H$883,7,FALSE)),"-",VLOOKUP(A61,Rankings!$B$2:$H$883,7,FALSE)) -> 0
A62: Carlos Correa | B62: SS | C62: =((G62*'Points System'!$B$16)+(H62*'Points System'!$B$17)+(I62*'Points System'!$B$15)+(J62*'Points System'!$B$2)+(K62*'Points System'!$B$3)+(L62*'Points System'!$B$4)+(M62*'Points System'!$B$5)+(N62*'Points System'!$B$6)+(O62*'Points System'!$B$7)+(P62*'Points System'!$B$8)+(Q62*'Points System'!$B$9)+(R62*'Points System'!$B$10)+(S62*'Points System'!$B$11)+(T62*'Points System'!$B$13)+(U62*'Points System'!$B$12)+(X62*'Points System'!$B$14))*((100-Settings!$B$37)/100) -> 134.7 | D62: 0.6425607022 | E62: 2.769895126 | F62: =VLOOKUP(A62,'Projections - Hitters'!$A$2:$X$199990,2,FALSE) -> 48.63 | G62: =VLOOKUP(A62,'Projections - Hitters'!$A$2:$X$199990,3,FALSE) -> 209.63 | H62: =VLOOKUP(A62,'Projections - Hitters'!$A$2:$X$199990,4,FALSE) -> 182.33 | I62: =VLOOKUP(A62,'Projections - Hitters'!$A$2:$X$199990,5,FALSE) -> 49.5 | J62: =VLOOKUP(A62,'Projections - Hitters'!$A$2:$X$199990,6,FALSE) -> 28.42 | K62: =VLOOKUP(A62,'Projections - Hitters'!$A$2:$X$199990,7,FALSE) -> 10.08 | L62: =VLOOKUP(A62,'Projections - Hitters'!$A$2:$X$199990,8,FALSE) -> 0.58 | M62: =VLOOKUP(A62,'Projections - Hitters'!$A$2:$X$199990,9,FALSE) -> 10.25 | N62: =VLOOKUP(A62,'Projections - Hitters'!$A$2:$X$199990,10,FALSE) -> 33.33 | O62: =VLOOKUP(A62,'Projections - Hitters'!$A$2:$X$199990,11,FALSE) -> 28.58 | P62: =VLOOKUP(A62,'Projections - Hitters'!$A$2:$X$199990,12,FALSE) -> 22.58 | Q62: =VLOOKUP(A62,'Projections - Hitters'!$A$2:$X$199990,13,FALSE) -> 46.27 | R62: =VLOOKUP(A62,'Projections - Hitters'!$A$2:$X$199990,14,FALSE) -> 1.08 | S62: =VLOOKUP(A62,'Projections - Hitters'!$A$2:$X$199990,15,FALSE) -> 0 | T62: =VLOOKUP(A62,'Projections - Hitters'!$A$2:$X$199990,16,FALSE) -> 2 | U62: =VLOOKUP(A62,'Projections - Hitters'!$A$2:$X$199990,17,FALSE) -> 1 | V62: =VLOOKUP(A62,'Projections - Hitters'!$A$2:$X$199990,18,FALSE) -> 0.271 | W62: =VLOOKUP(A62,'Projections - Hitters'!$A$2:$X$199990,19,FALSE) -> 2.05 | X62: =VLOOKUP(A62,'Projections - Hitters'!$A$2:$X$199990,20,FALSE) -> 91.32 | Y62: =VLOOKUP(A62,'Projections - Hitters'!$A$2:$X$199990,21,FALSE) -> 0.351 | Z62: =VLOOKUP(A62,'Projections - Hitters'!$A$2:$X$199990,22,FALSE) -> 0.501 | AA62: =VLOOKUP(A62,'Projections - Hitters'!$A$2:$X$199990,23,FALSE) -> 0.85 | AB62: AL | AC62: 621043 | AD62: SS | AE62: =IF(ISNA(VLOOKUP(A62,Rankings!$B$2:$H$883,7,FALSE)),"-",VLOOKUP(A62,Rankings!$B$2:$H$883,7,FALSE)) -> 0
A63: Giancarlo Stanton | B63: OF | C63: =((G63*'Points System'!$B$16)+(H63*'Points System'!$B$17)+(I63*'Points System'!$B$15)+(J63*'Points System'!$B$2)+(K63*'Points System'!$B$3)+(L63*'Points System'!$B$4)+(M63*'Points System'!$B$5)+(N63*'Points System'!$B$6)+(O63*'Points System'!$B$7)+(P63*'Points System'!$B$8)+(Q63*'Points System'!$B$9)+(R63*'Points System'!$B$10)+(S63*'Points System'!$B$11)+(T63*'Points System'!$B$13)+(U63*'Points System'!$B$12)+(X63*'Points System'!$B$14))*((100-Settings!$B$37)/100) -> 134.56 | D63: 0.666534575 | E63: 2.870307167 | F63: =VLOOKUP(A63,'Projections - Hitters'!$A$2:$X$199990,2,FALSE) -> 46.88 | G63: =VLOOKUP(A63,'Projections - Hitters'!$A$2:$X$199990,3,FALSE) -> 201.88 | H63: =VLOOKUP(A63,'Projections - Hitters'!$A$2:$X$199990,4,FALSE) -> 179.33 | I63: =VLOOKUP(A63,'Projections - Hitters'!$A$2:$X$199990,5,FALSE) -> 47.83 | J63: =VLOOKUP(A63,'Projections - Hitters'!$A$2:$X$199990,6,FALSE) -> 24.67 | K63: =VLOOKUP(A63,'Projections - Hitters'!$A$2:$X$199990,7,FALSE) -> 8.75 | L63: =VLOOKUP(A63,'Projections - Hitters'!$A$2:$X$199990,8,FALSE) -> 0.08 | M63: =VLOOKUP(A63,'Projections - Hitters'!$A$2:$X$199990,9,FALSE) -> 14.25 | N63: =VLOOKUP(A63,'Projections - Hitters'!$A$2:$X$199990,10,FALSE) -> 36.25 | O63: =VLOOKUP(A63,'Projections - Hitters'!$A$2:$X$199990,11,FALSE) -> 31 | P63: =VLOOKUP(A63,'Projections - Hitters'!$A$2:$X$199990,12,FALSE) -> 22.58 | Q63: =VLOOKUP(A63,'Projections - Hitters'!$A$2:$X$199990,13,FALSE) -> 60.18 | R63: =VLOOKUP(A63,'Projections - Hitters'!$A$2:$X$199990,14,FALSE) -> 1 | S63: =VLOOKUP(A63,'Projections - Hitters'!$A$2:$X$199990,15,FALSE) -> 0 | T63: =VLOOKUP(A63,'Projections - Hitters'!$A$2:$X$199990,16,FALSE) -> 1.5 | U63: =VLOOKUP(A63,'Projections - Hitters'!$A$2:$X$199990,17,FALSE) -> 2 | V63: =VLOOKUP(A63,'Projections - Hitters'!$A$2:$X$199990,18,FALSE) -> 0.267 | W63: =VLOOKUP(A63,'Projections - Hitters'!$A$2:$X$199990,19,FALSE) -> 2.67 | X63: =VLOOKUP(A63,'Projections - Hitters'!$A$2:$X$199990,20,FALSE) -> 99.41 | Y63: =VLOOKUP(A63,'Projections - Hitters'!$A$2:$X$199990,21,FALSE) -> 0.353 | Z63: =VLOOKUP(A63,'Projections - Hitters'!$A$2:$X$199990,22,FALSE) -> 0.554 | AA63: =VLOOKUP(A63,'Projections - Hitters'!$A$2:$X$199990,23,FALSE) -> 0.91 | AB63: AL | AC63: 519317 | AD63: DH | AE63: =IF(ISNA(VLOOKUP(A63,Rankings!$B$2:$H$883,7,FALSE)),"-",VLOOKUP(A63,Rankings!$B$2:$H$883,7,FALSE)) -> 0
A64: Max Muncy | B64: 2B/1B/3B | C64: =((G64*'Points System'!$B$16)+(H64*'Points System'!$B$17)+(I64*'Points System'!$B$15)+(J64*'Points System'!$B$2)+(K64*'Points System'!$B$3)+(L64*'Points System'!$B$4)+(M64*'Points System'!$B$5)+(N64*'Points System'!$B$6)+(O64*'Points System'!$B$7)+(P64*'Points System'!$B$8)+(Q64*'Points System'!$B$9)+(R64*'Points System'!$B$10)+(S64*'Points System'!$B$11)+(T64*'Points System'!$B$13)+(U64*'Points System'!$B$12)+(X64*'Points System'!$B$14))*((100-Settings!$B$37)/100) -> 134.22 | D64: 0.6163949483 | E64: 2.568803828 | F64: =VLOOKUP(A64,'Projections - Hitters'!$A$2:$X$199990,2,FALSE) -> 52.25 | G64: =VLOOKUP(A64,'Projections - Hitters'!$A$2:$X$199990,3,FALSE) -> 217.75 | H64: =VLOOKUP(A64,'Projections - Hitters'!$A$2:$X$199990,4,FALSE) -> 180.08 | I64: =VLOOKUP(A64,'Projections - Hitters'!$A$2:$X$199990,5,FALSE) -> 44.83 | J64: =VLOOKUP(A64,'Projections - Hitters'!$A$2:$X$199990,6,FALSE) -> 24.92 | K64: =VLOOKUP(A64,'Projections - Hitters'!$A$2:$X$199990,7,FALSE) -> 7.92 | L64: =VLOOKUP(A64,'Projections - Hitters'!$A$2:$X$199990,8,FALSE) -> 0.33 | M64: =VLOOKUP(A64,'Projections - Hitters'!$A$2:$X$199990,9,FALSE) -> 11.58 | N64: =VLOOKUP(A64,'Projections - Hitters'!$A$2:$X$199990,10,FALSE) -> 33.17 | O64: =VLOOKUP(A64,'Projections - Hitters'!$A$2:$X$199990,11,FALSE) -> 33 | P64: =VLOOKUP(A64,'Projections - Hitters'!$A$2:$X$199990,12,FALSE) -> 31 | Q64: =VLOOKUP(A64,'Projections - Hitters'!$A$2:$X$199990,13,FALSE) -> 55.82 | R64: =VLOOKUP(A64,'Projections - Hitters'!$A$2:$X$199990,14,FALSE) -> 1.08 | S64: =VLOOKUP(A64,'Projections - Hitters'!$A$2:$X$199990,15,FALSE) -> 0.36 | T64: =VLOOKUP(A64,'Projections - Hitters'!$A$2:$X$199990,16,FALSE) -> 1 | U64: =VLOOKUP(A64,'Projections - Hitters'!$A$2:$X$199990,17,FALSE) -> 2 | V64: =VLOOKUP(A64,'Projections - Hitters'!$A$2:$X$199990,18,FALSE) -> 0.249 | W64: =VLOOKUP(A64,'Projections - Hitters'!$A$2:$X$199990,19,FALSE) -> 1.8 | X64: =VLOOKUP(A64,'Projections - Hitters'!$A$2:$X$199990,20,FALSE) -> 88.07 | Y64: =VLOOKUP(A64,'Projections - Hitters'!$A$2:$X$199990,21,FALSE) -> 0.364 | Z64: =VLOOKUP(A64,'Projections - Hitters'!$A$2:$X$199990,22,FALSE) -> 0.489 | AA64: =VLOOKUP(A64,'Projections - Hitters'!$A$2:$X$199990,23,FALSE) -> 0.85 | AB64: NL | AC64: 571970 | AD64: 1B | AE64: =IF(ISNA(VLOOKUP(A64,Rankings!$B$2:$H$883,7,FALSE)),"-",VLOOKUP(A64,Rankings!$B$2:$H$883,7,FALSE)) -> 0
A65: Fernando Tatis | B65: SS | C65: =((G65*'Points System'!$B$16)+(H65*'Points System'!$B$17)+(I65*'Points System'!$B$15)+(J65*'Points System'!$B$2)+(K65*'Points System'!$B$3)+(L65*'Points System'!$B$4)+(M65*'Points System'!$B$5)+(N65*'Points System'!$B$6)+(O65*'Points System'!$B$7)+(P65*'Points System'!$B$8)+(Q65*'Points System'!$B$9)+(R65*'Points System'!$B$10)+(S65*'Points System'!$B$11)+(T65*'Points System'!$B$13)+(U65*'Points System'!$B$12)+(X65*'Points System'!$B$14))*((100-Settings!$B$37)/100) -> 134.16 | D65: 0.6056884876 | E65: 2.662961493 | F65: =VLOOKUP(A65,'Projections - Hitters'!$A$2:$X$199990,2,FALSE) -> 50.38 | G65: =VLOOKUP(A65,'Projections - Hitters'!$A$2:$X$199990,3,FALSE) -> 221.5 | H65: =VLOOKUP(A65,'Projections - Hitters'!$A$2:$X$199990,4,FALSE) -> 200.75 | I65: =VLOOKUP(A65,'Projections - Hitters'!$A$2:$X$199990,5,FALSE) -> 55.75 | J65: =VLOOKUP(A65,'Projections - Hitters'!$A$2:$X$199990,6,FALSE) -> 33.67 | K65: =VLOOKUP(A65,'Projections - Hitters'!$A$2:$X$199990,7,FALSE) -> 9.08 | L65: =VLOOKUP(A65,'Projections - Hitters'!$A$2:$X$199990,8,FALSE) -> 2.5 | M65: =VLOOKUP(A65,'Projections - Hitters'!$A$2:$X$199990,9,FALSE) -> 10.33 | N65: =VLOOKUP(A65,'Projections - Hitters'!$A$2:$X$199990,10,FALSE) -> 27.83 | O65: =VLOOKUP(A65,'Projections - Hitters'!$A$2:$X$199990,11,FALSE) -> 33.08 | P65: =VLOOKUP(A65,'Projections - Hitters'!$A$2:$X$199990,12,FALSE) -> 18.25 | Q65: =VLOOKUP(A65,'Projections - Hitters'!$A$2:$X$199990,13,FALSE) -> 62.18 | R65: =VLOOKUP(A65,'Projections - Hitters'!$A$2:$X$199990,14,FALSE) -> 7.83 | S65: =VLOOKUP(A65,'Projections - Hitters'!$A$2:$X$199990,15,FALSE) -> 2.73 | T65: =VLOOKUP(A65,'Projections - Hitters'!$A$2:$X$199990,16,FALSE) -> 1 | U65: =VLOOKUP(A65,'Projections - Hitters'!$A$2:$X$199990,17,FALSE) -> 2.6 | V65: =VLOOKUP(A65,'Projections - Hitters'!$A$2:$X$199990,18,FALSE) -> 0.278 | W65: =VLOOKUP(A65,'Projections - Hitters'!$A$2:$X$199990,19,FALSE) -> 3.41 | X65: =VLOOKUP(A65,'Projections - Hitters'!$A$2:$X$199990,20,FALSE) -> 100.65 | Y65: =VLOOKUP(A65,'Projections - Hitters'!$A$2:$X$199990,21,FALSE) -> 0.344 | Z65: =VLOOKUP(A65,'Projections - Hitters'!$A$2:$X$199990,22,FALSE) -> 0.501 | AA65: =VLOOKUP(A65,'Projections - Hitters'!$A$2:$X$199990,23,FALSE) -> 0.85 | AB65: NL | AC65: 665487 | AD65: SS | AE65: =IF(ISNA(VLOOKUP(A65,Rankings!$B$2:$H$883,7,FALSE)),"-",VLOOKUP(A65,Rankings!$B$2:$H$883,7,FALSE)) -> 0
A66: Michael Conforto | B66: OF | C66: =((G66*'Points System'!$B$16)+(H66*'Points System'!$B$17)+(I66*'Points System'!$B$15)+(J66*'Points System'!$B$2)+(K66*'Points System'!$B$3)+(L66*'Points System'!$B$4)+(M66*'Points System'!$B$5)+(N66*'Points System'!$B$6)+(O66*'Points System'!$B$7)+(P66*'Points System'!$B$8)+(Q66*'Points System'!$B$9)+(R66*'Points System'!$B$10)+(S66*'Points System'!$B$11)+(T66*'Points System'!$B$13)+(U66*'Points System'!$B$12)+(X66*'Points System'!$B$14))*((100-Settings!$B$37)/100) -> 134.1 | D66: =C66/G66 -> 0.6229965157 | E66: =C66/F66 -> 2.616585366 | F66: =VLOOKUP(A66,'Projections - Hitters'!$A$2:$X$199990,2,FALSE) -> 51.25 | G66: =VLOOKUP(A66,'Projections - Hitters'!$A$2:$X$199990,3,FALSE) -> 215.25 | H66: =VLOOKUP(A66,'Projections - Hitters'!$A$2:$X$199990,4,FALSE) -> 184.67 | I66: =VLOOKUP(A66,'Projections - Hitters'!$A$2:$X$199990,5,FALSE) -> 47.08 | J66: =VLOOKUP(A66,'Projections - Hitters'!$A$2:$X$199990,6,FALSE) -> 26.08 | K66: =VLOOKUP(A66,'Projections - Hitters'!$A$2:$X$199990,7,FALSE) -> 9.5 | L66: =VLOOKUP(A66,'Projections - Hitters'!$A$2:$X$199990,8,FALSE) -> 0.25 | M66: =VLOOKUP(A66,'Projections - Hitters'!$A$2:$X$199990,9,FALSE) -> 11.17 | N66: =VLOOKUP(A66,'Projections - Hitters'!$A$2:$X$199990,10,FALSE) -> 31.83 | O66: =VLOOKUP(A66,'Projections - Hitters'!$A$2:$X$199990,11,FALSE) -> 29.83 | P66: =VLOOKUP(A66,'Projections - Hitters'!$A$2:$X$199990,12,FALSE) -> 27.5 | Q66: =VLOOKUP(A66,'Projections - Hitters'!$A$2:$X$199990,13,FALSE) -> 52 | R66: =VLOOKUP(A66,'Projections - Hitters'!$A$2:$X$199990,14,FALSE) -> 1.67 | S66: =VLOOKUP(A66,'Projections - Hitters'!$A$2:$X$199990,15,FALSE) -> 0.91 | T66: =VLOOKUP(A66,'Projections - Hitters'!$A$2:$X$199990,16,FALSE) -> 1 | U66: =VLOOKUP(A66,'Projections - Hitters'!$A$2:$X$199990,17,FALSE) -> 3 | V66: =VLOOKUP(A66,'Projections - Hitters'!$A$2:$X$199990,18,FALSE) -> 0.255 | W66: =VLOOKUP(A66,'Projections - Hitters'!$A$2:$X$199990,19,FALSE) -> 1.89 | X66: =VLOOKUP(A66,'Projections - Hitters'!$A$2:$X$199990,20,FALSE) -> 90.51 | Y66: =VLOOKUP(A66,'Projections - Hitters'!$A$2:$X$199990,21,FALSE) -> 0.359 | Z66: =VLOOKUP(A66,'Projections - Hitters'!$A$2:$X$199990,22,FALSE) -> 0.49 | AA66: =VLOOKUP(A66,'Projections - Hitters'!$A$2:$X$199990,23,FALSE) -> 0.85 | AB66: NL | AC66: 624424 | AD66: RF | AE66: =IF(ISNA(VLOOKUP(A66,Rankings!$B$2:$H$883,7,FALSE)),"-",VLOOKUP(A66,Rankings!$B$2:$H$883,7,FALSE)) -> 0
A67: Eloy Jimenez | B67: OF | C67: =((G67*'Points System'!$B$16)+(H67*'Points System'!$B$17)+(I67*'Points System'!$B$15)+(J67*'Points System'!$B$2)+(K67*'Points System'!$B$3)+(L67*'Points System'!$B$4)+(M67*'Points System'!$B$5)+(N67*'Points System'!$B$6)+(O67*'Points System'!$B$7)+(P67*'Points System'!$B$8)+(Q67*'Points System'!$B$9)+(R67*'Points System'!$B$10)+(S67*'Points System'!$B$11)+(T67*'Points System'!$B$13)+(U67*'Points System'!$B$12)+(X67*'Points System'!$B$14))*((100-Settings!$B$37)/100) -> 133.46 | D67: 0.6136091954 | E67: 2.597508758 | F67: =VLOOKUP(A67,'Projections - Hitters'!$A$2:$X$199990,2,FALSE) -> 51.38 | G67: =VLOOKUP(A67,'Projections - Hitters'!$A$2:$X$199990,3,FALSE) -> 217.5 | H67: =VLOOKUP(A67,'Projections - Hitters'!$A$2:$X$199990,4,FALSE) -> 198.08 | I67: =VLOOKUP(A67,'Projections - Hitters'!$A$2:$X$199990,5,FALSE) -> 55.08 | J67: =VLOOKUP(A67,'Projections - Hitters'!$A$2:$X$199990,6,FALSE) -> 32 | K67: =VLOOKUP(A67,'Projections - Hitters'!$A$2:$X$199990,7,FALSE) -> 9.58 | L67: =VLOOKUP(A67,'Projections - Hitters'!$A$2:$X$199990,8,FALSE) -> 1 | M67: =VLOOKUP(A67,'Projections - Hitters'!$A$2:$X$199990,9,FALSE) -> 12.33 | N67: =VLOOKUP(A67,'Projections - Hitters'!$A$2:$X$199990,10,FALSE) -> 34 | O67: =VLOOKUP(A67,'Projections - Hitters'!$A$2:$X$199990,11,FALSE) -> 29.17 | P67: =VLOOKUP(A67,'Projections - Hitters'!$A$2:$X$199990,12,FALSE) -> 13.75 | Q67: =VLOOKUP(A67,'Projections - Hitters'!$A$2:$X$199990,13,FALSE) -> 49.64 | R67: =VLOOKUP(A67,'Projections - Hitters'!$A$2:$X$199990,14,FALSE) -> 0.25 | S67: =VLOOKUP(A67,'Projections - Hitters'!$A$2:$X$199990,15,FALSE) -> 0 | T67: =VLOOKUP(A67,'Projections - Hitters'!$A$2:$X$199990,16,FALSE) -> 1 | U67: =VLOOKUP(A67,'Projections - Hitters'!$A$2:$X$199990,17,FALSE) -> 1.2 | V67: =VLOOKUP(A67,'Projections - Hitters'!$A$2:$X$199990,18,FALSE) -> 0.278 | W67: =VLOOKUP(A67,'Projections - Hitters'!$A$2:$X$199990,19,FALSE) -> 3.61 | X67: =VLOOKUP(A67,'Projections - Hitters'!$A$2:$X$199990,20,FALSE) -> 103.48 | Y67: =VLOOKUP(A67,'Projections - Hitters'!$A$2:$X$199990,21,FALSE) -> 0.327 | Z67: =VLOOKUP(A67,'Projections - Hitters'!$A$2:$X$199990,22,FALSE) -> 0.522 | AA67: =VLOOKUP(A67,'Projections - Hitters'!$A$2:$X$199990,23,FALSE) -> 0.85 | AB67: AL | AC67: 650391 | AD67: LF | AE67: =IF(ISNA(VLOOKUP(A67,Rankings!$B$2:$H$883,7,FALSE)),"-",VLOOKUP(A67,Rankings!$B$2:$H$883,7,FALSE)) -> 0
A68: Victor Robles | B68: OF | C68: =((G68*'Points System'!$B$16)+(H68*'Points System'!$B$17)+(I68*'Points System'!$B$15)+(J68*'Points System'!$B$2)+(K68*'Points System'!$B$3)+(L68*'Points System'!$B$4)+(M68*'Points System'!$B$5)+(N68*'Points System'!$B$6)+(O68*'Points System'!$B$7)+(P68*'Points System'!$B$8)+(Q68*'Points System'!$B$9)+(R68*'Points System'!$B$10)+(S68*'Points System'!$B$11)+(T68*'Points System'!$B$13)+(U68*'Points System'!$B$12)+(X68*'Points System'!$B$14))*((100-Settings!$B$37)/100) -> 132.71 | D68: 0.5738810811 | E68: 2.40199095 | F68: =VLOOKUP(A68,'Projections - Hitters'!$A$2:$X$199990,2,FALSE) -> 55.25 | G68: =VLOOKUP(A68,'Projections - Hitters'!$A$2:$X$199990,3,FALSE) -> 231.25 | H68: =VLOOKUP(A68,'Projections - Hitters'!$A$2:$X$199990,4,FALSE) -> 203.91 | I68: =VLOOKUP(A68,'Projections - Hitters'!$A$2:$X$199990,5,FALSE) -> 53.55 | J68: =VLOOKUP(A68,'Projections - Hitters'!$A$2:$X$199990,6,FALSE) -> 34.18 | K68: =VLOOKUP(A68,'Projections - Hitters'!$A$2:$X$199990,7,FALSE) -> 11.73 | L68: =VLOOKUP(A68,'Projections - Hitters'!$A$2:$X$199990,8,FALSE) -> 1.45 | M68: =VLOOKUP(A68,'Projections - Hitters'!$A$2:$X$199990,9,FALSE) -> 6.09 | N68: =VLOOKUP(A68,'Projections - Hitters'!$A$2:$X$199990,10,FALSE) -> 24.91 | O68: =VLOOKUP(A68,'Projections - Hitters'!$A$2:$X$199990,11,FALSE) -> 29.55 | P68: =VLOOKUP(A68,'Projections - Hitters'!$A$2:$X$199990,12,FALSE) -> 14.09 | Q68: =VLOOKUP(A68,'Projections - Hitters'!$A$2:$X$199990,13,FALSE) -> 48.45 | R68: =VLOOKUP(A68,'Projections - Hitters'!$A$2:$X$199990,14,FALSE) -> 10.73 | S68: =VLOOKUP(A68,'Projections - Hitters'!$A$2:$X$199990,15,FALSE) -> 3.7 | T68: =VLOOKUP(A68,'Projections - Hitters'!$A$2:$X$199990,16,FALSE) -> 1.5 | U68: =VLOOKUP(A68,'Projections - Hitters'!$A$2:$X$199990,17,FALSE) -> 7 | V68: =VLOOKUP(A68,'Projections - Hitters'!$A$2:$X$199990,18,FALSE) -> 0.263 | W68: =VLOOKUP(A68,'Projections - Hitters'!$A$2:$X$199990,19,FALSE) -> 3.44 | X68: =VLOOKUP(A68,'Projections - Hitters'!$A$2:$X$199990,20,FALSE) -> 86.35 | Y68: =VLOOKUP(A68,'Projections - Hitters'!$A$2:$X$199990,21,FALSE) -> 0.33 | Z68: =VLOOKUP(A68,'Projections - Hitters'!$A$2:$X$199990,22,FALSE) -> 0.423 | AA68: =VLOOKUP(A68,'Projections - Hitters'!$A$2:$X$199990,23,FALSE) -> 0.75 | AB68: NL | AC68: 645302 | AD68: CF | AE68: =IF(ISNA(VLOOKUP(A68,Rankings!$B$2:$H$883,7,FALSE)),"-",VLOOKUP(A68,Rankings!$B$2:$H$883,7,FALSE)) -> 0
A69: Joey Votto | B69: 1B | C69: =((G69*'Points System'!$B$16)+(H69*'Points System'!$B$17)+(I69*'Points System'!$B$15)+(J69*'Points System'!$B$2)+(K69*'Points System'!$B$3)+(L69*'Points System'!$B$4)+(M69*'Points System'!$B$5)+(N69*'Points System'!$B$6)+(O69*'Points System'!$B$7)+(P69*'Points System'!$B$8)+(Q69*'Points System'!$B$9)+(R69*'Points System'!$B$10)+(S69*'Points System'!$B$11)+(T69*'Points System'!$B$13)+(U69*'Points System'!$B$12)+(X69*'Points System'!$B$14))*((100-Settings!$B$37)/100) -> 132.27 | D69: 0.5875272065 | E69: 2.549537394 | F69: =VLOOKUP(A69,'Projections - Hitters'!$A$2:$X$199990,2,FALSE) -> 51.88 | G69: =VLOOKUP(A69,'Projections - Hitters'!$A$2:$X$199990,3,FALSE) -> 225.13 | H69: =VLOOKUP(A69,'Projections - Hitters'!$A$2:$X$199990,4,FALSE) -> 186.92 | I69: =VLOOKUP(A69,'Projections - Hitters'!$A$2:$X$199990,5,FALSE) -> 51.17 | J69: =VLOOKUP(A69,'Projections - Hitters'!$A$2:$X$199990,6,FALSE) -> 34 | K69: =VLOOKUP(A69,'Projections - Hitters'!$A$2:$X$199990,7,FALSE) -> 10.5 | L69: =VLOOKUP(A69,'Projections - Hitters'!$A$2:$X$199990,8,FALSE) -> 0.17 | M69: =VLOOKUP(A69,'Projections - Hitters'!$A$2:$X$199990,9,FALSE) -> 6.42 | N69: =VLOOKUP(A69,'Projections - Hitters'!$A$2:$X$199990,10,FALSE) -> 23.75 | O69: =VLOOKUP(A69,'Projections - Hitters'!$A$2:$X$199990,11,FALSE) -> 29.58 | P69: =VLOOKUP(A69,'Projections - Hitters'!$A$2:$X$199990,12,FALSE) -> 32.75 | Q69: =VLOOKUP(A69,'Projections - Hitters'!$A$2:$X$199990,13,FALSE) -> 40.36 | R69: =VLOOKUP(A69,'Projections - Hitters'!$A$2:$X$199990,14,FALSE) -> 1.08 | S69: =VLOOKUP(A69,'Projections - Hitters'!$A$2:$X$199990,15,FALSE) -> 0 | T69: =VLOOKUP(A69,'Projections - Hitters'!$A$2:$X$199990,16,FALSE) -> 1 | U69: =VLOOKUP(A69,'Projections - Hitters'!$A$2:$X$199990,17,FALSE) -> 2.2 | V69: =VLOOKUP(A69,'Projections - Hitters'!$A$2:$X$199990,18,FALSE) -> 0.274 | W69: =VLOOKUP(A69,'Projections - Hitters'!$A$2:$X$199990,19,FALSE) -> 1.23 | X69: =VLOOKUP(A69,'Projections - Hitters'!$A$2:$X$199990,20,FALSE) -> 81.19 | Y69: =VLOOKUP(A69,'Projections - Hitters'!$A$2:$X$199990,21,FALSE) -> 0.386 | Z69: =VLOOKUP(A69,'Projections - Hitters'!$A$2:$X$199990,22,FALSE) -> 0.434 | AA69: =VLOOKUP(A69,'Projections - Hitters'!$A$2:$X$199990,23,FALSE) -> 0.82 | AB69: NL | AC69: 458015 | AD69: 1B | AE69: =IF(ISNA(VLOOKUP(A69,Rankings!$B$2:$H$883,7,FALSE)),"-",VLOOKUP(A69,Rankings!$B$2:$H$883,7,FALSE)) -> 0
A70: Keston Hiura | B70: 2B | C70: =((G70*'Points System'!$B$16)+(H70*'Points System'!$B$17)+(I70*'Points System'!$B$15)+(J70*'Points System'!$B$2)+(K70*'Points System'!$B$3)+(L70*'Points System'!$B$4)+(M70*'Points System'!$B$5)+(N70*'Points System'!$B$6)+(O70*'Points System'!$B$7)+(P70*'Points System'!$B$8)+(Q70*'Points System'!$B$9)+(R70*'Points System'!$B$10)+(S70*'Points System'!$B$11)+(T70*'Points System'!$B$13)+(U70*'Points System'!$B$12)+(X70*'Points System'!$B$14))*((100-Settings!$B$37)/100) -> 132.14 | D70: 0.5757734205 | E70: 2.541153846 | F70: =VLOOKUP(A70,'Projections - Hitters'!$A$2:$X$199990,2,FALSE) -> 52 | G70: =VLOOKUP(A70,'Projections - Hitters'!$A$2:$X$199990,3,FALSE) -> 229.5 | H70: =VLOOKUP(A70,'Projections - Hitters'!$A$2:$X$199990,4,FALSE) -> 203.67 | I70: =VLOOKUP(A70,'Projections - Hitters'!$A$2:$X$199990,5,FALSE) -> 56.33 | J70: =VLOOKUP(A70,'Projections - Hitters'!$A$2:$X$199990,6,FALSE) -> 32.25 | K70: =VLOOKUP(A70,'Projections - Hitters'!$A$2:$X$199990,7,FALSE) -> 12.42 | L70: =VLOOKUP(A70,'Projections - Hitters'!$A$2:$X$199990,8,FALSE) -> 1.25 | M70: =VLOOKUP(A70,'Projections - Hitters'!$A$2:$X$199990,9,FALSE) -> 10.33 | N70: =VLOOKUP(A70,'Projections - Hitters'!$A$2:$X$199990,10,FALSE) -> 31.83 | O70: =VLOOKUP(A70,'Projections - Hitters'!$A$2:$X$199990,11,FALSE) -> 30.67 | P70: =VLOOKUP(A70,'Projections - Hitters'!$A$2:$X$199990,12,FALSE) -> 15.67 | Q70: =VLOOKUP(A70,'Projections - Hitters'!$A$2:$X$199990,13,FALSE) -> 61.09 | R70: =VLOOKUP(A70,'Projections - Hitters'!$A$2:$X$199990,14,FALSE) -> 4.75 | S70: =VLOOKUP(A70,'Projections - Hitters'!$A$2:$X$199990,15,FALSE) -> 2 | T70: =VLOOKUP(A70,'Projections - Hitters'!$A$2:$X$199990,16,FALSE) -> 1 | U70: =VLOOKUP(A70,'Projections - Hitters'!$A$2:$X$199990,17,FALSE) -> 4.4 | V70: =VLOOKUP(A70,'Projections - Hitters'!$A$2:$X$199990,18,FALSE) -> 0.277 | W70: =VLOOKUP(A70,'Projections - Hitters'!$A$2:$X$199990,19,FALSE) -> 3.9 | X70: =VLOOKUP(A70,'Projections - Hitters'!$A$2:$X$199990,20,FALSE) -> 102.16 | Y70: =VLOOKUP(A70,'Projections - Hitters'!$A$2:$X$199990,21,FALSE) -> 0.34 | Z70: =VLOOKUP(A70,'Projections - Hitters'!$A$2:$X$199990,22,FALSE) -> 0.502 | AA70: =VLOOKUP(A70,'Projections - Hitters'!$A$2:$X$199990,23,FALSE) -> 0.84 | AB70: NL | AC70: 669374 | AD70: 2B | AE70: =IF(ISNA(VLOOKUP(A70,Rankings!$B$2:$H$883,7,FALSE)),"-",VLOOKUP(A70,Rankings!$B$2:$H$883,7,FALSE)) -> 0
A71: Didi Gregorius | B71: SS | C71: =((G71*'Points System'!$B$16)+(H71*'Points System'!$B$17)+(I71*'Points System'!$B$15)+(J71*'Points System'!$B$2)+(K71*'Points System'!$B$3)+(L71*'Points System'!$B$4)+(M71*'Points System'!$B$5)+(N71*'Points System'!$B$6)+(O71*'Points System'!$B$7)+(P71*'Points System'!$B$8)+(Q71*'Points System'!$B$9)+(R71*'Points System'!$B$10)+(S71*'Points System'!$B$11)+(T71*'Points System'!$B$13)+(U71*'Points System'!$B$12)+(X71*'Points System'!$B$14))*((100-Settings!$B$37)/100) -> 131.91 | D71: 0.6376160093 | E71: 2.755012531 | F71: =VLOOKUP(A71,'Projections - Hitters'!$A$2:$X$199990,2,FALSE) -> 47.88 | G71: =VLOOKUP(A71,'Projections - Hitters'!$A$2:$X$199990,3,FALSE) -> 206.88 | H71: =VLOOKUP(A71,'Projections - Hitters'!$A$2:$X$199990,4,FALSE) -> 189.33 | I71: =VLOOKUP(A71,'Projections - Hitters'!$A$2:$X$199990,5,FALSE) -> 49.17 | J71: =VLOOKUP(A71,'Projections - Hitters'!$A$2:$X$199990,6,FALSE) -> 30.5 | K71: =VLOOKUP(A71,'Projections - Hitters'!$A$2:$X$199990,7,FALSE) -> 8.92 | L71: =VLOOKUP(A71,'Projections - Hitters'!$A$2:$X$199990,8,FALSE) -> 1.17 | M71: =VLOOKUP(A71,'Projections - Hitters'!$A$2:$X$199990,9,FALSE) -> 8.5 | N71: =VLOOKUP(A71,'Projections - Hitters'!$A$2:$X$199990,10,FALSE) -> 29.92 | O71: =VLOOKUP(A71,'Projections - Hitters'!$A$2:$X$199990,11,FALSE) -> 26.75 | P71: =VLOOKUP(A71,'Projections - Hitters'!$A$2:$X$199990,12,FALSE) -> 12.25 | Q71: =VLOOKUP(A71,'Projections - Hitters'!$A$2:$X$199990,13,FALSE) -> 29.09 | R71: =VLOOKUP(A71,'Projections - Hitters'!$A$2:$X$199990,14,FALSE) -> 1.92 | S71: =VLOOKUP(A71,'Projections - Hitters'!$A$2:$X$199990,15,FALSE) -> 0.91 | T71: =VLOOKUP(A71,'Projections - Hitters'!$A$2:$X$199990,16,FALSE) -> 1.5 | U71: =VLOOKUP(A71,'Projections - Hitters'!$A$2:$X$199990,17,FALSE) -> 1.8 | V71: =VLOOKUP(A71,'Projections - Hitters'!$A$2:$X$199990,18,FALSE) -> 0.26 | W71: =VLOOKUP(A71,'Projections - Hitters'!$A$2:$X$199990,19,FALSE) -> 2.37 | X71: =VLOOKUP(A71,'Projections - Hitters'!$A$2:$X$199990,20,FALSE) -> 85.85 | Y71: =VLOOKUP(A71,'Projections - Hitters'!$A$2:$X$199990,21,FALSE) -> 0.309 | Z71: =VLOOKUP(A71,'Projections - Hitters'!$A$2:$X$199990,22,FALSE) -> 0.453 | AA71: =VLOOKUP(A71,'Projections - Hitters'!$A$2:$X$199990,23,FALSE) -> 0.76 | AB71: NL | AC71: 544369 | AD71: SS | AE71: =IF(ISNA(VLOOKUP(A71,Rankings!$B$2:$H$883,7,FALSE)),"-",VLOOKUP(A71,Rankings!$B$2:$H$883,7,FALSE)) -> 0
A72: Corey Seager | B72: SS | C72: =((G72*'Points System'!$B$16)+(H72*'Points System'!$B$17)+(I72*'Points System'!$B$15)+(J72*'Points System'!$B$2)+(K72*'Points System'!$B$3)+(L72*'Points System'!$B$4)+(M72*'Points System'!$B$5)+(N72*'Points System'!$B$6)+(O72*'Points System'!$B$7)+(P72*'Points System'!$B$8)+(Q72*'Points System'!$B$9)+(R72*'Points System'!$B$10)+(S72*'Points System'!$B$11)+(T72*'Points System'!$B$13)+(U72*'Points System'!$B$12)+(X72*'Points System'!$B$14))*((100-Settings!$B$37)/100) -> 131.58 | D72: 0.6306859033 | E72: 2.658181818 | F72: =VLOOKUP(A72,'Projections - Hitters'!$A$2:$X$199990,2,FALSE) -> 49.5 | G72: =VLOOKUP(A72,'Projections - Hitters'!$A$2:$X$199990,3,FALSE) -> 208.63 | H72: =VLOOKUP(A72,'Projections - Hitters'!$A$2:$X$199990,4,FALSE) -> 186.17 | I72: =VLOOKUP(A72,'Projections - Hitters'!$A$2:$X$199990,5,FALSE) -> 51.67 | J72: =VLOOKUP(A72,'Projections - Hitters'!$A$2:$X$199990,6,FALSE) -> 30.08 | K72: =VLOOKUP(A72,'Projections - Hitters'!$A$2:$X$199990,7,FALSE) -> 13 | L72: =VLOOKUP(A72,'Projections - Hitters'!$A$2:$X$199990,8,FALSE) -> 0.67 | M72: =VLOOKUP(A72,'Projections - Hitters'!$A$2:$X$199990,9,FALSE) -> 7.75 | N72: =VLOOKUP(A72,'Projections - Hitters'!$A$2:$X$199990,10,FALSE) -> 30.33 | O72: =VLOOKUP(A72,'Projections - Hitters'!$A$2:$X$199990,11,FALSE) -> 29 | P72: =VLOOKUP(A72,'Projections - Hitters'!$A$2:$X$199990,12,FALSE) -> 18.08 | Q72: =VLOOKUP(A72,'Projections - Hitters'!$A$2:$X$199990,13,FALSE) -> 38.82 | R72: =VLOOKUP(A72,'Projections - Hitters'!$A$2:$X$199990,14,FALSE) -> 0.75 | S72: =VLOOKUP(A72,'Projections - Hitters'!$A$2:$X$199990,15,FALSE) -> 0 | T72: =VLOOKUP(A72,'Projections - Hitters'!$A$2:$X$199990,16,FALSE) -> 1 | U72: =VLOOKUP(A72,'Projections - Hitters'!$A$2:$X$199990,17,FALSE) -> 1.4 | V72: =VLOOKUP(A72,'Projections - Hitters'!$A$2:$X$199990,18,FALSE) -> 0.278 | W72: =VLOOKUP(A72,'Projections - Hitters'!$A$2:$X$199990,19,FALSE) -> 2.15 | X72: =VLOOKUP(A72,'Projections - Hitters'!$A$2:$X$199990,20,FALSE) -> 89.09 | Y72: =VLOOKUP(A72,'Projections - Hitters'!$A$2:$X$199990,21,FALSE) -> 0.344 | Z72: =VLOOKUP(A72,'Projections - Hitters'!$A$2:$X$199990,22,FALSE) -> 0.479 | AA72: =VLOOKUP(A72,'Projections - Hitters'!$A$2:$X$199990,23,FALSE) -> 0.82 | AB72: NL | AC72: 608369 | AD72: SS | AE72: =IF(ISNA(VLOOKUP(A72,Rankings!$B$2:$H$883,7,FALSE)),"-",VLOOKUP(A72,Rankings!$B$2:$H$883,7,FALSE)) -> 0
A73: Andrew McCutchen | B73: OF | C73: =((G73*'Points System'!$B$16)+(H73*'Points System'!$B$17)+(I73*'Points System'!$B$15)+(J73*'Points System'!$B$2)+(K73*'Points System'!$B$3)+(L73*'Points System'!$B$4)+(M73*'Points System'!$B$5)+(N73*'Points System'!$B$6)+(O73*'Points System'!$B$7)+(P73*'Points System'!$B$8)+(Q73*'Points System'!$B$9)+(R73*'Points System'!$B$10)+(S73*'Points System'!$B$11)+(T73*'Points System'!$B$13)+(U73*'Points System'!$B$12)+(X73*'Points System'!$B$14))*((100-Settings!$B$37)/100) -> 131.18 | D73: 0.6231828979 | E73: 2.683715221 | F73: =VLOOKUP(A73,'Projections - Hitters'!$A$2:$X$199990,2,FALSE) -> 48.88 | G73: =VLOOKUP(A73,'Projections - Hitters'!$A$2:$X$199990,3,FALSE) -> 210.5 | H73: =VLOOKUP(A73,'Projections - Hitters'!$A$2:$X$199990,4,FALSE) -> 182.92 | I73: =VLOOKUP(A73,'Projections - Hitters'!$A$2:$X$199990,5,FALSE) -> 47.5 | J73: =VLOOKUP(A73,'Projections - Hitters'!$A$2:$X$199990,6,FALSE) -> 28.42 | K73: =VLOOKUP(A73,'Projections - Hitters'!$A$2:$X$199990,7,FALSE) -> 9.17 | L73: =VLOOKUP(A73,'Projections - Hitters'!$A$2:$X$199990,8,FALSE) -> 0.92 | M73: =VLOOKUP(A73,'Projections - Hitters'!$A$2:$X$199990,9,FALSE) -> 8.83 | N73: =VLOOKUP(A73,'Projections - Hitters'!$A$2:$X$199990,10,FALSE) -> 25.33 | O73: =VLOOKUP(A73,'Projections - Hitters'!$A$2:$X$199990,11,FALSE) -> 31.67 | P73: =VLOOKUP(A73,'Projections - Hitters'!$A$2:$X$199990,12,FALSE) -> 28.67 | Q73: =VLOOKUP(A73,'Projections - Hitters'!$A$2:$X$199990,13,FALSE) -> 46.45 | R73: =VLOOKUP(A73,'Projections - Hitters'!$A$2:$X$199990,14,FALSE) -> 2.75 | S73: =VLOOKUP(A73,'Projections - Hitters'!$A$2:$X$199990,15,FALSE) -> 1.18 | T73: =VLOOKUP(A73,'Projections - Hitters'!$A$2:$X$199990,16,FALSE) -> 1 | U73: =VLOOKUP(A73,'Projections - Hitters'!$A$2:$X$199990,17,FALSE) -> 1.8 | V73: =VLOOKUP(A73,'Projections - Hitters'!$A$2:$X$199990,18,FALSE) -> 0.26 | W73: =VLOOKUP(A73,'Projections - Hitters'!$A$2:$X$199990,19,FALSE) -> 1.62 | X73: =VLOOKUP(A73,'Projections - Hitters'!$A$2:$X$199990,20,FALSE) -> 84.84 | Y73: =VLOOKUP(A73,'Projections - Hitters'!$A$2:$X$199990,21,FALSE) -> 0.364 | Z73: =VLOOKUP(A73,'Projections - Hitters'!$A$2:$X$199990,22,FALSE) -> 0.464 | AA73: =VLOOKUP(A73,'Projections - Hitters'!$A$2:$X$199990,23,FALSE) -> 0.83 | AB73: NL | AC73: 457705 | AD73: LF | AE73: =IF(ISNA(VLOOKUP(A73,Rankings!$B$2:$H$883,7,FALSE)),"-",VLOOKUP(A73,Rankings!$B$2:$H$883,7,FALSE)) -> 0
A74: Elvis Andrus | B74: SS | C74: =((G74*'Points System'!$B$16)+(H74*'Points System'!$B$17)+(I74*'Points System'!$B$15)+(J74*'Points System'!$B$2)+(K74*'Points System'!$B$3)+(L74*'Points System'!$B$4)+(M74*'Points System'!$B$5)+(N74*'Points System'!$B$6)+(O74*'Points System'!$B$7)+(P74*'Points System'!$B$8)+(Q74*'Points System'!$B$9)+(R74*'Points System'!$B$10)+(S74*'Points System'!$B$11)+(T74*'Points System'!$B$13)+(U74*'Points System'!$B$12)+(X74*'Points System'!$B$14))*((100-Settings!$B$37)/100) -> 130.68 | D74: 0.5608583691 | E74: 2.477345972 | F74: =VLOOKUP(A74,'Projections - Hitters'!$A$2:$X$199990,2,FALSE) -> 52.75 | G74: =VLOOKUP(A74,'Projections - Hitters'!$A$2:$X$199990,3,FALSE) -> 233 | H74: =VLOOKUP(A74,'Projections - Hitters'!$A$2:$X$199990,4,FALSE) -> 212.5 | I74: =VLOOKUP(A74,'Projections - Hitters'!$A$2:$X$199990,5,FALSE) -> 56.75 | J74: =VLOOKUP(A74,'Projections - Hitters'!$A$2:$X$199990,6,FALSE) -> 39.5 | K74: =VLOOKUP(A74,'Projections - Hitters'!$A$2:$X$199990,7,FALSE) -> 11.25 | L74: =VLOOKUP(A74,'Projections - Hitters'!$A$2:$X$199990,8,FALSE) -> 1.08 | M74: =VLOOKUP(A74,'Projections - Hitters'!$A$2:$X$199990,9,FALSE) -> 4.83 | N74: =VLOOKUP(A74,'Projections - Hitters'!$A$2:$X$199990,10,FALSE) -> 23.67 | O74: =VLOOKUP(A74,'Projections - Hitters'!$A$2:$X$199990,11,FALSE) -> 28 | P74: =VLOOKUP(A74,'Projections - Hitters'!$A$2:$X$199990,12,FALSE) -> 13.75 | Q74: =VLOOKUP(A74,'Projections - Hitters'!$A$2:$X$199990,13,FALSE) -> 35.45 | R74: =VLOOKUP(A74,'Projections - Hitters'!$A$2:$X$199990,14,FALSE) -> 8 | S74: =VLOOKUP(A74,'Projections - Hitters'!$A$2:$X$199990,15,FALSE) -> 2.55 | T74: =VLOOKUP(A74,'Projections - Hitters'!$A$2:$X$199990,16,FALSE) -> 1.5 | U74: =VLOOKUP(A74,'Projections - Hitters'!$A$2:$X$199990,17,FALSE) -> 1.2 | V74: =VLOOKUP(A74,'Projections - Hitters'!$A$2:$X$199990,18,FALSE) -> 0.267 | W74: =VLOOKUP(A74,'Projections - Hitters'!$A$2:$X$199990,19,FALSE) -> 2.58 | X74: =VLOOKUP(A74,'Projections - Hitters'!$A$2:$X$199990,20,FALSE) -> 84.56 | Y74: =VLOOKUP(A74,'Projections - Hitters'!$A$2:$X$199990,21,FALSE) -> 0.313 | Z74: =VLOOKUP(A74,'Projections - Hitters'!$A$2:$X$199990,22,FALSE) -> 0.398 | AA74: =VLOOKUP(A74,'Projections - Hitters'!$A$2:$X$199990,23,FALSE) -> 0.71 | AB74: AL | AC74: 462101 | AD74: SS | AE74: =IF(ISNA(VLOOKUP(A74,Rankings!$B$2:$H$883,7,FALSE)),"-",VLOOKUP(A74,Rankings!$B$2:$H$883,7,FALSE)) -> 0
A75: Tommy Pham | B75: OF | C75: =((G75*'Points System'!$B$16)+(H75*'Points System'!$B$17)+(I75*'Points System'!$B$15)+(J75*'Points System'!$B$2)+(K75*'Points System'!$B$3)+(L75*'Points System'!$B$4)+(M75*'Points System'!$B$5)+(N75*'Points System'!$B$6)+(O75*'Points System'!$B$7)+(P75*'Points System'!$B$8)+(Q75*'Points System'!$B$9)+(R75*'Points System'!$B$10)+(S75*'Points System'!$B$11)+(T75*'Points System'!$B$13)+(U75*'Points System'!$B$12)+(X75*'Points System'!$B$14))*((100-Settings!$B$37)/100) -> 130.65 | D75: 0.6210191083 | E75: 2.693814433 | F75: =VLOOKUP(A75,'Projections - Hitters'!$A$2:$X$199990,2,FALSE) -> 48.5 | G75: =VLOOKUP(A75,'Projections - Hitters'!$A$2:$X$199990,3,FALSE) -> 210.38 | H75: =VLOOKUP(A75,'Projections - Hitters'!$A$2:$X$199990,4,FALSE) -> 178.58 | I75: =VLOOKUP(A75,'Projections - Hitters'!$A$2:$X$199990,5,FALSE) -> 49 | J75: =VLOOKUP(A75,'Projections - Hitters'!$A$2:$X$199990,6,FALSE) -> 31.5 | K75: =VLOOKUP(A75,'Projections - Hitters'!$A$2:$X$199990,7,FALSE) -> 8.75 | L75: =VLOOKUP(A75,'Projections - Hitters'!$A$2:$X$199990,8,FALSE) -> 1.17 | M75: =VLOOKUP(A75,'Projections - Hitters'!$A$2:$X$199990,9,FALSE) -> 7.42 | N75: =VLOOKUP(A75,'Projections - Hitters'!$A$2:$X$199990,10,FALSE) -> 23.5 | O75: =VLOOKUP(A75,'Projections - Hitters'!$A$2:$X$199990,11,FALSE) -> 29.25 | P75: =VLOOKUP(A75,'Projections - Hitters'!$A$2:$X$199990,12,FALSE) -> 24.92 | Q75: =VLOOKUP(A75,'Projections - Hitters'!$A$2:$X$199990,13,FALSE) -> 43.55 | R75: =VLOOKUP(A75,'Projections - Hitters'!$A$2:$X$199990,14,FALSE) -> 6.58 | S75: =VLOOKUP(A75,'Projections - Hitters'!$A$2:$X$199990,15,FALSE) -> 1.82 | T75: =VLOOKUP(A75,'Projections - Hitters'!$A$2:$X$199990,16,FALSE) -> 1 | U75: =VLOOKUP(A75,'Projections - Hitters'!$A$2:$X$199990,17,FALSE) -> 2 | V75: =VLOOKUP(A75,'Projections - Hitters'!$A$2:$X$199990,18,FALSE) -> 0.274 | W75: =VLOOKUP(A75,'Projections - Hitters'!$A$2:$X$199990,19,FALSE) -> 1.75 | X75: =VLOOKUP(A75,'Projections - Hitters'!$A$2:$X$199990,20,FALSE) -> 82.19 | Y75: =VLOOKUP(A75,'Projections - Hitters'!$A$2:$X$199990,21,FALSE) -> 0.368 | Z75: =VLOOKUP(A75,'Projections - Hitters'!$A$2:$X$199990,22,FALSE) -> 0.46 | AA75: =VLOOKUP(A75,'Projections - Hitters'!$A$2:$X$199990,23,FALSE) -> 0.83 | AB75: NL | AC75: 502054 | AD75: LF | AE75: =IF(ISNA(VLOOKUP(A75,Rankings!$B$2:$H$883,7,FALSE)),"-",VLOOKUP(A75,Rankings!$B$2:$H$883,7,FALSE)) -> 0
A76: Adam Eaton | B76: OF | C76: =((G76*'Points System'!$B$16)+(H76*'Points System'!$B$17)+(I76*'Points System'!$B$15)+(J76*'Points System'!$B$2)+(K76*'Points System'!$B$3)+(L76*'Points System'!$B$4)+(M76*'Points System'!$B$5)+(N76*'Points System'!$B$6)+(O76*'Points System'!$B$7)+(P76*'Points System'!$B$8)+(Q76*'Points System'!$B$9)+(R76*'Points System'!$B$10)+(S76*'Points System'!$B$11)+(T76*'Points System'!$B$13)+(U76*'Points System'!$B$12)+(X76*'Points System'!$B$14))*((100-Settings!$B$37)/100) -> 130.19 | D76: 0.5948008041 | E76: 2.584160381 | F76: =VLOOKUP(A76,'Projections - Hitters'!$A$2:$X$199990,2,FALSE) -> 50.38 | G76: =VLOOKUP(A76,'Projections - Hitters'!$A$2:$X$199990,3,FALSE) -> 218.88 | H76: =VLOOKUP(A76,'Projections - Hitters'!$A$2:$X$199990,4,FALSE) -> 191.42 | I76: =VLOOKUP(A76,'Projections - Hitters'!$A$2:$X$199990,5,FALSE) -> 53.75 | J76: =VLOOKUP(A76,'Projections - Hitters'!$A$2:$X$199990,6,FALSE) -> 37.67 | K76: =VLOOKUP(A76,'Projections - Hitters'!$A$2:$X$199990,7,FALSE) -> 9.58 | L76: =VLOOKUP(A76,'Projections - Hitters'!$A$2:$X$199990,8,FALSE) -> 1.92 | M76: =VLOOKUP(A76,'Projections - Hitters'!$A$2:$X$199990,9,FALSE) -> 4.5 | N76: =VLOOKUP(A76,'Projections - Hitters'!$A$2:$X$199990,10,FALSE) -> 20.67 | O76: =VLOOKUP(A76,'Projections - Hitters'!$A$2:$X$199990,11,FALSE) -> 31.58 | P76: =VLOOKUP(A76,'Projections - Hitters'!$A$2:$X$199990,12,FALSE) -> 21.17 | Q76: =VLOOKUP(A76,'Projections - Hitters'!$A$2:$X$199990,13,FALSE) -> 37.36 | R76: =VLOOKUP(A76,'Projections - Hitters'!$A$2:$X$199990,14,FALSE) -> 4.67 | S76: =VLOOKUP(A76,'Projections - Hitters'!$A$2:$X$199990,15,FALSE) -> 1 | T76: =VLOOKUP(A76,'Projections - Hitters'!$A$2:$X$199990,16,FALSE) -> 1 | U76: =VLOOKUP(A76,'Projections - Hitters'!$A$2:$X$199990,17,FALSE) -> 4.2 | V76: =VLOOKUP(A76,'Projections - Hitters'!$A$2:$X$199990,18,FALSE) -> 0.281 | W76: =VLOOKUP(A76,'Projections - Hitters'!$A$2:$X$199990,19,FALSE) -> 1.76 | X76: =VLOOKUP(A76,'Projections - Hitters'!$A$2:$X$199990,20,FALSE) -> 80.59 | Y76: =VLOOKUP(A76,'Projections - Hitters'!$A$2:$X$199990,21,FALSE) -> 0.363 | Z76: =VLOOKUP(A76,'Projections - Hitters'!$A$2:$X$199990,22,FALSE) -> 0.421 | AA76: =VLOOKUP(A76,'Projections - Hitters'!$A$2:$X$199990,23,FALSE) -> 0.78 | AB76: NL | AC76: 594809 | AD76: RF | AE76: =IF(ISNA(VLOOKUP(A76,Rankings!$B$2:$H$883,7,FALSE)),"-",VLOOKUP(A76,Rankings!$B$2:$H$883,7,FALSE)) -> 0
A77: J.T. Realmuto | B77: C | C77: =((G77*'Points System'!$B$16)+(H77*'Points System'!$B$17)+(I77*'Points System'!$B$15)+(J77*'Points System'!$B$2)+(K77*'Points System'!$B$3)+(L77*'Points System'!$B$4)+(M77*'Points System'!$B$5)+(N77*'Points System'!$B$6)+(O77*'Points System'!$B$7)+(P77*'Points System'!$B$8)+(Q77*'Points System'!$B$9)+(R77*'Points System'!$B$10)+(S77*'Points System'!$B$11)+(T77*'Points System'!$B$13)+(U77*'Points System'!$B$12)+(X77*'Points System'!$B$14))*((100-Settings!$B$37)/100) -> 130.12 | D77: 0.6240767386 | E77: 2.582770941 | F77: =VLOOKUP(A77,'Projections - Hitters'!$A$2:$X$199990,2,FALSE) -> 50.38 | G77: =VLOOKUP(A77,'Projections - Hitters'!$A$2:$X$199990,3,FALSE) -> 208.5 | H77: =VLOOKUP(A77,'Projections - Hitters'!$A$2:$X$199990,4,FALSE) -> 187.67 | I77: =VLOOKUP(A77,'Projections - Hitters'!$A$2:$X$199990,5,FALSE) -> 51.42 | J77: =VLOOKUP(A77,'Projections - Hitters'!$A$2:$X$199990,6,FALSE) -> 30.17 | K77: =VLOOKUP(A77,'Projections - Hitters'!$A$2:$X$199990,7,FALSE) -> 11.25 | L77: =VLOOKUP(A77,'Projections - Hitters'!$A$2:$X$199990,8,FALSE) -> 1 | M77: =VLOOKUP(A77,'Projections - Hitters'!$A$2:$X$199990,9,FALSE) -> 8.75 | N77: =VLOOKUP(A77,'Projections - Hitters'!$A$2:$X$199990,10,FALSE) -> 28.92 | O77: =VLOOKUP(A77,'Projections - Hitters'!$A$2:$X$199990,11,FALSE) -> 29.67 | P77: =VLOOKUP(A77,'Projections - Hitters'!$A$2:$X$199990,12,FALSE) -> 14.5 | Q77: =VLOOKUP(A77,'Projections - Hitters'!$A$2:$X$199990,13,FALSE) -> 42.55 | R77: =VLOOKUP(A77,'Projections - Hitters'!$A$2:$X$199990,14,FALSE) -> 2.58 | S77: =VLOOKUP(A77,'Projections - Hitters'!$A$2:$X$199990,15,FALSE) -> 0.55 | T77: =VLOOKUP(A77,'Projections - Hitters'!$A$2:$X$199990,16,FALSE) -> 1.5 | U77: =VLOOKUP(A77,'Projections - Hitters'!$A$2:$X$199990,17,FALSE) -> 2.8 | V77: =VLOOKUP(A77,'Projections - Hitters'!$A$2:$X$199990,18,FALSE) -> 0.274 | W77: =VLOOKUP(A77,'Projections - Hitters'!$A$2:$X$199990,19,FALSE) -> 2.93 | X77: =VLOOKUP(A77,'Projections - Hitters'!$A$2:$X$199990,20,FALSE) -> 90.67 | Y77: =VLOOKUP(A77,'Projections - Hitters'!$A$2:$X$199990,21,FALSE) -> 0.333 | Z77: =VLOOKUP(A77,'Projections - Hitters'!$A$2:$X$199990,22,FALSE) -> 0.483 | AA77: =VLOOKUP(A77,'Projections - Hitters'!$A$2:$X$199990,23,FALSE) -> 0.82 | AB77: NL | AC77: 592663 | AD77: C | AE77: =IF(ISNA(VLOOKUP(A77,Rankings!$B$2:$H$883,7,FALSE)),"-",VLOOKUP(A77,Rankings!$B$2:$H$883,7,FALSE)) -> 0
A78: Kyle Schwarber | B78: OF | C78: =((G78*'Points System'!$B$16)+(H78*'Points System'!$B$17)+(I78*'Points System'!$B$15)+(J78*'Points System'!$B$2)+(K78*'Points System'!$B$3)+(L78*'Points System'!$B$4)+(M78*'Points System'!$B$5)+(N78*'Points System'!$B$6)+(O78*'Points System'!$B$7)+(P78*'Points System'!$B$8)+(Q78*'Points System'!$B$9)+(R78*'Points System'!$B$10)+(S78*'Points System'!$B$11)+(T78*'Points System'!$B$13)+(U78*'Points System'!$B$12)+(X78*'Points System'!$B$14))*((100-Settings!$B$37)/100) -> 129.51 | D78: 0.6069453557 | E78: 2.484366008 | F78: =VLOOKUP(A78,'Projections - Hitters'!$A$2:$X$199990,2,FALSE) -> 52.13 | G78: =VLOOKUP(A78,'Projections - Hitters'!$A$2:$X$199990,3,FALSE) -> 213.38 | H78: =VLOOKUP(A78,'Projections - Hitters'!$A$2:$X$199990,4,FALSE) -> 184.83 | I78: =VLOOKUP(A78,'Projections - Hitters'!$A$2:$X$199990,5,FALSE) -> 46.5 | J78: =VLOOKUP(A78,'Projections - Hitters'!$A$2:$X$199990,6,FALSE) -> 23.75 | K78: =VLOOKUP(A78,'Projections - Hitters'!$A$2:$X$199990,7,FALSE) -> 9 | L78: =VLOOKUP(A78,'Projections - Hitters'!$A$2:$X$199990,8,FALSE) -> 1 | M78: =VLOOKUP(A78,'Projections - Hitters'!$A$2:$X$199990,9,FALSE) -> 12.58 | N78: =VLOOKUP(A78,'Projections - Hitters'!$A$2:$X$199990,10,FALSE) -> 32.75 | O78: =VLOOKUP(A78,'Projections - Hitters'!$A$2:$X$199990,11,FALSE) -> 29.58 | P78: =VLOOKUP(A78,'Projections - Hitters'!$A$2:$X$199990,12,FALSE) -> 27 | Q78: =VLOOKUP(A78,'Projections - Hitters'!$A$2:$X$199990,13,FALSE) -> 57.82 | R78: =VLOOKUP(A78,'Projections - Hitters'!$A$2:$X$199990,14,FALSE) -> 0.92 | S78: =VLOOKUP(A78,'Projections - Hitters'!$A$2:$X$199990,15,FALSE) -> 0.91 | T78: =VLOOKUP(A78,'Projections - Hitters'!$A$2:$X$199990,16,FALSE) -> 1 | U78: =VLOOKUP(A78,'Projections - Hitters'!$A$2:$X$199990,17,FALSE) -> 1 | V78: =VLOOKUP(A78,'Projections - Hitters'!$A$2:$X$199990,18,FALSE) -> 0.252 | W78: =VLOOKUP(A78,'Projections - Hitters'!$A$2:$X$199990,19,FALSE) -> 2.14 | X78: =VLOOKUP(A78,'Projections - Hitters'!$A$2:$X$199990,20,FALSE) -> 95.07 | Y78: =VLOOKUP(A78,'Projections - Hitters'!$A$2:$X$199990,21,FALSE) -> 0.348 | Z78: =VLOOKUP(A78,'Projections - Hitters'!$A$2:$X$199990,22,FALSE) -> 0.514 | AA78: =VLOOKUP(A78,'Projections - Hitters'!$A$2:$X$199990,23,FALSE) -> 0.86 | AB78: NL | AC78: 656941 | AD78: LF | AE78: =IF(ISNA(VLOOKUP(A78,Rankings!$B$2:$H$883,7,FALSE)),"-",VLOOKUP(A78,Rankings!$B$2:$H$883,7,FALSE)) -> 0
A79: Luis Arraez | B79: 2B/OF | C79: =((G79*'Points System'!$B$16)+(H79*'Points System'!$B$17)+(I79*'Points System'!$B$15)+(J79*'Points System'!$B$2)+(K79*'Points System'!$B$3)+(L79*'Points System'!$B$4)+(M79*'Points System'!$B$5)+(N79*'Points System'!$B$6)+(O79*'Points System'!$B$7)+(P79*'Points System'!$B$8)+(Q79*'Points System'!$B$9)+(R79*'Points System'!$B$10)+(S79*'Points System'!$B$11)+(T79*'Points System'!$B$13)+(U79*'Points System'!$B$12)+(X79*'Points System'!$B$14))*((100-Settings!$B$37)/100) -> 129.37 | D79: 0.6109563164 | E79: 2.530217094 | F79: =VLOOKUP(A79,'Projections - Hitters'!$A$2:$X$199990,2,FALSE) -> 51.13 | G79: =VLOOKUP(A79,'Projections - Hitters'!$A$2:$X$199990,3,FALSE) -> 211.75 | H79: =VLOOKUP(A79,'Projections - Hitters'!$A$2:$X$199990,4,FALSE) -> 190.75 | I79: =VLOOKUP(A79,'Projections - Hitters'!$A$2:$X$199990,5,FALSE) -> 59.08 | J79: =VLOOKUP(A79,'Projections - Hitters'!$A$2:$X$199990,6,FALSE) -> 44.67 | K79: =VLOOKUP(A79,'Projections - Hitters'!$A$2:$X$199990,7,FALSE) -> 11.17 | L79: =VLOOKUP(A79,'Projections - Hitters'!$A$2:$X$199990,8,FALSE) -> 0.83 | M79: =VLOOKUP(A79,'Projections - Hitters'!$A$2:$X$199990,9,FALSE) -> 2.25 | N79: =VLOOKUP(A79,'Projections - Hitters'!$A$2:$X$199990,10,FALSE) -> 19.33 | O79: =VLOOKUP(A79,'Projections - Hitters'!$A$2:$X$199990,11,FALSE) -> 26.5 | P79: =VLOOKUP(A79,'Projections - Hitters'!$A$2:$X$199990,12,FALSE) -> 18.33 | Q79: =VLOOKUP(A79,'Projections - Hitters'!$A$2:$X$199990,13,FALSE) -> 18.18 | R79: =VLOOKUP(A79,'Projections - Hitters'!$A$2:$X$199990,14,FALSE) -> 1.75 | S79: =VLOOKUP(A79,'Projections - Hitters'!$A$2:$X$199990,15,FALSE) -> 0.91 | T79: =VLOOKUP(A79,'Projections - Hitters'!$A$2:$X$199990,16,FALSE) -> 1.5 | U79: =VLOOKUP(A79,'Projections - Hitters'!$A$2:$X$199990,17,FALSE) -> 0.8 | V79: =VLOOKUP(A79,'Projections - Hitters'!$A$2:$X$199990,18,FALSE) -> 0.31 | W79: =VLOOKUP(A79,'Projections - Hitters'!$A$2:$X$199990,19,FALSE) -> 0.99 | X79: =VLOOKUP(A79,'Projections - Hitters'!$A$2:$X$199990,20,FALSE) -> 78.5 | Y79: =VLOOKUP(A79,'Projections - Hitters'!$A$2:$X$199990,21,FALSE) -> 0.37 | Z79: =VLOOKUP(A79,'Projections - Hitters'!$A$2:$X$199990,22,FALSE) -> 0.412 | AA79: =VLOOKUP(A79,'Projections - Hitters'!$A$2:$X$199990,23,FALSE) -> 0.78 | AB79: AL | AC79: 650333 | AD79: 2B | AE79: =IF(ISNA(VLOOKUP(A79,Rankings!$B$2:$H$883,7,FALSE)),"-",VLOOKUP(A79,Rankings!$B$2:$H$883,7,FALSE)) -> 0
A80: Jean Segura | B80: SS/2B | C80: =((G80*'Points System'!$B$16)+(H80*'Points System'!$B$17)+(I80*'Points System'!$B$15)+(J80*'Points System'!$B$2)+(K80*'Points System'!$B$3)+(L80*'Points System'!$B$4)+(M80*'Points System'!$B$5)+(N80*'Points System'!$B$6)+(O80*'Points System'!$B$7)+(P80*'Points System'!$B$8)+(Q80*'Points System'!$B$9)+(R80*'Points System'!$B$10)+(S80*'Points System'!$B$11)+(T80*'Points System'!$B$13)+(U80*'Points System'!$B$12)+(X80*'Points System'!$B$14))*((100-Settings!$B$37)/100) -> 129.04 | D80: 0.6068757936 | E80: 2.5808 | F80: =VLOOKUP(A80,'Projections - Hitters'!$A$2:$X$199990,2,FALSE) -> 50 | G80: =VLOOKUP(A80,'Projections - Hitters'!$A$2:$X$199990,3,FALSE) -> 212.63 | H80: =VLOOKUP(A80,'Projections - Hitters'!$A$2:$X$199990,4,FALSE) -> 199.75 | I80: =VLOOKUP(A80,'Projections - Hitters'!$A$2:$X$199990,5,FALSE) -> 57.42 | J80: =VLOOKUP(A80,'Projections - Hitters'!$A$2:$X$199990,6,FALSE) -> 40.83 | K80: =VLOOKUP(A80,'Projections - Hitters'!$A$2:$X$199990,7,FALSE) -> 11 | L80: =VLOOKUP(A80,'Projections - Hitters'!$A$2:$X$199990,8,FALSE) -> 1 | M80: =VLOOKUP(A80,'Projections - Hitters'!$A$2:$X$199990,9,FALSE) -> 4.33 | N80: =VLOOKUP(A80,'Projections - Hitters'!$A$2:$X$199990,10,FALSE) -> 22.33 | O80: =VLOOKUP(A80,'Projections - Hitters'!$A$2:$X$199990,11,FALSE) -> 27.58 | P80: =VLOOKUP(A80,'Projections - Hitters'!$A$2:$X$199990,12,FALSE) -> 11.42 | Q80: =VLOOKUP(A80,'Projections - Hitters'!$A$2:$X$199990,13,FALSE) -> 26.45 | R80: =VLOOKUP(A80,'Projections - Hitters'!$A$2:$X$199990,14,FALSE) -> 4.67 | S80: =VLOOKUP(A80,'Projections - Hitters'!$A$2:$X$199990,15,FALSE) -> 1.73 | T80: =VLOOKUP(A80,'Projections - Hitters'!$A$2:$X$199990,16,FALSE) -> 1 | U80: =VLOOKUP(A80,'Projections - Hitters'!$A$2:$X$199990,17,FALSE) -> 2.4 | V80: =VLOOKUP(A80,'Projections - Hitters'!$A$2:$X$199990,18,FALSE) -> 0.287 | W80: =VLOOKUP(A80,'Projections - Hitters'!$A$2:$X$199990,19,FALSE) -> 2.32 | X80: =VLOOKUP(A80,'Projections - Hitters'!$A$2:$X$199990,20,FALSE) -> 83.15 | Y80: =VLOOKUP(A80,'Projections - Hitters'!$A$2:$X$199990,21,FALSE) -> 0.332 | Z80: =VLOOKUP(A80,'Projections - Hitters'!$A$2:$X$199990,22,FALSE) -> 0.416 | AA80: =VLOOKUP(A80,'Projections - Hitters'!$A$2:$X$199990,23,FALSE) -> 0.75 | AB80: NL | AC80: 516416 | AD80: 2B | AE80: =IF(ISNA(VLOOKUP(A80,Rankings!$B$2:$H$883,7,FALSE)),"-",VLOOKUP(A80,Rankings!$B$2:$H$883,7,FALSE)) -> 0
A81: Paul DeJong | B81: SS | C81: =((G81*'Points System'!$B$16)+(H81*'Points System'!$B$17)+(I81*'Points System'!$B$15)+(J81*'Points System'!$B$2)+(K81*'Points System'!$B$3)+(L81*'Points System'!$B$4)+(M81*'Points System'!$B$5)+(N81*'Points System'!$B$6)+(O81*'Points System'!$B$7)+(P81*'Points System'!$B$8)+(Q81*'Points System'!$B$9)+(R81*'Points System'!$B$10)+(S81*'Points System'!$B$11)+(T81*'Points System'!$B$13)+(U81*'Points System'!$B$12)+(X81*'Points System'!$B$14))*((100-Settings!$B$37)/100) -> 128.17 | D81: 0.5425185185 | E81: 2.346146806 | F81: =VLOOKUP(A81,'Projections - Hitters'!$A$2:$X$199990,2,FALSE) -> 54.63 | G81: =VLOOKUP(A81,'Projections - Hitters'!$A$2:$X$199990,3,FALSE) -> 236.25 | H81: =VLOOKUP(A81,'Projections - Hitters'!$A$2:$X$199990,4,FALSE) -> 206.08 | I81: =VLOOKUP(A81,'Projections - Hitters'!$A$2:$X$199990,5,FALSE) -> 51.42 | J81: =VLOOKUP(A81,'Projections - Hitters'!$A$2:$X$199990,6,FALSE) -> 29.33 | K81: =VLOOKUP(A81,'Projections - Hitters'!$A$2:$X$199990,7,FALSE) -> 11.08 | L81: =VLOOKUP(A81,'Projections - Hitters'!$A$2:$X$199990,8,FALSE) -> 0.33 | M81: =VLOOKUP(A81,'Projections - Hitters'!$A$2:$X$199990,9,FALSE) -> 10.5 | N81: =VLOOKUP(A81,'Projections - Hitters'!$A$2:$X$199990,10,FALSE) -> 31.67 | O81: =VLOOKUP(A81,'Projections - Hitters'!$A$2:$X$199990,11,FALSE) -> 30.5 | P81: =VLOOKUP(A81,'Projections - Hitters'!$A$2:$X$199990,12,FALSE) -> 18.83 | Q81: =VLOOKUP(A81,'Projections - Hitters'!$A$2:$X$199990,13,FALSE) -> 55.45 | R81: =VLOOKUP(A81,'Projections - Hitters'!$A$2:$X$199990,14,FALSE) -> 1.92 | S81: =VLOOKUP(A81,'Projections - Hitters'!$A$2:$X$199990,15,FALSE) -> 1 | T81: =VLOOKUP(A81,'Projections - Hitters'!$A$2:$X$199990,16,FALSE) -> 1.5 | U81: =VLOOKUP(A81,'Projections - Hitters'!$A$2:$X$199990,17,FALSE) -> 3.8 | V81: =VLOOKUP(A81,'Projections - Hitters'!$A$2:$X$199990,18,FALSE) -> 0.25 | W81: =VLOOKUP(A81,'Projections - Hitters'!$A$2:$X$199990,19,FALSE) -> 2.94 | X81: =VLOOKUP(A81,'Projections - Hitters'!$A$2:$X$199990,20,FALSE) -> 94.48 | Y81: =VLOOKUP(A81,'Projections - Hitters'!$A$2:$X$199990,21,FALSE) -> 0.322 | Z81: =VLOOKUP(A81,'Projections - Hitters'!$A$2:$X$199990,22,FALSE) -> 0.458 | AA81: =VLOOKUP(A81,'Projections - Hitters'!$A$2:$X$199990,23,FALSE) -> 0.78 | AB81: NL | AC81: 657557 | AD81: SS | AE81: =IF(ISNA(VLOOKUP(A81,Rankings!$B$2:$H$883,7,FALSE)),"-",VLOOKUP(A81,Rankings!$B$2:$H$883,7,FALSE)) -> 0
A82: Aaron Judge | B82: OF | C82: =((G82*'Points System'!$B$16)+(H82*'Points System'!$B$17)+(I82*'Points System'!$B$15)+(J82*'Points System'!$B$2)+(K82*'Points System'!$B$3)+(L82*'Points System'!$B$4)+(M82*'Points System'!$B$5)+(N82*'Points System'!$B$6)+(O82*'Points System'!$B$7)+(P82*'Points System'!$B$8)+(Q82*'Points System'!$B$9)+(R82*'Points System'!$B$10)+(S82*'Points System'!$B$11)+(T82*'Points System'!$B$13)+(U82*'Points System'!$B$12)+(X82*'Points System'!$B$14))*((100-Settings!$B$37)/100) -> 127.75 | D82: 0.6152771757 | E82: 2.769347496 | F82: =VLOOKUP(A82,'Projections - Hitters'!$A$2:$X$199990,2,FALSE) -> 46.13 | G82: =VLOOKUP(A82,'Projections - Hitters'!$A$2:$X$199990,3,FALSE) -> 207.63 | H82: =VLOOKUP(A82,'Projections - Hitters'!$A$2:$X$199990,4,FALSE) -> 174.25 | I82: =VLOOKUP(A82,'Projections - Hitters'!$A$2:$X$199990,5,FALSE) -> 46.42 | J82: =VLOOKUP(A82,'Projections - Hitters'!$A$2:$X$199990,6,FALSE) -> 25.75 | K82: =VLOOKUP(A82,'Projections - Hitters'!$A$2:$X$199990,7,FALSE) -> 8 | L82: =VLOOKUP(A82,'Projections - Hitters'!$A$2:$X$199990,8,FALSE) -> 0.33 | M82: =VLOOKUP(A82,'Projections - Hitters'!$A$2:$X$199990,9,FALSE) -> 12.17 | N82: =VLOOKUP(A82,'Projections - Hitters'!$A$2:$X$199990,10,FALSE) -> 29.83 | O82: =VLOOKUP(A82,'Projections - Hitters'!$A$2:$X$199990,11,FALSE) -> 33.33 | P82: =VLOOKUP(A82,'Projections - Hitters'!$A$2:$X$199990,12,FALSE) -> 30.92 | Q82: =VLOOKUP(A82,'Projections - Hitters'!$A$2:$X$199990,13,FALSE) -> 63.64 | R82: =VLOOKUP(A82,'Projections - Hitters'!$A$2:$X$199990,14,FALSE) -> 2 | S82: =VLOOKUP(A82,'Projections - Hitters'!$A$2:$X$199990,15,FALSE) -> 0.91 | T82: =VLOOKUP(A82,'Projections - Hitters'!$A$2:$X$199990,16,FALSE) -> 1 | U82: =VLOOKUP(A82,'Projections - Hitters'!$A$2:$X$199990,17,FALSE) -> 1.8 | V82: =VLOOKUP(A82,'Projections - Hitters'!$A$2:$X$199990,18,FALSE) -> 0.266 | W82: =VLOOKUP(A82,'Projections - Hitters'!$A$2:$X$199990,19,FALSE) -> 2.06 | X82: =VLOOKUP(A82,'Projections - Hitters'!$A$2:$X$199990,20,FALSE) -> 91.42 | Y82: =VLOOKUP(A82,'Projections - Hitters'!$A$2:$X$199990,21,FALSE) -> 0.381 | Z82: =VLOOKUP(A82,'Projections - Hitters'!$A$2:$X$199990,22,FALSE) -> 0.525 | AA82: =VLOOKUP(A82,'Projections - Hitters'!$A$2:$X$199990,23,FALSE) -> 0.91 | AB82: AL | AC82: 592450 | AD82: RF | AE82: =IF(ISNA(VLOOKUP(A82,Rankings!$B$2:$H$883,7,FALSE)),"-",VLOOKUP(A82,Rankings!$B$2:$H$883,7,FALSE)) -> 0
A83: Yoan Moncada | B83: 3B | C83: =((G83*'Points System'!$B$16)+(H83*'Points System'!$B$17)+(I83*'Points System'!$B$15)+(J83*'Points System'!$B$2)+(K83*'Points System'!$B$3)+(L83*'Points System'!$B$4)+(M83*'Points System'!$B$5)+(N83*'Points System'!$B$6)+(O83*'Points System'!$B$7)+(P83*'Points System'!$B$8)+(Q83*'Points System'!$B$9)+(R83*'Points System'!$B$10)+(S83*'Points System'!$B$11)+(T83*'Points System'!$B$13)+(U83*'Points System'!$B$12)+(X83*'Points System'!$B$14))*((100-Settings!$B$37)/100) -> 127.59 | D83: 0.550835384 | E83: 2.412821483 | F83: =VLOOKUP(A83,'Projections - Hitters'!$A$2:$X$199990,2,FALSE) -> 52.88 | G83: =VLOOKUP(A83,'Projections - Hitters'!$A$2:$X$199990,3,FALSE) -> 231.63 | H83: =VLOOKUP(A83,'Projections - Hitters'!$A$2:$X$199990,4,FALSE) -> 205.92 | I83: =VLOOKUP(A83,'Projections - Hitters'!$A$2:$X$199990,5,FALSE) -> 56.5 | J83: =VLOOKUP(A83,'Projections - Hitters'!$A$2:$X$199990,6,FALSE) -> 33.42 | K83: =VLOOKUP(A83,'Projections - Hitters'!$A$2:$X$199990,7,FALSE) -> 11.5 | L83: =VLOOKUP(A83,'Projections - Hitters'!$A$2:$X$199990,8,FALSE) -> 1.67 | M83: =VLOOKUP(A83,'Projections - Hitters'!$A$2:$X$199990,9,FALSE) -> 9.75 | N83: =VLOOKUP(A83,'Projections - Hitters'!$A$2:$X$199990,10,FALSE) -> 29.25 | O83: =VLOOKUP(A83,'Projections - Hitters'!$A$2:$X$199990,11,FALSE) -> 33 | P83: =VLOOKUP(A83,'Projections - Hitters'!$A$2:$X$199990,12,FALSE) -> 20.33 | Q83: =VLOOKUP(A83,'Projections - Hitters'!$A$2:$X$199990,13,FALSE) -> 64.91 | R83: =VLOOKUP(A83,'Projections - Hitters'!$A$2:$X$199990,14,FALSE) -> 4.17 | S83: =VLOOKUP(A83,'Projections - Hitters'!$A$2:$X$199990,15,FALSE) -> 1.45 | T83: =VLOOKUP(A83,'Projections - Hitters'!$A$2:$X$199990,16,FALSE) -> 1 | U83: =VLOOKUP(A83,'Projections - Hitters'!$A$2:$X$199990,17,FALSE) -> 1.6 | V83: =VLOOKUP(A83,'Projections - Hitters'!$A$2:$X$199990,18,FALSE) -> 0.274 | W83: =VLOOKUP(A83,'Projections - Hitters'!$A$2:$X$199990,19,FALSE) -> 3.19 | X83: =VLOOKUP(A83,'Projections - Hitters'!$A$2:$X$199990,20,FALSE) -> 100.43 | Y83: =VLOOKUP(A83,'Projections - Hitters'!$A$2:$X$199990,21,FALSE) -> 0.343 | Z83: =VLOOKUP(A83,'Projections - Hitters'!$A$2:$X$199990,22,FALSE) -> 0.488 | AA83: =VLOOKUP(A83,'Projections - Hitters'!$A$2:$X$199990,23,FALSE) -> 0.83 | AB83: AL | AC83: 660162 | AD83: 3B | AE83: =IF(ISNA(VLOOKUP(A83,Rankings!$B$2:$H$883,7,FALSE)),"-",VLOOKUP(A83,Rankings!$B$2:$H$883,7,FALSE)) -> 0
A84: Edwin Encarnacion | B84: 1B | C84: =((G84*'Points System'!$B$16)+(H84*'Points System'!$B$17)+(I84*'Points System'!$B$15)+(J84*'Points System'!$B$2)+(K84*'Points System'!$B$3)+(L84*'Points System'!$B$4)+(M84*'Points System'!$B$5)+(N84*'Points System'!$B$6)+(O84*'Points System'!$B$7)+(P84*'Points System'!$B$8)+(Q84*'Points System'!$B$9)+(R84*'Points System'!$B$10)+(S84*'Points System'!$B$11)+(T84*'Points System'!$B$13)+(U84*'Points System'!$B$12)+(X84*'Points System'!$B$14))*((100-Settings!$B$37)/100) -> 127.5 | D84: 0.6505102041 | E84: 2.809607757 | F84: =VLOOKUP(A84,'Projections - Hitters'!$A$2:$X$199990,2,FALSE) -> 45.38 | G84: =VLOOKUP(A84,'Projections - Hitters'!$A$2:$X$199990,3,FALSE) -> 196 | H84: =VLOOKUP(A84,'Projections - Hitters'!$A$2:$X$199990,4,FALSE) -> 171.67 | I84: =VLOOKUP(A84,'Projections - Hitters'!$A$2:$X$199990,5,FALSE) -> 41.83 | J84: =VLOOKUP(A84,'Projections - Hitters'!$A$2:$X$199990,6,FALSE) -> 23.25 | K84: =VLOOKUP(A84,'Projections - Hitters'!$A$2:$X$199990,7,FALSE) -> 6.83 | L84: =VLOOKUP(A84,'Projections - Hitters'!$A$2:$X$199990,8,FALSE) -> 0 | M84: =VLOOKUP(A84,'Projections - Hitters'!$A$2:$X$199990,9,FALSE) -> 11.67 | N84: =VLOOKUP(A84,'Projections - Hitters'!$A$2:$X$199990,10,FALSE) -> 32.75 | O84: =VLOOKUP(A84,'Projections - Hitters'!$A$2:$X$199990,11,FALSE) -> 28.08 | P84: =VLOOKUP(A84,'Projections - Hitters'!$A$2:$X$199990,12,FALSE) -> 22.75 | Q84: =VLOOKUP(A84,'Projections - Hitters'!$A$2:$X$199990,13,FALSE) -> 43.91 | R84: =VLOOKUP(A84,'Projections - Hitters'!$A$2:$X$199990,14,FALSE) -> 0.17 | S84: =VLOOKUP(A84,'Projections - Hitters'!$A$2:$X$199990,15,FALSE) -> 0 | T84: =VLOOKUP(A84,'Projections - Hitters'!$A$2:$X$199990,16,FALSE) -> 1.5 | U84: =VLOOKUP(A84,'Projections - Hitters'!$A$2:$X$199990,17,FALSE) -> 2.4 | V84: =VLOOKUP(A84,'Projections - Hitters'!$A$2:$X$199990,18,FALSE) -> 0.244 | W84: =VLOOKUP(A84,'Projections - Hitters'!$A$2:$X$199990,19,FALSE) -> 1.93 | X84: =VLOOKUP(A84,'Projections - Hitters'!$A$2:$X$199990,20,FALSE) -> 83.59 | Y84: =VLOOKUP(A84,'Projections - Hitters'!$A$2:$X$199990,21,FALSE) -> 0.338 | Z84: =VLOOKUP(A84,'Projections - Hitters'!$A$2:$X$199990,22,FALSE) -> 0.487 | AA84: =VLOOKUP(A84,'Projections - Hitters'!$A$2:$X$199990,23,FALSE) -> 0.83 | AB84: AL | AC84: 429665 | AD84: DH | AE84: =IF(ISNA(VLOOKUP(A84,Rankings!$B$2:$H$883,7,FALSE)),"-",VLOOKUP(A84,Rankings!$B$2:$H$883,7,FALSE)) -> 0
A85: Willie Calhoun | B85: OF | C85: =((G85*'Points System'!$B$16)+(H85*'Points System'!$B$17)+(I85*'Points System'!$B$15)+(J85*'Points System'!$B$2)+(K85*'Points System'!$B$3)+(L85*'Points System'!$B$4)+(M85*'Points System'!$B$5)+(N85*'Points System'!$B$6)+(O85*'Points System'!$B$7)+(P85*'Points System'!$B$8)+(Q85*'Points System'!$B$9)+(R85*'Points System'!$B$10)+(S85*'Points System'!$B$11)+(T85*'Points System'!$B$13)+(U85*'Points System'!$B$12)+(X85*'Points System'!$B$14))*((100-Settings!$B$37)/100) -> 124.99 | D85: 0.6451096774 | E85: 2.702486486 | F85: =VLOOKUP(A85,'Projections - Hitters'!$A$2:$X$199990,2,FALSE) -> 46.25 | G85: =VLOOKUP(A85,'Projections - Hitters'!$A$2:$X$199990,3,FALSE) -> 193.75 | H85: =VLOOKUP(A85,'Projections - Hitters'!$A$2:$X$199990,4,FALSE) -> 178.92 | I85: =VLOOKUP(A85,'Projections - Hitters'!$A$2:$X$199990,5,FALSE) -> 47.33 | J85: =VLOOKUP(A85,'Projections - Hitters'!$A$2:$X$199990,6,FALSE) -> 28.42 | K85: =VLOOKUP(A85,'Projections - Hitters'!$A$2:$X$199990,7,FALSE) -> 9.08 | L85: =VLOOKUP(A85,'Projections - Hitters'!$A$2:$X$199990,8,FALSE) -> 0.58 | M85: =VLOOKUP(A85,'Projections - Hitters'!$A$2:$X$199990,9,FALSE) -> 9.17 | N85: =VLOOKUP(A85,'Projections - Hitters'!$A$2:$X$199990,10,FALSE) -> 26.83 | O85: =VLOOKUP(A85,'Projections - Hitters'!$A$2:$X$199990,11,FALSE) -> 25.5 | P85: =VLOOKUP(A85,'Projections - Hitters'!$A$2:$X$199990,12,FALSE) -> 14.75 | Q85: =VLOOKUP(A85,'Projections - Hitters'!$A$2:$X$199990,13,FALSE) -> 30.36 | R85: =VLOOKUP(A85,'Projections - Hitters'!$A$2:$X$199990,14,FALSE) -> 0.58 | S85: =VLOOKUP(A85,'Projections - Hitters'!$A$2:$X$199990,15,FALSE) -> 0.09 | T85: =VLOOKUP(A85,'Projections - Hitters'!$A$2:$X$199990,16,FALSE) -> 1 | U85: =VLOOKUP(A85,'Projections - Hitters'!$A$2:$X$199990,17,FALSE) -> 1.2 | V85: =VLOOKUP(A85,'Projections - Hitters'!$A$2:$X$199990,18,FALSE) -> 0.265 | W85: =VLOOKUP(A85,'Projections - Hitters'!$A$2:$X$199990,19,FALSE) -> 2.06 | X85: =VLOOKUP(A85,'Projections - Hitters'!$A$2:$X$199990,20,FALSE) -> 85 | Y85: =VLOOKUP(A85,'Projections - Hitters'!$A$2:$X$199990,21,FALSE) -> 0.323 | Z85: =VLOOKUP(A85,'Projections - Hitters'!$A$2:$X$199990,22,FALSE) -> 0.475 | AA85: =VLOOKUP(A85,'Projections - Hitters'!$A$2:$X$199990,23,FALSE) -> 0.8 | AB85: AL | AC85: 641432 | AD85: LF | AE85: =IF(ISNA(VLOOKUP(A85,Rankings!$B$2:$H$883,7,FALSE)),"-",VLOOKUP(A85,Rankings!$B$2:$H$883,7,FALSE)) -> 0
A86: Ryan Braun | B86: OF | C86: =((G86*'Points System'!$B$16)+(H86*'Points System'!$B$17)+(I86*'Points System'!$B$15)+(J86*'Points System'!$B$2)+(K86*'Points System'!$B$3)+(L86*'Points System'!$B$4)+(M86*'Points System'!$B$5)+(N86*'Points System'!$B$6)+(O86*'Points System'!$B$7)+(P86*'Points System'!$B$8)+(Q86*'Points System'!$B$9)+(R86*'Points System'!$B$10)+(S86*'Points System'!$B$11)+(T86*'Points System'!$B$13)+(U86*'Points System'!$B$12)+(X86*'Points System'!$B$14))*((100-Settings!$B$37)/100) -> 124.85 | D86: 0.643556701 | E86: 2.547959184 | F86: =VLOOKUP(A86,'Projections - Hitters'!$A$2:$X$199990,2,FALSE) -> 49 | G86: =VLOOKUP(A86,'Projections - Hitters'!$A$2:$X$199990,3,FALSE) -> 194 | H86: =VLOOKUP(A86,'Projections - Hitters'!$A$2:$X$199990,4,FALSE) -> 180.33 | I86: =VLOOKUP(A86,'Projections - Hitters'!$A$2:$X$199990,5,FALSE) -> 49 | J86: =VLOOKUP(A86,'Projections - Hitters'!$A$2:$X$199990,6,FALSE) -> 28.83 | K86: =VLOOKUP(A86,'Projections - Hitters'!$A$2:$X$199990,7,FALSE) -> 10.83 | L86: =VLOOKUP(A86,'Projections - Hitters'!$A$2:$X$199990,8,FALSE) -> 0.92 | M86: =VLOOKUP(A86,'Projections - Hitters'!$A$2:$X$199990,9,FALSE) -> 8.33 | N86: =VLOOKUP(A86,'Projections - Hitters'!$A$2:$X$199990,10,FALSE) -> 28.67 | O86: =VLOOKUP(A86,'Projections - Hitters'!$A$2:$X$199990,11,FALSE) -> 26.33 | P86: =VLOOKUP(A86,'Projections - Hitters'!$A$2:$X$199990,12,FALSE) -> 14.5 | Q86: =VLOOKUP(A86,'Projections - Hitters'!$A$2:$X$199990,13,FALSE) -> 40.09 | R86: =VLOOKUP(A86,'Projections - Hitters'!$A$2:$X$199990,14,FALSE) -> 3.58 | S86: =VLOOKUP(A86,'Projections - Hitters'!$A$2:$X$199990,15,FALSE) -> 1.09 | T86: =VLOOKUP(A86,'Projections - Hitters'!$A$2:$X$199990,16,FALSE) -> 1 | U86: =VLOOKUP(A86,'Projections - Hitters'!$A$2:$X$199990,17,FALSE) -> 1.8 | V86: =VLOOKUP(A86,'Projections - Hitters'!$A$2:$X$199990,18,FALSE) -> 0.272 | W86: =VLOOKUP(A86,'Projections - Hitters'!$A$2:$X$199990,19,FALSE) -> 2.76 | X86: =VLOOKUP(A86,'Projections - Hitters'!$A$2:$X$199990,20,FALSE) -> 86.57 | Y86: =VLOOKUP(A86,'Projections - Hitters'!$A$2:$X$199990,21,FALSE) -> 0.33 | Z86: =VLOOKUP(A86,'Projections - Hitters'!$A$2:$X$199990,22,FALSE) -> 0.48 | AA86: =VLOOKUP(A86,'Projections - Hitters'!$A$2:$X$199990,23,FALSE) -> 0.81 | AB86: NL | AC86: 460075 | AD86: LF | AE86: =IF(ISNA(VLOOKUP(A86,Rankings!$B$2:$H$883,7,FALSE)),"-",VLOOKUP(A86,Rankings!$B$2:$H$883,7,FALSE)) -> 0
A87: Lorenzo Cain | B87: OF | C87: =((G87*'Points System'!$B$16)+(H87*'Points System'!$B$17)+(I87*'Points System'!$B$15)+(J87*'Points System'!$B$2)+(K87*'Points System'!$B$3)+(L87*'Points System'!$B$4)+(M87*'Points System'!$B$5)+(N87*'Points System'!$B$6)+(O87*'Points System'!$B$7)+(P87*'Points System'!$B$8)+(Q87*'Points System'!$B$9)+(R87*'Points System'!$B$10)+(S87*'Points System'!$B$11)+(T87*'Points System'!$B$13)+(U87*'Points System'!$B$12)+(X87*'Points System'!$B$14))*((100-Settings!$B$37)/100) -> 124.21 | D87: 0.5535698369 | E87: 2.400193237 | F87: =VLOOKUP(A87,'Projections - Hitters'!$A$2:$X$199990,2,FALSE) -> 51.75 | G87: =VLOOKUP(A87,'Projections - Hitters'!$A$2:$X$199990,3,FALSE) -> 224.38 | H87: =VLOOKUP(A87,'Projections - Hitters'!$A$2:$X$199990,4,FALSE) -> 201 | I87: =VLOOKUP(A87,'Projections - Hitters'!$A$2:$X$199990,5,FALSE) -> 55.45 | J87: =VLOOKUP(A87,'Projections - Hitters'!$A$2:$X$199990,6,FALSE) -> 40.09 | K87: =VLOOKUP(A87,'Projections - Hitters'!$A$2:$X$199990,7,FALSE) -> 9.91 | L87: =VLOOKUP(A87,'Projections - Hitters'!$A$2:$X$199990,8,FALSE) -> 0.73 | M87: =VLOOKUP(A87,'Projections - Hitters'!$A$2:$X$199990,9,FALSE) -> 4.55 | N87: =VLOOKUP(A87,'Projections - Hitters'!$A$2:$X$199990,10,FALSE) -> 19.82 | O87: =VLOOKUP(A87,'Projections - Hitters'!$A$2:$X$199990,11,FALSE) -> 29.09 | P87: =VLOOKUP(A87,'Projections - Hitters'!$A$2:$X$199990,12,FALSE) -> 19.91 | Q87: =VLOOKUP(A87,'Projections - Hitters'!$A$2:$X$199990,13,FALSE) -> 38.45 | R87: =VLOOKUP(A87,'Projections - Hitters'!$A$2:$X$199990,14,FALSE) -> 6.27 | S87: =VLOOKUP(A87,'Projections - Hitters'!$A$2:$X$199990,15,FALSE) -> 2 | T87: =VLOOKUP(A87,'Projections - Hitters'!$A$2:$X$199990,16,FALSE) -> 1 | U87: =VLOOKUP(A87,'Projections - Hitters'!$A$2:$X$199990,17,FALSE) -> 2 | V87: =VLOOKUP(A87,'Projections - Hitters'!$A$2:$X$199990,18,FALSE) -> 0.276 | W87: =VLOOKUP(A87,'Projections - Hitters'!$A$2:$X$199990,19,FALSE) -> 1.93 | X87: =VLOOKUP(A87,'Projections - Hitters'!$A$2:$X$199990,20,FALSE) -> 80.3 | Y87: =VLOOKUP(A87,'Projections - Hitters'!$A$2:$X$199990,21,FALSE) -> 0.345 | Z87: =VLOOKUP(A87,'Projections - Hitters'!$A$2:$X$199990,22,FALSE) -> 0.4 | AA87: =VLOOKUP(A87,'Projections - Hitters'!$A$2:$X$199990,23,FALSE) -> 0.75 | AB87: NL | AC87: 456715 | AD87: CF | AE87: =IF(ISNA(VLOOKUP(A87,Rankings!$B$2:$H$883,7,FALSE)),"-",VLOOKUP(A87,Rankings!$B$2:$H$883,7,FALSE)) -> 0
A88: Tim Anderson | B88: SS | C88: =((G88*'Points System'!$B$16)+(H88*'Points System'!$B$17)+(I88*'Points System'!$B$15)+(J88*'Points System'!$B$2)+(K88*'Points System'!$B$3)+(L88*'Points System'!$B$4)+(M88*'Points System'!$B$5)+(N88*'Points System'!$B$6)+(O88*'Points System'!$B$7)+(P88*'Points System'!$B$8)+(Q88*'Points System'!$B$9)+(R88*'Points System'!$B$10)+(S88*'Points System'!$B$11)+(T88*'Points System'!$B$13)+(U88*'Points System'!$B$12)+(X88*'Points System'!$B$14))*((100-Settings!$B$37)/100) -> 123.58 | D88: 0.5318013598 | E88: 2.288518519 | F88: =VLOOKUP(A88,'Projections - Hitters'!$A$2:$X$199990,2,FALSE) -> 54 | G88: =VLOOKUP(A88,'Projections - Hitters'!$A$2:$X$199990,3,FALSE) -> 232.38 | H88: =VLOOKUP(A88,'Projections - Hitters'!$A$2:$X$199990,4,FALSE) -> 216.33 | I88: =VLOOKUP(A88,'Projections - Hitters'!$A$2:$X$199990,5,FALSE) -> 60.42 | J88: =VLOOKUP(A88,'Projections - Hitters'!$A$2:$X$199990,6,FALSE) -> 40.25 | K88: =VLOOKUP(A88,'Projections - Hitters'!$A$2:$X$199990,7,FALSE) -> 11.67 | L88: =VLOOKUP(A88,'Projections - Hitters'!$A$2:$X$199990,8,FALSE) -> 0.83 | M88: =VLOOKUP(A88,'Projections - Hitters'!$A$2:$X$199990,9,FALSE) -> 7.58 | N88: =VLOOKUP(A88,'Projections - Hitters'!$A$2:$X$199990,10,FALSE) -> 25.42 | O88: =VLOOKUP(A88,'Projections - Hitters'!$A$2:$X$199990,11,FALSE) -> 31.08 | P88: =VLOOKUP(A88,'Projections - Hitters'!$A$2:$X$199990,12,FALSE) -> 8.5 | Q88: =VLOOKUP(A88,'Projections - Hitters'!$A$2:$X$199990,13,FALSE) -> 51.45 | R88: =VLOOKUP(A88,'Projections - Hitters'!$A$2:$X$199990,14,FALSE) -> 6.67 | S88: =VLOOKUP(A88,'Projections - Hitters'!$A$2:$X$199990,15,FALSE) -> 1.91 | T88: =VLOOKUP(A88,'Projections - Hitters'!$A$2:$X$199990,16,FALSE) -> 1 | U88: =VLOOKUP(A88,'Projections - Hitters'!$A$2:$X$199990,17,FALSE) -> 1.2 | V88: =VLOOKUP(A88,'Projections - Hitters'!$A$2:$X$199990,18,FALSE) -> 0.279 | W88: =VLOOKUP(A88,'Projections - Hitters'!$A$2:$X$199990,19,FALSE) -> 6.05 | X88: =VLOOKUP(A88,'Projections - Hitters'!$A$2:$X$199990,20,FALSE) -> 96.4 | Y88: =VLOOKUP(A88,'Projections - Hitters'!$A$2:$X$199990,21,FALSE) -> 0.309 | Z88: =VLOOKUP(A88,'Projections - Hitters'!$A$2:$X$199990,22,FALSE) -> 0.446 | AA88: =VLOOKUP(A88,'Projections - Hitters'!$A$2:$X$199990,23,FALSE) -> 0.76 | AB88: AL | AC88: 641313 | AD88: SS | AE88: =IF(ISNA(VLOOKUP(A88,Rankings!$B$2:$H$883,7,FALSE)),"-",VLOOKUP(A88,Rankings!$B$2:$H$883,7,FALSE)) -> 0
A89: Daniel Murphy | B89: 1B | C89: =((G89*'Points System'!$B$16)+(H89*'Points System'!$B$17)+(I89*'Points System'!$B$15)+(J89*'Points System'!$B$2)+(K89*'Points System'!$B$3)+(L89*'Points System'!$B$4)+(M89*'Points System'!$B$5)+(N89*'Points System'!$B$6)+(O89*'Points System'!$B$7)+(P89*'Points System'!$B$8)+(Q89*'Points System'!$B$9)+(R89*'Points System'!$B$10)+(S89*'Points System'!$B$11)+(T89*'Points System'!$B$13)+(U89*'Points System'!$B$12)+(X89*'Points System'!$B$14))*((100-Settings!$B$37)/100) -> 121.63 | D89: 0.6544173033 | E89: 2.636107499 | F89: =VLOOKUP(A89,'Projections - Hitters'!$A$2:$X$199990,2,FALSE) -> 46.14 | G89: =VLOOKUP(A89,'Projections - Hitters'!$A$2:$X$199990,3,FALSE) -> 185.86 | H89: =VLOOKUP(A89,'Projections - Hitters'!$A$2:$X$199990,4,FALSE) -> 171.91 | I89: =VLOOKUP(A89,'Projections - Hitters'!$A$2:$X$199990,5,FALSE) -> 49.55 | J89: =VLOOKUP(A89,'Projections - Hitters'!$A$2:$X$199990,6,FALSE) -> 30.91 | K89: =VLOOKUP(A89,'Projections - Hitters'!$A$2:$X$199990,7,FALSE) -> 11.55 | L89: =VLOOKUP(A89,'Projections - Hitters'!$A$2:$X$199990,8,FALSE) -> 0.73 | M89: =VLOOKUP(A89,'Projections - Hitters'!$A$2:$X$199990,9,FALSE) -> 6.27 | N89: =VLOOKUP(A89,'Projections - Hitters'!$A$2:$X$199990,10,FALSE) -> 27.09 | O89: =VLOOKUP(A89,'Projections - Hitters'!$A$2:$X$199990,11,FALSE) -> 23.73 | P89: =VLOOKUP(A89,'Projections - Hitters'!$A$2:$X$199990,12,FALSE) -> 13.09 | Q89: =VLOOKUP(A89,'Projections - Hitters'!$A$2:$X$199990,13,FALSE) -> 27.2 | R89: =VLOOKUP(A89,'Projections - Hitters'!$A$2:$X$199990,14,FALSE) -> 0.82 | S89: =VLOOKUP(A89,'Projections - Hitters'!$A$2:$X$199990,15,FALSE) -> 0 | T89: =VLOOKUP(A89,'Projections - Hitters'!$A$2:$X$199990,16,FALSE) -> 1 | U89: =VLOOKUP(A89,'Projections - Hitters'!$A$2:$X$199990,17,FALSE) -> 1 | V89: =VLOOKUP(A89,'Projections - Hitters'!$A$2:$X$199990,18,FALSE) -> 0.288 | W89: =VLOOKUP(A89,'Projections - Hitters'!$A$2:$X$199990,19,FALSE) -> 2.08 | X89: =VLOOKUP(A89,'Projections - Hitters'!$A$2:$X$199990,20,FALSE) -> 81.28 | Y89: =VLOOKUP(A89,'Projections - Hitters'!$A$2:$X$199990,21,FALSE) -> 0.34 | Z89: =VLOOKUP(A89,'Projections - Hitters'!$A$2:$X$199990,22,FALSE) -> 0.473 | AA89: =VLOOKUP(A89,'Projections - Hitters'!$A$2:$X$199990,23,FALSE) -> 0.81 | AB89: NL | AC89: 502517 | AD89: 1B | AE89: =IF(ISNA(VLOOKUP(A89,Rankings!$B$2:$H$883,7,FALSE)),"-",VLOOKUP(A89,Rankings!$B$2:$H$883,7,FALSE)) -> 0
A90: Bryan Reynolds | B90: OF | C90: =((G90*'Points System'!$B$16)+(H90*'Points System'!$B$17)+(I90*'Points System'!$B$15)+(J90*'Points System'!$B$2)+(K90*'Points System'!$B$3)+(L90*'Points System'!$B$4)+(M90*'Points System'!$B$5)+(N90*'Points System'!$B$6)+(O90*'Points System'!$B$7)+(P90*'Points System'!$B$8)+(Q90*'Points System'!$B$9)+(R90*'Points System'!$B$10)+(S90*'Points System'!$B$11)+(T90*'Points System'!$B$13)+(U90*'Points System'!$B$12)+(X90*'Points System'!$B$14))*((100-Settings!$B$37)/100) -> 121.5 | D90: 0.5491525424 | E90: 2.359223301 | F90: =VLOOKUP(A90,'Projections - Hitters'!$A$2:$X$199990,2,FALSE) -> 51.5 | G90: =VLOOKUP(A90,'Projections - Hitters'!$A$2:$X$199990,3,FALSE) -> 221.25 | H90: =VLOOKUP(A90,'Projections - Hitters'!$A$2:$X$199990,4,FALSE) -> 198.67 | I90: =VLOOKUP(A90,'Projections - Hitters'!$A$2:$X$199990,5,FALSE) -> 56.25 | J90: =VLOOKUP(A90,'Projections - Hitters'!$A$2:$X$199990,6,FALSE) -> 36.17 | K90: =VLOOKUP(A90,'Projections - Hitters'!$A$2:$X$199990,7,FALSE) -> 12.25 | L90: =VLOOKUP(A90,'Projections - Hitters'!$A$2:$X$199990,8,FALSE) -> 1.42 | M90: =VLOOKUP(A90,'Projections - Hitters'!$A$2:$X$199990,9,FALSE) -> 6.33 | N90: =VLOOKUP(A90,'Projections - Hitters'!$A$2:$X$199990,10,FALSE) -> 25.58 | O90: =VLOOKUP(A90,'Projections - Hitters'!$A$2:$X$199990,11,FALSE) -> 29.42 | P90: =VLOOKUP(A90,'Projections - Hitters'!$A$2:$X$199990,12,FALSE) -> 19 | Q90: =VLOOKUP(A90,'Projections - Hitters'!$A$2:$X$199990,13,FALSE) -> 48.91 | R90: =VLOOKUP(A90,'Projections - Hitters'!$A$2:$X$199990,14,FALSE) -> 1.83 | S90: =VLOOKUP(A90,'Projections - Hitters'!$A$2:$X$199990,15,FALSE) -> 1 | T90: =VLOOKUP(A90,'Projections - Hitters'!$A$2:$X$199990,16,FALSE) -> 1.5 | U90: =VLOOKUP(A90,'Projections - Hitters'!$A$2:$X$199990,17,FALSE) -> 2 | V90: =VLOOKUP(A90,'Projections - Hitters'!$A$2:$X$199990,18,FALSE) -> 0.283 | W90: =VLOOKUP(A90,'Projections - Hitters'!$A$2:$X$199990,19,FALSE) -> 2.57 | X90: =VLOOKUP(A90,'Projections - Hitters'!$A$2:$X$199990,20,FALSE) -> 90.25 | Y90: =VLOOKUP(A90,'Projections - Hitters'!$A$2:$X$199990,21,FALSE) -> 0.349 | Z90: =VLOOKUP(A90,'Projections - Hitters'!$A$2:$X$199990,22,FALSE) -> 0.454 | AA90: =VLOOKUP(A90,'Projections - Hitters'!$A$2:$X$199990,23,FALSE) -> 0.8 | AB90: NL | AC90: 668804 | AD90: LF | AE90: =IF(ISNA(VLOOKUP(A90,Rankings!$B$2:$H$883,7,FALSE)),"-",VLOOKUP(A90,Rankings!$B$2:$H$883,7,FALSE)) -> 0
A91: Andrelton Simmons | B91: SS | C91: =((G91*'Points System'!$B$16)+(H91*'Points System'!$B$17)+(I91*'Points System'!$B$15)+(J91*'Points System'!$B$2)+(K91*'Points System'!$B$3)+(L91*'Points System'!$B$4)+(M91*'Points System'!$B$5)+(N91*'Points System'!$B$6)+(O91*'Points System'!$B$7)+(P91*'Points System'!$B$8)+(Q91*'Points System'!$B$9)+(R91*'Points System'!$B$10)+(S91*'Points System'!$B$11)+(T91*'Points System'!$B$13)+(U91*'Points System'!$B$12)+(X91*'Points System'!$B$14))*((100-Settings!$B$37)/100) -> 121.41 | D91: 0.605143797 | E91: 2.542617801 | F91: =VLOOKUP(A91,'Projections - Hitters'!$A$2:$X$199990,2,FALSE) -> 47.75 | G91: =VLOOKUP(A91,'Projections - Hitters'!$A$2:$X$199990,3,FALSE) -> 200.63 | H91: =VLOOKUP(A91,'Projections - Hitters'!$A$2:$X$199990,4,FALSE) -> 186.5 | I91: =VLOOKUP(A91,'Projections - Hitters'!$A$2:$X$199990,5,FALSE) -> 51.5 | J91: =VLOOKUP(A91,'Projections - Hitters'!$A$2:$X$199990,6,FALSE) -> 37.17 | K91: =VLOOKUP(A91,'Projections - Hitters'!$A$2:$X$199990,7,FALSE) -> 9.5 | L91: =VLOOKUP(A91,'Projections - Hitters'!$A$2:$X$199990,8,FALSE) -> 0.92 | M91: =VLOOKUP(A91,'Projections - Hitters'!$A$2:$X$199990,9,FALSE) -> 3.83 | N91: =VLOOKUP(A91,'Projections - Hitters'!$A$2:$X$199990,10,FALSE) -> 21.83 | O91: =VLOOKUP(A91,'Projections - Hitters'!$A$2:$X$199990,11,FALSE) -> 22.92 | P91: =VLOOKUP(A91,'Projections - Hitters'!$A$2:$X$199990,12,FALSE) -> 12.25 | Q91: =VLOOKUP(A91,'Projections - Hitters'!$A$2:$X$199990,13,FALSE) -> 18.18 | R91: =VLOOKUP(A91,'Projections - Hitters'!$A$2:$X$199990,14,FALSE) -> 3.67 | S91: =VLOOKUP(A91,'Projections - Hitters'!$A$2:$X$199990,15,FALSE) -> 1 | T91: =VLOOKUP(A91,'Projections - Hitters'!$A$2:$X$199990,16,FALSE) -> 1 | U91: =VLOOKUP(A91,'Projections - Hitters'!$A$2:$X$199990,17,FALSE) -> 1 | V91: =VLOOKUP(A91,'Projections - Hitters'!$A$2:$X$199990,18,FALSE) -> 0.276 | W91: =VLOOKUP(A91,'Projections - Hitters'!$A$2:$X$199990,19,FALSE) -> 1.48 | X91: =VLOOKUP(A91,'Projections - Hitters'!$A$2:$X$199990,20,FALSE) -> 74.25 | Y91: =VLOOKUP(A91,'Projections - Hitters'!$A$2:$X$199990,21,FALSE) -> 0.323 | Z91: =VLOOKUP(A91,'Projections - Hitters'!$A$2:$X$199990,22,FALSE) -> 0.398 | AA91: =VLOOKUP(A91,'Projections - Hitters'!$A$2:$X$199990,23,FALSE) -> 0.72 | AB91: AL | AC91: 592743 | AD91: SS | AE91: =IF(ISNA(VLOOKUP(A91,Rankings!$B$2:$H$883,7,FALSE)),"-",VLOOKUP(A91,Rankings!$B$2:$H$883,7,FALSE)) -> 0
A92: Kolten Wong | B92: 2B | C92: =((G92*'Points System'!$B$16)+(H92*'Points System'!$B$17)+(I92*'Points System'!$B$15)+(J92*'Points System'!$B$2)+(K92*'Points System'!$B$3)+(L92*'Points System'!$B$4)+(M92*'Points System'!$B$5)+(N92*'Points System'!$B$6)+(O92*'Points System'!$B$7)+(P92*'Points System'!$B$8)+(Q92*'Points System'!$B$9)+(R92*'Points System'!$B$10)+(S92*'Points System'!$B$11)+(T92*'Points System'!$B$13)+(U92*'Points System'!$B$12)+(X92*'Points System'!$B$14))*((100-Settings!$B$37)/100) -> 121.39 | D92: 0.5928693529 | E92: 2.374144338 | F92: =VLOOKUP(A92,'Projections - Hitters'!$A$2:$X$199990,2,FALSE) -> 51.13 | G92: =VLOOKUP(A92,'Projections - Hitters'!$A$2:$X$199990,3,FALSE) -> 204.75 | H92: =VLOOKUP(A92,'Projections - Hitters'!$A$2:$X$199990,4,FALSE) -> 178.92 | I92: =VLOOKUP(A92,'Projections - Hitters'!$A$2:$X$199990,5,FALSE) -> 47.75 | J92: =VLOOKUP(A92,'Projections - Hitters'!$A$2:$X$199990,6,FALSE) -> 32.33 | K92: =VLOOKUP(A92,'Projections - Hitters'!$A$2:$X$199990,7,FALSE) -> 9.58 | L92: =VLOOKUP(A92,'Projections - Hitters'!$A$2:$X$199990,8,FALSE) -> 1.42 | M92: =VLOOKUP(A92,'Projections - Hitters'!$A$2:$X$199990,9,FALSE) -> 4.33 | N92: =VLOOKUP(A92,'Projections - Hitters'!$A$2:$X$199990,10,FALSE) -> 20.58 | O92: =VLOOKUP(A92,'Projections - Hitters'!$A$2:$X$199990,11,FALSE) -> 24.08 | P92: =VLOOKUP(A92,'Projections - Hitters'!$A$2:$X$199990,12,FALSE) -> 17.58 | Q92: =VLOOKUP(A92,'Projections - Hitters'!$A$2:$X$199990,13,FALSE) -> 31.55 | R92: =VLOOKUP(A92,'Projections - Hitters'!$A$2:$X$199990,14,FALSE) -> 6.42 | S92: =VLOOKUP(A92,'Projections - Hitters'!$A$2:$X$199990,15,FALSE) -> 1.91 | T92: =VLOOKUP(A92,'Projections - Hitters'!$A$2:$X$199990,16,FALSE) -> 1.5 | U92: =VLOOKUP(A92,'Projections - Hitters'!$A$2:$X$199990,17,FALSE) -> 5.2 | V92: =VLOOKUP(A92,'Projections - Hitters'!$A$2:$X$199990,18,FALSE) -> 0.267 | W92: =VLOOKUP(A92,'Projections - Hitters'!$A$2:$X$199990,19,FALSE) -> 1.79 | X92: =VLOOKUP(A92,'Projections - Hitters'!$A$2:$X$199990,20,FALSE) -> 73.07 | Y92: =VLOOKUP(A92,'Projections - Hitters'!$A$2:$X$199990,21,FALSE) -> 0.347 | Z92: =VLOOKUP(A92,'Projections - Hitters'!$A$2:$X$199990,22,FALSE) -> 0.408 | AA92: =VLOOKUP(A92,'Projections - Hitters'!$A$2:$X$199990,23,FALSE) -> 0.76 | AB92: NL | AC92: 543939 | AD92: 2B | AE92: =IF(ISNA(VLOOKUP(A92,Rankings!$B$2:$H$883,7,FALSE)),"-",VLOOKUP(A92,Rankings!$B$2:$H$883,7,FALSE)) -> 0
A93: Oscar Mercado | B93: OF | C93: =((G93*'Points System'!$B$16)+(H93*'Points System'!$B$17)+(I93*'Points System'!$B$15)+(J93*'Points System'!$B$2)+(K93*'Points System'!$B$3)+(L93*'Points System'!$B$4)+(M93*'Points System'!$B$5)+(N93*'Points System'!$B$6)+(O93*'Points System'!$B$7)+(P93*'Points System'!$B$8)+(Q93*'Points System'!$B$9)+(R93*'Points System'!$B$10)+(S93*'Points System'!$B$11)+(T93*'Points System'!$B$13)+(U93*'Points System'!$B$12)+(X93*'Points System'!$B$14))*((100-Settings!$B$37)/100) -> 121.28 | D93: 0.5515735856 | E93: 2.378039216 | F93: =VLOOKUP(A93,'Projections - Hitters'!$A$2:$X$199990,2,FALSE) -> 51 | G93: =VLOOKUP(A93,'Projections - Hitters'!$A$2:$X$199990,3,FALSE) -> 219.88 | H93: =VLOOKUP(A93,'Projections - Hitters'!$A$2:$X$199990,4,FALSE) -> 198.25 | I93: =VLOOKUP(A93,'Projections - Hitters'!$A$2:$X$199990,5,FALSE) -> 51.17 | J93: =VLOOKUP(A93,'Projections - Hitters'!$A$2:$X$199990,6,FALSE) -> 33.5 | K93: =VLOOKUP(A93,'Projections - Hitters'!$A$2:$X$199990,7,FALSE) -> 10.83 | L93: =VLOOKUP(A93,'Projections - Hitters'!$A$2:$X$199990,8,FALSE) -> 1.08 | M93: =VLOOKUP(A93,'Projections - Hitters'!$A$2:$X$199990,9,FALSE) -> 5.67 | N93: =VLOOKUP(A93,'Projections - Hitters'!$A$2:$X$199990,10,FALSE) -> 22.58 | O93: =VLOOKUP(A93,'Projections - Hitters'!$A$2:$X$199990,11,FALSE) -> 28.83 | P93: =VLOOKUP(A93,'Projections - Hitters'!$A$2:$X$199990,12,FALSE) -> 14.67 | Q93: =VLOOKUP(A93,'Projections - Hitters'!$A$2:$X$199990,13,FALSE) -> 42.55 | R93: =VLOOKUP(A93,'Projections - Hitters'!$A$2:$X$199990,14,FALSE) -> 8.08 | S93: =VLOOKUP(A93,'Projections - Hitters'!$A$2:$X$199990,15,FALSE) -> 3.09 | T93: =VLOOKUP(A93,'Projections - Hitters'!$A$2:$X$199990,16,FALSE) -> 1 | U93: =VLOOKUP(A93,'Projections - Hitters'!$A$2:$X$199990,17,FALSE) -> 2.6 | V93: =VLOOKUP(A93,'Projections - Hitters'!$A$2:$X$199990,18,FALSE) -> 0.258 | W93: =VLOOKUP(A93,'Projections - Hitters'!$A$2:$X$199990,19,FALSE) -> 2.9 | X93: =VLOOKUP(A93,'Projections - Hitters'!$A$2:$X$199990,20,FALSE) -> 81.08 | Y93: =VLOOKUP(A93,'Projections - Hitters'!$A$2:$X$199990,21,FALSE) -> 0.316 | Z93: =VLOOKUP(A93,'Projections - Hitters'!$A$2:$X$199990,22,FALSE) -> 0.409 | AA93: =VLOOKUP(A93,'Projections - Hitters'!$A$2:$X$199990,23,FALSE) -> 0.73 | AB93: AL | AC93: 640458 | AD93: CF | AE93: =IF(ISNA(VLOOKUP(A93,Rankings!$B$2:$H$883,7,FALSE)),"-",VLOOKUP(A93,Rankings!$B$2:$H$883,7,FALSE)) -> 0
A94: Adalberto Mondesi | B94: SS | C94: =((G94*'Points System'!$B$16)+(H94*'Points System'!$B$17)+(I94*'Points System'!$B$15)+(J94*'Points System'!$B$2)+(K94*'Points System'!$B$3)+(L94*'Points System'!$B$4)+(M94*'Points System'!$B$5)+(N94*'Points System'!$B$6)+(O94*'Points System'!$B$7)+(P94*'Points System'!$B$8)+(Q94*'Points System'!$B$9)+(R94*'Points System'!$B$10)+(S94*'Points System'!$B$11)+(T94*'Points System'!$B$13)+(U94*'Points System'!$B$12)+(X94*'Points System'!$B$14))*((100-Settings!$B$37)/100) -> 120.42 | D94: 0.5730738115 | E94: 2.438639125 | F94: =VLOOKUP(A94,'Projections - Hitters'!$A$2:$X$199990,2,FALSE) -> 49.38 | G94: =VLOOKUP(A94,'Projections - Hitters'!$A$2:$X$199990,3,FALSE) -> 210.13 | H94: =VLOOKUP(A94,'Projections - Hitters'!$A$2:$X$199990,4,FALSE) -> 195.92 | I94: =VLOOKUP(A94,'Projections - Hitters'!$A$2:$X$199990,5,FALSE) -> 49.5 | J94: =VLOOKUP(A94,'Projections - Hitters'!$A$2:$X$199990,6,FALSE) -> 30.25 | K94: =VLOOKUP(A94,'Projections - Hitters'!$A$2:$X$199990,7,FALSE) -> 9.67 | L94: =VLOOKUP(A94,'Projections - Hitters'!$A$2:$X$199990,8,FALSE) -> 3.17 | M94: =VLOOKUP(A94,'Projections - Hitters'!$A$2:$X$199990,9,FALSE) -> 6.33 | N94: =VLOOKUP(A94,'Projections - Hitters'!$A$2:$X$199990,10,FALSE) -> 25.08 | O94: =VLOOKUP(A94,'Projections - Hitters'!$A$2:$X$199990,11,FALSE) -> 27.33 | P94: =VLOOKUP(A94,'Projections - Hitters'!$A$2:$X$199990,12,FALSE) -> 10 | Q94: =VLOOKUP(A94,'Projections - Hitters'!$A$2:$X$199990,13,FALSE) -> 58.64 | R94: =VLOOKUP(A94,'Projections - Hitters'!$A$2:$X$199990,14,FALSE) -> 16.83 | S94: =VLOOKUP(A94,'Projections - Hitters'!$A$2:$X$199990,15,FALSE) -> 3.73 | T94: =VLOOKUP(A94,'Projections - Hitters'!$A$2:$X$199990,16,FALSE) -> 1.5 | U94: =VLOOKUP(A94,'Projections - Hitters'!$A$2:$X$199990,17,FALSE) -> 0.8 | V94: =VLOOKUP(A94,'Projections - Hitters'!$A$2:$X$199990,18,FALSE) -> 0.253 | W94: =VLOOKUP(A94,'Projections - Hitters'!$A$2:$X$199990,19,FALSE) -> 5.86 | X94: =VLOOKUP(A94,'Projections - Hitters'!$A$2:$X$199990,20,FALSE) -> 84.42 | Y94: =VLOOKUP(A94,'Projections - Hitters'!$A$2:$X$199990,21,FALSE) -> 0.29 | Z94: =VLOOKUP(A94,'Projections - Hitters'!$A$2:$X$199990,22,FALSE) -> 0.431 | AA94: =VLOOKUP(A94,'Projections - Hitters'!$A$2:$X$199990,23,FALSE) -> 0.72 | AB94: AL | AC94: 609275 | AD94: SS | AE94: =IF(ISNA(VLOOKUP(A94,Rankings!$B$2:$H$883,7,FALSE)),"-",VLOOKUP(A94,Rankings!$B$2:$H$883,7,FALSE)) -> 0
A95: Franmil Reyes | B95: OF | C95: =((G95*'Points System'!$B$16)+(H95*'Points System'!$B$17)+(I95*'Points System'!$B$15)+(J95*'Points System'!$B$2)+(K95*'Points System'!$B$3)+(L95*'Points System'!$B$4)+(M95*'Points System'!$B$5)+(N95*'Points System'!$B$6)+(O95*'Points System'!$B$7)+(P95*'Points System'!$B$8)+(Q95*'Points System'!$B$9)+(R95*'Points System'!$B$10)+(S95*'Points System'!$B$11)+(T95*'Points System'!$B$13)+(U95*'Points System'!$B$12)+(X95*'Points System'!$B$14))*((100-Settings!$B$37)/100) -> 120.38 | D95: 0.570521327 | E95: 2.309226933 | F95: =VLOOKUP(A95,'Projections - Hitters'!$A$2:$X$199990,2,FALSE) -> 52.13 | G95: =VLOOKUP(A95,'Projections - Hitters'!$A$2:$X$199990,3,FALSE) -> 211 | H95: =VLOOKUP(A95,'Projections - Hitters'!$A$2:$X$199990,4,FALSE) -> 189.55 | I95: =VLOOKUP(A95,'Projections - Hitters'!$A$2:$X$199990,5,FALSE) -> 48.91 | J95: =VLOOKUP(A95,'Projections - Hitters'!$A$2:$X$199990,6,FALSE) -> 27.64 | K95: =VLOOKUP(A95,'Projections - Hitters'!$A$2:$X$199990,7,FALSE) -> 8.09 | L95: =VLOOKUP(A95,'Projections - Hitters'!$A$2:$X$199990,8,FALSE) -> 0 | M95: =VLOOKUP(A95,'Projections - Hitters'!$A$2:$X$199990,9,FALSE) -> 13.09 | N95: =VLOOKUP(A95,'Projections - Hitters'!$A$2:$X$199990,10,FALSE) -> 33.55 | O95: =VLOOKUP(A95,'Projections - Hitters'!$A$2:$X$199990,11,FALSE) -> 27.91 | P95: =VLOOKUP(A95,'Projections - Hitters'!$A$2:$X$199990,12,FALSE) -> 18.82 | Q95: =VLOOKUP(A95,'Projections - Hitters'!$A$2:$X$199990,13,FALSE) -> 58.18 | R95: =VLOOKUP(A95,'Projections - Hitters'!$A$2:$X$199990,14,FALSE) -> 0 | S95: =VLOOKUP(A95,'Projections - Hitters'!$A$2:$X$199990,15,FALSE) -> 0 | T95: =VLOOKUP(A95,'Projections - Hitters'!$A$2:$X$199990,16,FALSE) -> 1.5 | U95: =VLOOKUP(A95,'Projections - Hitters'!$A$2:$X$199990,17,FALSE) -> 0.6 | V95: =VLOOKUP(A95,'Projections - Hitters'!$A$2:$X$199990,18,FALSE) -> 0.258 | W95: =VLOOKUP(A95,'Projections - Hitters'!$A$2:$X$199990,19,FALSE) -> 3.09 | X95: =VLOOKUP(A95,'Projections - Hitters'!$A$2:$X$199990,20,FALSE) -> 96.18 | Y95: =VLOOKUP(A95,'Projections - Hitters'!$A$2:$X$199990,21,FALSE) -> 0.325 | Z95: =VLOOKUP(A95,'Projections - Hitters'!$A$2:$X$199990,22,FALSE) -> 0.507 | AA95: =VLOOKUP(A95,'Projections - Hitters'!$A$2:$X$199990,23,FALSE) -> 0.83 | AB95: AL | AC95: 614177 | AD95: DH | AE95: =IF(ISNA(VLOOKUP(A95,Rankings!$B$2:$H$883,7,FALSE)),"-",VLOOKUP(A95,Rankings!$B$2:$H$883,7,FALSE)) -> 0
A96: Brian Anderson | B96: 3B/OF | C96: =((G96*'Points System'!$B$16)+(H96*'Points System'!$B$17)+(I96*'Points System'!$B$15)+(J96*'Points System'!$B$2)+(K96*'Points System'!$B$3)+(L96*'Points System'!$B$4)+(M96*'Points System'!$B$5)+(N96*'Points System'!$B$6)+(O96*'Points System'!$B$7)+(P96*'Points System'!$B$8)+(Q96*'Points System'!$B$9)+(R96*'Points System'!$B$10)+(S96*'Points System'!$B$11)+(T96*'Points System'!$B$13)+(U96*'Points System'!$B$12)+(X96*'Points System'!$B$14))*((100-Settings!$B$37)/100) -> 119.96 | D96: 0.5296247241 | E96: 2.263396226 | F96: =VLOOKUP(A96,'Projections - Hitters'!$A$2:$X$199990,2,FALSE) -> 53 | G96: =VLOOKUP(A96,'Projections - Hitters'!$A$2:$X$199990,3,FALSE) -> 226.5 | H96: =VLOOKUP(A96,'Projections - Hitters'!$A$2:$X$199990,4,FALSE) -> 199.83 | I96: =VLOOKUP(A96,'Projections - Hitters'!$A$2:$X$199990,5,FALSE) -> 52.17 | J96: =VLOOKUP(A96,'Projections - Hitters'!$A$2:$X$199990,6,FALSE) -> 32.33 | K96: =VLOOKUP(A96,'Projections - Hitters'!$A$2:$X$199990,7,FALSE) -> 11.58 | L96: =VLOOKUP(A96,'Projections - Hitters'!$A$2:$X$199990,8,FALSE) -> 0.92 | M96: =VLOOKUP(A96,'Projections - Hitters'!$A$2:$X$199990,9,FALSE) -> 7.25 | N96: =VLOOKUP(A96,'Projections - Hitters'!$A$2:$X$199990,10,FALSE) -> 26.33 | O96: =VLOOKUP(A96,'Projections - Hitters'!$A$2:$X$199990,11,FALSE) -> 27.17 | P96: =VLOOKUP(A96,'Projections - Hitters'!$A$2:$X$199990,12,FALSE) -> 20 | Q96: =VLOOKUP(A96,'Projections - Hitters'!$A$2:$X$199990,13,FALSE) -> 49 | R96: =VLOOKUP(A96,'Projections - Hitters'!$A$2:$X$199990,14,FALSE) -> 1.67 | S96: =VLOOKUP(A96,'Projections - Hitters'!$A$2:$X$199990,15,FALSE) -> 0.73 | T96: =VLOOKUP(A96,'Projections - Hitters'!$A$2:$X$199990,16,FALSE) -> 1 | U96: =VLOOKUP(A96,'Projections - Hitters'!$A$2:$X$199990,17,FALSE) -> 4.6 | V96: =VLOOKUP(A96,'Projections - Hitters'!$A$2:$X$199990,18,FALSE) -> 0.261 | W96: =VLOOKUP(A96,'Projections - Hitters'!$A$2:$X$199990,19,FALSE) -> 2.45 | X96: =VLOOKUP(A96,'Projections - Hitters'!$A$2:$X$199990,20,FALSE) -> 87.25 | Y96: =VLOOKUP(A96,'Projections - Hitters'!$A$2:$X$199990,21,FALSE) -> 0.341 | Z96: =VLOOKUP(A96,'Projections - Hitters'!$A$2:$X$199990,22,FALSE) -> 0.437 | AA96: =VLOOKUP(A96,'Projections - Hitters'!$A$2:$X$199990,23,FALSE) -> 0.78 | AB96: NL | AC96: 605119 | AD96: 3B | AE96: =IF(ISNA(VLOOKUP(A96,Rankings!$B$2:$H$883,7,FALSE)),"-",VLOOKUP(A96,Rankings!$B$2:$H$883,7,FALSE)) -> 0
A97: Alex Verdugo | B97: OF | C97: =((G97*'Points System'!$B$16)+(H97*'Points System'!$B$17)+(I97*'Points System'!$B$15)+(J97*'Points System'!$B$2)+(K97*'Points System'!$B$3)+(L97*'Points System'!$B$4)+(M97*'Points System'!$B$5)+(N97*'Points System'!$B$6)+(O97*'Points System'!$B$7)+(P97*'Points System'!$B$8)+(Q97*'Points System'!$B$9)+(R97*'Points System'!$B$10)+(S97*'Points System'!$B$11)+(T97*'Points System'!$B$13)+(U97*'Points System'!$B$12)+(X97*'Points System'!$B$14))*((100-Settings!$B$37)/100) -> 119.69 | D97: 0.6237752762 | E97: 2.560213904 | F97: =VLOOKUP(A97,'Projections - Hitters'!$A$2:$X$199990,2,FALSE) -> 46.75 | G97: =VLOOKUP(A97,'Projections - Hitters'!$A$2:$X$199990,3,FALSE) -> 191.88 | H97: =VLOOKUP(A97,'Projections - Hitters'!$A$2:$X$199990,4,FALSE) -> 171.18 | I97: =VLOOKUP(A97,'Projections - Hitters'!$A$2:$X$199990,5,FALSE) -> 50.27 | J97: =VLOOKUP(A97,'Projections - Hitters'!$A$2:$X$199990,6,FALSE) -> 32.82 | K97: =VLOOKUP(A97,'Projections - Hitters'!$A$2:$X$199990,7,FALSE) -> 11.18 | L97: =VLOOKUP(A97,'Projections - Hitters'!$A$2:$X$199990,8,FALSE) -> 0.91 | M97: =VLOOKUP(A97,'Projections - Hitters'!$A$2:$X$199990,9,FALSE) -> 5.18 | N97: =VLOOKUP(A97,'Projections - Hitters'!$A$2:$X$199990,10,FALSE) -> 22.09 | O97: =VLOOKUP(A97,'Projections - Hitters'!$A$2:$X$199990,11,FALSE) -> 23.73 | P97: =VLOOKUP(A97,'Projections - Hitters'!$A$2:$X$199990,12,FALSE) -> 14.82 | Q97: =VLOOKUP(A97,'Projections - Hitters'!$A$2:$X$199990,13,FALSE) -> 25.82 | R97: =VLOOKUP(A97,'Projections - Hitters'!$A$2:$X$199990,14,FALSE) -> 2.27 | S97: =VLOOKUP(A97,'Projections - Hitters'!$A$2:$X$199990,15,FALSE) -> 0.8 | T97: =VLOOKUP(A97,'Projections - Hitters'!$A$2:$X$199990,16,FALSE) -> 1.5 | U97: =VLOOKUP(A97,'Projections - Hitters'!$A$2:$X$199990,17,FALSE) -> 1 | V97: =VLOOKUP(A97,'Projections - Hitters'!$A$2:$X$199990,18,FALSE) -> 0.294 | W97: =VLOOKUP(A97,'Projections - Hitters'!$A$2:$X$199990,19,FALSE) -> 1.74 | X97: =VLOOKUP(A97,'Projections - Hitters'!$A$2:$X$199990,20,FALSE) -> 78.63 | Y97: =VLOOKUP(A97,'Projections - Hitters'!$A$2:$X$199990,21,FALSE) -> 0.351 | Z97: =VLOOKUP(A97,'Projections - Hitters'!$A$2:$X$199990,22,FALSE) -> 0.459 | AA97: =VLOOKUP(A97,'Projections - Hitters'!$A$2:$X$199990,23,FALSE) -> 0.81 | AB97: AL | AC97: 657077 | AD97: RF | AE97: =IF(ISNA(VLOOKUP(A97,Rankings!$B$2:$H$883,7,FALSE)),"-",VLOOKUP(A97,Rankings!$B$2:$H$883,7,FALSE)) -> 0
A98: Starlin Castro | B98: 2B/3B | C98: =((G98*'Points System'!$B$16)+(H98*'Points System'!$B$17)+(I98*'Points System'!$B$15)+(J98*'Points System'!$B$2)+(K98*'Points System'!$B$3)+(L98*'Points System'!$B$4)+(M98*'Points System'!$B$5)+(N98*'Points System'!$B$6)+(O98*'Points System'!$B$7)+(P98*'Points System'!$B$8)+(Q98*'Points System'!$B$9)+(R98*'Points System'!$B$10)+(S98*'Points System'!$B$11)+(T98*'Points System'!$B$13)+(U98*'Points System'!$B$12)+(X98*'Points System'!$B$14))*((100-Settings!$B$37)/100) -> 119.63 | D98: 0.5717084827 | E98: 2.422640745 | F98: =VLOOKUP(A98,'Projections - Hitters'!$A$2:$X$199990,2,FALSE) -> 49.38 | G98: =VLOOKUP(A98,'Projections - Hitters'!$A$2:$X$199990,3,FALSE) -> 209.25 | H98: =VLOOKUP(A98,'Projections - Hitters'!$A$2:$X$199990,4,FALSE) -> 195.83 | I98: =VLOOKUP(A98,'Projections - Hitters'!$A$2:$X$199990,5,FALSE) -> 55.42 | J98: =VLOOKUP(A98,'Projections - Hitters'!$A$2:$X$199990,6,FALSE) -> 37.08 | K98: =VLOOKUP(A98,'Projections - Hitters'!$A$2:$X$199990,7,FALSE) -> 10.17 | L98: =VLOOKUP(A98,'Projections - Hitters'!$A$2:$X$199990,8,FALSE) -> 0.92 | M98: =VLOOKUP(A98,'Projections - Hitters'!$A$2:$X$199990,9,FALSE) -> 7.08 | N98: =VLOOKUP(A98,'Projections - Hitters'!$A$2:$X$199990,10,FALSE) -> 27.75 | O98: =VLOOKUP(A98,'Projections - Hitters'!$A$2:$X$199990,11,FALSE) -> 25 | P98: =VLOOKUP(A98,'Projections - Hitters'!$A$2:$X$199990,12,FALSE) -> 11.25 | Q98: =VLOOKUP(A98,'Projections - Hitters'!$A$2:$X$199990,13,FALSE) -> 36.64 | R98: =VLOOKUP(A98,'Projections - Hitters'!$A$2:$X$199990,14,FALSE) -> 1 | S98: =VLOOKUP(A98,'Projections - Hitters'!$A$2:$X$199990,15,FALSE) -> 0.73 | T98: =VLOOKUP(A98,'Projections - Hitters'!$A$2:$X$199990,16,FALSE) -> 1.5 | U98: =VLOOKUP(A98,'Projections - Hitters'!$A$2:$X$199990,17,FALSE) -> 1 | V98: =VLOOKUP(A98,'Projections - Hitters'!$A$2:$X$199990,18,FALSE) -> 0.283 | W98: =VLOOKUP(A98,'Projections - Hitters'!$A$2:$X$199990,19,FALSE) -> 3.26 | X98: =VLOOKUP(A98,'Projections - Hitters'!$A$2:$X$199990,20,FALSE) -> 88.5 | Y98: =VLOOKUP(A98,'Projections - Hitters'!$A$2:$X$199990,21,FALSE) -> 0.323 | Z98: =VLOOKUP(A98,'Projections - Hitters'!$A$2:$X$199990,22,FALSE) -> 0.452 | AA98: =VLOOKUP(A98,'Projections - Hitters'!$A$2:$X$199990,23,FALSE) -> 0.78 | AB98: NL | AC98: 516770 | AD98: 2B | AE98: =IF(ISNA(VLOOKUP(A98,Rankings!$B$2:$H$883,7,FALSE)),"-",VLOOKUP(A98,Rankings!$B$2:$H$883,7,FALSE)) -> 0
A99: Joey Gallo | B99: OF | C99: =((G99*'Points System'!$B$16)+(H99*'Points System'!$B$17)+(I99*'Points System'!$B$15)+(J99*'Points System'!$B$2)+(K99*'Points System'!$B$3)+(L99*'Points System'!$B$4)+(M99*'Points System'!$B$5)+(N99*'Points System'!$B$6)+(O99*'Points System'!$B$7)+(P99*'Points System'!$B$8)+(Q99*'Points System'!$B$9)+(R99*'Points System'!$B$10)+(S99*'Points System'!$B$11)+(T99*'Points System'!$B$13)+(U99*'Points System'!$B$12)+(X99*'Points System'!$B$14))*((100-Settings!$B$37)/100) -> 118.35 | D99: 0.5962216625 | E99: 2.452849741 | F99: =VLOOKUP(A99,'Projections - Hitters'!$A$2:$X$199990,2,FALSE) -> 48.25 | G99: =VLOOKUP(A99,'Projections - Hitters'!$A$2:$X$199990,3,FALSE) -> 198.5 | H99: =VLOOKUP(A99,'Projections - Hitters'!$A$2:$X$199990,4,FALSE) -> 171 | I99: =VLOOKUP(A99,'Projections - Hitters'!$A$2:$X$199990,5,FALSE) -> 39.08 | J99: =VLOOKUP(A99,'Projections - Hitters'!$A$2:$X$199990,6,FALSE) -> 15.42 | K99: =VLOOKUP(A99,'Projections - Hitters'!$A$2:$X$199990,7,FALSE) -> 8 | L99: =VLOOKUP(A99,'Projections - Hitters'!$A$2:$X$199990,8,FALSE) -> 0.92 | M99: =VLOOKUP(A99,'Projections - Hitters'!$A$2:$X$199990,9,FALSE) -> 14.67 | N99: =VLOOKUP(A99,'Projections - Hitters'!$A$2:$X$199990,10,FALSE) -> 33.33 | O99: =VLOOKUP(A99,'Projections - Hitters'!$A$2:$X$199990,11,FALSE) -> 31.08 | P99: =VLOOKUP(A99,'Projections - Hitters'!$A$2:$X$199990,12,FALSE) -> 29.58 | Q99: =VLOOKUP(A99,'Projections - Hitters'!$A$2:$X$199990,13,FALSE) -> 73.55 | R99: =VLOOKUP(A99,'Projections - Hitters'!$A$2:$X$199990,14,FALSE) -> 1.92 | S99: =VLOOKUP(A99,'Projections - Hitters'!$A$2:$X$199990,15,FALSE) -> 1.09 | T99: =VLOOKUP(A99,'Projections - Hitters'!$A$2:$X$199990,16,FALSE) -> 0.5 | U99: =VLOOKUP(A99,'Projections - Hitters'!$A$2:$X$199990,17,FALSE) -> 1.8 | V99: =VLOOKUP(A99,'Projections - Hitters'!$A$2:$X$199990,18,FALSE) -> 0.229 | W99: =VLOOKUP(A99,'Projections - Hitters'!$A$2:$X$199990,19,FALSE) -> 2.49 | X99: =VLOOKUP(A99,'Projections - Hitters'!$A$2:$X$199990,20,FALSE) -> 92.86 | Y99: =VLOOKUP(A99,'Projections - Hitters'!$A$2:$X$199990,21,FALSE) -> 0.347 | Z99: =VLOOKUP(A99,'Projections - Hitters'!$A$2:$X$199990,22,FALSE) -> 0.543 | AA99: =VLOOKUP(A99,'Projections - Hitters'!$A$2:$X$199990,23,FALSE) -> 0.89 | AB99: AL | AC99: 608336 | AD99: RF | AE99: =IF(ISNA(VLOOKUP(A99,Rankings!$B$2:$H$883,7,FALSE)),"-",VLOOKUP(A99,Rankings!$B$2:$H$883,7,FALSE)) -> 0
A100: Kevin Newman | B100: SS/2B | C100: =((G100*'Points System'!$B$16)+(H100*'Points System'!$B$17)+(I100*'Points System'!$B$15)+(J100*'Points System'!$B$2)+(K100*'Points System'!$B$3)+(L100*'Points System'!$B$4)+(M100*'Points System'!$B$5)+(N100*'Points System'!$B$6)+(O100*'Points System'!$B$7)+(P100*'Points System'!$B$8)+(Q100*'Points System'!$B$9)+(R100*'Points System'!$B$10)+(S100*'Points System'!$B$11)+(T100*'Points System'!$B$13)+(U100*'Points System'!$B$12)+(X100*'Points System'!$B$14))*((100-Settings!$B$37)/100) -> 117.93 | D100: 0.5575886525 | E100: 2.346865672 | F100: =VLOOKUP(A100,'Projections - Hitters'!$A$2:$X$199990,2,FALSE) -> 50.25 | G100: =VLOOKUP(A100,'Projections - Hitters'!$A$2:$X$199990,3,FALSE) -> 211.5 | H100: =VLOOKUP(A100,'Projections - Hitters'!$A$2:$X$199990,4,FALSE) -> 196.67 | I100: =VLOOKUP(A100,'Projections - Hitters'!$A$2:$X$199990,5,FALSE) -> 54.83 | J100: =VLOOKUP(A100,'Projections - Hitters'!$A$2:$X$199990,6,FALSE) -> 40.17 | K100: =VLOOKUP(A100,'Projections - Hitters'!$A$2:$X$199990,7,FALSE) -> 9.42 | L100: =VLOOKUP(A100,'Projections - Hitters'!$A$2:$X$199990,8,FALSE) -> 1.58 | M100: =VLOOKUP(A100,'Projections - Hitters'!$A$2:$X$199990,9,FALSE) -> 3.5 | N100: =VLOOKUP(A100,'Projections - Hitters'!$A$2:$X$199990,10,FALSE) -> 20.83 | O100: =VLOOKUP(A100,'Projections - Hitters'!$A$2:$X$199990,11,FALSE) -> 23.5 | P100: =VLOOKUP(A100,'Projections - Hitters'!$A$2:$X$199990,12,FALSE) -> 11.92 | Q100: =VLOOKUP(A100,'Projections - Hitters'!$A$2:$X$199990,13,FALSE) -> 27.73 | R100: =VLOOKUP(A100,'Projections - Hitters'!$A$2:$X$199990,14,FALSE) -> 5.75 | S100: =VLOOKUP(A100,'Projections - Hitters'!$A$2:$X$199990,15,FALSE) -> 2.64 | T100: =VLOOKUP(A100,'Projections - Hitters'!$A$2:$X$199990,16,FALSE) -> 1 | U100: =VLOOKUP(A100,'Projections - Hitters'!$A$2:$X$199990,17,FALSE) -> 1.8 | V100: =VLOOKUP(A100,'Projections - Hitters'!$A$2:$X$199990,18,FALSE) -> 0.279 | W100: =VLOOKUP(A100,'Projections - Hitters'!$A$2:$X$199990,19,FALSE) -> 2.33 | X100: =VLOOKUP(A100,'Projections - Hitters'!$A$2:$X$199990,20,FALSE) -> 77.75 | Y100: =VLOOKUP(A100,'Projections - Hitters'!$A$2:$X$199990,21,FALSE) -> 0.324 | Z100: =VLOOKUP(A100,'Projections - Hitters'!$A$2:$X$199990,22,FALSE) -> 0.395 | AA100: =VLOOKUP(A100,'Projections - Hitters'!$A$2:$X$199990,23,FALSE) -> 0.72 | AB100: NL | AC100: 621028 | AD100: SS | AE100: =IF(ISNA(VLOOKUP(A100,Rankings!$B$2:$H$883,7,FALSE)),"-",VLOOKUP(A100,Rankings!$B$2:$H$883,7,FALSE)) -> 0
A101: Ramon Laureano | B101: OF | C101: =((G101*'Points System'!$B$16)+(H101*'Points System'!$B$17)+(I101*'Points System'!$B$15)+(J101*'Points System'!$B$2)+(K101*'Points System'!$B$3)+(L101*'Points System'!$B$4)+(M101*'Points System'!$B$5)+(N101*'Points System'!$B$6)+(O101*'Points System'!$B$7)+(P101*'Points System'!$B$8)+(Q101*'Points System'!$B$9)+(R101*'Points System'!$B$10)+(S101*'Points System'!$B$11)+(T101*'Points System'!$B$13)+(U101*'Points System'!$B$12)+(X101*'Points System'!$B$14))*((100-Settings!$B$37)/100) -> 117.89 | D101: 0.5640669856 | E101: 2.369648241 | F101: =VLOOKUP(A101,'Projections - Hitters'!$A$2:$X$199990,2,FALSE) -> 49.75 | G101: =VLOOKUP(A101,'Projections - Hitters'!$A$2:$X$199990,3,FALSE) -> 209 | H101: =VLOOKUP(A101,'Projections - Hitters'!$A$2:$X$199990,4,FALSE) -> 186.18 | I101: =VLOOKUP(A101,'Projections - Hitters'!$A$2:$X$199990,5,FALSE) -> 49.73 | J101: =VLOOKUP(A101,'Projections - Hitters'!$A$2:$X$199990,6,FALSE) -> 29.82 | K101: =VLOOKUP(A101,'Projections - Hitters'!$A$2:$X$199990,7,FALSE) -> 10.73 | L101: =VLOOKUP(A101,'Projections - Hitters'!$A$2:$X$199990,8,FALSE) -> 0.82 | M101: =VLOOKUP(A101,'Projections - Hitters'!$A$2:$X$199990,9,FALSE) -> 8.18 | N101: =VLOOKUP(A101,'Projections - Hitters'!$A$2:$X$199990,10,FALSE) -> 25.73 | O101: =VLOOKUP(A101,'Projections - Hitters'!$A$2:$X$199990,11,FALSE) -> 29.45 | P101: =VLOOKUP(A101,'Projections - Hitters'!$A$2:$X$199990,12,FALSE) -> 15.09 | Q101: =VLOOKUP(A101,'Projections - Hitters'!$A$2:$X$199990,13,FALSE) -> 54.18 | R101: =VLOOKUP(A101,'Projections - Hitters'!$A$2:$X$199990,14,FALSE) -> 5.82 | S101: =VLOOKUP(A101,'Projections - Hitters'!$A$2:$X$199990,15,FALSE) -> 1.5 | T101: =VLOOKUP(A101,'Projections - Hitters'!$A$2:$X$199990,16,FALSE) -> 2 | U101: =VLOOKUP(A101,'Projections - Hitters'!$A$2:$X$199990,17,FALSE) -> 3.2 | V101: =VLOOKUP(A101,'Projections - Hitters'!$A$2:$X$199990,18,FALSE) -> 0.267 | W101: =VLOOKUP(A101,'Projections - Hitters'!$A$2:$X$199990,19,FALSE) -> 3.59 | X101: =VLOOKUP(A101,'Projections - Hitters'!$A$2:$X$199990,20,FALSE) -> 86.46 | Y101: =VLOOKUP(A101,'Projections - Hitters'!$A$2:$X$199990,21,FALSE) -> 0.329 | Z101: =VLOOKUP(A101,'Projections - Hitters'!$A$2:$X$199990,22,FALSE) -> 0.464 | AA101: =VLOOKUP(A101,'Projections - Hitters'!$A$2:$X$199990,23,FALSE) -> 0.79 | AB101: AL | AC101: 657656 | AD101: CF | AE101: =IF(ISNA(VLOOKUP(A101,Rankings!$B$2:$H$883,7,FALSE)),"-",VLOOKUP(A101,Rankings!$B$2:$H$883,7,FALSE)) -> 0
A102: Jurickson Profar | B102: 2B/SS | C102: =((G102*'Points System'!$B$16)+(H102*'Points System'!$B$17)+(I102*'Points System'!$B$15)+(J102*'Points System'!$B$2)+(K102*'Points System'!$B$3)+(L102*'Points System'!$B$4)+(M102*'Points System'!$B$5)+(N102*'Points System'!$B$6)+(O102*'Points System'!$B$7)+(P102*'Points System'!$B$8)+(Q102*'Points System'!$B$9)+(R102*'Points System'!$B$10)+(S102*'Points System'!$B$11)+(T102*'Points System'!$B$13)+(U102*'Points System'!$B$12)+(X102*'Points System'!$B$14))*((100-Settings!$B$37)/100) -> 117.59 | D102: 0.6022535211 | E102: 2.399795918 | F102: =VLOOKUP(A102,'Projections - Hitters'!$A$2:$X$199990,2,FALSE) -> 49 | G102: =VLOOKUP(A102,'Projections - Hitters'!$A$2:$X$199990,3,FALSE) -> 195.25 | H102: =VLOOKUP(A102,'Projections - Hitters'!$A$2:$X$199990,4,FALSE) -> 173.17 | I102: =VLOOKUP(A102,'Projections - Hitters'!$A$2:$X$199990,5,FALSE) -> 42 | J102: =VLOOKUP(A102,'Projections - Hitters'!$A$2:$X$199990,6,FALSE) -> 24.92 | K102: =VLOOKUP(A102,'Projections - Hitters'!$A$2:$X$199990,7,FALSE) -> 9.67 | L102: =VLOOKUP(A102,'Projections - Hitters'!$A$2:$X$199990,8,FALSE) -> 1 | M102: =VLOOKUP(A102,'Projections - Hitters'!$A$2:$X$199990,9,FALSE) -> 6.25 | N102: =VLOOKUP(A102,'Projections - Hitters'!$A$2:$X$199990,10,FALSE) -> 23.17 | O102: =VLOOKUP(A102,'Projections - Hitters'!$A$2:$X$199990,11,FALSE) -> 24 | P102: =VLOOKUP(A102,'Projections - Hitters'!$A$2:$X$199990,12,FALSE) -> 18.25 | Q102: =VLOOKUP(A102,'Projections - Hitters'!$A$2:$X$199990,13,FALSE) -> 29.09 | R102: =VLOOKUP(A102,'Projections - Hitters'!$A$2:$X$199990,14,FALSE) -> 2.92 | S102: =VLOOKUP(A102,'Projections - Hitters'!$A$2:$X$199990,15,FALSE) -> 0.64 | T102: =VLOOKUP(A102,'Projections - Hitters'!$A$2:$X$199990,16,FALSE) -> 1 | U102: =VLOOKUP(A102,'Projections - Hitters'!$A$2:$X$199990,17,FALSE) -> 2.8 | V102: =VLOOKUP(A102,'Projections - Hitters'!$A$2:$X$199990,18,FALSE) -> 0.243 | W102: =VLOOKUP(A102,'Projections - Hitters'!$A$2:$X$199990,19,FALSE) -> 1.59 | X102: =VLOOKUP(A102,'Projections - Hitters'!$A$2:$X$199990,20,FALSE) -> 72.26 | Y102: =VLOOKUP(A102,'Projections - Hitters'!$A$2:$X$199990,21,FALSE) -> 0.323 | Z102: =VLOOKUP(A102,'Projections - Hitters'!$A$2:$X$199990,22,FALSE) -> 0.417 | AA102: =VLOOKUP(A102,'Projections - Hitters'!$A$2:$X$199990,23,FALSE) -> 0.74 | AB102: NL | AC102: 595777 | AD102: 2B | AE102: =IF(ISNA(VLOOKUP(A102,Rankings!$B$2:$H$883,7,FALSE)),"-",VLOOKUP(A102,Rankings!$B$2:$H$883,7,FALSE)) -> 0
A103: Jonathan Villar | B103: 2B/OF/SS | C103: =((G103*'Points System'!$B$16)+(H103*'Points System'!$B$17)+(I103*'Points System'!$B$15)+(J103*'Points System'!$B$2)+(K103*'Points System'!$B$3)+(L103*'Points System'!$B$4)+(M103*'Points System'!$B$5)+(N103*'Points System'!$B$6)+(O103*'Points System'!$B$7)+(P103*'Points System'!$B$8)+(Q103*'Points System'!$B$9)+(R103*'Points System'!$B$10)+(S103*'Points System'!$B$11)+(T103*'Points System'!$B$13)+(U103*'Points System'!$B$12)+(X103*'Points System'!$B$14))*((100-Settings!$B$37)/100) -> 116.67 | D103: 0.5072608696 | E103: 2.180747664 | F103: =VLOOKUP(A103,'Projections - Hitters'!$A$2:$X$199990,2,FALSE) -> 53.5 | G103: =VLOOKUP(A103,'Projections - Hitters'!$A$2:$X$199990,3,FALSE) -> 230 | H103: =VLOOKUP(A103,'Projections - Hitters'!$A$2:$X$199990,4,FALSE) -> 205.33 | I103: =VLOOKUP(A103,'Projections - Hitters'!$A$2:$X$199990,5,FALSE) -> 52.92 | J103: =VLOOKUP(A103,'Projections - Hitters'!$A$2:$X$199990,6,FALSE) -> 36.33 | K103: =VLOOKUP(A103,'Projections - Hitters'!$A$2:$X$199990,7,FALSE) -> 9.25 | L103: =VLOOKUP(A103,'Projections - Hitters'!$A$2:$X$199990,8,FALSE) -> 1.08 | M103: =VLOOKUP(A103,'Projections - Hitters'!$A$2:$X$199990,9,FALSE) -> 6.17 | N103: =VLOOKUP(A103,'Projections - Hitters'!$A$2:$X$199990,10,FALSE) -> 20.83 | O103: =VLOOKUP(A103,'Projections - Hitters'!$A$2:$X$199990,11,FALSE) -> 29 | P103: =VLOOKUP(A103,'Projections - Hitters'!$A$2:$X$199990,12,FALSE) -> 19.25 | Q103: =VLOOKUP(A103,'Projections - Hitters'!$A$2:$X$199990,13,FALSE) -> 59.27 | R103: =VLOOKUP(A103,'Projections - Hitters'!$A$2:$X$199990,14,FALSE) -> 12.5 | S103: =VLOOKUP(A103,'Projections - Hitters'!$A$2:$X$199990,15,FALSE) -> 3.09 | T103: =VLOOKUP(A103,'Projections - Hitters'!$A$2:$X$199990,16,FALSE) -> 1 | U103: =VLOOKUP(A103,'Projections - Hitters'!$A$2:$X$199990,17,FALSE) -> 1.2 | V103: =VLOOKUP(A103,'Projections - Hitters'!$A$2:$X$199990,18,FALSE) -> 0.258 | W103: =VLOOKUP(A103,'Projections - Hitters'!$A$2:$X$199990,19,FALSE) -> 3.08 | X103: =VLOOKUP(A103,'Projections - Hitters'!$A$2:$X$199990,20,FALSE) -> 82.75 | Y103: =VLOOKUP(A103,'Projections - Hitters'!$A$2:$X$199990,21,FALSE) -> 0.324 | Z103: =VLOOKUP(A103,'Projections - Hitters'!$A$2:$X$199990,22,FALSE) -> 0.403 | AA103: =VLOOKUP(A103,'Projections - Hitters'!$A$2:$X$199990,23,FALSE) -> 0.73 | AB103: NL | AC103: 542340 | AD103: CF | AE103: =IF(ISNA(VLOOKUP(A103,Rankings!$B$2:$H$883,7,FALSE)),"-",VLOOKUP(A103,Rankings!$B$2:$H$883,7,FALSE)) -> 0
A104: Cesar Hernandez | B104: 2B | C104: =((G104*'Points System'!$B$16)+(H104*'Points System'!$B$17)+(I104*'Points System'!$B$15)+(J104*'Points System'!$B$2)+(K104*'Points System'!$B$3)+(L104*'Points System'!$B$4)+(M104*'Points System'!$B$5)+(N104*'Points System'!$B$6)+(O104*'Points System'!$B$7)+(P104*'Points System'!$B$8)+(Q104*'Points System'!$B$9)+(R104*'Points System'!$B$10)+(S104*'Points System'!$B$11)+(T104*'Points System'!$B$13)+(U104*'Points System'!$B$12)+(X104*'Points System'!$B$14))*((100-Settings!$B$37)/100) -> 116.64 | D104: 0.5332114286 | E104: 2.232344498 | F104: =VLOOKUP(A104,'Projections - Hitters'!$A$2:$X$199990,2,FALSE) -> 52.25 | G104: =VLOOKUP(A104,'Projections - Hitters'!$A$2:$X$199990,3,FALSE) -> 218.75 | H104: =VLOOKUP(A104,'Projections - Hitters'!$A$2:$X$199990,4,FALSE) -> 194.92 | I104: =VLOOKUP(A104,'Projections - Hitters'!$A$2:$X$199990,5,FALSE) -> 53.5 | J104: =VLOOKUP(A104,'Projections - Hitters'!$A$2:$X$199990,6,FALSE) -> 39.33 | K104: =VLOOKUP(A104,'Projections - Hitters'!$A$2:$X$199990,7,FALSE) -> 8.83 | L104: =VLOOKUP(A104,'Projections - Hitters'!$A$2:$X$199990,8,FALSE) -> 1 | M104: =VLOOKUP(A104,'Projections - Hitters'!$A$2:$X$199990,9,FALSE) -> 4.17 | N104: =VLOOKUP(A104,'Projections - Hitters'!$A$2:$X$199990,10,FALSE) -> 21.58 | O104: =VLOOKUP(A104,'Projections - Hitters'!$A$2:$X$199990,11,FALSE) -> 26.42 | P104: =VLOOKUP(A104,'Projections - Hitters'!$A$2:$X$199990,12,FALSE) -> 20.67 | Q104: =VLOOKUP(A104,'Projections - Hitters'!$A$2:$X$199990,13,FALSE) -> 37.73 | R104: =VLOOKUP(A104,'Projections - Hitters'!$A$2:$X$199990,14,FALSE) -> 3.75 | S104: =VLOOKUP(A104,'Projections - Hitters'!$A$2:$X$199990,15,FALSE) -> 1.27 | T104: =VLOOKUP(A104,'Projections - Hitters'!$A$2:$X$199990,16,FALSE) -> 1 | U104: =VLOOKUP(A104,'Projections - Hitters'!$A$2:$X$199990,17,FALSE) -> 1.8 | V104: =VLOOKUP(A104,'Projections - Hitters'!$A$2:$X$199990,18,FALSE) -> 0.274 | W104: =VLOOKUP(A104,'Projections - Hitters'!$A$2:$X$199990,19,FALSE) -> 1.83 | X104: =VLOOKUP(A104,'Projections - Hitters'!$A$2:$X$199990,20,FALSE) -> 76.67 | Y104: =VLOOKUP(A104,'Projections - Hitters'!$A$2:$X$199990,21,FALSE) -> 0.348 | Z104: =VLOOKUP(A104,'Projections - Hitters'!$A$2:$X$199990,22,FALSE) -> 0.393 | AA104: =VLOOKUP(A104,'Projections - Hitters'!$A$2:$X$199990,23,FALSE) -> 0.74 | AB104: AL | AC104: 514917 | AD104: 2B | AE104: =IF(ISNA(VLOOKUP(A104,Rankings!$B$2:$H$883,7,FALSE)),"-",VLOOKUP(A104,Rankings!$B$2:$H$883,7,FALSE)) -> 0
A105: Eric Hosmer | B105: 1B | C105: =((G105*'Points System'!$B$16)+(H105*'Points System'!$B$17)+(I105*'Points System'!$B$15)+(J105*'Points System'!$B$2)+(K105*'Points System'!$B$3)+(L105*'Points System'!$B$4)+(M105*'Points System'!$B$5)+(N105*'Points System'!$B$6)+(O105*'Points System'!$B$7)+(P105*'Points System'!$B$8)+(Q105*'Points System'!$B$9)+(R105*'Points System'!$B$10)+(S105*'Points System'!$B$11)+(T105*'Points System'!$B$13)+(U105*'Points System'!$B$12)+(X105*'Points System'!$B$14))*((100-Settings!$B$37)/100) -> 116.22 | D105: 0.5088886943 | E105: 2.137182788 | F105: =VLOOKUP(A105,'Projections - Hitters'!$A$2:$X$199990,2,FALSE) -> 54.38 | G105: =VLOOKUP(A105,'Projections - Hitters'!$A$2:$X$199990,3,FALSE) -> 228.38 | H105: =VLOOKUP(A105,'Projections - Hitters'!$A$2:$X$199990,4,FALSE) -> 210.33 | I105: =VLOOKUP(A105,'Projections - Hitters'!$A$2:$X$199990,5,FALSE) -> 55.25 | J105: =VLOOKUP(A105,'Projections - Hitters'!$A$2:$X$199990,6,FALSE) -> 36.83 | K105: =VLOOKUP(A105,'Projections - Hitters'!$A$2:$X$199990,7,FALSE) -> 9.92 | L105: =VLOOKUP(A105,'Projections - Hitters'!$A$2:$X$199990,8,FALSE) -> 0.92 | M105: =VLOOKUP(A105,'Projections - Hitters'!$A$2:$X$199990,9,FALSE) -> 7.42 | N105: =VLOOKUP(A105,'Projections - Hitters'!$A$2:$X$199990,10,FALSE) -> 30.83 | O105: =VLOOKUP(A105,'Projections - Hitters'!$A$2:$X$199990,11,FALSE) -> 26.25 | P105: =VLOOKUP(A105,'Projections - Hitters'!$A$2:$X$199990,12,FALSE) -> 17.92 | Q105: =VLOOKUP(A105,'Projections - Hitters'!$A$2:$X$199990,13,FALSE) -> 51 | R105: =VLOOKUP(A105,'Projections - Hitters'!$A$2:$X$199990,14,FALSE) -> 0.92 | S105: =VLOOKUP(A105,'Projections - Hitters'!$A$2:$X$199990,15,FALSE) -> 0.73 | T105: =VLOOKUP(A105,'Projections - Hitters'!$A$2:$X$199990,16,FALSE) -> 1 | U105: =VLOOKUP(A105,'Projections - Hitters'!$A$2:$X$199990,17,FALSE) -> 1 | V105: =VLOOKUP(A105,'Projections - Hitters'!$A$2:$X$199990,18,FALSE) -> 0.263 | W105: =VLOOKUP(A105,'Projections - Hitters'!$A$2:$X$199990,19,FALSE) -> 2.85 | X105: =VLOOKUP(A105,'Projections - Hitters'!$A$2:$X$199990,20,FALSE) -> 89.11 | Y105: =VLOOKUP(A105,'Projections - Hitters'!$A$2:$X$199990,21,FALSE) -> 0.322 | Z105: =VLOOKUP(A105,'Projections - Hitters'!$A$2:$X$199990,22,FALSE) -> 0.424 | AA105: =VLOOKUP(A105,'Projections - Hitters'!$A$2:$X$199990,23,FALSE) -> 0.75 | AB105: NL | AC105: 543333 | AD105: 1B | AE105: =IF(ISNA(VLOOKUP(A105,Rankings!$B$2:$H$883,7,FALSE)),"-",VLOOKUP(A105,Rankings!$B$2:$H$883,7,FALSE)) -> 0
A106: David Peralta | B106: OF | C106: =((G106*'Points System'!$B$16)+(H106*'Points System'!$B$17)+(I106*'Points System'!$B$15)+(J106*'Points System'!$B$2)+(K106*'Points System'!$B$3)+(L106*'Points System'!$B$4)+(M106*'Points System'!$B$5)+(N106*'Points System'!$B$6)+(O106*'Points System'!$B$7)+(P106*'Points System'!$B$8)+(Q106*'Points System'!$B$9)+(R106*'Points System'!$B$10)+(S106*'Points System'!$B$11)+(T106*'Points System'!$B$13)+(U106*'Points System'!$B$12)+(X106*'Points System'!$B$14))*((100-Settings!$B$37)/100) -> 116.14 | D106: 0.5770931677 | E106: 2.504096593 | F106: =VLOOKUP(A106,'Projections - Hitters'!$A$2:$X$199990,2,FALSE) -> 46.38 | G106: =VLOOKUP(A106,'Projections - Hitters'!$A$2:$X$199990,3,FALSE) -> 201.25 | H106: =VLOOKUP(A106,'Projections - Hitters'!$A$2:$X$199990,4,FALSE) -> 183.83 | I106: =VLOOKUP(A106,'Projections - Hitters'!$A$2:$X$199990,5,FALSE) -> 51.08 | J106: =VLOOKUP(A106,'Projections - Hitters'!$A$2:$X$199990,6,FALSE) -> 32.08 | K106: =VLOOKUP(A106,'Projections - Hitters'!$A$2:$X$199990,7,FALSE) -> 10.75 | L106: =VLOOKUP(A106,'Projections - Hitters'!$A$2:$X$199990,8,FALSE) -> 1.25 | M106: =VLOOKUP(A106,'Projections - Hitters'!$A$2:$X$199990,9,FALSE) -> 6.83 | N106: =VLOOKUP(A106,'Projections - Hitters'!$A$2:$X$199990,10,FALSE) -> 26.58 | O106: =VLOOKUP(A106,'Projections - Hitters'!$A$2:$X$199990,11,FALSE) -> 24.67 | P106: =VLOOKUP(A106,'Projections - Hitters'!$A$2:$X$199990,12,FALSE) -> 15.67 | Q106: =VLOOKUP(A106,'Projections - Hitters'!$A$2:$X$199990,13,FALSE) -> 40.27 | R106: =VLOOKUP(A106,'Projections - Hitters'!$A$2:$X$199990,14,FALSE) -> 0.92 | S106: =VLOOKUP(A106,'Projections - Hitters'!$A$2:$X$199990,15,FALSE) -> 0 | T106: =VLOOKUP(A106,'Projections - Hitters'!$A$2:$X$199990,16,FALSE) -> 1 | U106: =VLOOKUP(A106,'Projections - Hitters'!$A$2:$X$199990,17,FALSE) -> 2 | V106: =VLOOKUP(A106,'Projections - Hitters'!$A$2:$X$199990,18,FALSE) -> 0.278 | W106: =VLOOKUP(A106,'Projections - Hitters'!$A$2:$X$199990,19,FALSE) -> 2.57 | X106: =VLOOKUP(A106,'Projections - Hitters'!$A$2:$X$199990,20,FALSE) -> 84.65 | Y106: =VLOOKUP(A106,'Projections - Hitters'!$A$2:$X$199990,21,FALSE) -> 0.34 | Z106: =VLOOKUP(A106,'Projections - Hitters'!$A$2:$X$199990,22,FALSE) -> 0.46 | AA106: =VLOOKUP(A106,'Projections - Hitters'!$A$2:$X$199990,23,FALSE) -> 0.8 | AB106: NL | AC106: 444482 | AD106: LF | AE106: =IF(ISNA(VLOOKUP(A106,Rankings!$B$2:$H$883,7,FALSE)),"-",VLOOKUP(A106,Rankings!$B$2:$H$883,7,FALSE)) -> 0
A107: Khris Davis | B107: DH | C107: =((G107*'Points System'!$B$16)+(H107*'Points System'!$B$17)+(I107*'Points System'!$B$15)+(J107*'Points System'!$B$2)+(K107*'Points System'!$B$3)+(L107*'Points System'!$B$4)+(M107*'Points System'!$B$5)+(N107*'Points System'!$B$6)+(O107*'Points System'!$B$7)+(P107*'Points System'!$B$8)+(Q107*'Points System'!$B$9)+(R107*'Points System'!$B$10)+(S107*'Points System'!$B$11)+(T107*'Points System'!$B$13)+(U107*'Points System'!$B$12)+(X107*'Points System'!$B$14))*((100-Settings!$B$37)/100) -> 116.02 | D107: 0.5306682523 | E107: 2.204446133 | F107: =VLOOKUP(A107,'Projections - Hitters'!$A$2:$X$199990,2,FALSE) -> 52.63 | G107: =VLOOKUP(A107,'Projections - Hitters'!$A$2:$X$199990,3,FALSE) -> 218.63 | H107: =VLOOKUP(A107,'Projections - Hitters'!$A$2:$X$199990,4,FALSE) -> 196.42 | I107: =VLOOKUP(A107,'Projections - Hitters'!$A$2:$X$199990,5,FALSE) -> 46.5 | J107: =VLOOKUP(A107,'Projections - Hitters'!$A$2:$X$199990,6,FALSE) -> 26.17 | K107: =VLOOKUP(A107,'Projections - Hitters'!$A$2:$X$199990,7,FALSE) -> 7.67 | L107: =VLOOKUP(A107,'Projections - Hitters'!$A$2:$X$199990,8,FALSE) -> 0.08 | M107: =VLOOKUP(A107,'Projections - Hitters'!$A$2:$X$199990,9,FALSE) -> 12.5 | N107: =VLOOKUP(A107,'Projections - Hitters'!$A$2:$X$199990,10,FALSE) -> 34.5 | O107: =VLOOKUP(A107,'Projections - Hitters'!$A$2:$X$199990,11,FALSE) -> 28.33 | P107: =VLOOKUP(A107,'Projections - Hitters'!$A$2:$X$199990,12,FALSE) -> 19.67 | Q107: =VLOOKUP(A107,'Projections - Hitters'!$A$2:$X$199990,13,FALSE) -> 61.73 | R107: =VLOOKUP(A107,'Projections - Hitters'!$A$2:$X$199990,14,FALSE) -> 0 | S107: =VLOOKUP(A107,'Projections - Hitters'!$A$2:$X$199990,15,FALSE) -> 0 | T107: =VLOOKUP(A107,'Projections - Hitters'!$A$2:$X$199990,16,FALSE) -> 1.5 | U107: =VLOOKUP(A107,'Projections - Hitters'!$A$2:$X$199990,17,FALSE) -> 2 | V107: =VLOOKUP(A107,'Projections - Hitters'!$A$2:$X$199990,18,FALSE) -> 0.237 | W107: =VLOOKUP(A107,'Projections - Hitters'!$A$2:$X$199990,19,FALSE) -> 3.14 | X107: =VLOOKUP(A107,'Projections - Hitters'!$A$2:$X$199990,20,FALSE) -> 91.75 | Y107: =VLOOKUP(A107,'Projections - Hitters'!$A$2:$X$199990,21,FALSE) -> 0.31 | Z107: =VLOOKUP(A107,'Projections - Hitters'!$A$2:$X$199990,22,FALSE) -> 0.467 | AA107: =VLOOKUP(A107,'Projections - Hitters'!$A$2:$X$199990,23,FALSE) -> 0.78 | AB107: AL | AC107: 501981 | AD107: DH | AE107: =IF(ISNA(VLOOKUP(A107,Rankings!$B$2:$H$883,7,FALSE)),"-",VLOOKUP(A107,Rankings!$B$2:$H$883,7,FALSE)) -> 0
A108: Adam Frazier | B108: 2B | C108: =((G108*'Points System'!$B$16)+(H108*'Points System'!$B$17)+(I108*'Points System'!$B$15)+(J108*'Points System'!$B$2)+(K108*'Points System'!$B$3)+(L108*'Points System'!$B$4)+(M108*'Points System'!$B$5)+(N108*'Points System'!$B$6)+(O108*'Points System'!$B$7)+(P108*'Points System'!$B$8)+(Q108*'Points System'!$B$9)+(R108*'Points System'!$B$10)+(S108*'Points System'!$B$11)+(T108*'Points System'!$B$13)+(U108*'Points System'!$B$12)+(X108*'Points System'!$B$14))*((100-Settings!$B$37)/100) -> 115.7 | D108: 0.5559025609 | E108: 2.257560976 | F108: =VLOOKUP(A108,'Projections - Hitters'!$A$2:$X$199990,2,FALSE) -> 51.25 | G108: =VLOOKUP(A108,'Projections - Hitters'!$A$2:$X$199990,3,FALSE) -> 208.13 | H108: =VLOOKUP(A108,'Projections - Hitters'!$A$2:$X$199990,4,FALSE) -> 185.42 | I108: =VLOOKUP(A108,'Projections - Hitters'!$A$2:$X$199990,5,FALSE) -> 50.75 | J108: =VLOOKUP(A108,'Projections - Hitters'!$A$2:$X$199990,6,FALSE) -> 34.25 | K108: =VLOOKUP(A108,'Projections - Hitters'!$A$2:$X$199990,7,FALSE) -> 10.67 | L108: =VLOOKUP(A108,'Projections - Hitters'!$A$2:$X$199990,8,FALSE) -> 1.83 | M108: =VLOOKUP(A108,'Projections - Hitters'!$A$2:$X$199990,9,FALSE) -> 3.83 | N108: =VLOOKUP(A108,'Projections - Hitters'!$A$2:$X$199990,10,FALSE) -> 19.75 | O108: =VLOOKUP(A108,'Projections - Hitters'!$A$2:$X$199990,11,FALSE) -> 25.25 | P108: =VLOOKUP(A108,'Projections - Hitters'!$A$2:$X$199990,12,FALSE) -> 15.25 | Q108: =VLOOKUP(A108,'Projections - Hitters'!$A$2:$X$199990,13,FALSE) -> 27.73 | R108: =VLOOKUP(A108,'Projections - Hitters'!$A$2:$X$199990,14,FALSE) -> 2.17 | S108: =VLOOKUP(A108,'Projections - Hitters'!$A$2:$X$199990,15,FALSE) -> 1.36 | T108: =VLOOKUP(A108,'Projections - Hitters'!$A$2:$X$199990,16,FALSE) -> 1 | U108: =VLOOKUP(A108,'Projections - Hitters'!$A$2:$X$199990,17,FALSE) -> 2.8 | V108: =VLOOKUP(A108,'Projections - Hitters'!$A$2:$X$199990,18,FALSE) -> 0.274 | W108: =VLOOKUP(A108,'Projections - Hitters'!$A$2:$X$199990,19,FALSE) -> 1.82 | X108: =VLOOKUP(A108,'Projections - Hitters'!$A$2:$X$199990,20,FALSE) -> 76.4 | Y108: =VLOOKUP(A108,'Projections - Hitters'!$A$2:$X$199990,21,FALSE) -> 0.336 | Z108: =VLOOKUP(A108,'Projections - Hitters'!$A$2:$X$199990,22,FALSE) -> 0.412 | AA108: =VLOOKUP(A108,'Projections - Hitters'!$A$2:$X$199990,23,FALSE) -> 0.75 | AB108: NL | AC108: 624428 | AD108: 2B | AE108: =IF(ISNA(VLOOKUP(A108,Rankings!$B$2:$H$883,7,FALSE)),"-",VLOOKUP(A108,Rankings!$B$2:$H$883,7,FALSE)) -> 0
A109: Tommy Edman | B109: 3B/OF/2B/SS | C109: =((G109*'Points System'!$B$16)+(H109*'Points System'!$B$17)+(I109*'Points System'!$B$15)+(J109*'Points System'!$B$2)+(K109*'Points System'!$B$3)+(L109*'Points System'!$B$4)+(M109*'Points System'!$B$5)+(N109*'Points System'!$B$6)+(O109*'Points System'!$B$7)+(P109*'Points System'!$B$8)+(Q109*'Points System'!$B$9)+(R109*'Points System'!$B$10)+(S109*'Points System'!$B$11)+(T109*'Points System'!$B$13)+(U109*'Points System'!$B$12)+(X109*'Points System'!$B$14))*((100-Settings!$B$37)/100) -> 115.62 | D109: 0.5842935112 | E109: 2.479519623 | F109: =VLOOKUP(A109,'Projections - Hitters'!$A$2:$X$199990,2,FALSE) -> 46.63 | G109: =VLOOKUP(A109,'Projections - Hitters'!$A$2:$X$199990,3,FALSE) -> 197.88 | H109: =VLOOKUP(A109,'Projections - Hitters'!$A$2:$X$199990,4,FALSE) -> 182.5 | I109: =VLOOKUP(A109,'Projections - Hitters'!$A$2:$X$199990,5,FALSE) -> 50.17 | J109: =VLOOKUP(A109,'Projections - Hitters'!$A$2:$X$199990,6,FALSE) -> 34.08 | K109: =VLOOKUP(A109,'Projections - Hitters'!$A$2:$X$199990,7,FALSE) -> 9.08 | L109: =VLOOKUP(A109,'Projections - Hitters'!$A$2:$X$199990,8,FALSE) -> 2.25 | M109: =VLOOKUP(A109,'Projections - Hitters'!$A$2:$X$199990,9,FALSE) -> 4.67 | N109: =VLOOKUP(A109,'Projections - Hitters'!$A$2:$X$199990,10,FALSE) -> 20.17 | O109: =VLOOKUP(A109,'Projections - Hitters'!$A$2:$X$199990,11,FALSE) -> 25.42 | P109: =VLOOKUP(A109,'Projections - Hitters'!$A$2:$X$199990,12,FALSE) -> 11.33 | Q109: =VLOOKUP(A109,'Projections - Hitters'!$A$2:$X$199990,13,FALSE) -> 33.27 | R109: =VLOOKUP(A109,'Projections - Hitters'!$A$2:$X$199990,14,FALSE) -> 6.33 | S109: =VLOOKUP(A109,'Projections - Hitters'!$A$2:$X$199990,15,FALSE) -> 1.36 | T109: =VLOOKUP(A109,'Projections - Hitters'!$A$2:$X$199990,16,FALSE) -> 1 | U109: =VLOOKUP(A109,'Projections - Hitters'!$A$2:$X$199990,17,FALSE) -> 2 | V109: =VLOOKUP(A109,'Projections - Hitters'!$A$2:$X$199990,18,FALSE) -> 0.275 | W109: =VLOOKUP(A109,'Projections - Hitters'!$A$2:$X$199990,19,FALSE) -> 2.94 | X109: =VLOOKUP(A109,'Projections - Hitters'!$A$2:$X$199990,20,FALSE) -> 77.67 | Y109: =VLOOKUP(A109,'Projections - Hitters'!$A$2:$X$199990,21,FALSE) -> 0.323 | Z109: =VLOOKUP(A109,'Projections - Hitters'!$A$2:$X$199990,22,FALSE) -> 0.426 | AA109: =VLOOKUP(A109,'Projections - Hitters'!$A$2:$X$199990,23,FALSE) -> 0.75 | AB109: NL | AC109: 669242 | AD109: RF | AE109: =IF(ISNA(VLOOKUP(A109,Rankings!$B$2:$H$883,7,FALSE)),"-",VLOOKUP(A109,Rankings!$B$2:$H$883,7,FALSE)) -> 0
A110: Amed Rosario | B110: SS | C110: =((G110*'Points System'!$B$16)+(H110*'Points System'!$B$17)+(I110*'Points System'!$B$15)+(J110*'Points System'!$B$2)+(K110*'Points System'!$B$3)+(L110*'Points System'!$B$4)+(M110*'Points System'!$B$5)+(N110*'Points System'!$B$6)+(O110*'Points System'!$B$7)+(P110*'Points System'!$B$8)+(Q110*'Points System'!$B$9)+(R110*'Points System'!$B$10)+(S110*'Points System'!$B$11)+(T110*'Points System'!$B$13)+(U110*'Points System'!$B$12)+(X110*'Points System'!$B$14))*((100-Settings!$B$37)/100) -> 115.47 | D110: 0.5045001748 | E110: 2.0945039 | F110: =VLOOKUP(A110,'Projections - Hitters'!$A$2:$X$199990,2,FALSE) -> 55.13 | G110: =VLOOKUP(A110,'Projections - Hitters'!$A$2:$X$199990,3,FALSE) -> 228.88 | H110: =VLOOKUP(A110,'Projections - Hitters'!$A$2:$X$199990,4,FALSE) -> 207.33 | I110: =VLOOKUP(A110,'Projections - Hitters'!$A$2:$X$199990,5,FALSE) -> 56.92 | J110: =VLOOKUP(A110,'Projections - Hitters'!$A$2:$X$199990,6,FALSE) -> 39.67 | K110: =VLOOKUP(A110,'Projections - Hitters'!$A$2:$X$199990,7,FALSE) -> 10 | L110: =VLOOKUP(A110,'Projections - Hitters'!$A$2:$X$199990,8,FALSE) -> 2.25 | M110: =VLOOKUP(A110,'Projections - Hitters'!$A$2:$X$199990,9,FALSE) -> 4.83 | N110: =VLOOKUP(A110,'Projections - Hitters'!$A$2:$X$199990,10,FALSE) -> 22.58 | O110: =VLOOKUP(A110,'Projections - Hitters'!$A$2:$X$199990,11,FALSE) -> 25.75 | P110: =VLOOKUP(A110,'Projections - Hitters'!$A$2:$X$199990,12,FALSE) -> 11.08 | Q110: =VLOOKUP(A110,'Projections - Hitters'!$A$2:$X$199990,13,FALSE) -> 42.45 | R110: =VLOOKUP(A110,'Projections - Hitters'!$A$2:$X$199990,14,FALSE) -> 6.83 | S110: =VLOOKUP(A110,'Projections - Hitters'!$A$2:$X$199990,15,FALSE) -> 3.09 | T110: =VLOOKUP(A110,'Projections - Hitters'!$A$2:$X$199990,16,FALSE) -> 1 | U110: =VLOOKUP(A110,'Projections - Hitters'!$A$2:$X$199990,17,FALSE) -> 1.2 | V110: =VLOOKUP(A110,'Projections - Hitters'!$A$2:$X$199990,18,FALSE) -> 0.275 | W110: =VLOOKUP(A110,'Projections - Hitters'!$A$2:$X$199990,19,FALSE) -> 3.83 | X110: =VLOOKUP(A110,'Projections - Hitters'!$A$2:$X$199990,20,FALSE) -> 85.74 | Y110: =VLOOKUP(A110,'Projections - Hitters'!$A$2:$X$199990,21,FALSE) -> 0.314 | Z110: =VLOOKUP(A110,'Projections - Hitters'!$A$2:$X$199990,22,FALSE) -> 0.414 | AA110: =VLOOKUP(A110,'Projections - Hitters'!$A$2:$X$199990,23,FALSE) -> 0.73 | AB110: NL | AC110: 642708 | AD110: SS | AE110: =IF(ISNA(VLOOKUP(A110,Rankings!$B$2:$H$883,7,FALSE)),"-",VLOOKUP(A110,Rankings!$B$2:$H$883,7,FALSE)) -> 0
A111: Kyle Seager | B111: 3B | C111: =((G111*'Points System'!$B$16)+(H111*'Points System'!$B$17)+(I111*'Points System'!$B$15)+(J111*'Points System'!$B$2)+(K111*'Points System'!$B$3)+(L111*'Points System'!$B$4)+(M111*'Points System'!$B$5)+(N111*'Points System'!$B$6)+(O111*'Points System'!$B$7)+(P111*'Points System'!$B$8)+(Q111*'Points System'!$B$9)+(R111*'Points System'!$B$10)+(S111*'Points System'!$B$11)+(T111*'Points System'!$B$13)+(U111*'Points System'!$B$12)+(X111*'Points System'!$B$14))*((100-Settings!$B$37)/100) -> 115.39 | D111: 0.5455791962 | E111: 2.3078 | F111: =VLOOKUP(A111,'Projections - Hitters'!$A$2:$X$199990,2,FALSE) -> 50 | G111: =VLOOKUP(A111,'Projections - Hitters'!$A$2:$X$199990,3,FALSE) -> 211.5 | H111: =VLOOKUP(A111,'Projections - Hitters'!$A$2:$X$199990,4,FALSE) -> 193.17 | I111: =VLOOKUP(A111,'Projections - Hitters'!$A$2:$X$199990,5,FALSE) -> 46.58 | J111: =VLOOKUP(A111,'Projections - Hitters'!$A$2:$X$199990,6,FALSE) -> 26.92 | K111: =VLOOKUP(A111,'Projections - Hitters'!$A$2:$X$199990,7,FALSE) -> 10.5 | L111: =VLOOKUP(A111,'Projections - Hitters'!$A$2:$X$199990,8,FALSE) -> 0.33 | M111: =VLOOKUP(A111,'Projections - Hitters'!$A$2:$X$199990,9,FALSE) -> 8.67 | N111: =VLOOKUP(A111,'Projections - Hitters'!$A$2:$X$199990,10,FALSE) -> 28.5 | O111: =VLOOKUP(A111,'Projections - Hitters'!$A$2:$X$199990,11,FALSE) -> 24 | P111: =VLOOKUP(A111,'Projections - Hitters'!$A$2:$X$199990,12,FALSE) -> 17.83 | Q111: =VLOOKUP(A111,'Projections - Hitters'!$A$2:$X$199990,13,FALSE) -> 42.55 | R111: =VLOOKUP(A111,'Projections - Hitters'!$A$2:$X$199990,14,FALSE) -> 0.92 | S111: =VLOOKUP(A111,'Projections - Hitters'!$A$2:$X$199990,15,FALSE) -> 0.82 | T111: =VLOOKUP(A111,'Projections - Hitters'!$A$2:$X$199990,16,FALSE) -> 1 | U111: =VLOOKUP(A111,'Projections - Hitters'!$A$2:$X$199990,17,FALSE) -> 2 | V111: =VLOOKUP(A111,'Projections - Hitters'!$A$2:$X$199990,18,FALSE) -> 0.241 | W111: =VLOOKUP(A111,'Projections - Hitters'!$A$2:$X$199990,19,FALSE) -> 2.39 | X111: =VLOOKUP(A111,'Projections - Hitters'!$A$2:$X$199990,20,FALSE) -> 83.59 | Y111: =VLOOKUP(A111,'Projections - Hitters'!$A$2:$X$199990,21,FALSE) -> 0.31 | Z111: =VLOOKUP(A111,'Projections - Hitters'!$A$2:$X$199990,22,FALSE) -> 0.433 | AA111: =VLOOKUP(A111,'Projections - Hitters'!$A$2:$X$199990,23,FALSE) -> 0.74 | AB111: AL | AC111: 572122 | AD111: 3B | AE111: =IF(ISNA(VLOOKUP(A111,Rankings!$B$2:$H$883,7,FALSE)),"-",VLOOKUP(A111,Rankings!$B$2:$H$883,7,FALSE)) -> 0
A112: Luis Robert | B112: OF | C112: =((G112*'Points System'!$B$16)+(H112*'Points System'!$B$17)+(I112*'Points System'!$B$15)+(J112*'Points System'!$B$2)+(K112*'Points System'!$B$3)+(L112*'Points System'!$B$4)+(M112*'Points System'!$B$5)+(N112*'Points System'!$B$6)+(O112*'Points System'!$B$7)+(P112*'Points System'!$B$8)+(Q112*'Points System'!$B$9)+(R112*'Points System'!$B$10)+(S112*'Points System'!$B$11)+(T112*'Points System'!$B$13)+(U112*'Points System'!$B$12)+(X112*'Points System'!$B$14))*((100-Settings!$B$37)/100) -> 115.31 | D112: 0.5573762568 | E112: 2.335155934 | F112: =VLOOKUP(A112,'Projections - Hitters'!$A$2:$X$199990,2,FALSE) -> 49.38 | G112: =VLOOKUP(A112,'Projections - Hitters'!$A$2:$X$199990,3,FALSE) -> 206.88 | H112: =VLOOKUP(A112,'Projections - Hitters'!$A$2:$X$199990,4,FALSE) -> 190.09 | I112: =VLOOKUP(A112,'Projections - Hitters'!$A$2:$X$199990,5,FALSE) -> 50.73 | J112: =VLOOKUP(A112,'Projections - Hitters'!$A$2:$X$199990,6,FALSE) -> 30.27 | K112: =VLOOKUP(A112,'Projections - Hitters'!$A$2:$X$199990,7,FALSE) -> 9.82 | L112: =VLOOKUP(A112,'Projections - Hitters'!$A$2:$X$199990,8,FALSE) -> 2 | M112: =VLOOKUP(A112,'Projections - Hitters'!$A$2:$X$199990,9,FALSE) -> 8.55 | N112: =VLOOKUP(A112,'Projections - Hitters'!$A$2:$X$199990,10,FALSE) -> 26.73 | O112: =VLOOKUP(A112,'Projections - Hitters'!$A$2:$X$199990,11,FALSE) -> 26.82 | P112: =VLOOKUP(A112,'Projections - Hitters'!$A$2:$X$199990,12,FALSE) -> 10.09 | Q112: =VLOOKUP(A112,'Projections - Hitters'!$A$2:$X$199990,13,FALSE) -> 55.82 | R112: =VLOOKUP(A112,'Projections - Hitters'!$A$2:$X$199990,14,FALSE) -> 7.64 | S112: =VLOOKUP(A112,'Projections - Hitters'!$A$2:$X$199990,15,FALSE) -> 3 | T112: =VLOOKUP(A112,'Projections - Hitters'!$A$2:$X$199990,16,FALSE) -> 1.5 | U112: =VLOOKUP(A112,'Projections - Hitters'!$A$2:$X$199990,17,FALSE) -> 3.6 | V112: =VLOOKUP(A112,'Projections - Hitters'!$A$2:$X$199990,18,FALSE) -> 0.267 | W112: =VLOOKUP(A112,'Projections - Hitters'!$A$2:$X$199990,19,FALSE) -> 5.53 | X112: =VLOOKUP(A112,'Projections - Hitters'!$A$2:$X$199990,20,FALSE) -> 90.11 | Y112: =VLOOKUP(A112,'Projections - Hitters'!$A$2:$X$199990,21,FALSE) -> 0.314 | Z112: =VLOOKUP(A112,'Projections - Hitters'!$A$2:$X$199990,22,FALSE) -> 0.474 | AA112: =VLOOKUP(A112,'Projections - Hitters'!$A$2:$X$199990,23,FALSE) -> 0.79 | AB112: AL | AC112: 673357 | AD112: CF | AE112: =IF(ISNA(VLOOKUP(A112,Rankings!$B$2:$H$883,7,FALSE)),"-",VLOOKUP(A112,Rankings!$B$2:$H$883,7,FALSE)) -> 0
A113: Lourdes Gurriel Jr. | B113: OF/2B | C113: =((G113*'Points System'!$B$16)+(H113*'Points System'!$B$17)+(I113*'Points System'!$B$15)+(J113*'Points System'!$B$2)+(K113*'Points System'!$B$3)+(L113*'Points System'!$B$4)+(M113*'Points System'!$B$5)+(N113*'Points System'!$B$6)+(O113*'Points System'!$B$7)+(P113*'Points System'!$B$8)+(Q113*'Points System'!$B$9)+(R113*'Points System'!$B$10)+(S113*'Points System'!$B$11)+(T113*'Points System'!$B$13)+(U113*'Points System'!$B$12)+(X113*'Points System'!$B$14))*((100-Settings!$B$37)/100) -> 114.9 | D113: 0.5567399942 | E113: 2.369072165 | F113: =VLOOKUP(A113,'Projections - Hitters'!$A$2:$X$199990,2,FALSE) -> 48.5 | G113: =VLOOKUP(A113,'Projections - Hitters'!$A$2:$X$199990,3,FALSE) -> 206.38 | H113: =VLOOKUP(A113,'Projections - Hitters'!$A$2:$X$199990,4,FALSE) -> 191.17 | I113: =VLOOKUP(A113,'Projections - Hitters'!$A$2:$X$199990,5,FALSE) -> 50.5 | J113: =VLOOKUP(A113,'Projections - Hitters'!$A$2:$X$199990,6,FALSE) -> 30.42 | K113: =VLOOKUP(A113,'Projections - Hitters'!$A$2:$X$199990,7,FALSE) -> 10.17 | L113: =VLOOKUP(A113,'Projections - Hitters'!$A$2:$X$199990,8,FALSE) -> 0.83 | M113: =VLOOKUP(A113,'Projections - Hitters'!$A$2:$X$199990,9,FALSE) -> 8.92 | N113: =VLOOKUP(A113,'Projections - Hitters'!$A$2:$X$199990,10,FALSE) -> 29.08 | O113: =VLOOKUP(A113,'Projections - Hitters'!$A$2:$X$199990,11,FALSE) -> 26 | P113: =VLOOKUP(A113,'Projections - Hitters'!$A$2:$X$199990,12,FALSE) -> 9.92 | Q113: =VLOOKUP(A113,'Projections - Hitters'!$A$2:$X$199990,13,FALSE) -> 46.73 | R113: =VLOOKUP(A113,'Projections - Hitters'!$A$2:$X$199990,14,FALSE) -> 2.58 | S113: =VLOOKUP(A113,'Projections - Hitters'!$A$2:$X$199990,15,FALSE) -> 1.36 | T113: =VLOOKUP(A113,'Projections - Hitters'!$A$2:$X$199990,16,FALSE) -> 1.5 | U113: =VLOOKUP(A113,'Projections - Hitters'!$A$2:$X$199990,17,FALSE) -> 2.4 | V113: =VLOOKUP(A113,'Projections - Hitters'!$A$2:$X$199990,18,FALSE) -> 0.264 | W113: =VLOOKUP(A113,'Projections - Hitters'!$A$2:$X$199990,19,FALSE) -> 4.71 | X113: =VLOOKUP(A113,'Projections - Hitters'!$A$2:$X$199990,20,FALSE) -> 88.93 | Y113: =VLOOKUP(A113,'Projections - Hitters'!$A$2:$X$199990,21,FALSE) -> 0.306 | Z113: =VLOOKUP(A113,'Projections - Hitters'!$A$2:$X$199990,22,FALSE) -> 0.465 | AA113: =VLOOKUP(A113,'Projections - Hitters'!$A$2:$X$199990,23,FALSE) -> 0.77 | AB113: AL | AC113: 666971 | AD113: LF | AE113: =IF(ISNA(VLOOKUP(A113,Rankings!$B$2:$H$883,7,FALSE)),"-",VLOOKUP(A113,Rankings!$B$2:$H$883,7,FALSE)) -> 0
A114: Joc Pederson | B114: OF/1B | C114: =((G114*'Points System'!$B$16)+(H114*'Points System'!$B$17)+(I114*'Points System'!$B$15)+(J114*'Points System'!$B$2)+(K114*'Points System'!$B$3)+(L114*'Points System'!$B$4)+(M114*'Points System'!$B$5)+(N114*'Points System'!$B$6)+(O114*'Points System'!$B$7)+(P114*'Points System'!$B$8)+(Q114*'Points System'!$B$9)+(R114*'Points System'!$B$10)+(S114*'Points System'!$B$11)+(T114*'Points System'!$B$13)+(U114*'Points System'!$B$12)+(X114*'Points System'!$B$14))*((100-Settings!$B$37)/100) -> 114.76 | D114: 0.6851343284 | E114: 2.593446328 | F114: =VLOOKUP(A114,'Projections - Hitters'!$A$2:$X$199990,2,FALSE) -> 44.25 | G114: =VLOOKUP(A114,'Projections - Hitters'!$A$2:$X$199990,3,FALSE) -> 167.5 | H114: =VLOOKUP(A114,'Projections - Hitters'!$A$2:$X$199990,4,FALSE) -> 151.25 | I114: =VLOOKUP(A114,'Projections - Hitters'!$A$2:$X$199990,5,FALSE) -> 37.58 | J114: =VLOOKUP(A114,'Projections - Hitters'!$A$2:$X$199990,6,FALSE) -> 18.83 | K114: =VLOOKUP(A114,'Projections - Hitters'!$A$2:$X$199990,7,FALSE) -> 7.58 | L114: =VLOOKUP(A114,'Projections - Hitters'!$A$2:$X$199990,8,FALSE) -> 1 | M114: =VLOOKUP(A114,'Projections - Hitters'!$A$2:$X$199990,9,FALSE) -> 10 | N114: =VLOOKUP(A114,'Projections - Hitters'!$A$2:$X$199990,10,FALSE) -> 25.83 | O114: =VLOOKUP(A114,'Projections - Hitters'!$A$2:$X$199990,11,FALSE) -> 26.17 | P114: =VLOOKUP(A114,'Projections - Hitters'!$A$2:$X$199990,12,FALSE) -> 17.58 | Q114: =VLOOKUP(A114,'Projections - Hitters'!$A$2:$X$199990,13,FALSE) -> 36.82 | R114: =VLOOKUP(A114,'Projections - Hitters'!$A$2:$X$199990,14,FALSE) -> 0.83 | S114: =VLOOKUP(A114,'Projections - Hitters'!$A$2:$X$199990,15,FALSE) -> 0.45 | T114: =VLOOKUP(A114,'Projections - Hitters'!$A$2:$X$199990,16,FALSE) -> 1 | U114: =VLOOKUP(A114,'Projections - Hitters'!$A$2:$X$199990,17,FALSE) -> 2.8 | V114: =VLOOKUP(A114,'Projections - Hitters'!$A$2:$X$199990,18,FALSE) -> 0.248 | W114: =VLOOKUP(A114,'Projections - Hitters'!$A$2:$X$199990,19,FALSE) -> 2.09 | X114: =VLOOKUP(A114,'Projections - Hitters'!$A$2:$X$199990,20,FALSE) -> 76.99 | Y114: =VLOOKUP(A114,'Projections - Hitters'!$A$2:$X$199990,21,FALSE) -> 0.336 | Z114: =VLOOKUP(A114,'Projections - Hitters'!$A$2:$X$199990,22,FALSE) -> 0.509 | AA114: =VLOOKUP(A114,'Projections - Hitters'!$A$2:$X$199990,23,FALSE) -> 0.85 | AB114: NL | AC114: 592626 | AD114: LF | AE114: =IF(ISNA(VLOOKUP(A114,Rankings!$B$2:$H$883,7,FALSE)),"-",VLOOKUP(A114,Rankings!$B$2:$H$883,7,FALSE)) -> 0
A115: Mark Canha | B115: OF | C115: =((G115*'Points System'!$B$16)+(H115*'Points System'!$B$17)+(I115*'Points System'!$B$15)+(J115*'Points System'!$B$2)+(K115*'Points System'!$B$3)+(L115*'Points System'!$B$4)+(M115*'Points System'!$B$5)+(N115*'Points System'!$B$6)+(O115*'Points System'!$B$7)+(P115*'Points System'!$B$8)+(Q115*'Points System'!$B$9)+(R115*'Points System'!$B$10)+(S115*'Points System'!$B$11)+(T115*'Points System'!$B$13)+(U115*'Points System'!$B$12)+(X115*'Points System'!$B$14))*((100-Settings!$B$37)/100) -> 113.69 | D115: 0.5952356021 | E115: 2.399535669 | F115: =VLOOKUP(A115,'Projections - Hitters'!$A$2:$X$199990,2,FALSE) -> 47.38 | G115: =VLOOKUP(A115,'Projections - Hitters'!$A$2:$X$199990,3,FALSE) -> 191 | H115: =VLOOKUP(A115,'Projections - Hitters'!$A$2:$X$199990,4,FALSE) -> 166.83 | I115: =VLOOKUP(A115,'Projections - Hitters'!$A$2:$X$199990,5,FALSE) -> 42.58 | J115: =VLOOKUP(A115,'Projections - Hitters'!$A$2:$X$199990,6,FALSE) -> 24.33 | K115: =VLOOKUP(A115,'Projections - Hitters'!$A$2:$X$199990,7,FALSE) -> 8.67 | L115: =VLOOKUP(A115,'Projections - Hitters'!$A$2:$X$199990,8,FALSE) -> 1 | M115: =VLOOKUP(A115,'Projections - Hitters'!$A$2:$X$199990,9,FALSE) -> 8.5 | N115: =VLOOKUP(A115,'Projections - Hitters'!$A$2:$X$199990,10,FALSE) -> 24.25 | O115: =VLOOKUP(A115,'Projections - Hitters'!$A$2:$X$199990,11,FALSE) -> 26.83 | P115: =VLOOKUP(A115,'Projections - Hitters'!$A$2:$X$199990,12,FALSE) -> 20.42 | Q115: =VLOOKUP(A115,'Projections - Hitters'!$A$2:$X$199990,13,FALSE) -> 43.91 | R115: =VLOOKUP(A115,'Projections - Hitters'!$A$2:$X$199990,14,FALSE) -> 1.08 | S115: =VLOOKUP(A115,'Projections - Hitters'!$A$2:$X$199990,15,FALSE) -> 0.73 | T115: =VLOOKUP(A115,'Projections - Hitters'!$A$2:$X$199990,16,FALSE) -> 1 | U115: =VLOOKUP(A115,'Projections - Hitters'!$A$2:$X$199990,17,FALSE) -> 5 | V115: =VLOOKUP(A115,'Projections - Hitters'!$A$2:$X$199990,18,FALSE) -> 0.255 | W115: =VLOOKUP(A115,'Projections - Hitters'!$A$2:$X$199990,19,FALSE) -> 2.15 | X115: =VLOOKUP(A115,'Projections - Hitters'!$A$2:$X$199990,20,FALSE) -> 78.67 | Y115: =VLOOKUP(A115,'Projections - Hitters'!$A$2:$X$199990,21,FALSE) -> 0.352 | Z115: =VLOOKUP(A115,'Projections - Hitters'!$A$2:$X$199990,22,FALSE) -> 0.472 | AA115: =VLOOKUP(A115,'Projections - Hitters'!$A$2:$X$199990,23,FALSE) -> 0.82 | AB115: AL | AC115: 592192 | AD115: LF | AE115: =IF(ISNA(VLOOKUP(A115,Rankings!$B$2:$H$883,7,FALSE)),"-",VLOOKUP(A115,Rankings!$B$2:$H$883,7,FALSE)) -> 0
A116: Nick Ahmed | B116: SS | C116: =((G116*'Points System'!$B$16)+(H116*'Points System'!$B$17)+(I116*'Points System'!$B$15)+(J116*'Points System'!$B$2)+(K116*'Points System'!$B$3)+(L116*'Points System'!$B$4)+(M116*'Points System'!$B$5)+(N116*'Points System'!$B$6)+(O116*'Points System'!$B$7)+(P116*'Points System'!$B$8)+(Q116*'Points System'!$B$9)+(R116*'Points System'!$B$10)+(S116*'Points System'!$B$11)+(T116*'Points System'!$B$13)+(U116*'Points System'!$B$12)+(X116*'Points System'!$B$14))*((100-Settings!$B$37)/100) -> 113.58 | D116: 0.5270533643 | E116: 2.127763207 | F116: =VLOOKUP(A116,'Projections - Hitters'!$A$2:$X$199990,2,FALSE) -> 53.38 | G116: =VLOOKUP(A116,'Projections - Hitters'!$A$2:$X$199990,3,FALSE) -> 215.5 | H116: =VLOOKUP(A116,'Projections - Hitters'!$A$2:$X$199990,4,FALSE) -> 193.25 | I116: =VLOOKUP(A116,'Projections - Hitters'!$A$2:$X$199990,5,FALSE) -> 48.08 | J116: =VLOOKUP(A116,'Projections - Hitters'!$A$2:$X$199990,6,FALSE) -> 28.83 | K116: =VLOOKUP(A116,'Projections - Hitters'!$A$2:$X$199990,7,FALSE) -> 10.83 | L116: =VLOOKUP(A116,'Projections - Hitters'!$A$2:$X$199990,8,FALSE) -> 2 | M116: =VLOOKUP(A116,'Projections - Hitters'!$A$2:$X$199990,9,FALSE) -> 6.25 | N116: =VLOOKUP(A116,'Projections - Hitters'!$A$2:$X$199990,10,FALSE) -> 25.5 | O116: =VLOOKUP(A116,'Projections - Hitters'!$A$2:$X$199990,11,FALSE) -> 24.58 | P116: =VLOOKUP(A116,'Projections - Hitters'!$A$2:$X$199990,12,FALSE) -> 16.17 | Q116: =VLOOKUP(A116,'Projections - Hitters'!$A$2:$X$199990,13,FALSE) -> 40.73 | R116: =VLOOKUP(A116,'Projections - Hitters'!$A$2:$X$199990,14,FALSE) -> 2.33 | S116: =VLOOKUP(A116,'Projections - Hitters'!$A$2:$X$199990,15,FALSE) -> 1.09 | T116: =VLOOKUP(A116,'Projections - Hitters'!$A$2:$X$199990,16,FALSE) -> 2 | U116: =VLOOKUP(A116,'Projections - Hitters'!$A$2:$X$199990,17,FALSE) -> 1 | V116: =VLOOKUP(A116,'Projections - Hitters'!$A$2:$X$199990,18,FALSE) -> 0.249 | W116: =VLOOKUP(A116,'Projections - Hitters'!$A$2:$X$199990,19,FALSE) -> 2.52 | X116: =VLOOKUP(A116,'Projections - Hitters'!$A$2:$X$199990,20,FALSE) -> 81.49 | Y116: =VLOOKUP(A116,'Projections - Hitters'!$A$2:$X$199990,21,FALSE) -> 0.307 | Z116: =VLOOKUP(A116,'Projections - Hitters'!$A$2:$X$199990,22,FALSE) -> 0.422 | AA116: =VLOOKUP(A116,'Projections - Hitters'!$A$2:$X$199990,23,FALSE) -> 0.73 | AB116: NL | AC116: 605113 | AD116: SS | AE116: =IF(ISNA(VLOOKUP(A116,Rankings!$B$2:$H$883,7,FALSE)),"-",VLOOKUP(A116,Rankings!$B$2:$H$883,7,FALSE)) -> 0
A117: Cavan Biggio | B117: 2B | C117: =((G117*'Points System'!$B$16)+(H117*'Points System'!$B$17)+(I117*'Points System'!$B$15)+(J117*'Points System'!$B$2)+(K117*'Points System'!$B$3)+(L117*'Points System'!$B$4)+(M117*'Points System'!$B$5)+(N117*'Points System'!$B$6)+(O117*'Points System'!$B$7)+(P117*'Points System'!$B$8)+(Q117*'Points System'!$B$9)+(R117*'Points System'!$B$10)+(S117*'Points System'!$B$11)+(T117*'Points System'!$B$13)+(U117*'Points System'!$B$12)+(X117*'Points System'!$B$14))*((100-Settings!$B$37)/100) -> 113.32 | D117: 0.5282983683 | E117: 2.2664 | F117: =VLOOKUP(A117,'Projections - Hitters'!$A$2:$X$199990,2,FALSE) -> 50 | G117: =VLOOKUP(A117,'Projections - Hitters'!$A$2:$X$199990,3,FALSE) -> 214.5 | H117: =VLOOKUP(A117,'Projections - Hitters'!$A$2:$X$199990,4,FALSE) -> 180.92 | I117: =VLOOKUP(A117,'Projections - Hitters'!$A$2:$X$199990,5,FALSE) -> 42.58 | J117: =VLOOKUP(A117,'Projections - Hitters'!$A$2:$X$199990,6,FALSE) -> 25.17 | K117: =VLOOKUP(A117,'Projections - Hitters'!$A$2:$X$199990,7,FALSE) -> 8.75 | L117: =VLOOKUP(A117,'Projections - Hitters'!$A$2:$X$199990,8,FALSE) -> 1.08 | M117: =VLOOKUP(A117,'Projections - Hitters'!$A$2:$X$199990,9,FALSE) -> 7.58 | N117: =VLOOKUP(A117,'Projections - Hitters'!$A$2:$X$199990,10,FALSE) -> 24.42 | O117: =VLOOKUP(A117,'Projections - Hitters'!$A$2:$X$199990,11,FALSE) -> 28.67 | P117: =VLOOKUP(A117,'Projections - Hitters'!$A$2:$X$199990,12,FALSE) -> 30.75 | Q117: =VLOOKUP(A117,'Projections - Hitters'!$A$2:$X$199990,13,FALSE) -> 58.18 | R117: =VLOOKUP(A117,'Projections - Hitters'!$A$2:$X$199990,14,FALSE) -> 5 | S117: =VLOOKUP(A117,'Projections - Hitters'!$A$2:$X$199990,15,FALSE) -> 1.27 | T117: =VLOOKUP(A117,'Projections - Hitters'!$A$2:$X$199990,16,FALSE) -> 1.5 | U117: =VLOOKUP(A117,'Projections - Hitters'!$A$2:$X$199990,17,FALSE) -> 1.2 | V117: =VLOOKUP(A117,'Projections - Hitters'!$A$2:$X$199990,18,FALSE) -> 0.235 | W117: =VLOOKUP(A117,'Projections - Hitters'!$A$2:$X$199990,19,FALSE) -> 1.89 | X117: =VLOOKUP(A117,'Projections - Hitters'!$A$2:$X$199990,20,FALSE) -> 76.23 | Y117: =VLOOKUP(A117,'Projections - Hitters'!$A$2:$X$199990,21,FALSE) -> 0.348 | Z117: =VLOOKUP(A117,'Projections - Hitters'!$A$2:$X$199990,22,FALSE) -> 0.421 | AA117: =VLOOKUP(A117,'Projections - Hitters'!$A$2:$X$199990,23,FALSE) -> 0.77 | AB117: AL | AC117: 624415 | AD117: 2B | AE117: =IF(ISNA(VLOOKUP(A117,Rankings!$B$2:$H$883,7,FALSE)),"-",VLOOKUP(A117,Rankings!$B$2:$H$883,7,FALSE)) -> 0
A118: Shin-Soo Choo | B118: OF | C118: =((G118*'Points System'!$B$16)+(H118*'Points System'!$B$17)+(I118*'Points System'!$B$15)+(J118*'Points System'!$B$2)+(K118*'Points System'!$B$3)+(L118*'Points System'!$B$4)+(M118*'Points System'!$B$5)+(N118*'Points System'!$B$6)+(O118*'Points System'!$B$7)+(P118*'Points System'!$B$8)+(Q118*'Points System'!$B$9)+(R118*'Points System'!$B$10)+(S118*'Points System'!$B$11)+(T118*'Points System'!$B$13)+(U118*'Points System'!$B$12)+(X118*'Points System'!$B$14))*((100-Settings!$B$37)/100) -> 112.29 | D118: 0.517799502 | E118: 2.232849473 | F118: =VLOOKUP(A118,'Projections - Hitters'!$A$2:$X$199990,2,FALSE) -> 50.29 | G118: =VLOOKUP(A118,'Projections - Hitters'!$A$2:$X$199990,3,FALSE) -> 216.86 | H118: =VLOOKUP(A118,'Projections - Hitters'!$A$2:$X$199990,4,FALSE) -> 187.09 | I118: =VLOOKUP(A118,'Projections - Hitters'!$A$2:$X$199990,5,FALSE) -> 47.36 | J118: =VLOOKUP(A118,'Projections - Hitters'!$A$2:$X$199990,6,FALSE) -> 30.27 | K118: =VLOOKUP(A118,'Projections - Hitters'!$A$2:$X$199990,7,FALSE) -> 9.27 | L118: =VLOOKUP(A118,'Projections - Hitters'!$A$2:$X$199990,8,FALSE) -> 0.36 | M118: =VLOOKUP(A118,'Projections - Hitters'!$A$2:$X$199990,9,FALSE) -> 7.27 | N118: =VLOOKUP(A118,'Projections - Hitters'!$A$2:$X$199990,10,FALSE) -> 20.91 | O118: =VLOOKUP(A118,'Projections - Hitters'!$A$2:$X$199990,11,FALSE) -> 28.82 | P118: =VLOOKUP(A118,'Projections - Hitters'!$A$2:$X$199990,12,FALSE) -> 25.91 | Q118: =VLOOKUP(A118,'Projections - Hitters'!$A$2:$X$199990,13,FALSE) -> 53.8 | R118: =VLOOKUP(A118,'Projections - Hitters'!$A$2:$X$199990,14,FALSE) -> 3.64 | S118: =VLOOKUP(A118,'Projections - Hitters'!$A$2:$X$199990,15,FALSE) -> 0.8 | T118: =VLOOKUP(A118,'Projections - Hitters'!$A$2:$X$199990,16,FALSE) -> 1 | U118: =VLOOKUP(A118,'Projections - Hitters'!$A$2:$X$199990,17,FALSE) -> 4 | V118: =VLOOKUP(A118,'Projections - Hitters'!$A$2:$X$199990,18,FALSE) -> 0.253 | W118: =VLOOKUP(A118,'Projections - Hitters'!$A$2:$X$199990,19,FALSE) -> 2.08 | X118: =VLOOKUP(A118,'Projections - Hitters'!$A$2:$X$199990,20,FALSE) -> 78.97 | Y118: =VLOOKUP(A118,'Projections - Hitters'!$A$2:$X$199990,21,FALSE) -> 0.354 | Z118: =VLOOKUP(A118,'Projections - Hitters'!$A$2:$X$199990,22,FALSE) -> 0.422 | AA118: =VLOOKUP(A118,'Projections - Hitters'!$A$2:$X$199990,23,FALSE) -> 0.78 | AB118: AL | AC118: 425783 | AD118: DH | AE118: =IF(ISNA(VLOOKUP(A118,Rankings!$B$2:$H$883,7,FALSE)),"-",VLOOKUP(A118,Rankings!$B$2:$H$883,7,FALSE)) -> 0
A119: David Dahl | B119: OF | C119: =((G119*'Points System'!$B$16)+(H119*'Points System'!$B$17)+(I119*'Points System'!$B$15)+(J119*'Points System'!$B$2)+(K119*'Points System'!$B$3)+(L119*'Points System'!$B$4)+(M119*'Points System'!$B$5)+(N119*'Points System'!$B$6)+(O119*'Points System'!$B$7)+(P119*'Points System'!$B$8)+(Q119*'Points System'!$B$9)+(R119*'Points System'!$B$10)+(S119*'Points System'!$B$11)+(T119*'Points System'!$B$13)+(U119*'Points System'!$B$12)+(X119*'Points System'!$B$14))*((100-Settings!$B$37)/100) -> 111.9 | D119: 0.5897233202 | E119: 2.493315508 | F119: =VLOOKUP(A119,'Projections - Hitters'!$A$2:$X$199990,2,FALSE) -> 44.88 | G119: =VLOOKUP(A119,'Projections - Hitters'!$A$2:$X$199990,3,FALSE) -> 189.75 | H119: =VLOOKUP(A119,'Projections - Hitters'!$A$2:$X$199990,4,FALSE) -> 175.17 | I119: =VLOOKUP(A119,'Projections - Hitters'!$A$2:$X$199990,5,FALSE) -> 49.17 | J119: =VLOOKUP(A119,'Projections - Hitters'!$A$2:$X$199990,6,FALSE) -> 28.75 | K119: =VLOOKUP(A119,'Projections - Hitters'!$A$2:$X$199990,7,FALSE) -> 10.5 | L119: =VLOOKUP(A119,'Projections - Hitters'!$A$2:$X$199990,8,FALSE) -> 1.83 | M119: =VLOOKUP(A119,'Projections - Hitters'!$A$2:$X$199990,9,FALSE) -> 7.92 | N119: =VLOOKUP(A119,'Projections - Hitters'!$A$2:$X$199990,10,FALSE) -> 26.42 | O119: =VLOOKUP(A119,'Projections - Hitters'!$A$2:$X$199990,11,FALSE) -> 27.33 | P119: =VLOOKUP(A119,'Projections - Hitters'!$A$2:$X$199990,12,FALSE) -> 13.33 | Q119: =VLOOKUP(A119,'Projections - Hitters'!$A$2:$X$199990,13,FALSE) -> 49.27 | R119: =VLOOKUP(A119,'Projections - Hitters'!$A$2:$X$199990,14,FALSE) -> 2.58 | S119: =VLOOKUP(A119,'Projections - Hitters'!$A$2:$X$199990,15,FALSE) -> 1.09 | T119: =VLOOKUP(A119,'Projections - Hitters'!$A$2:$X$199990,16,FALSE) -> 1.5 | U119: =VLOOKUP(A119,'Projections - Hitters'!$A$2:$X$199990,17,FALSE) -> 1.6 | V119: =VLOOKUP(A119,'Projections - Hitters'!$A$2:$X$199990,18,FALSE) -> 0.281 | W119: =VLOOKUP(A119,'Projections - Hitters'!$A$2:$X$199990,19,FALSE) -> 3.7 | X119: =VLOOKUP(A119,'Projections - Hitters'!$A$2:$X$199990,20,FALSE) -> 86.92 | Y119: =VLOOKUP(A119,'Projections - Hitters'!$A$2:$X$199990,21,FALSE) -> 0.335 | Z119: =VLOOKUP(A119,'Projections - Hitters'!$A$2:$X$199990,22,FALSE) -> 0.496 | AA119: =VLOOKUP(A119,'Projections - Hitters'!$A$2:$X$199990,23,FALSE) -> 0.83 | AB119: NL | AC119: 621311 | AD119: CF | AE119: =IF(ISNA(VLOOKUP(A119,Rankings!$B$2:$H$883,7,FALSE)),"-",VLOOKUP(A119,Rankings!$B$2:$H$883,7,FALSE)) -> 0
A120: Yasmani Grandal | B120: C/1B | C120: =((G120*'Points System'!$B$16)+(H120*'Points System'!$B$17)+(I120*'Points System'!$B$15)+(J120*'Points System'!$B$2)+(K120*'Points System'!$B$3)+(L120*'Points System'!$B$4)+(M120*'Points System'!$B$5)+(N120*'Points System'!$B$6)+(O120*'Points System'!$B$7)+(P120*'Points System'!$B$8)+(Q120*'Points System'!$B$9)+(R120*'Points System'!$B$10)+(S120*'Points System'!$B$11)+(T120*'Points System'!$B$13)+(U120*'Points System'!$B$12)+(X120*'Points System'!$B$14))*((100-Settings!$B$37)/100) -> 111.54 | D120: 0.564045512 | E120: 2.258809235 | F120: =VLOOKUP(A120,'Projections - Hitters'!$A$2:$X$199990,2,FALSE) -> 49.38 | G120: =VLOOKUP(A120,'Projections - Hitters'!$A$2:$X$199990,3,FALSE) -> 197.75 | H120: =VLOOKUP(A120,'Projections - Hitters'!$A$2:$X$199990,4,FALSE) -> 165.33 | I120: =VLOOKUP(A120,'Projections - Hitters'!$A$2:$X$199990,5,FALSE) -> 40 | J120: =VLOOKUP(A120,'Projections - Hitters'!$A$2:$X$199990,6,FALSE) -> 22.67 | K120: =VLOOKUP(A120,'Projections - Hitters'!$A$2:$X$199990,7,FALSE) -> 7.58 | L120: =VLOOKUP(A120,'Projections - Hitters'!$A$2:$X$199990,8,FALSE) -> 0.5 | M120: =VLOOKUP(A120,'Projections - Hitters'!$A$2:$X$199990,9,FALSE) -> 9 | N120: =VLOOKUP(A120,'Projections - Hitters'!$A$2:$X$199990,10,FALSE) -> 26.33 | O120: =VLOOKUP(A120,'Projections - Hitters'!$A$2:$X$199990,11,FALSE) -> 25 | P120: =VLOOKUP(A120,'Projections - Hitters'!$A$2:$X$199990,12,FALSE) -> 28.42 | Q120: =VLOOKUP(A120,'Projections - Hitters'!$A$2:$X$199990,13,FALSE) -> 47.09 | R120: =VLOOKUP(A120,'Projections - Hitters'!$A$2:$X$199990,14,FALSE) -> 1 | S120: =VLOOKUP(A120,'Projections - Hitters'!$A$2:$X$199990,15,FALSE) -> 0.45 | T120: =VLOOKUP(A120,'Projections - Hitters'!$A$2:$X$199990,16,FALSE) -> 1 | U120: =VLOOKUP(A120,'Projections - Hitters'!$A$2:$X$199990,17,FALSE) -> 1 | V120: =VLOOKUP(A120,'Projections - Hitters'!$A$2:$X$199990,18,FALSE) -> 0.242 | W120: =VLOOKUP(A120,'Projections - Hitters'!$A$2:$X$199990,19,FALSE) -> 1.66 | X120: =VLOOKUP(A120,'Projections - Hitters'!$A$2:$X$199990,20,FALSE) -> 75.33 | Y120: =VLOOKUP(A120,'Projections - Hitters'!$A$2:$X$199990,21,FALSE) -> 0.355 | Z120: =VLOOKUP(A120,'Projections - Hitters'!$A$2:$X$199990,22,FALSE) -> 0.456 | AA120: =VLOOKUP(A120,'Projections - Hitters'!$A$2:$X$199990,23,FALSE) -> 0.81 | AB120: AL | AC120: 518735 | AD120: C | AE120: =IF(ISNA(VLOOKUP(A120,Rankings!$B$2:$H$883,7,FALSE)),"-",VLOOKUP(A120,Rankings!$B$2:$H$883,7,FALSE)) -> 0
A121: Howie Kendrick | B121: 1B/2B | C121: =((G121*'Points System'!$B$16)+(H121*'Points System'!$B$17)+(I121*'Points System'!$B$15)+(J121*'Points System'!$B$2)+(K121*'Points System'!$B$3)+(L121*'Points System'!$B$4)+(M121*'Points System'!$B$5)+(N121*'Points System'!$B$6)+(O121*'Points System'!$B$7)+(P121*'Points System'!$B$8)+(Q121*'Points System'!$B$9)+(R121*'Points System'!$B$10)+(S121*'Points System'!$B$11)+(T121*'Points System'!$B$13)+(U121*'Points System'!$B$12)+(X121*'Points System'!$B$14))*((100-Settings!$B$37)/100) -> 110.52 | D121: 0.6553993951 | E121: 2.456 | F121: =VLOOKUP(A121,'Projections - Hitters'!$A$2:$X$199990,2,FALSE) -> 45 | G121: =VLOOKUP(A121,'Projections - Hitters'!$A$2:$X$199990,3,FALSE) -> 168.63 | H121: =VLOOKUP(A121,'Projections - Hitters'!$A$2:$X$199990,4,FALSE) -> 154.83 | I121: =VLOOKUP(A121,'Projections - Hitters'!$A$2:$X$199990,5,FALSE) -> 47.08 | J121: =VLOOKUP(A121,'Projections - Hitters'!$A$2:$X$199990,6,FALSE) -> 30.75 | K121: =VLOOKUP(A121,'Projections - Hitters'!$A$2:$X$199990,7,FALSE) -> 9.58 | L121: =VLOOKUP(A121,'Projections - Hitters'!$A$2:$X$199990,8,FALSE) -> 0.58 | M121: =VLOOKUP(A121,'Projections - Hitters'!$A$2:$X$199990,9,FALSE) -> 6 | N121: =VLOOKUP(A121,'Projections - Hitters'!$A$2:$X$199990,10,FALSE) -> 23.33 | O121: =VLOOKUP(A121,'Projections - Hitters'!$A$2:$X$199990,11,FALSE) -> 22.5 | P121: =VLOOKUP(A121,'Projections - Hitters'!$A$2:$X$199990,12,FALSE) -> 11.42 | Q121: =VLOOKUP(A121,'Projections - Hitters'!$A$2:$X$199990,13,FALSE) -> 27.45 | R121: =VLOOKUP(A121,'Projections - Hitters'!$A$2:$X$199990,14,FALSE) -> 1.25 | S121: =VLOOKUP(A121,'Projections - Hitters'!$A$2:$X$199990,15,FALSE) -> 0.73 | T121: =VLOOKUP(A121,'Projections - Hitters'!$A$2:$X$199990,16,FALSE) -> 1.5 | U121: =VLOOKUP(A121,'Projections - Hitters'!$A$2:$X$199990,17,FALSE) -> 1.8 | V121: =VLOOKUP(A121,'Projections - Hitters'!$A$2:$X$199990,18,FALSE) -> 0.304 | W121: =VLOOKUP(A121,'Projections - Hitters'!$A$2:$X$199990,19,FALSE) -> 2.4 | X121: =VLOOKUP(A121,'Projections - Hitters'!$A$2:$X$199990,20,FALSE) -> 75.65 | Y121: =VLOOKUP(A121,'Projections - Hitters'!$A$2:$X$199990,21,FALSE) -> 0.356 | Z121: =VLOOKUP(A121,'Projections - Hitters'!$A$2:$X$199990,22,FALSE) -> 0.489 | AA121: =VLOOKUP(A121,'Projections - Hitters'!$A$2:$X$199990,23,FALSE) -> 0.85 | AB121: NL | AC121: 435062 | AD121: 1B | AE121: =IF(ISNA(VLOOKUP(A121,Rankings!$B$2:$H$883,7,FALSE)),"-",VLOOKUP(A121,Rankings!$B$2:$H$883,7,FALSE)) -> 0
A122: Hanser Alberto | B122: 2B/3B | C122: =((G122*'Points System'!$B$16)+(H122*'Points System'!$B$17)+(I122*'Points System'!$B$15)+(J122*'Points System'!$B$2)+(K122*'Points System'!$B$3)+(L122*'Points System'!$B$4)+(M122*'Points System'!$B$5)+(N122*'Points System'!$B$6)+(O122*'Points System'!$B$7)+(P122*'Points System'!$B$8)+(Q122*'Points System'!$B$9)+(R122*'Points System'!$B$10)+(S122*'Points System'!$B$11)+(T122*'Points System'!$B$13)+(U122*'Points System'!$B$12)+(X122*'Points System'!$B$14))*((100-Settings!$B$37)/100) -> 110.37 | D122: 0.5334976798 | E122: 2.158615294 | F122: =VLOOKUP(A122,'Projections - Hitters'!$A$2:$X$199990,2,FALSE) -> 51.13 | G122: =VLOOKUP(A122,'Projections - Hitters'!$A$2:$X$199990,3,FALSE) -> 206.88 | H122: =VLOOKUP(A122,'Projections - Hitters'!$A$2:$X$199990,4,FALSE) -> 195.83 | I122: =VLOOKUP(A122,'Projections - Hitters'!$A$2:$X$199990,5,FALSE) -> 55.42 | J122: =VLOOKUP(A122,'Projections - Hitters'!$A$2:$X$199990,6,FALSE) -> 41.5 | K122: =VLOOKUP(A122,'Projections - Hitters'!$A$2:$X$199990,7,FALSE) -> 8.58 | L122: =VLOOKUP(A122,'Projections - Hitters'!$A$2:$X$199990,8,FALSE) -> 0.92 | M122: =VLOOKUP(A122,'Projections - Hitters'!$A$2:$X$199990,9,FALSE) -> 4.25 | N122: =VLOOKUP(A122,'Projections - Hitters'!$A$2:$X$199990,10,FALSE) -> 19.42 | O122: =VLOOKUP(A122,'Projections - Hitters'!$A$2:$X$199990,11,FALSE) -> 21.92 | P122: =VLOOKUP(A122,'Projections - Hitters'!$A$2:$X$199990,12,FALSE) -> 6.42 | Q122: =VLOOKUP(A122,'Projections - Hitters'!$A$2:$X$199990,13,FALSE) -> 20.55 | R122: =VLOOKUP(A122,'Projections - Hitters'!$A$2:$X$199990,14,FALSE) -> 1.42 | S122: =VLOOKUP(A122,'Projections - Hitters'!$A$2:$X$199990,15,FALSE) -> 1 | T122: =VLOOKUP(A122,'Projections - Hitters'!$A$2:$X$199990,16,FALSE) -> 1.5 | U122: =VLOOKUP(A122,'Projections - Hitters'!$A$2:$X$199990,17,FALSE) -> 1.4 | V122: =VLOOKUP(A122,'Projections - Hitters'!$A$2:$X$199990,18,FALSE) -> 0.283 | W122: =VLOOKUP(A122,'Projections - Hitters'!$A$2:$X$199990,19,FALSE) -> 3.2 | X122: =VLOOKUP(A122,'Projections - Hitters'!$A$2:$X$199990,20,FALSE) -> 78.42 | Y122: =VLOOKUP(A122,'Projections - Hitters'!$A$2:$X$199990,21,FALSE) -> 0.308 | Z122: =VLOOKUP(A122,'Projections - Hitters'!$A$2:$X$199990,22,FALSE) -> 0.4 | AA122: =VLOOKUP(A122,'Projections - Hitters'!$A$2:$X$199990,23,FALSE) -> 0.71 | AB122: AL | AC122: 593643 | AD122: 2B | AE122: =IF(ISNA(VLOOKUP(A122,Rankings!$B$2:$H$883,7,FALSE)),"-",VLOOKUP(A122,Rankings!$B$2:$H$883,7,FALSE)) -> 0
A123: Gregory Polanco | B123: OF | C123: =((G123*'Points System'!$B$16)+(H123*'Points System'!$B$17)+(I123*'Points System'!$B$15)+(J123*'Points System'!$B$2)+(K123*'Points System'!$B$3)+(L123*'Points System'!$B$4)+(M123*'Points System'!$B$5)+(N123*'Points System'!$B$6)+(O123*'Points System'!$B$7)+(P123*'Points System'!$B$8)+(Q123*'Points System'!$B$9)+(R123*'Points System'!$B$10)+(S123*'Points System'!$B$11)+(T123*'Points System'!$B$13)+(U123*'Points System'!$B$12)+(X123*'Points System'!$B$14))*((100-Settings!$B$37)/100) -> 110.2 | D123: 0.5706001139 | E123: 2.350682594 | F123: =VLOOKUP(A123,'Projections - Hitters'!$A$2:$X$199990,2,FALSE) -> 46.88 | G123: =VLOOKUP(A123,'Projections - Hitters'!$A$2:$X$199990,3,FALSE) -> 193.13 | H123: =VLOOKUP(A123,'Projections - Hitters'!$A$2:$X$199990,4,FALSE) -> 176.25 | I123: =VLOOKUP(A123,'Projections - Hitters'!$A$2:$X$199990,5,FALSE) -> 43 | J123: =VLOOKUP(A123,'Projections - Hitters'!$A$2:$X$199990,6,FALSE) -> 24.17 | K123: =VLOOKUP(A123,'Projections - Hitters'!$A$2:$X$199990,7,FALSE) -> 10.08 | L123: =VLOOKUP(A123,'Projections - Hitters'!$A$2:$X$199990,8,FALSE) -> 1.08 | M123: =VLOOKUP(A123,'Projections - Hitters'!$A$2:$X$199990,9,FALSE) -> 7.58 | N123: =VLOOKUP(A123,'Projections - Hitters'!$A$2:$X$199990,10,FALSE) -> 25.58 | O123: =VLOOKUP(A123,'Projections - Hitters'!$A$2:$X$199990,11,FALSE) -> 24.5 | P123: =VLOOKUP(A123,'Projections - Hitters'!$A$2:$X$199990,12,FALSE) -> 19.58 | Q123: =VLOOKUP(A123,'Projections - Hitters'!$A$2:$X$199990,13,FALSE) -> 46 | R123: =VLOOKUP(A123,'Projections - Hitters'!$A$2:$X$199990,14,FALSE) -> 3.58 | S123: =VLOOKUP(A123,'Projections - Hitters'!$A$2:$X$199990,15,FALSE) -> 0.91 | T123: =VLOOKUP(A123,'Projections - Hitters'!$A$2:$X$199990,16,FALSE) -> 1 | U123: =VLOOKUP(A123,'Projections - Hitters'!$A$2:$X$199990,17,FALSE) -> 1.4 | V123: =VLOOKUP(A123,'Projections - Hitters'!$A$2:$X$199990,18,FALSE) -> 0.244 | W123: =VLOOKUP(A123,'Projections - Hitters'!$A$2:$X$199990,19,FALSE) -> 2.35 | X123: =VLOOKUP(A123,'Projections - Hitters'!$A$2:$X$199990,20,FALSE) -> 77.89 | Y123: =VLOOKUP(A123,'Projections - Hitters'!$A$2:$X$199990,21,FALSE) -> 0.323 | Z123: =VLOOKUP(A123,'Projections - Hitters'!$A$2:$X$199990,22,FALSE) -> 0.442 | AA123: =VLOOKUP(A123,'Projections - Hitters'!$A$2:$X$199990,23,FALSE) -> 0.77 | AB123: NL | AC123: 570256 | AD123: RF | AE123: =IF(ISNA(VLOOKUP(A123,Rankings!$B$2:$H$883,7,FALSE)),"-",VLOOKUP(A123,Rankings!$B$2:$H$883,7,FALSE)) -> 0
A124: Maikel Franco | B124: 3B | C124: =((G124*'Points System'!$B$16)+(H124*'Points System'!$B$17)+(I124*'Points System'!$B$15)+(J124*'Points System'!$B$2)+(K124*'Points System'!$B$3)+(L124*'Points System'!$B$4)+(M124*'Points System'!$B$5)+(N124*'Points System'!$B$6)+(O124*'Points System'!$B$7)+(P124*'Points System'!$B$8)+(Q124*'Points System'!$B$9)+(R124*'Points System'!$B$10)+(S124*'Points System'!$B$11)+(T124*'Points System'!$B$13)+(U124*'Points System'!$B$12)+(X124*'Points System'!$B$14))*((100-Settings!$B$37)/100) -> 109.7 | D124: 0.5897849462 | E124: 2.352562728 | F124: =VLOOKUP(A124,'Projections - Hitters'!$A$2:$X$199990,2,FALSE) -> 46.63 | G124: =VLOOKUP(A124,'Projections - Hitters'!$A$2:$X$199990,3,FALSE) -> 186 | H124: =VLOOKUP(A124,'Projections - Hitters'!$A$2:$X$199990,4,FALSE) -> 171.5 | I124: =VLOOKUP(A124,'Projections - Hitters'!$A$2:$X$199990,5,FALSE) -> 43.42 | J124: =VLOOKUP(A124,'Projections - Hitters'!$A$2:$X$199990,6,FALSE) -> 26.67 | K124: =VLOOKUP(A124,'Projections - Hitters'!$A$2:$X$199990,7,FALSE) -> 8.75 | L124: =VLOOKUP(A124,'Projections - Hitters'!$A$2:$X$199990,8,FALSE) -> 0.17 | M124: =VLOOKUP(A124,'Projections - Hitters'!$A$2:$X$199990,9,FALSE) -> 7.67 | N124: =VLOOKUP(A124,'Projections - Hitters'!$A$2:$X$199990,10,FALSE) -> 24.33 | O124: =VLOOKUP(A124,'Projections - Hitters'!$A$2:$X$199990,11,FALSE) -> 20.58 | P124: =VLOOKUP(A124,'Projections - Hitters'!$A$2:$X$199990,12,FALSE) -> 13.83 | Q124: =VLOOKUP(A124,'Projections - Hitters'!$A$2:$X$199990,13,FALSE) -> 26 | R124: =VLOOKUP(A124,'Projections - Hitters'!$A$2:$X$199990,14,FALSE) -> 0 | S124: =VLOOKUP(A124,'Projections - Hitters'!$A$2:$X$199990,15,FALSE) -> 0 | T124: =VLOOKUP(A124,'Projections - Hitters'!$A$2:$X$199990,16,FALSE) -> 1 | U124: =VLOOKUP(A124,'Projections - Hitters'!$A$2:$X$199990,17,FALSE) -> 0.6 | V124: =VLOOKUP(A124,'Projections - Hitters'!$A$2:$X$199990,18,FALSE) -> 0.253 | W124: =VLOOKUP(A124,'Projections - Hitters'!$A$2:$X$199990,19,FALSE) -> 1.88 | X124: =VLOOKUP(A124,'Projections - Hitters'!$A$2:$X$199990,20,FALSE) -> 75.36 | Y124: =VLOOKUP(A124,'Projections - Hitters'!$A$2:$X$199990,21,FALSE) -> 0.309 | Z124: =VLOOKUP(A124,'Projections - Hitters'!$A$2:$X$199990,22,FALSE) -> 0.439 | AA124: =VLOOKUP(A124,'Projections - Hitters'!$A$2:$X$199990,23,FALSE) -> 0.75 | AB124: AL | AC124: 596748 | AD124: 3B | AE124: =IF(ISNA(VLOOKUP(A124,Rankings!$B$2:$H$883,7,FALSE)),"-",VLOOKUP(A124,Rankings!$B$2:$H$883,7,FALSE)) -> 0
A125: Gavin Lux | B125: 2B/SS | C125: =((G125*'Points System'!$B$16)+(H125*'Points System'!$B$17)+(I125*'Points System'!$B$15)+(J125*'Points System'!$B$2)+(K125*'Points System'!$B$3)+(L125*'Points System'!$B$4)+(M125*'Points System'!$B$5)+(N125*'Points System'!$B$6)+(O125*'Points System'!$B$7)+(P125*'Points System'!$B$8)+(Q125*'Points System'!$B$9)+(R125*'Points System'!$B$10)+(S125*'Points System'!$B$11)+(T125*'Points System'!$B$13)+(U125*'Points System'!$B$12)+(X125*'Points System'!$B$14))*((100-Settings!$B$37)/100) -> 109.43 | D125: 0.5357649939 | E125: 2.315978836 | F125: =VLOOKUP(A125,'Projections - Hitters'!$A$2:$X$199990,2,FALSE) -> 47.25 | G125: =VLOOKUP(A125,'Projections - Hitters'!$A$2:$X$199990,3,FALSE) -> 204.25 | H125: =VLOOKUP(A125,'Projections - Hitters'!$A$2:$X$199990,4,FALSE) -> 179 | I125: =VLOOKUP(A125,'Projections - Hitters'!$A$2:$X$199990,5,FALSE) -> 47.67 | J125: =VLOOKUP(A125,'Projections - Hitters'!$A$2:$X$199990,6,FALSE) -> 30.33 | K125: =VLOOKUP(A125,'Projections - Hitters'!$A$2:$X$199990,7,FALSE) -> 8.92 | L125: =VLOOKUP(A125,'Projections - Hitters'!$A$2:$X$199990,8,FALSE) -> 1.75 | M125: =VLOOKUP(A125,'Projections - Hitters'!$A$2:$X$199990,9,FALSE) -> 6.58 | N125: =VLOOKUP(A125,'Projections - Hitters'!$A$2:$X$199990,10,FALSE) -> 23.58 | O125: =VLOOKUP(A125,'Projections - Hitters'!$A$2:$X$199990,11,FALSE) -> 26.42 | P125: =VLOOKUP(A125,'Projections - Hitters'!$A$2:$X$199990,12,FALSE) -> 17.25 | Q125: =VLOOKUP(A125,'Projections - Hitters'!$A$2:$X$199990,13,FALSE) -> 44.45 | R125: =VLOOKUP(A125,'Projections - Hitters'!$A$2:$X$199990,14,FALSE) -> 3.42 | S125: =VLOOKUP(A125,'Projections - Hitters'!$A$2:$X$199990,15,FALSE) -> 1.55 | T125: =VLOOKUP(A125,'Projections - Hitters'!$A$2:$X$199990,16,FALSE) -> 1 | U125: =VLOOKUP(A125,'Projections - Hitters'!$A$2:$X$199990,17,FALSE) -> 0.6 | V125: =VLOOKUP(A125,'Projections - Hitters'!$A$2:$X$199990,18,FALSE) -> 0.266 | W125: =VLOOKUP(A125,'Projections - Hitters'!$A$2:$X$199990,19,FALSE) -> 2.58 | X125: =VLOOKUP(A125,'Projections - Hitters'!$A$2:$X$199990,20,FALSE) -> 79.74 | Y125: =VLOOKUP(A125,'Projections - Hitters'!$A$2:$X$199990,21,FALSE) -> 0.331 | Z125: =VLOOKUP(A125,'Projections - Hitters'!$A$2:$X$199990,22,FALSE) -> 0.445 | AA125: =VLOOKUP(A125,'Projections - Hitters'!$A$2:$X$199990,23,FALSE) -> 0.78 | AB125: NL | AC125: 666158 | AD125: 2B | AE125: =IF(ISNA(VLOOKUP(A125,Rankings!$B$2:$H$883,7,FALSE)),"-",VLOOKUP(A125,Rankings!$B$2:$H$883,7,FALSE)) -> 0
